Workbook

Sheet Data (hidden)
A1: Sex | B1: Age | C1: 1971 | D1: 1972 | E1: 1973 | F1: 1974 | G1: 1975 | H1: 1976 | I1: 1977 | J1: 1978 | K1: 1979 | L1: 1980 | M1: 1981 | N1: 1982 | O1: 1983 | P1: 1984 | Q1: 1985 | R1: 1986 | S1: 1987 | T1: 1988 | U1: 1989 | V1: 1990 | W1: 1991 | X1: 1992 | Y1: 1993 | Z1: 1994 | AA1: 1995 | AB1: 1996 | AC1: 1997 | AD1: 1998 | AE1: 1999 | AF1: 2000 | AG1: 2001 | AH1: 2002 | AI1: 2003 | AJ1: 2004 | AK1: 2005 | AL1: 2006 | AM1: 2007 | AN1: 2008 | AO1: 2009 | AP1: 2010 | AQ1: 2011 | AR1: 2012 | AS1: 2013 | AT1: 2014 | AU1: 2015 | AV1: 2016 | AW1: 2017 | AX1: 2018 | AY1: 2019 | AZ1: 2020 | BA1: 2021 | BB1: 2022 | BC1: 2023 | BD1: 2024 | BE1: 2025 | BF1: 2026 | BG1: 2027 | BH1: 2028 | BI1: 2029 | BJ1: 2030 | BK1: 2031 | BL1: 2032 | BM1: 2033 | BN1: 2034 | BO1: 2035 | BP1: 2036 | BQ1: 2037 | BR1: 2038 | BS1: 2039 | BT1: 2040 | BU1: 2041 | BV1: 2042 | BW1: 2043 | BX1: 2044 | BY1: 2045 | BZ1: 2046 | CA1: 2047 | CB1: 2048 | CC1: 2049 | CD1: 2050 | CE1: 2051 | CF1: 2052 | CG1: 2053 | CH1: 2054 | CI1: 2055 | CJ1: 2056 | CK1: 2057 | CL1: 2058 | CM1: 2059 | CN1: 2060 | CO1: 2061 | CP1: 2062 | CQ1: 2063
A2: Males | B2: 0 | C2: 15886 | D2: 15862 | E2: 15215 | F2: 14569 | G2: 13849 | H2: 13412 | I2: 13192 | J2: 13124 | K2: 13551 | L2: 14126 | M2: 13861 | N2: 13627 | O2: 13803 | P2: 13775 | Q2: 14163 | R2: 14208 | S2: 14335 | T2: 13988 | U2: 13617 | V2: 13250 | W2: 13251 | X2: 13191 | Y2: 12565 | Z2: 12295 | AA2: 12257 | AB2: 12296 | AC2: 12450 | AD2: 12025 | AE2: 11903 | AF2: 11493 | AG2: 11142 | AH2: 10847 | AI2: 10950 | AJ2: 11315 | AK2: 11539 | AL2: 11592 | AM2: 12279 | AN2: 12954 | AO2: 12973 | AP2: 12722 | AQ2: 12943 | AR2: 12980 | AS2: 12523 | AT2: 12440 | AU2: 12393 | AV2: 12736 | AW2: 12195 | AX2: 11858 | AY2: 11626 | AZ2: 11503 | BA2: 11395 | BB2: 11271 | BC2: 11167 | BD2: 11088 | BE2: 11007 | BF2: 10920 | BG2: 10839 | BH2: 10765 | BI2: 10705 | BJ2: 10661 | BK2: 10634 | BL2: 10623 | BM2: 10629 | BN2: 10656 | BO2: 10703 | BP2: 10769 | BQ2: 10853 | BR2: 10946 | BS2: 11039 | BT2: 11125 | BU2: 11198 | BV2: 11255 | BW2: 11292 | BX2: 11298 | BY2: 11282 | BZ2: 11243 | CA2: 11189 | CB2: 11116 | CC2: 11029 | CD2: 10932 | CE2: 10832 | CF2: 10730 | CG2: 10633 | CH2: 10539 | CI2: 10450 | CJ2: 10372 | CK2: 10300 | CL2: 10241 | CM2: 10192 | CN2: 10152 | CO2: 10125 | CP2: 10108 | CQ2: 10100
A3: Males | B3: 1 | C3: 15957 | D3: 15621 | E3: 15543 | F3: 15023 | G3: 14378 | H3: 13708 | I3: 13274 | J3: 13052 | K3: 13012 | L3: 13481 | M3: 14304 | N3: 13802 | O3: 13543 | P3: 13718 | Q3: 13723 | R3: 14046 | S3: 14075 | T3: 14178 | U3: 13873 | V3: 13492 | W3: 13389 | X3: 13313 | Y3: 13185 | Z3: 12536 | AA3: 12353 | AB3: 12341 | AC3: 12305 | AD3: 12445 | AE3: 12132 | AF3: 11872 | AG3: 11475 | AH3: 11067 | AI3: 10801 | AJ3: 10854 | AK3: 11384 | AL3: 11637 | AM3: 11759 | AN3: 12407 | AO3: 13026 | AP3: 13099 | AQ3: 12827 | AR3: 12987 | AS3: 13091 | AT3: 12651 | AU3: 12548 | AV3: 12546 | AW3: 12836 | AX3: 12340 | AY3: 11964 | AZ3: 11731 | BA3: 11604 | BB3: 11491 | BC3: 11362 | BD3: 11259 | BE3: 11176 | BF3: 11095 | BG3: 11008 | BH3: 10926 | BI3: 10852 | BJ3: 10792 | BK3: 10748 | BL3: 10721 | BM3: 10710 | BN3: 10716 | BO3: 10743 | BP3: 10790 | BQ3: 10857 | BR3: 10941 | BS3: 11035 | BT3: 11128 | BU3: 11215 | BV3: 11288 | BW3: 11345 | BX3: 11382 | BY3: 11388 | BZ3: 11372 | CA3: 11333 | CB3: 11279 | CC3: 11205 | CD3: 11118 | CE3: 11022 | CF3: 10921 | CG3: 10819 | CH3: 10722 | CI3: 10627 | CJ3: 10538 | CK3: 10461 | CL3: 10389 | CM3: 10329 | CN3: 10279 | CO3: 10239 | CP3: 10213 | CQ3: 10196
A4: Males | B4: 2 | C4: 16038 | D4: 15742 | E4: 15346 | F4: 15376 | G4: 14878 | H4: 14266 | I4: 13595 | J4: 13173 | K4: 12963 | L4: 12972 | M4: 13659 | N4: 14232 | O4: 13806 | P4: 13523 | Q4: 13682 | R4: 13734 | S4: 13969 | T4: 13965 | U4: 14065 | V4: 13814 | W4: 13474 | X4: 13426 | Y4: 13379 | Z4: 13230 | AA4: 12566 | AB4: 12437 | AC4: 12423 | AD4: 12356 | AE4: 12424 | AF4: 12158 | AG4: 12026 | AH4: 11540 | AI4: 11136 | AJ4: 10888 | AK4: 10959 | AL4: 11473 | AM4: 11718 | AN4: 11852 | AO4: 12466 | AP4: 13086 | AQ4: 13148 | AR4: 12844 | AS4: 13008 | AT4: 13174 | AU4: 12723 | AV4: 12639 | AW4: 12628 | AX4: 12930 | AY4: 12448 | AZ4: 12071 | BA4: 11832 | BB4: 11700 | BC4: 11581 | BD4: 11453 | BE4: 11346 | BF4: 11261 | BG4: 11180 | BH4: 11093 | BI4: 11011 | BJ4: 10936 | BK4: 10878 | BL4: 10833 | BM4: 10807 | BN4: 10796 | BO4: 10802 | BP4: 10828 | BQ4: 10874 | BR4: 10943 | BS4: 11027 | BT4: 11121 | BU4: 11214 | BV4: 11301 | BW4: 11375 | BX4: 11432 | BY4: 11470 | BZ4: 11474 | CA4: 11458 | CB4: 11420 | CC4: 11366 | CD4: 11291 | CE4: 11203 | CF4: 11108 | CG4: 11006 | CH4: 10904 | CI4: 10807 | CJ4: 10711 | CK4: 10622 | CL4: 10545 | CM4: 10473 | CN4: 10412 | CO4: 10362 | CP4: 10322 | CQ4: 10296
A5: Males | B5: 3 | C5: 16269 | D5: 15824 | E5: 15468 | F5: 15186 | G5: 15236 | H5: 14767 | I5: 14160 | J5: 13496 | K5: 13085 | L5: 12928 | M5: 13137 | N5: 13532 | O5: 14172 | P5: 13781 | Q5: 13455 | R5: 13615 | S5: 13675 | T5: 13828 | U5: 13820 | V5: 13923 | W5: 13762 | X5: 13524 | Y5: 13426 | Z5: 13392 | AA5: 13202 | AB5: 12608 | AC5: 12453 | AD5: 12419 | AE5: 12372 | AF5: 12439 | AG5: 12017 | AH5: 12043 | AI5: 11587 | AJ5: 11167 | AK5: 10953 | AL5: 11060 | AM5: 11522 | AN5: 11770 | AO5: 11877 | AP5: 12486 | AQ5: 13111 | AR5: 13183 | AS5: 12865 | AT5: 13026 | AU5: 13248 | AV5: 12787 | AW5: 12685 | AX5: 12701 | AY5: 13005 | AZ5: 12524 | BA5: 12142 | BB5: 11900 | BC5: 11761 | BD5: 11644 | BE5: 11511 | BF5: 11404 | BG5: 11319 | BH5: 11238 | BI5: 11150 | BJ5: 11067 | BK5: 10992 | BL5: 10934 | BM5: 10888 | BN5: 10862 | BO5: 10851 | BP5: 10857 | BQ5: 10883 | BR5: 10929 | BS5: 10999 | BT5: 11083 | BU5: 11177 | BV5: 11270 | BW5: 11358 | BX5: 11432 | BY5: 11489 | BZ5: 11527 | CA5: 11531 | CB5: 11515 | CC5: 11477 | CD5: 11424 | CE5: 11348 | CF5: 11259 | CG5: 11164 | CH5: 11062 | CI5: 10960 | CJ5: 10862 | CK5: 10766 | CL5: 10677 | CM5: 10599 | CN5: 10527 | CO5: 10466 | CP5: 10416 | CQ5: 10376
A6: Males | B6: 4 | C6: 16187 | D6: 16057 | E6: 15552 | F6: 15316 | G6: 15050 | H6: 15129 | I6: 14668 | J6: 14063 | K6: 13410 | L6: 13050 | M6: 12864 | N6: 13020 | O6: 13448 | P6: 14116 | Q6: 13740 | R6: 13381 | S6: 13514 | T6: 13582 | U6: 13697 | V6: 13687 | W6: 13838 | X6: 13793 | Y6: 13562 | Z6: 13406 | AA6: 13370 | AB6: 13256 | AC6: 12628 | AD6: 12448 | AE6: 12422 | AF6: 12413 | AG6: 12390 | AH6: 12055 | AI6: 12052 | AJ6: 11642 | AK6: 11216 | AL6: 11040 | AM6: 11164 | AN6: 11581 | AO6: 11742 | AP6: 11918 | AQ6: 12514 | AR6: 13153 | AS6: 13212 | AT6: 12922 | AU6: 13067 | AV6: 13315 | AW6: 12817 | AX6: 12789 | AY6: 12766 | AZ6: 13071 | BA6: 12585 | BB6: 12199 | BC6: 11953 | BD6: 11812 | BE6: 11691 | BF6: 11558 | BG6: 11451 | BH6: 11366 | BI6: 11285 | BJ6: 11197 | BK6: 11114 | BL6: 11038 | BM6: 10979 | BN6: 10934 | BO6: 10907 | BP6: 10896 | BQ6: 10902 | BR6: 10928 | BS6: 10974 | BT6: 11044 | BU6: 11128 | BV6: 11222 | BW6: 11315 | BX6: 11403 | BY6: 11477 | BZ6: 11535 | CA6: 11574 | CB6: 11578 | CC6: 11562 | CD6: 11524 | CE6: 11471 | CF6: 11395 | CG6: 11306 | CH6: 11210 | CI6: 11108 | CJ6: 11006 | CK6: 10908 | CL6: 10811 | CM6: 10722 | CN6: 10644 | CO6: 10572 | CP6: 10511 | CQ6: 10461
A7: Males | B7: 5 | C7: 16765 | D7: 16072 | E7: 15883 | F7: 15461 | G7: 15226 | H7: 14981 | I7: 15057 | J7: 14594 | K7: 14010 | L7: 13357 | M7: 12854 | N7: 12803 | O7: 12990 | P7: 13418 | Q7: 14092 | R7: 13750 | S7: 13331 | T7: 13443 | U7: 13542 | V7: 13621 | W7: 13656 | X7: 13841 | Y7: 13798 | Z7: 13554 | AA7: 13386 | AB7: 13397 | AC7: 13243 | AD7: 12630 | AE7: 12422 | AF7: 12395 | AG7: 12378 | AH7: 12397 | AI7: 12082 | AJ7: 12072 | AK7: 11735 | AL7: 11252 | AM7: 11130 | AN7: 11210 | AO7: 11564 | AP7: 11690 | AQ7: 11899 | AR7: 12489 | AS7: 13097 | AT7: 13184 | AU7: 12957 | AV7: 13103 | AW7: 13359 | AX7: 12873 | AY7: 12839 | AZ7: 12817 | BA7: 13118 | BB7: 12629 | BC7: 12239 | BD7: 11992 | BE7: 11847 | BF7: 11726 | BG7: 11592 | BH7: 11485 | BI7: 11400 | BJ7: 11318 | BK7: 11231 | BL7: 11148 | BM7: 11072 | BN7: 11012 | BO7: 10968 | BP7: 10941 | BQ7: 10930 | BR7: 10936 | BS7: 10962 | BT7: 11007 | BU7: 11077 | BV7: 11162 | BW7: 11256 | BX7: 11349 | BY7: 11437 | BZ7: 11511 | CA7: 11569 | CB7: 11608 | CC7: 11613 | CD7: 11597 | CE7: 11560 | CF7: 11506 | CG7: 11429 | CH7: 11340 | CI7: 11244 | CJ7: 11142 | CK7: 11040 | CL7: 10941 | CM7: 10845 | CN7: 10755 | CO7: 10676 | CP7: 10604 | CQ7: 10543
A8: Males | B8: 6 | C8: 17051 | D8: 16655 | E8: 15902 | F8: 15796 | G8: 15376 | H8: 15105 | I8: 14910 | J8: 14985 | K8: 14496 | L8: 13961 | M8: 13168 | N8: 12788 | O8: 12757 | P8: 12935 | Q8: 13349 | R8: 14043 | S8: 13699 | T8: 13229 | U8: 13346 | V8: 13484 | W8: 13556 | X8: 13721 | Y8: 13899 | Z8: 13779 | AA8: 13550 | AB8: 13419 | AC8: 13421 | AD8: 13264 | AE8: 12641 | AF8: 12410 | AG8: 12429 | AH8: 12382 | AI8: 12407 | AJ8: 12101 | AK8: 12110 | AL8: 11794 | AM8: 11322 | AN8: 11156 | AO8: 11178 | AP8: 11548 | AQ8: 11655 | AR8: 11916 | AS8: 12529 | AT8: 13120 | AU8: 13223 | AV8: 12988 | AW8: 13148 | AX8: 13386 | AY8: 12914 | AZ8: 12880 | BA8: 12854 | BB8: 13151 | BC8: 12659 | BD8: 12269 | BE8: 12018 | BF8: 11873 | BG8: 11751 | BH8: 11616 | BI8: 11510 | BJ8: 11424 | BK8: 11342 | BL8: 11255 | BM8: 11172 | BN8: 11096 | BO8: 11036 | BP8: 10992 | BQ8: 10965 | BR8: 10954 | BS8: 10960 | BT8: 10986 | BU8: 11031 | BV8: 11102 | BW8: 11186 | BX8: 11279 | BY8: 11374 | BZ8: 11462 | CA8: 11536 | CB8: 11594 | CC8: 11633 | CD8: 11638 | CE8: 11622 | CF8: 11585 | CG8: 11531 | CH8: 11453 | CI8: 11364 | CJ8: 11268 | CK8: 11166 | CL8: 11064 | CM8: 10965 | CN8: 10868 | CO8: 10780 | CP8: 10700 | CQ8: 10628
A9: Males | B9: 7 | C9: 16621 | D9: 16937 | E9: 16479 | F9: 15808 | G9: 15704 | H9: 15310 | I9: 15032 | J9: 14834 | K9: 14929 | L9: 14444 | M9: 13778 | N9: 13099 | O9: 12771 | P9: 12732 | Q9: 12892 | R9: 13298 | S9: 13990 | T9: 13651 | U9: 13155 | V9: 13277 | W9: 13485 | X9: 13591 | Y9: 13724 | Z9: 13900 | AA9: 13785 | AB9: 13592 | AC9: 13410 | AD9: 13405 | AE9: 13231 | AF9: 12632 | AG9: 12314 | AH9: 12443 | AI9: 12384 | AJ9: 12420 | AK9: 12195 | AL9: 12163 | AM9: 11872 | AN9: 11353 | AO9: 11183 | AP9: 11194 | AQ9: 11507 | AR9: 11665 | AS9: 11914 | AT9: 12568 | AU9: 13177 | AV9: 13253 | AW9: 13016 | AX9: 13196 | AY9: 13431 | AZ9: 12959 | BA9: 12920 | BB9: 12891 | BC9: 13185 | BD9: 12694 | BE9: 12300 | BF9: 12048 | BG9: 11904 | BH9: 11781 | BI9: 11646 | BJ9: 11540 | BK9: 11454 | BL9: 11372 | BM9: 11284 | BN9: 11201 | BO9: 11125 | BP9: 11065 | BQ9: 11021 | BR9: 10995 | BS9: 10984 | BT9: 10990 | BU9: 11015 | BV9: 11060 | BW9: 11130 | BX9: 11214 | BY9: 11308 | BZ9: 11404 | CA9: 11492 | CB9: 11566 | CC9: 11624 | CD9: 11662 | CE9: 11667 | CF9: 11650 | CG9: 11614 | CH9: 11560 | CI9: 11483 | CJ9: 11393 | CK9: 11299 | CL9: 11197 | CM9: 11093 | CN9: 10994 | CO9: 10897 | CP9: 10809 | CQ9: 10729
A10: Males | B10: 8 | C10: 16074 | D10: 16509 | E10: 16763 | F10: 16391 | G10: 15721 | H10: 15633 | I10: 15238 | J10: 14962 | K10: 14778 | L10: 14882 | M10: 14277 | N10: 13688 | O10: 13060 | P10: 12761 | Q10: 12702 | R10: 12851 | S10: 13226 | T10: 13920 | U10: 13608 | V10: 13092 | W10: 13238 | X10: 13481 | Y10: 13643 | Z10: 13733 | AA10: 13921 | AB10: 13789 | AC10: 13586 | AD10: 13408 | AE10: 13417 | AF10: 13192 | AG10: 12608 | AH10: 12366 | AI10: 12472 | AJ10: 12370 | AK10: 12443 | AL10: 12250 | AM10: 12239 | AN10: 11924 | AO10: 11369 | AP10: 11198 | AQ10: 11159 | AR10: 11517 | AS10: 11681 | AT10: 11967 | AU10: 12614 | AV10: 13227 | AW10: 13287 | AX10: 13099 | AY10: 13245 | AZ10: 13481 | BA10: 13005 | BB10: 12962 | BC10: 12931 | BD10: 13226 | BE10: 12732 | BF10: 12337 | BG10: 12085 | BH10: 11941 | BI10: 11818 | BJ10: 11683 | BK10: 11576 | BL10: 11490 | BM10: 11407 | BN10: 11319 | BO10: 11236 | BP10: 11160 | BQ10: 11100 | BR10: 11056 | BS10: 11030 | BT10: 11019 | BU10: 11025 | BV10: 11050 | BW10: 11095 | BX10: 11165 | BY10: 11249 | BZ10: 11344 | CA10: 11439 | CB10: 11527 | CC10: 11601 | CD10: 11659 | CE10: 11697 | CF10: 11703 | CG10: 11686 | CH10: 11650 | CI10: 11596 | CJ10: 11519 | CK10: 11429 | CL10: 11335 | CM10: 11233 | CN10: 11129 | CO10: 11029 | CP10: 10932 | CQ10: 10845
A11: Males | B11: 9 | C11: 15260 | D11: 15959 | E11: 16334 | F11: 16678 | G11: 16302 | H11: 15649 | I11: 15562 | J11: 15168 | K11: 14911 | L11: 14727 | M11: 14720 | N11: 14197 | O11: 13651 | P11: 13054 | Q11: 12773 | R11: 12705 | S11: 12821 | T11: 13169 | U11: 13889 | V11: 13606 | W11: 13091 | X11: 13303 | Y11: 13449 | Z11: 13648 | AA11: 13764 | AB11: 13939 | AC11: 13786 | AD11: 13599 | AE11: 13350 | AF11: 13410 | AG11: 13266 | AH11: 12595 | AI11: 12399 | AJ11: 12493 | AK11: 12417 | AL11: 12479 | AM11: 12309 | AN11: 12249 | AO11: 11952 | AP11: 11358 | AQ11: 11195 | AR11: 11164 | AS11: 11547 | AT11: 11718 | AU11: 12008 | AV11: 12663 | AW11: 13253 | AX11: 13347 | AY11: 13149 | AZ11: 13296 | BA11: 13528 | BB11: 13050 | BC11: 13003 | BD11: 12972 | BE11: 13265 | BF11: 12771 | BG11: 12374 | BH11: 12123 | BI11: 11980 | BJ11: 11855 | BK11: 11720 | BL11: 11613 | BM11: 11526 | BN11: 11444 | BO11: 11356 | BP11: 11273 | BQ11: 11197 | BR11: 11135 | BS11: 11092 | BT11: 11067 | BU11: 11056 | BV11: 11062 | BW11: 11087 | BX11: 11132 | BY11: 11201 | BZ11: 11286 | CA11: 11382 | CB11: 11477 | CC11: 11565 | CD11: 11639 | CE11: 11697 | CF11: 11735 | CG11: 11741 | CH11: 11723 | CI11: 11687 | CJ11: 11633 | CK11: 11556 | CL11: 11466 | CM11: 11373 | CN11: 11270 | CO11: 11167 | CP11: 11067 | CQ11: 10969
A12: Males | B12: 10 | C12: 14762 | D12: 15226 | E12: 15870 | F12: 16303 | G12: 16628 | H12: 16266 | I12: 15610 | J12: 15510 | K12: 15116 | L12: 14905 | M12: 14808 | N12: 14520 | O12: 14154 | P12: 13625 | Q12: 13050 | R12: 12792 | S12: 12689 | T12: 12788 | U12: 13128 | V12: 13870 | W12: 13640 | X12: 13085 | Y12: 13351 | Z12: 13442 | AA12: 13679 | AB12: 13816 | AC12: 13951 | AD12: 13790 | AE12: 13560 | AF12: 13333 | AG12: 13387 | AH12: 13217 | AI12: 12582 | AJ12: 12440 | AK12: 12519 | AL12: 12474 | AM12: 12534 | AN12: 12397 | AO12: 12284 | AP12: 11956 | AQ12: 11363 | AR12: 11212 | AS12: 11155 | AT12: 11598 | AU12: 11752 | AV12: 12041 | AW12: 12703 | AX12: 13306 | AY12: 13394 | AZ12: 13196 | BA12: 13341 | BB12: 13571 | BC12: 13090 | BD12: 13042 | BE12: 13008 | BF12: 13301 | BG12: 12807 | BH12: 12408 | BI12: 12158 | BJ12: 12015 | BK12: 11890 | BL12: 11755 | BM12: 11648 | BN12: 11560 | BO12: 11478 | BP12: 11390 | BQ12: 11306 | BR12: 11230 | BS12: 11170 | BT12: 11127 | BU12: 11102 | BV12: 11091 | BW12: 11097 | BX12: 11122 | BY12: 11167 | BZ12: 11236 | CA12: 11320 | CB12: 11416 | CC12: 11512 | CD12: 11600 | CE12: 11674 | CF12: 11732 | CG12: 11770 | CH12: 11776 | CI12: 11758 | CJ12: 11722 | CK12: 11668 | CL12: 11591 | CM12: 11502 | CN12: 11409 | CO12: 11306 | CP12: 11203 | CQ12: 11101
A13: Males | B13: 11 | C13: 14239 | D13: 14725 | E13: 15136 | F13: 15837 | G13: 16251 | H13: 16590 | I13: 16224 | J13: 15557 | K13: 15458 | L13: 15112 | M13: 14991 | N13: 14638 | O13: 14325 | P13: 14089 | Q13: 13566 | R13: 13020 | S13: 12772 | T13: 12640 | U13: 12734 | V13: 13063 | W13: 13844 | X13: 13606 | Y13: 13140 | Z13: 13379 | AA13: 13432 | AB13: 13774 | AC13: 13844 | AD13: 13978 | AE13: 13766 | AF13: 13549 | AG13: 13343 | AH13: 13348 | AI13: 13154 | AJ13: 12578 | AK13: 12481 | AL13: 12588 | AM13: 12532 | AN13: 12570 | AO13: 12426 | AP13: 12289 | AQ13: 11960 | AR13: 11381 | AS13: 11238 | AT13: 11211 | AU13: 11622 | AV13: 11803 | AW13: 12085 | AX13: 12766 | AY13: 13355 | AZ13: 13443 | BA13: 13242 | BB13: 13386 | BC13: 13613 | BD13: 13132 | BE13: 13081 | BF13: 13047 | BG13: 13340 | BH13: 12845 | BI13: 12447 | BJ13: 12195 | BK13: 12052 | BL13: 11928 | BM13: 11792 | BN13: 11684 | BO13: 11596 | BP13: 11514 | BQ13: 11427 | BR13: 11342 | BS13: 11266 | BT13: 11207 | BU13: 11164 | BV13: 11139 | BW13: 11128 | BX13: 11135 | BY13: 11160 | BZ13: 11205 | CA13: 11274 | CB13: 11358 | CC13: 11454 | CD13: 11550 | CE13: 11638 | CF13: 11712 | CG13: 11771 | CH13: 11809 | CI13: 11815 | CJ13: 11797 | CK13: 11761 | CL13: 11707 | CM13: 11629 | CN13: 11539 | CO13: 11446 | CP13: 11343 | CQ13: 11240
A14: Males | B14: 12 | C14: 13713 | D14: 14207 | E14: 14642 | F14: 15105 | G14: 15787 | H14: 16213 | I14: 16550 | J14: 16168 | K14: 15506 | L14: 15453 | M14: 15200 | N14: 14825 | O14: 14498 | P14: 14143 | Q14: 14030 | R14: 13520 | S14: 12987 | T14: 12750 | U14: 12610 | V14: 12692 | W14: 13044 | X14: 13789 | Y14: 13572 | Z14: 13127 | AA14: 13430 | AB14: 13461 | AC14: 13808 | AD14: 13882 | AE14: 13955 | AF14: 13791 | AG14: 13583 | AH14: 13326 | AI14: 13338 | AJ14: 13109 | AK14: 12590 | AL14: 12546 | AM14: 12655 | AN14: 12587 | AO14: 12611 | AP14: 12467 | AQ14: 12293 | AR14: 11975 | AS14: 11366 | AT14: 11269 | AU14: 11253 | AV14: 11664 | AW14: 11838 | AX14: 12140 | AY14: 12811 | AZ14: 13401 | BA14: 13488 | BB14: 13284 | BC14: 13425 | BD14: 13653 | BE14: 13170 | BF14: 13118 | BG14: 13084 | BH14: 13377 | BI14: 12882 | BJ14: 12483 | BK14: 12231 | BL14: 12088 | BM14: 11964 | BN14: 11828 | BO14: 11720 | BP14: 11632 | BQ14: 11550 | BR14: 11462 | BS14: 11378 | BT14: 11302 | BU14: 11243 | BV14: 11200 | BW14: 11175 | BX14: 11164 | BY14: 11172 | BZ14: 11197 | CA14: 11242 | CB14: 11311 | CC14: 11395 | CD14: 11492 | CE14: 11586 | CF14: 11675 | CG14: 11749 | CH14: 11809 | CI14: 11847 | CJ14: 11853 | CK14: 11835 | CL14: 11799 | CM14: 11745 | CN14: 11666 | CO14: 11576 | CP14: 11483 | CQ14: 11380
A15: Males | B15: 13 | C15: 13767 | D15: 13678 | E15: 14123 | F15: 14612 | G15: 15058 | H15: 15750 | I15: 16172 | J15: 16497 | K15: 16113 | L15: 15500 | M15: 15546 | N15: 15061 | O15: 14686 | P15: 14369 | Q15: 13957 | R15: 13976 | S15: 13461 | T15: 12952 | U15: 12739 | V15: 12590 | W15: 12684 | X15: 12988 | Y15: 13750 | Z15: 13546 | AA15: 13118 | AB15: 13522 | AC15: 13450 | AD15: 13828 | AE15: 13892 | AF15: 13930 | AG15: 13733 | AH15: 13549 | AI15: 13315 | AJ15: 13328 | AK15: 13087 | AL15: 12632 | AM15: 12636 | AN15: 12703 | AO15: 12599 | AP15: 12634 | AQ15: 12490 | AR15: 12325 | AS15: 11988 | AT15: 11410 | AU15: 11319 | AV15: 11299 | AW15: 11686 | AX15: 11884 | AY15: 12184 | AZ15: 12856 | BA15: 13445 | BB15: 13529 | BC15: 13323 | BD15: 13464 | BE15: 13690 | BF15: 13207 | BG15: 13156 | BH15: 13122 | BI15: 13415 | BJ15: 12919 | BK15: 12519 | BL15: 12266 | BM15: 12125 | BN15: 12000 | BO15: 11863 | BP15: 11755 | BQ15: 11667 | BR15: 11586 | BS15: 11498 | BT15: 11413 | BU15: 11337 | BV15: 11278 | BW15: 11235 | BX15: 11210 | BY15: 11199 | BZ15: 11207 | CA15: 11232 | CB15: 11277 | CC15: 11346 | CD15: 11430 | CE15: 11527 | CF15: 11621 | CG15: 11710 | CH15: 11784 | CI15: 11844 | CJ15: 11882 | CK15: 11889 | CL15: 11871 | CM15: 11834 | CN15: 11780 | CO15: 11702 | CP15: 11612 | CQ15: 11519
A16: Males | B16: 14 | C16: 13755 | D16: 13728 | E16: 13590 | F16: 14087 | G16: 14565 | H16: 15020 | I16: 15711 | J16: 16117 | K16: 16438 | L16: 16101 | M16: 15586 | N16: 15364 | O16: 14927 | P16: 14541 | Q16: 14225 | R16: 13765 | S16: 13897 | T16: 13385 | U16: 12911 | V16: 12719 | W16: 12578 | X16: 12633 | Y16: 12913 | Z16: 13688 | AA16: 13506 | AB16: 13111 | AC16: 13572 | AD16: 13449 | AE16: 13814 | AF16: 13891 | AG16: 14022 | AH16: 13711 | AI16: 13528 | AJ16: 13293 | AK16: 13303 | AL16: 13056 | AM16: 12665 | AN16: 12691 | AO16: 12729 | AP16: 12621 | AQ16: 12645 | AR16: 12540 | AS16: 12354 | AT16: 12035 | AU16: 11445 | AV16: 11352 | AW16: 11351 | AX16: 11754 | AY16: 11931 | AZ16: 12232 | BA16: 12902 | BB16: 13487 | BC16: 13569 | BD16: 13365 | BE16: 13502 | BF16: 13730 | BG16: 13246 | BH16: 13195 | BI16: 13161 | BJ16: 13454 | BK16: 12957 | BL16: 12558 | BM16: 12304 | BN16: 12163 | BO16: 12038 | BP16: 11901 | BQ16: 11793 | BR16: 11705 | BS16: 11624 | BT16: 11536 | BU16: 11450 | BV16: 11375 | BW16: 11316 | BX16: 11273 | BY16: 11248 | BZ16: 11237 | CA16: 11245 | CB16: 11269 | CC16: 11314 | CD16: 11383 | CE16: 11468 | CF16: 11564 | CG16: 11658 | CH16: 11748 | CI16: 11822 | CJ16: 11882 | CK16: 11920 | CL16: 11927 | CM16: 11909 | CN16: 11871 | CO16: 11817 | CP16: 11740 | CQ16: 11650
A17: Males | B17: 15 | C17: 13663 | D17: 13314 | E17: 13229 | F17: 13286 | G17: 13841 | H17: 14364 | I17: 14843 | J17: 15548 | K17: 16022 | L17: 16271 | M17: 15272 | N17: 15378 | O17: 15185 | P17: 14796 | Q17: 14393 | R17: 14079 | S17: 13568 | T17: 13813 | U17: 13318 | V17: 12873 | W17: 12712 | X17: 12521 | Y17: 12562 | Z17: 12842 | AA17: 13607 | AB17: 13463 | AC17: 13118 | AD17: 13605 | AE17: 13411 | AF17: 13839 | AG17: 13998 | AH17: 13987 | AI17: 13681 | AJ17: 13501 | AK17: 13277 | AL17: 13312 | AM17: 13073 | AN17: 12662 | AO17: 12750 | AP17: 12750 | AQ17: 12622 | AR17: 12678 | AS17: 12534 | AT17: 12381 | AU17: 12062 | AV17: 11475 | AW17: 11387 | AX17: 11396 | AY17: 11796 | AZ17: 11975 | BA17: 12274 | BB17: 12941 | BC17: 13524 | BD17: 13607 | BE17: 13399 | BF17: 13537 | BG17: 13765 | BH17: 13282 | BI17: 13231 | BJ17: 13197 | BK17: 13490 | BL17: 12993 | BM17: 12594 | BN17: 12341 | BO17: 12199 | BP17: 12074 | BQ17: 11937 | BR17: 11829 | BS17: 11740 | BT17: 11659 | BU17: 11571 | BV17: 11485 | BW17: 11410 | BX17: 11351 | BY17: 11308 | BZ17: 11283 | CA17: 11272 | CB17: 11280 | CC17: 11304 | CD17: 11349 | CE17: 11418 | CF17: 11503 | CG17: 11599 | CH17: 11693 | CI17: 11783 | CJ17: 11857 | CK17: 11917 | CL17: 11955 | CM17: 11962 | CN17: 11944 | CO17: 11906 | CP17: 11852 | CQ17: 11775
A18: Males | B18: 16 | C18: 13346 | D18: 13227 | E18: 12821 | F18: 12924 | G18: 13043 | H18: 13644 | I18: 14189 | J18: 14685 | K18: 15450 | L18: 15855 | M18: 15447 | N18: 15140 | O18: 15188 | P18: 15031 | Q18: 14678 | R18: 14262 | S18: 13944 | T18: 13381 | U18: 13750 | V18: 13267 | W18: 12872 | X18: 12596 | Y18: 12474 | Z18: 12490 | AA18: 12760 | AB18: 13531 | AC18: 13400 | AD18: 13081 | AE18: 13607 | AF18: 13381 | AG18: 13985 | AH18: 13952 | AI18: 13956 | AJ18: 13639 | AK18: 13480 | AL18: 13276 | AM18: 13299 | AN18: 13052 | AO18: 12695 | AP18: 12785 | AQ18: 12774 | AR18: 12628 | AS18: 12652 | AT18: 12566 | AU18: 12422 | AV18: 12100 | AW18: 11502 | AX18: 11428 | AY18: 11436 | AZ18: 11836 | BA18: 12013 | BB18: 12310 | BC18: 12975 | BD18: 13559 | BE18: 13640 | BF18: 13432 | BG18: 13570 | BH18: 13798 | BI18: 13315 | BJ18: 13264 | BK18: 13230 | BL18: 13523 | BM18: 13025 | BN18: 12627 | BO18: 12373 | BP18: 12231 | BQ18: 12106 | BR18: 11970 | BS18: 11861 | BT18: 11773 | BU18: 11693 | BV18: 11605 | BW18: 11519 | BX18: 11444 | BY18: 11385 | BZ18: 11342 | CA18: 11317 | CB18: 11306 | CC18: 11314 | CD18: 11338 | CE18: 11383 | CF18: 11452 | CG18: 11537 | CH18: 11633 | CI18: 11727 | CJ18: 11817 | CK18: 11891 | CL18: 11951 | CM18: 11989 | CN18: 11996 | CO18: 11978 | CP18: 11940 | CQ18: 11886
A19: Males | B19: 17 | C19: 13598 | D19: 13266 | E19: 13156 | F19: 12932 | G19: 13063 | H19: 13274 | I19: 13832 | J19: 14433 | K19: 14945 | L19: 15618 | M19: 15313 | N19: 15430 | O19: 15115 | P19: 15104 | Q19: 14961 | R19: 14643 | S19: 14221 | T19: 13902 | U19: 13287 | V19: 13787 | W19: 13318 | X19: 12748 | Y19: 12508 | Z19: 12379 | AA19: 12405 | AB19: 12702 | AC19: 13479 | AD19: 13331 | AE19: 13056 | AF19: 13652 | AG19: 13353 | AH19: 13990 | AI19: 13972 | AJ19: 13922 | AK19: 13643 | AL19: 13490 | AM19: 13299 | AN19: 13277 | AO19: 13024 | AP19: 12715 | AQ19: 12835 | AR19: 12777 | AS19: 12633 | AT19: 12656 | AU19: 12588 | AV19: 12433 | AW19: 12111 | AX19: 11534 | AY19: 11457 | AZ19: 11465 | BA19: 11863 | BB19: 12038 | BC19: 12332 | BD19: 12998 | BE19: 13581 | BF19: 13661 | BG19: 13454 | BH19: 13591 | BI19: 13819 | BJ19: 13336 | BK19: 13285 | BL19: 13253 | BM19: 13546 | BN19: 13047 | BO19: 12650 | BP19: 12395 | BQ19: 12253 | BR19: 12127 | BS19: 11992 | BT19: 11883 | BU19: 11795 | BV19: 11715 | BW19: 11627 | BX19: 11541 | BY19: 11466 | BZ19: 11407 | CA19: 11364 | CB19: 11339 | CC19: 11328 | CD19: 11336 | CE19: 11360 | CF19: 11405 | CG19: 11474 | CH19: 11559 | CI19: 11655 | CJ19: 11749 | CK19: 11839 | CL19: 11913 | CM19: 11973 | CN19: 12011 | CO19: 12018 | CP19: 12001 | CQ19: 11963
A20: Males | B20: 18 | C20: 12211 | D20: 11652 | E20: 11240 | F20: 11525 | G20: 12282 | H20: 12560 | I20: 12686 | J20: 13217 | K20: 13763 | L20: 14210 | M20: 15025 | N20: 15505 | O20: 15606 | P20: 15246 | Q20: 15192 | R20: 15055 | S20: 14833 | T20: 14353 | U20: 14053 | V20: 13379 | W20: 14015 | X20: 13439 | Y20: 13019 | Z20: 12521 | AA20: 11622 | AB20: 11629 | AC20: 11945 | AD20: 12550 | AE20: 12301 | AF20: 12163 | AG20: 13432 | AH20: 13315 | AI20: 13874 | AJ20: 13985 | AK20: 13960 | AL20: 13743 | AM20: 13514 | AN20: 13329 | AO20: 13416 | AP20: 13099 | AQ20: 12810 | AR20: 12859 | AS20: 12773 | AT20: 12715 | AU20: 12689 | AV20: 12610 | AW20: 12488 | AX20: 12160 | AY20: 11557 | AZ20: 11480 | BA20: 11485 | BB20: 11880 | BC20: 12052 | BD20: 12346 | BE20: 13009 | BF20: 13591 | BG20: 13671 | BH20: 13464 | BI20: 13601 | BJ20: 13829 | BK20: 13347 | BL20: 13296 | BM20: 13264 | BN20: 13557 | BO20: 13058 | BP20: 12661 | BQ20: 12406 | BR20: 12265 | BS20: 12139 | BT20: 12004 | BU20: 11897 | BV20: 11809 | BW20: 11728 | BX20: 11641 | BY20: 11555 | BZ20: 11480 | CA20: 11421 | CB20: 11378 | CC20: 11352 | CD20: 11342 | CE20: 11351 | CF20: 11375 | CG20: 11420 | CH20: 11489 | CI20: 11574 | CJ20: 11670 | CK20: 11763 | CL20: 11854 | CM20: 11928 | CN20: 11987 | CO20: 12025 | CP20: 12032 | CQ20: 12015
A21: Males | B21: 19 | C21: 12205 | D21: 11885 | E21: 11276 | F21: 11016 | G21: 11346 | H21: 12153 | I21: 12446 | J21: 12573 | K21: 13137 | L21: 13619 | M21: 14435 | N21: 15042 | O21: 15456 | P21: 15499 | Q21: 15184 | R21: 15055 | S21: 15018 | T21: 14720 | U21: 14270 | V21: 13981 | W21: 13307 | X21: 13649 | Y21: 13007 | Z21: 12236 | AA21: 11917 | AB21: 11129 | AC21: 11314 | AD21: 11477 | AE21: 11897 | AF21: 11744 | AG21: 11494 | AH21: 13032 | AI21: 12753 | AJ21: 13451 | AK21: 13511 | AL21: 13480 | AM21: 13287 | AN21: 13138 | AO21: 13073 | AP21: 13116 | AQ21: 12783 | AR21: 12437 | AS21: 12557 | AT21: 12430 | AU21: 12380 | AV21: 12334 | AW21: 12199 | AX21: 12124 | AY21: 11958 | AZ21: 11361 | BA21: 11292 | BB21: 11293 | BC21: 11682 | BD21: 11846 | BE21: 12128 | BF21: 12786 | BG21: 13353 | BH21: 13420 | BI21: 13212 | BJ21: 13355 | BK21: 13579 | BL21: 13094 | BM21: 13054 | BN21: 13023 | BO21: 13317 | BP21: 12811 | BQ21: 12426 | BR21: 12181 | BS21: 12045 | BT21: 11923 | BU21: 11791 | BV21: 11687 | BW21: 11601 | BX21: 11521 | BY21: 11436 | BZ21: 11352 | CA21: 11279 | CB21: 11222 | CC21: 11180 | CD21: 11155 | CE21: 11146 | CF21: 11155 | CG21: 11180 | CH21: 11224 | CI21: 11293 | CJ21: 11376 | CK21: 11470 | CL21: 11561 | CM21: 11652 | CN21: 11724 | CO21: 11781 | CP21: 11818 | CQ21: 11824
A22: Males | B22: 20 | C22: 13463 | D22: 13315 | E22: 13197 | F22: 12968 | G22: 12552 | H22: 12945 | I22: 12848 | J22: 13109 | K22: 13447 | L22: 13971 | M22: 14288 | N22: 13758 | O22: 14381 | P22: 14698 | Q22: 14801 | R22: 14472 | S22: 14347 | T22: 14140 | U22: 13957 | V22: 13524 | W22: 13393 | X22: 13035 | Y22: 13356 | Z22: 12641 | AA22: 11920 | AB22: 11817 | AC22: 11125 | AD22: 11089 | AE22: 11094 | AF22: 11617 | AG22: 11565 | AH22: 11325 | AI22: 12623 | AJ22: 12301 | AK22: 12848 | AL22: 12929 | AM22: 12840 | AN22: 12778 | AO22: 12720 | AP22: 12651 | AQ22: 12755 | AR22: 12291 | AS22: 12199 | AT22: 12423 | AU22: 12339 | AV22: 12295 | AW22: 12062 | AX22: 12114 | AY22: 11829 | AZ22: 11670 | BA22: 11082 | BB22: 11012 | BC22: 11007 | BD22: 11387 | BE22: 11534 | BF22: 11808 | BG22: 12450 | BH22: 12997 | BI22: 13058 | BJ22: 12855 | BK22: 12996 | BL22: 13213 | BM22: 12739 | BN22: 12704 | BO22: 12674 | BP22: 12962 | BQ22: 12467 | BR22: 12096 | BS22: 11860 | BT22: 11729 | BU22: 11611 | BV22: 11483 | BW22: 11383 | BX22: 11299 | BY22: 11223 | BZ22: 11141 | CA22: 11060 | CB22: 10989 | CC22: 10933 | CD22: 10894 | CE22: 10869 | CF22: 10862 | CG22: 10871 | CH22: 10895 | CI22: 10939 | CJ22: 11006 | CK22: 11087 | CL22: 11178 | CM22: 11266 | CN22: 11355 | CO22: 11424 | CP22: 11480 | CQ22: 11515
A23: Males | B23: 21 | C23: 13067 | D23: 13012 | E23: 12675 | F23: 12651 | G23: 12349 | H23: 12470 | I23: 12618 | J23: 12582 | K23: 12980 | L23: 13175 | M23: 13609 | N23: 13620 | O23: 13184 | P23: 13753 | Q23: 14051 | R23: 14136 | S23: 13876 | T23: 13486 | U23: 13379 | V23: 13287 | W23: 13015 | X23: 13470 | Y23: 13059 | Z23: 13186 | AA23: 12392 | AB23: 11738 | AC23: 11697 | AD23: 11051 | AE23: 10769 | AF23: 10942 | AG23: 11629 | AH23: 11494 | AI23: 11251 | AJ23: 12359 | AK23: 12247 | AL23: 12742 | AM23: 12821 | AN23: 12812 | AO23: 12774 | AP23: 12715 | AQ23: 12649 | AR23: 12638 | AS23: 12452 | AT23: 12112 | AU23: 12287 | AV23: 12162 | AW23: 12074 | AX23: 11978 | AY23: 11986 | AZ23: 11704 | BA23: 11541 | BB23: 10951 | BC23: 10875 | BD23: 10870 | BE23: 11237 | BF23: 11379 | BG23: 11650 | BH23: 12284 | BI23: 12822 | BJ23: 12880 | BK23: 12680 | BL23: 12819 | BM23: 13034 | BN23: 12565 | BO23: 12532 | BP23: 12502 | BQ23: 12788 | BR23: 12298 | BS23: 11933 | BT23: 11703 | BU23: 11574 | BV23: 11457 | BW23: 11331 | BX23: 11233 | BY23: 11150 | BZ23: 11077 | CA23: 10995 | CB23: 10917 | CC23: 10846 | CD23: 10790 | CE23: 10753 | CF23: 10728 | CG23: 10722 | CH23: 10733 | CI23: 10756 | CJ23: 10799 | CK23: 10864 | CL23: 10945 | CM23: 11036 | CN23: 11122 | CO23: 11210 | CP23: 11278 | CQ23: 11333
A24: Males | B24: 22 | C24: 12508 | D24: 12611 | E24: 12369 | F24: 12132 | G24: 12033 | H24: 12268 | I24: 12150 | J24: 12347 | K24: 12468 | L24: 12722 | M24: 12813 | N24: 13283 | O24: 13338 | P24: 12930 | Q24: 13541 | R24: 13755 | S24: 13896 | T24: 13447 | U24: 13074 | V24: 13021 | W24: 13106 | X24: 13216 | Y24: 13572 | Z24: 13002 | AA24: 12899 | AB24: 12341 | AC24: 11685 | AD24: 11521 | AE24: 10844 | AF24: 10671 | AG24: 11014 | AH24: 11507 | AI24: 11410 | AJ24: 11293 | AK24: 12303 | AL24: 12239 | AM24: 12765 | AN24: 12804 | AO24: 12933 | AP24: 12756 | AQ24: 12628 | AR24: 12683 | AS24: 12475 | AT24: 12377 | AU24: 12091 | AV24: 12201 | AW24: 12099 | AX24: 12010 | AY24: 11927 | AZ24: 11934 | BA24: 11645 | BB24: 11473 | BC24: 10876 | BD24: 10803 | BE24: 10789 | BF24: 11153 | BG24: 11294 | BH24: 11564 | BI24: 12193 | BJ24: 12726 | BK24: 12782 | BL24: 12585 | BM24: 12724 | BN24: 12937 | BO24: 12470 | BP24: 12438 | BQ24: 12410 | BR24: 12693 | BS24: 12207 | BT24: 11844 | BU24: 11617 | BV24: 11489 | BW24: 11372 | BX24: 11249 | BY24: 11151 | BZ24: 11070 | CA24: 10998 | CB24: 10916 | CC24: 10839 | CD24: 10768 | CE24: 10712 | CF24: 10676 | CG24: 10652 | CH24: 10646 | CI24: 10657 | CJ24: 10679 | CK24: 10722 | CL24: 10786 | CM24: 10867 | CN24: 10958 | CO24: 11044 | CP24: 11131 | CQ24: 11198
A25: Males | B25: 23 | C25: 11871 | D25: 12061 | E25: 11977 | F25: 11835 | G25: 11520 | H25: 11956 | I25: 11952 | J25: 11887 | K25: 12231 | L25: 12208 | M25: 12358 | N25: 12566 | O25: 13138 | P25: 13150 | Q25: 12856 | R25: 13440 | S25: 13640 | T25: 13587 | U25: 13202 | V25: 12802 | W25: 12937 | X25: 13263 | Y25: 13209 | Z25: 13397 | AA25: 12651 | AB25: 12697 | AC25: 12195 | AD25: 11462 | AE25: 11102 | AF25: 10623 | AG25: 10367 | AH25: 10954 | AI25: 11416 | AJ25: 11459 | AK25: 11445 | AL25: 12341 | AM25: 12368 | AN25: 12793 | AO25: 12838 | AP25: 12884 | AQ25: 12603 | AR25: 12726 | AS25: 12426 | AT25: 12377 | AU25: 12391 | AV25: 12021 | AW25: 12090 | AX25: 12097 | AY25: 12006 | AZ25: 11925 | BA25: 11921 | BB25: 11622 | BC25: 11439 | BD25: 10846 | BE25: 10763 | BF25: 10751 | BG25: 11113 | BH25: 11253 | BI25: 11521 | BJ25: 12149 | BK25: 12679 | BL25: 12732 | BM25: 12536 | BN25: 12675 | BO25: 12886 | BP25: 12422 | BQ25: 12392 | BR25: 12365 | BS25: 12646 | BT25: 12160 | BU25: 11801 | BV25: 11577 | BW25: 11449 | BX25: 11333 | BY25: 11211 | BZ25: 11113 | CA25: 11032 | CB25: 10961 | CC25: 10880 | CD25: 10804 | CE25: 10732 | CF25: 10677 | CG25: 10641 | CH25: 10618 | CI25: 10611 | CJ25: 10622 | CK25: 10645 | CL25: 10688 | CM25: 10752 | CN25: 10833 | CO25: 10923 | CP25: 11007 | CQ25: 11095
A26: Males | B26: 24 | C26: 11401 | D26: 11427 | E26: 11432 | F26: 11436 | G26: 11229 | H26: 11449 | I26: 11642 | J26: 11685 | K26: 11775 | L26: 11972 | M26: 11837 | N26: 12163 | O26: 12447 | P26: 12990 | Q26: 13065 | R26: 12821 | S26: 13448 | T26: 13365 | U26: 13388 | V26: 13037 | W26: 12727 | X26: 13251 | Y26: 13402 | Z26: 13154 | AA26: 13196 | AB26: 12599 | AC26: 12653 | AD26: 11969 | AE26: 11154 | AF26: 10946 | AG26: 10457 | AH26: 10433 | AI26: 10889 | AJ26: 11605 | AK26: 11606 | AL26: 11682 | AM26: 12444 | AN26: 12452 | AO26: 12861 | AP26: 12750 | AQ26: 12696 | AR26: 12660 | AS26: 12335 | AT26: 12366 | AU26: 12377 | AV26: 12292 | AW26: 11816 | AX26: 11942 | AY26: 12078 | AZ26: 11987 | BA26: 11896 | BB26: 11881 | BC26: 11572 | BD26: 11392 | BE26: 10790 | BF26: 10710 | BG26: 10698 | BH26: 11058 | BI26: 11197 | BJ26: 11464 | BK26: 12089 | BL26: 12615 | BM26: 12667 | BN26: 12472 | BO26: 12610 | BP26: 12821 | BQ26: 12360 | BR26: 12332 | BS26: 12305 | BT26: 12585 | BU26: 12098 | BV26: 11743 | BW26: 11520 | BX26: 11394 | BY26: 11280 | BZ26: 11158 | CA26: 11060 | CB26: 10981 | CC26: 10910 | CD26: 10830 | CE26: 10753 | CF26: 10682 | CG26: 10629 | CH26: 10592 | CI26: 10569 | CJ26: 10563 | CK26: 10574 | CL26: 10597 | CM26: 10639 | CN26: 10704 | CO26: 10785 | CP26: 10873 | CQ26: 10957
A27: Males | B27: 25 | C27: 10472 | D27: 11398 | E27: 11220 | F27: 11081 | G27: 10956 | H27: 10938 | I27: 10806 | J27: 10992 | K27: 10979 | L27: 10998 | M27: 11017 | N27: 11057 | O27: 11474 | P27: 11738 | Q27: 12366 | R27: 12441 | S27: 12270 | T27: 12669 | U27: 12597 | V27: 12643 | W27: 12456 | X27: 12372 | Y27: 12693 | Z27: 12893 | AA27: 12675 | AB27: 13008 | AC27: 12447 | AD27: 12436 | AE27: 11539 | AF27: 10917 | AG27: 10868 | AH27: 10488 | AI27: 10505 | AJ27: 10980 | AK27: 11752 | AL27: 11717 | AM27: 11895 | AN27: 12534 | AO27: 12522 | AP27: 12731 | AQ27: 12535 | AR27: 12570 | AS27: 12309 | AT27: 12273 | AU27: 12310 | AV27: 12334 | AW27: 12242 | AX27: 11813 | AY27: 11924 | AZ27: 12060 | BA27: 11958 | BB27: 11857 | BC27: 11830 | BD27: 11523 | BE27: 11333 | BF27: 10734 | BG27: 10655 | BH27: 10644 | BI27: 11002 | BJ27: 11141 | BK27: 11407 | BL27: 12030 | BM27: 12553 | BN27: 12605 | BO27: 12410 | BP27: 12548 | BQ27: 12759 | BR27: 12301 | BS27: 12274 | BT27: 12247 | BU27: 12526 | BV27: 12041 | BW27: 11685 | BX27: 11465 | BY27: 11340 | BZ27: 11226 | CA27: 11104 | CB27: 11007 | CC27: 10929 | CD27: 10857 | CE27: 10777 | CF27: 10702 | CG27: 10630 | CH27: 10579 | CI27: 10542 | CJ27: 10519 | CK27: 10513 | CL27: 10524 | CM27: 10547 | CN27: 10589 | CO27: 10654 | CP27: 10735 | CQ27: 10822
A28: Males | B28: 26 | C28: 10148 | D28: 10612 | E28: 11398 | F28: 11109 | G28: 10835 | H28: 10851 | I28: 10770 | J28: 10690 | K28: 10857 | L28: 10790 | M28: 10540 | N28: 10880 | O28: 11037 | P28: 11427 | Q28: 11669 | R28: 12314 | S28: 12393 | T28: 12149 | U28: 12581 | V28: 12455 | W28: 12623 | X28: 12750 | Y28: 12568 | Z28: 12827 | AA28: 12787 | AB28: 12813 | AC28: 13006 | AD28: 12388 | AE28: 12098 | AF28: 11454 | AG28: 10733 | AH28: 10943 | AI28: 10564 | AJ28: 10582 | AK28: 11086 | AL28: 11932 | AM28: 12022 | AN28: 12073 | AO28: 12466 | AP28: 12428 | AQ28: 12535 | AR28: 12442 | AS28: 12414 | AT28: 12307 | AU28: 12301 | AV28: 12327 | AW28: 12317 | AX28: 12279 | AY28: 11840 | AZ28: 11950 | BA28: 12076 | BB28: 11965 | BC28: 11853 | BD28: 11827 | BE28: 11511 | BF28: 11321 | BG28: 10723 | BH28: 10645 | BI28: 10633 | BJ28: 10992 | BK28: 11131 | BL28: 11397 | BM28: 12019 | BN28: 12541 | BO28: 12593 | BP28: 12398 | BQ28: 12537 | BR28: 12748 | BS28: 12291 | BT28: 12264 | BU28: 12238 | BV28: 12516 | BW28: 12031 | BX28: 11675 | BY28: 11456 | BZ28: 11331 | CA28: 11218 | CB28: 11097 | CC28: 10999 | CD28: 10921 | CE28: 10849 | CF28: 10769 | CG28: 10694 | CH28: 10623 | CI28: 10573 | CJ28: 10535 | CK28: 10513 | CL28: 10507 | CM28: 10518 | CN28: 10542 | CO28: 10583 | CP28: 10649 | CQ28: 10730
A29: Males | B29: 27 | C29: 10269 | D29: 10282 | E29: 10608 | F29: 11294 | G29: 10853 | H29: 10738 | I29: 10688 | J29: 10653 | K29: 10559 | L29: 10673 | M29: 10333 | N29: 10416 | O29: 10849 | P29: 11006 | Q29: 11405 | R29: 11593 | S29: 12273 | T29: 12220 | U29: 12070 | V29: 12505 | W29: 12412 | X29: 12919 | Y29: 12901 | Z29: 12786 | AA29: 12858 | AB29: 12945 | AC29: 12891 | AD29: 12959 | AE29: 12180 | AF29: 11966 | AG29: 11253 | AH29: 10882 | AI29: 10973 | AJ29: 10610 | AK29: 10698 | AL29: 11310 | AM29: 12209 | AN29: 12214 | AO29: 12104 | AP29: 12276 | AQ29: 12244 | AR29: 12527 | AS29: 12278 | AT29: 12400 | AU29: 12352 | AV29: 12332 | AW29: 12365 | AX29: 12379 | AY29: 12335 | AZ29: 11896 | BA29: 11997 | BB29: 12115 | BC29: 11996 | BD29: 11884 | BE29: 11849 | BF29: 11535 | BG29: 11345 | BH29: 10747 | BI29: 10668 | BJ29: 10655 | BK29: 11015 | BL29: 11153 | BM29: 11421 | BN29: 12043 | BO29: 12565 | BP29: 12616 | BQ29: 12423 | BR29: 12561 | BS29: 12772 | BT29: 12318 | BU29: 12290 | BV29: 12264 | BW29: 12542 | BX29: 12056 | BY29: 11700 | BZ29: 11481 | CA29: 11357 | CB29: 11244 | CC29: 11123 | CD29: 11024 | CE29: 10946 | CF29: 10874 | CG29: 10794 | CH29: 10720 | CI29: 10649 | CJ29: 10599 | CK29: 10562 | CL29: 10540 | CM29: 10534 | CN29: 10544 | CO29: 10568 | CP29: 10610 | CQ29: 10676
A30: Males | B30: 28 | C30: 10234 | D30: 10405 | E30: 10280 | F30: 10498 | G30: 11045 | H30: 10750 | I30: 10576 | J30: 10578 | K30: 10518 | L30: 10373 | M30: 10214 | N30: 10125 | O30: 10276 | P30: 10710 | Q30: 10921 | R30: 11302 | S30: 11467 | T30: 12013 | U30: 12007 | V30: 11925 | W30: 12436 | X30: 12618 | Y30: 12965 | Z30: 12956 | AA30: 12675 | AB30: 12915 | AC30: 12912 | AD30: 12711 | AE30: 12705 | AF30: 12109 | AG30: 11892 | AH30: 11294 | AI30: 10975 | AJ30: 10889 | AK30: 10738 | AL30: 10869 | AM30: 11471 | AN30: 12398 | AO30: 12359 | AP30: 12132 | AQ30: 12078 | AR30: 12171 | AS30: 12338 | AT30: 12277 | AU30: 12403 | AV30: 12373 | AW30: 12345 | AX30: 12439 | AY30: 12434 | AZ30: 12389 | BA30: 11942 | BB30: 12036 | BC30: 12145 | BD30: 12026 | BE30: 11907 | BF30: 11873 | BG30: 11558 | BH30: 11368 | BI30: 10770 | BJ30: 10690 | BK30: 10678 | BL30: 11038 | BM30: 11176 | BN30: 11445 | BO30: 12068 | BP30: 12590 | BQ30: 12642 | BR30: 12449 | BS30: 12586 | BT30: 12799 | BU30: 12346 | BV30: 12316 | BW30: 12290 | BX30: 12568 | BY30: 12082 | BZ30: 11725 | CA30: 11508 | CB30: 11382 | CC30: 11269 | CD30: 11149 | CE30: 11050 | CF30: 10970 | CG30: 10899 | CH30: 10820 | CI30: 10744 | CJ30: 10674 | CK30: 10623 | CL30: 10586 | CM30: 10564 | CN30: 10558 | CO30: 10569 | CP30: 10595 | CQ30: 10635
A31: Males | B31: 29 | C31: 9352 | D31: 10368 | E31: 10402 | F31: 10173 | G31: 10256 | H31: 10944 | I31: 10587 | J31: 10467 | K31: 10451 | L31: 10333 | M31: 9914 | N31: 10054 | O31: 10035 | P31: 10175 | Q31: 10646 | R31: 10877 | S31: 11255 | T31: 11264 | U31: 11854 | V31: 11861 | W31: 11910 | X31: 12644 | Y31: 12669 | Z31: 13062 | AA31: 12904 | AB31: 12833 | AC31: 12940 | AD31: 12792 | AE31: 12519 | AF31: 12553 | AG31: 12076 | AH31: 12053 | AI31: 11435 | AJ31: 10983 | AK31: 10988 | AL31: 10838 | AM31: 11116 | AN31: 11566 | AO31: 12431 | AP31: 12355 | AQ31: 12043 | AR31: 11967 | AS31: 12059 | AT31: 12276 | AU31: 12346 | AV31: 12434 | AW31: 12391 | AX31: 12349 | AY31: 12487 | AZ31: 12483 | BA31: 12430 | BB31: 11975 | BC31: 12062 | BD31: 12171 | BE31: 12044 | BF31: 11925 | BG31: 11891 | BH31: 11576 | BI31: 11386 | BJ31: 10788 | BK31: 10708 | BL31: 10695 | BM31: 11056 | BN31: 11194 | BO31: 11464 | BP31: 12088 | BQ31: 12610 | BR31: 12662 | BS31: 12470 | BT31: 12608 | BU31: 12822 | BV31: 12368 | BW31: 12337 | BX31: 12311 | BY31: 12589 | BZ31: 12105 | CA31: 11747 | CB31: 11529 | CC31: 11402 | CD31: 11289 | CE31: 11169 | CF31: 11069 | CG31: 10990 | CH31: 10918 | CI31: 10839 | CJ31: 10764 | CK31: 10694 | CL31: 10642 | CM31: 10605 | CN31: 10583 | CO31: 10577 | CP31: 10588 | CQ31: 10615
A32: Males | B32: 30 | C32: 8905 | D32: 9179 | E32: 9996 | F32: 9920 | G32: 9653 | H32: 9855 | I32: 10607 | J32: 10320 | K32: 10232 | L32: 10200 | M32: 9986 | N32: 9790 | O32: 10013 | P32: 10009 | Q32: 10163 | R32: 10652 | S32: 10903 | T32: 11167 | U32: 11171 | V32: 11768 | W32: 11846 | X32: 12045 | Y32: 12661 | Z32: 12686 | AA32: 12932 | AB32: 12968 | AC32: 12845 | AD32: 12868 | AE32: 12567 | AF32: 12440 | AG32: 12441 | AH32: 12182 | AI32: 12130 | AJ32: 11345 | AK32: 11056 | AL32: 11113 | AM32: 11011 | AN32: 11273 | AO32: 11646 | AP32: 12424 | AQ32: 12341 | AR32: 12030 | AS32: 11920 | AT32: 12052 | AU32: 12352 | AV32: 12386 | AW32: 12493 | AX32: 12501 | AY32: 12413 | AZ32: 12552 | BA32: 12541 | BB32: 12480 | BC32: 12019 | BD32: 12105 | BE32: 12209 | BF32: 12081 | BG32: 11962 | BH32: 11928 | BI32: 11614 | BJ32: 11424 | BK32: 10824 | BL32: 10745 | BM32: 10731 | BN32: 11093 | BO32: 11232 | BP32: 11502 | BQ32: 12125 | BR32: 12649 | BS32: 12700 | BT32: 12510 | BU32: 12647 | BV32: 12862 | BW32: 12408 | BX32: 12377 | BY32: 12351 | BZ32: 12629 | CA32: 12144 | CB32: 11786 | CC32: 11569 | CD32: 11442 | CE32: 11329 | CF32: 11208 | CG32: 11107 | CH32: 11028 | CI32: 10957 | CJ32: 10878 | CK32: 10803 | CL32: 10732 | CM32: 10680 | CN32: 10644 | CO32: 10622 | CP32: 10615 | CQ32: 10626
A33: Males | B33: 31 | C33: 8891 | D33: 8988 | E33: 9178 | F33: 9938 | G33: 9817 | H33: 9569 | I33: 9840 | J33: 10550 | K33: 10253 | L33: 10117 | M33: 9960 | N33: 9895 | O33: 9750 | P33: 10003 | Q33: 10037 | R33: 10179 | S33: 10682 | T33: 10871 | U33: 11141 | V33: 11109 | W33: 11771 | X33: 11963 | Y33: 12066 | Z33: 12631 | AA33: 12673 | AB33: 13015 | AC33: 12928 | AD33: 12867 | AE33: 12726 | AF33: 12533 | AG33: 12413 | AH33: 12437 | AI33: 12200 | AJ33: 12064 | AK33: 11494 | AL33: 11157 | AM33: 11323 | AN33: 11148 | AO33: 11315 | AP33: 11616 | AQ33: 12370 | AR33: 12295 | AS33: 11923 | AT33: 11910 | AU33: 12101 | AV33: 12391 | AW33: 12463 | AX33: 12625 | AY33: 12583 | AZ33: 12495 | BA33: 12629 | BB33: 12610 | BC33: 12543 | BD33: 12083 | BE33: 12162 | BF33: 12266 | BG33: 12138 | BH33: 12019 | BI33: 11985 | BJ33: 11671 | BK33: 11480 | BL33: 10881 | BM33: 10801 | BN33: 10787 | BO33: 11149 | BP33: 11288 | BQ33: 11559 | BR33: 12183 | BS33: 12708 | BT33: 12760 | BU33: 12570 | BV33: 12707 | BW33: 12921 | BX33: 12467 | BY33: 12437 | BZ33: 12412 | CA33: 12689 | CB33: 12204 | CC33: 11845 | CD33: 11628 | CE33: 11502 | CF33: 11390 | CG33: 11267 | CH33: 11166 | CI33: 11087 | CJ33: 11016 | CK33: 10936 | CL33: 10862 | CM33: 10789 | CN33: 10738 | CO33: 10702 | CP33: 10680 | CQ33: 10673
A34: Males | B34: 32 | C34: 8926 | D34: 8977 | E34: 8991 | F34: 9131 | G34: 9840 | H34: 9733 | I34: 9539 | J34: 9778 | K34: 10486 | L34: 10135 | M34: 9874 | N34: 9890 | O34: 9889 | P34: 9725 | Q34: 10032 | R34: 10073 | S34: 10213 | T34: 10662 | U34: 10888 | V34: 11141 | W34: 11111 | X34: 11833 | Y34: 11982 | Z34: 12076 | AA34: 12586 | AB34: 12820 | AC34: 13062 | AD34: 12951 | AE34: 12740 | AF34: 12660 | AG34: 12435 | AH34: 12487 | AI34: 12458 | AJ34: 12256 | AK34: 12130 | AL34: 11643 | AM34: 11387 | AN34: 11402 | AO34: 11213 | AP34: 11336 | AQ34: 11580 | AR34: 12290 | AS34: 12188 | AT34: 11885 | AU34: 11918 | AV34: 12105 | AW34: 12389 | AX34: 12519 | AY34: 12684 | AZ34: 12641 | BA34: 12549 | BB34: 12677 | BC34: 12651 | BD34: 12586 | BE34: 12119 | BF34: 12199 | BG34: 12303 | BH34: 12174 | BI34: 12056 | BJ34: 12021 | BK34: 11708 | BL34: 11517 | BM34: 10918 | BN34: 10838 | BO34: 10824 | BP34: 11185 | BQ34: 11326 | BR34: 11597 | BS34: 12221 | BT34: 12747 | BU34: 12799 | BV34: 12609 | BW34: 12746 | BX34: 12961 | BY34: 12507 | BZ34: 12477 | CA34: 12452 | CB34: 12730 | CC34: 12244 | CD34: 11886 | CE34: 11667 | CF34: 11541 | CG34: 11428 | CH34: 11306 | CI34: 11205 | CJ34: 11127 | CK34: 11054 | CL34: 10975 | CM34: 10899 | CN34: 10826 | CO34: 10776 | CP34: 10740 | CQ34: 10719
A35: Males | B35: 33 | C35: 8750 | D35: 9013 | E35: 8981 | F35: 8941 | G35: 9036 | H35: 9748 | I35: 9713 | J35: 9482 | K35: 9710 | L35: 10371 | M35: 9894 | N35: 9819 | O35: 9862 | P35: 9866 | Q35: 9712 | R35: 10045 | S35: 10114 | T35: 10174 | U35: 10655 | V35: 10904 | W35: 11174 | X35: 11297 | Y35: 11884 | Z35: 12064 | AA35: 12128 | AB35: 12712 | AC35: 12905 | AD35: 13158 | AE35: 12900 | AF35: 12764 | AG35: 12731 | AH35: 12477 | AI35: 12496 | AJ35: 12462 | AK35: 12370 | AL35: 12191 | AM35: 11747 | AN35: 11514 | AO35: 11420 | AP35: 11237 | AQ35: 11280 | AR35: 11506 | AS35: 12180 | AT35: 12154 | AU35: 11910 | AV35: 11922 | AW35: 12127 | AX35: 12440 | AY35: 12557 | AZ35: 12722 | BA35: 12673 | BB35: 12577 | BC35: 12700 | BD35: 12675 | BE35: 12604 | BF35: 12138 | BG35: 12218 | BH35: 12322 | BI35: 12193 | BJ35: 12075 | BK35: 12040 | BL35: 11726 | BM35: 11537 | BN35: 10937 | BO35: 10856 | BP35: 10842 | BQ35: 11203 | BR35: 11345 | BS35: 11616 | BT35: 12241 | BU35: 12767 | BV35: 12820 | BW35: 12630 | BX35: 12767 | BY35: 12983 | BZ35: 12528 | CA35: 12499 | CB35: 12475 | CC35: 12753 | CD35: 12267 | CE35: 11907 | CF35: 11687 | CG35: 11561 | CH35: 11448 | CI35: 11326 | CJ35: 11226 | CK35: 11147 | CL35: 11073 | CM35: 10995 | CN35: 10919 | CO35: 10847 | CP35: 10797 | CQ35: 10761
A36: Males | B36: 34 | C36: 8820 | D36: 8836 | E36: 9017 | F36: 8931 | G36: 8848 | H36: 8953 | I36: 9732 | J36: 9657 | K36: 9416 | L36: 9593 | M36: 10133 | N36: 9780 | O36: 9729 | P36: 9774 | Q36: 9815 | R36: 9651 | S36: 10019 | T36: 10036 | U36: 10113 | V36: 10603 | W36: 10907 | X36: 11231 | Y36: 11292 | Z36: 11849 | AA36: 12017 | AB36: 12179 | AC36: 12655 | AD36: 12898 | AE36: 13083 | AF36: 12904 | AG36: 12681 | AH36: 12749 | AI36: 12499 | AJ36: 12542 | AK36: 12547 | AL36: 12455 | AM36: 12309 | AN36: 11849 | AO36: 11558 | AP36: 11390 | AQ36: 11154 | AR36: 11251 | AS36: 11414 | AT36: 12173 | AU36: 12214 | AV36: 11924 | AW36: 11912 | AX36: 12190 | AY36: 12483 | AZ36: 12599 | BA36: 12760 | BB36: 12708 | BC36: 12606 | BD36: 12729 | BE36: 12699 | BF36: 12630 | BG36: 12163 | BH36: 12242 | BI36: 12348 | BJ36: 12219 | BK36: 12101 | BL36: 12064 | BM36: 11751 | BN36: 11562 | BO36: 10962 | BP36: 10879 | BQ36: 10865 | BR36: 11226 | BS36: 11371 | BT36: 11642 | BU36: 12267 | BV36: 12794 | BW36: 12847 | BX36: 12657 | BY36: 12795 | BZ36: 13011 | CA36: 12556 | CB36: 12527 | CC36: 12502 | CD36: 12782 | CE36: 12295 | CF36: 11935 | CG36: 11714 | CH36: 11588 | CI36: 11475 | CJ36: 11354 | CK36: 11253 | CL36: 11174 | CM36: 11099 | CN36: 11022 | CO36: 10945 | CP36: 10873 | CQ36: 10823
A37: Males | B37: 35 | C37: 8433 | D37: 8813 | E37: 8732 | F37: 8864 | G37: 8740 | H37: 8626 | I37: 8776 | J37: 9509 | K37: 9470 | L37: 9240 | M37: 9580 | N37: 10074 | O37: 9764 | P37: 9711 | Q37: 9758 | R37: 9829 | S37: 9652 | T37: 10002 | U37: 10042 | V37: 10117 | W37: 10635 | X37: 10954 | Y37: 11239 | Z37: 11260 | AA37: 11821 | AB37: 12070 | AC37: 12202 | AD37: 12668 | AE37: 12866 | AF37: 13138 | AG37: 13036 | AH37: 12767 | AI37: 12832 | AJ37: 12599 | AK37: 12652 | AL37: 12654 | AM37: 12530 | AN37: 12320 | AO37: 11873 | AP37: 11573 | AQ37: 11270 | AR37: 11084 | AS37: 11118 | AT37: 11395 | AU37: 12159 | AV37: 12195 | AW37: 11922 | AX37: 11965 | AY37: 12224 | AZ37: 12518 | BA37: 12630 | BB37: 12786 | BC37: 12728 | BD37: 12628 | BE37: 12746 | BF37: 12717 | BG37: 12647 | BH37: 12182 | BI37: 12260 | BJ37: 12366 | BK37: 12238 | BL37: 12120 | BM37: 12083 | BN37: 11769 | BO37: 11581 | BP37: 10979 | BQ37: 10897 | BR37: 10883 | BS37: 11244 | BT37: 11390 | BU37: 11661 | BV37: 12287 | BW37: 12815 | BX37: 12868 | BY37: 12677 | BZ37: 12815 | CA37: 13031 | CB37: 12577 | CC37: 12547 | CD37: 12523 | CE37: 12803 | CF37: 12317 | CG37: 11957 | CH37: 11735 | CI37: 11609 | CJ37: 11496 | CK37: 11375 | CL37: 11273 | CM37: 11195 | CN37: 11120 | CO37: 11042 | CP37: 10965 | CQ37: 10893
A38: Males | B38: 36 | C38: 8091 | D38: 8476 | E38: 8787 | F38: 8671 | G38: 8770 | H38: 8608 | I38: 8581 | J38: 8714 | K38: 9462 | L38: 9444 | M38: 9348 | N38: 9557 | O38: 10092 | P38: 9788 | Q38: 9748 | R38: 9796 | S38: 9897 | T38: 9655 | U38: 10056 | V38: 10110 | W38: 10197 | X38: 10719 | Y38: 10971 | Z38: 11281 | AA38: 11306 | AB38: 11919 | AC38: 12198 | AD38: 12224 | AE38: 12678 | AF38: 12870 | AG38: 13157 | AH38: 13120 | AI38: 12840 | AJ38: 12918 | AK38: 12685 | AL38: 12751 | AM38: 12668 | AN38: 12611 | AO38: 12374 | AP38: 11861 | AQ38: 11552 | AR38: 11244 | AS38: 11027 | AT38: 11105 | AU38: 11424 | AV38: 12166 | AW38: 12221 | AX38: 11935 | AY38: 11996 | AZ38: 12253 | BA38: 12544 | BB38: 12653 | BC38: 12805 | BD38: 12748 | BE38: 12644 | BF38: 12762 | BG38: 12733 | BH38: 12664 | BI38: 12199 | BJ38: 12275 | BK38: 12382 | BL38: 12255 | BM38: 12136 | BN38: 12098 | BO38: 11786 | BP38: 11597 | BQ38: 10996 | BR38: 10913 | BS38: 10899 | BT38: 11260 | BU38: 11407 | BV38: 11678 | BW38: 12305 | BX38: 12833 | BY38: 12887 | BZ38: 12696 | CA38: 12834 | CB38: 13051 | CC38: 12597 | CD38: 12566 | CE38: 12542 | CF38: 12822 | CG38: 12337 | CH38: 11977 | CI38: 11755 | CJ38: 11627 | CK38: 11514 | CL38: 11394 | CM38: 11292 | CN38: 11213 | CO38: 11138 | CP38: 11060 | CQ38: 10983
A39: Males | B39: 37 | C39: 8003 | D39: 8134 | E39: 8450 | F39: 8727 | G39: 8584 | H39: 8641 | I39: 8551 | J39: 8518 | K39: 8668 | L39: 9428 | M39: 9550 | N39: 9291 | O39: 9501 | P39: 10058 | Q39: 9787 | R39: 9738 | S39: 9805 | T39: 9872 | U39: 9628 | V39: 10063 | W39: 10146 | X39: 10296 | Y39: 10752 | Z39: 10948 | AA39: 11282 | AB39: 11365 | AC39: 11974 | AD39: 12196 | AE39: 12209 | AF39: 12683 | AG39: 12942 | AH39: 13144 | AI39: 13095 | AJ39: 12861 | AK39: 12986 | AL39: 12786 | AM39: 12803 | AN39: 12695 | AO39: 12581 | AP39: 12310 | AQ39: 11841 | AR39: 11518 | AS39: 11097 | AT39: 11008 | AU39: 11091 | AV39: 11459 | AW39: 12142 | AX39: 12272 | AY39: 11963 | AZ39: 12024 | BA39: 12278 | BB39: 12566 | BC39: 12670 | BD39: 12824 | BE39: 12762 | BF39: 12658 | BG39: 12777 | BH39: 12748 | BI39: 12680 | BJ39: 12215 | BK39: 12290 | BL39: 12398 | BM39: 12271 | BN39: 12151 | BO39: 12114 | BP39: 11802 | BQ39: 11613 | BR39: 11012 | BS39: 10928 | BT39: 10914 | BU39: 11276 | BV39: 11423 | BW39: 11695 | BX39: 12323 | BY39: 12850 | BZ39: 12906 | CA39: 12715 | CB39: 12853 | CC39: 13071 | CD39: 12616 | CE39: 12584 | CF39: 12561 | CG39: 12840 | CH39: 12356 | CI39: 11995 | CJ39: 11774 | CK39: 11645 | CL39: 11532 | CM39: 11412 | CN39: 11310 | CO39: 11231 | CP39: 11157 | CQ39: 11077
A40: Males | B40: 38 | C40: 7963 | D40: 8044 | E40: 8108 | F40: 8390 | G40: 8629 | H40: 8451 | I40: 8586 | J40: 8498 | K40: 8471 | L40: 8630 | M40: 9528 | N40: 9457 | O40: 9238 | P40: 9431 | Q40: 10015 | R40: 9757 | S40: 9722 | T40: 9739 | U40: 9836 | V40: 9591 | W40: 10057 | X40: 10218 | Y40: 10301 | Z40: 10739 | AA40: 10935 | AB40: 11327 | AC40: 11404 | AD40: 11910 | AE40: 12168 | AF40: 12196 | AG40: 12664 | AH40: 13015 | AI40: 13182 | AJ40: 13194 | AK40: 12911 | AL40: 13056 | AM40: 12831 | AN40: 12781 | AO40: 12736 | AP40: 12576 | AQ40: 12297 | AR40: 11760 | AS40: 11431 | AT40: 11042 | AU40: 11041 | AV40: 11085 | AW40: 11469 | AX40: 12178 | AY40: 12290 | AZ40: 11980 | BA40: 12037 | BB40: 12288 | BC40: 12573 | BD40: 12679 | BE40: 12828 | BF40: 12767 | BG40: 12663 | BH40: 12782 | BI40: 12754 | BJ40: 12685 | BK40: 12222 | BL40: 12295 | BM40: 12405 | BN40: 12278 | BO40: 12157 | BP40: 12121 | BQ40: 11809 | BR40: 11621 | BS40: 11019 | BT40: 10934 | BU40: 10921 | BV40: 11284 | BW40: 11431 | BX40: 11702 | BY40: 12331 | BZ40: 12858 | CA40: 12915 | CB40: 12724 | CC40: 12862 | CD40: 13080 | CE40: 12627 | CF40: 12594 | CG40: 12571 | CH40: 12849 | CI40: 12366 | CJ40: 12006 | CK40: 11783 | CL40: 11654 | CM40: 11542 | CN40: 11422 | CO40: 11320 | CP40: 11241 | CQ40: 11167
A41: Males | B41: 39 | C41: 7984 | D41: 8009 | E41: 8022 | F41: 8052 | G41: 8300 | H41: 8508 | I41: 8403 | J41: 8518 | K41: 8457 | L41: 8438 | M41: 8725 | N41: 9466 | O41: 9434 | P41: 9211 | Q41: 9408 | R41: 10003 | S41: 9770 | T41: 9701 | U41: 9724 | V41: 9844 | W41: 9602 | X41: 10136 | Y41: 10256 | Z41: 10360 | AA41: 10775 | AB41: 10977 | AC41: 11395 | AD41: 11406 | AE41: 11869 | AF41: 12205 | AG41: 12227 | AH41: 12680 | AI41: 13029 | AJ41: 13195 | AK41: 13209 | AL41: 12953 | AM41: 13095 | AN41: 12905 | AO41: 12782 | AP41: 12728 | AQ41: 12569 | AR41: 12208 | AS41: 11710 | AT41: 11422 | AU41: 11070 | AV41: 11030 | AW41: 11080 | AX41: 11493 | AY41: 12197 | AZ41: 12310 | BA41: 11996 | BB41: 12050 | BC41: 12298 | BD41: 12584 | BE41: 12687 | BF41: 12836 | BG41: 12776 | BH41: 12672 | BI41: 12792 | BJ41: 12763 | BK41: 12693 | BL41: 12231 | BM41: 12304 | BN41: 12414 | BO41: 12287 | BP41: 12167 | BQ41: 12131 | BR41: 11819 | BS41: 11631 | BT41: 11029 | BU41: 10944 | BV41: 10931 | BW41: 11294 | BX41: 11442 | BY41: 11714 | BZ41: 12341 | CA41: 12870 | CB41: 12927 | CC41: 12736 | CD41: 12874 | CE41: 13092 | CF41: 12640 | CG41: 12606 | CH41: 12583 | CI41: 12861 | CJ41: 12380 | CK41: 12020 | CL41: 11796 | CM41: 11667 | CN41: 11555 | CO41: 11436 | CP41: 11333 | CQ41: 11253
A42: Males | B42: 40 | C42: 8152 | D42: 7886 | E42: 7816 | F42: 7802 | G42: 7805 | H42: 8029 | I42: 8323 | J42: 8216 | K42: 8342 | L42: 8274 | M42: 8126 | N42: 8649 | O42: 9412 | P42: 9390 | Q42: 9188 | R42: 9374 | S42: 9988 | T42: 9739 | U42: 9683 | V42: 9703 | W42: 9858 | X42: 9636 | Y42: 10139 | Z42: 10249 | AA42: 10342 | AB42: 10803 | AC42: 10917 | AD42: 11341 | AE42: 11380 | AF42: 11827 | AG42: 12278 | AH42: 12172 | AI42: 12681 | AJ42: 13053 | AK42: 13215 | AL42: 13159 | AM42: 12981 | AN42: 13153 | AO42: 12875 | AP42: 12717 | AQ42: 12693 | AR42: 12535 | AS42: 12179 | AT42: 11666 | AU42: 11414 | AV42: 11068 | AW42: 11058 | AX42: 11112 | AY42: 11512 | AZ42: 12217 | BA42: 12328 | BB42: 12009 | BC42: 12061 | BD42: 12309 | BE42: 12592 | BF42: 12694 | BG42: 12845 | BH42: 12785 | BI42: 12681 | BJ42: 12800 | BK42: 12772 | BL42: 12703 | BM42: 12241 | BN42: 12313 | BO42: 12425 | BP42: 12296 | BQ42: 12178 | BR42: 12141 | BS42: 11830 | BT42: 11642 | BU42: 11041 | BV42: 10954 | BW42: 10942 | BX42: 11306 | BY42: 11453 | BZ42: 11725 | CA42: 12352 | CB42: 12883 | CC42: 12939 | CD42: 12749 | CE42: 12887 | CF42: 13105 | CG42: 12654 | CH42: 12619 | CI42: 12596 | CJ42: 12875 | CK42: 12395 | CL42: 12033 | CM42: 11810 | CN42: 11681 | CO42: 11569 | CP42: 11450 | CQ42: 11346
A43: Males | B43: 41 | C43: 8080 | D43: 8168 | E43: 7856 | F43: 7775 | G43: 7738 | H43: 7700 | I43: 7987 | J43: 8272 | K43: 8168 | L43: 8276 | M43: 8059 | N43: 8065 | O43: 8602 | P43: 9365 | Q43: 9357 | R43: 9168 | S43: 9352 | T43: 9962 | U43: 9729 | V43: 9674 | W43: 9712 | X43: 9849 | Y43: 9660 | Z43: 10145 | AA43: 10269 | AB43: 10404 | AC43: 10823 | AD43: 10937 | AE43: 11353 | AF43: 11323 | AG43: 11892 | AH43: 12271 | AI43: 12183 | AJ43: 12769 | AK43: 13087 | AL43: 13233 | AM43: 13187 | AN43: 13032 | AO43: 13091 | AP43: 12897 | AQ43: 12716 | AR43: 12708 | AS43: 12440 | AT43: 12177 | AU43: 11646 | AV43: 11388 | AW43: 11063 | AX43: 11072 | AY43: 11122 | AZ43: 11522 | BA43: 12226 | BB43: 12333 | BC43: 12012 | BD43: 12064 | BE43: 12310 | BF43: 12591 | BG43: 12694 | BH43: 12844 | BI43: 12786 | BJ43: 12682 | BK43: 12801 | BL43: 12773 | BM43: 12705 | BN43: 12243 | BO43: 12314 | BP43: 12428 | BQ43: 12298 | BR43: 12181 | BS43: 12144 | BT43: 11834 | BU43: 11646 | BV43: 11044 | BW43: 10958 | BX43: 10946 | BY43: 11310 | BZ43: 11457 | CA43: 11729 | CB43: 12356 | CC43: 12886 | CD43: 12944 | CE43: 12754 | CF43: 12892 | CG43: 13110 | CH43: 12660 | CI43: 12625 | CJ43: 12602 | CK43: 12881 | CL43: 12402 | CM43: 12040 | CN43: 11817 | CO43: 11688 | CP43: 11576 | CQ43: 11457
A44: Males | B44: 42 | C44: 8052 | D44: 8084 | E44: 8126 | F44: 7810 | G44: 7707 | H44: 7637 | I44: 7653 | J44: 7931 | K44: 8225 | L44: 8098 | M44: 8057 | N44: 7974 | O44: 8014 | P44: 8553 | Q44: 9318 | R44: 9324 | S44: 9151 | T44: 9303 | U44: 9924 | V44: 9724 | W44: 9673 | X44: 9765 | Y44: 9843 | Z44: 9662 | AA44: 10161 | AB44: 10323 | AC44: 10429 | AD44: 10862 | AE44: 10903 | AF44: 11336 | AG44: 11292 | AH44: 11913 | AI44: 12266 | AJ44: 12253 | AK44: 12837 | AL44: 13132 | AM44: 13302 | AN44: 13224 | AO44: 13042 | AP44: 13093 | AQ44: 12863 | AR44: 12674 | AS44: 12584 | AT44: 12394 | AU44: 12181 | AV44: 11645 | AW44: 11382 | AX44: 11103 | AY44: 11084 | AZ44: 11132 | BA44: 11530 | BB44: 12230 | BC44: 12334 | BD44: 12015 | BE44: 12063 | BF44: 12309 | BG44: 12590 | BH44: 12693 | BI44: 12843 | BJ44: 12786 | BK44: 12682 | BL44: 12801 | BM44: 12774 | BN44: 12707 | BO44: 12245 | BP44: 12315 | BQ44: 12429 | BR44: 12300 | BS44: 12183 | BT44: 12146 | BU44: 11837 | BV44: 11648 | BW44: 11048 | BX44: 10962 | BY44: 10951 | BZ44: 11314 | CA44: 11461 | CB44: 11733 | CC44: 12359 | CD44: 12890 | CE44: 12949 | CF44: 12758 | CG44: 12897 | CH44: 13115 | CI44: 12665 | CJ44: 12630 | CK44: 12608 | CL44: 12887 | CM44: 12408 | CN44: 12048 | CO44: 11824 | CP44: 11695 | CQ44: 11583
A45: Males | B45: 43 | C45: 7955 | D45: 8062 | E45: 8047 | F45: 8077 | G45: 7733 | H45: 7592 | I45: 7578 | J45: 7604 | K45: 7884 | L45: 8160 | M45: 7881 | N45: 8000 | O45: 7914 | P45: 7978 | Q45: 8518 | R45: 9295 | S45: 9289 | T45: 9131 | U45: 9274 | V45: 9919 | W45: 9746 | X45: 9651 | Y45: 9751 | Z45: 9793 | AA45: 9659 | AB45: 10180 | AC45: 10339 | AD45: 10476 | AE45: 10862 | AF45: 10909 | AG45: 11409 | AH45: 11317 | AI45: 11888 | AJ45: 12296 | AK45: 12289 | AL45: 12849 | AM45: 13181 | AN45: 13275 | AO45: 13204 | AP45: 13045 | AQ45: 13079 | AR45: 12816 | AS45: 12564 | AT45: 12510 | AU45: 12408 | AV45: 12151 | AW45: 11627 | AX45: 11380 | AY45: 11110 | AZ45: 11091 | BA45: 11136 | BB45: 11530 | BC45: 12226 | BD45: 12333 | BE45: 12012 | BF45: 12059 | BG45: 12306 | BH45: 12586 | BI45: 12689 | BJ45: 12839 | BK45: 12783 | BL45: 12680 | BM45: 12798 | BN45: 12771 | BO45: 12705 | BP45: 12244 | BQ45: 12313 | BR45: 12428 | BS45: 12298 | BT45: 12182 | BU45: 12144 | BV45: 11837 | BW45: 11648 | BX45: 11048 | BY45: 10964 | BZ45: 10953 | CA45: 11315 | CB45: 11462 | CC45: 11733 | CD45: 12361 | CE45: 12891 | CF45: 12950 | CG45: 12761 | CH45: 12900 | CI45: 13118 | CJ45: 12666 | CK45: 12633 | CL45: 12610 | CM45: 12890 | CN45: 12411 | CO45: 12052 | CP45: 11829 | CQ45: 11700
A46: Males | B46: 44 | C46: 8326 | D46: 7958 | E46: 8020 | F46: 7998 | G46: 7996 | H46: 7628 | I46: 7539 | J46: 7518 | K46: 7552 | L46: 7812 | M46: 7938 | N46: 7823 | O46: 7949 | P46: 7851 | Q46: 7947 | R46: 8487 | S46: 9269 | T46: 9253 | U46: 9122 | V46: 9246 | W46: 9923 | X46: 9734 | Y46: 9646 | Z46: 9751 | AA46: 9780 | AB46: 9680 | AC46: 10200 | AD46: 10363 | AE46: 10497 | AF46: 10877 | AG46: 11029 | AH46: 11388 | AI46: 11311 | AJ46: 11853 | AK46: 12329 | AL46: 12334 | AM46: 12891 | AN46: 13222 | AO46: 13269 | AP46: 13192 | AQ46: 13042 | AR46: 13055 | AS46: 12724 | AT46: 12530 | AU46: 12518 | AV46: 12406 | AW46: 12147 | AX46: 11635 | AY46: 11382 | AZ46: 11111 | BA46: 11090 | BB46: 11133 | BC46: 11524 | BD46: 12220 | BE46: 12326 | BF46: 12004 | BG46: 12052 | BH46: 12299 | BI46: 12578 | BJ46: 12682 | BK46: 12832 | BL46: 12776 | BM46: 12673 | BN46: 12792 | BO46: 12764 | BP46: 12698 | BQ46: 12239 | BR46: 12307 | BS46: 12422 | BT46: 12293 | BU46: 12177 | BV46: 12140 | BW46: 11833 | BX46: 11645 | BY46: 11045 | BZ46: 10962 | CA46: 10951 | CB46: 11312 | CC46: 11460 | CD46: 11731 | CE46: 12358 | CF46: 12889 | CG46: 12949 | CH46: 12761 | CI46: 12899 | CJ46: 13117 | CK46: 12665 | CL46: 12632 | CM46: 12609 | CN46: 12890 | CO46: 12412 | CP46: 12054 | CQ46: 11831
A47: Males | B47: 45 | C47: 8019 | D47: 8236 | E47: 7809 | F47: 7871 | G47: 7838 | H47: 7831 | I47: 7526 | J47: 7432 | K47: 7414 | L47: 7464 | M47: 7770 | N47: 7891 | O47: 7790 | P47: 7919 | Q47: 7810 | R47: 7931 | S47: 8457 | T47: 9238 | U47: 9240 | V47: 9130 | W47: 9255 | X47: 9945 | Y47: 9748 | Z47: 9653 | AA47: 9743 | AB47: 9793 | AC47: 9715 | AD47: 10216 | AE47: 10398 | AF47: 10511 | AG47: 10945 | AH47: 11017 | AI47: 11391 | AJ47: 11341 | AK47: 11897 | AL47: 12358 | AM47: 12443 | AN47: 12963 | AO47: 13238 | AP47: 13292 | AQ47: 13181 | AR47: 13003 | AS47: 13040 | AT47: 12707 | AU47: 12552 | AV47: 12500 | AW47: 12388 | AX47: 12166 | AY47: 11641 | AZ47: 11387 | BA47: 11115 | BB47: 11091 | BC47: 11132 | BD47: 11522 | BE47: 12215 | BF47: 12321 | BG47: 12001 | BH47: 12048 | BI47: 12295 | BJ47: 12575 | BK47: 12679 | BL47: 12829 | BM47: 12774 | BN47: 12671 | BO47: 12789 | BP47: 12762 | BQ47: 12697 | BR47: 12239 | BS47: 12307 | BT47: 12422 | BU47: 12294 | BV47: 12178 | BW47: 12141 | BX47: 11834 | BY47: 11647 | BZ47: 11047 | CA47: 10964 | CB47: 10954 | CC47: 11314 | CD47: 11462 | CE47: 11735 | CF47: 12360 | CG47: 12892 | CH47: 12952 | CI47: 12764 | CJ47: 12902 | CK47: 13120 | CL47: 12669 | CM47: 12635 | CN47: 12614 | CO47: 12895 | CP47: 12417 | CQ47: 12060
A48: Males | B48: 46 | C48: 7946 | D48: 7977 | E48: 8158 | F48: 7755 | G48: 7803 | H48: 7743 | I48: 7763 | J48: 7454 | K48: 7385 | L48: 7368 | M48: 7464 | N48: 7727 | O48: 7853 | P48: 7759 | Q48: 7897 | R48: 7776 | S48: 7908 | T48: 8422 | U48: 9217 | V48: 9238 | W48: 9153 | X48: 9274 | Y48: 9930 | Z48: 9710 | AA48: 9667 | AB48: 9755 | AC48: 9803 | AD48: 9741 | AE48: 10207 | AF48: 10423 | AG48: 10362 | AH48: 10906 | AI48: 10992 | AJ48: 11392 | AK48: 11393 | AL48: 11863 | AM48: 12381 | AN48: 12487 | AO48: 12998 | AP48: 13224 | AQ48: 13305 | AR48: 13164 | AS48: 12992 | AT48: 13059 | AU48: 12705 | AV48: 12531 | AW48: 12481 | AX48: 12386 | AY48: 12169 | AZ48: 11644 | BA48: 11388 | BB48: 11115 | BC48: 11087 | BD48: 11129 | BE48: 11517 | BF48: 12209 | BG48: 12316 | BH48: 11996 | BI48: 12042 | BJ48: 12289 | BK48: 12570 | BL48: 12675 | BM48: 12824 | BN48: 12769 | BO48: 12667 | BP48: 12785 | BQ48: 12759 | BR48: 12693 | BS48: 12237 | BT48: 12304 | BU48: 12420 | BV48: 12292 | BW48: 12177 | BX48: 12140 | BY48: 11834 | BZ48: 11646 | CA48: 11048 | CB48: 10966 | CC48: 10957 | CD48: 11315 | CE48: 11464 | CF48: 11736 | CG48: 12360 | CH48: 12893 | CI48: 12954 | CJ48: 12766 | CK48: 12904 | CL48: 13122 | CM48: 12672 | CN48: 12637 | CO48: 12617 | CP48: 12897 | CQ48: 12420
A49: Males | B49: 47 | C49: 8022 | D49: 7902 | E49: 7899 | F49: 8090 | G49: 7676 | H49: 7702 | I49: 7685 | J49: 7696 | K49: 7389 | L49: 7349 | M49: 7375 | N49: 7406 | O49: 7683 | P49: 7802 | Q49: 7706 | R49: 7853 | S49: 7726 | T49: 7870 | U49: 8381 | V49: 9187 | W49: 9218 | X49: 9132 | Y49: 9267 | Z49: 9920 | AA49: 9686 | AB49: 9672 | AC49: 9757 | AD49: 9823 | AE49: 9748 | AF49: 10192 | AG49: 10500 | AH49: 10322 | AI49: 10870 | AJ49: 11015 | AK49: 11400 | AL49: 11441 | AM49: 11880 | AN49: 12414 | AO49: 12497 | AP49: 13019 | AQ49: 13209 | AR49: 13268 | AS49: 13111 | AT49: 12970 | AU49: 13071 | AV49: 12680 | AW49: 12547 | AX49: 12486 | AY49: 12390 | AZ49: 12171 | BA49: 11646 | BB49: 11389 | BC49: 11115 | BD49: 11085 | BE49: 11125 | BF49: 11514 | BG49: 12205 | BH49: 12312 | BI49: 11994 | BJ49: 12039 | BK49: 12286 | BL49: 12567 | BM49: 12672 | BN49: 12821 | BO49: 12767 | BP49: 12665 | BQ49: 12782 | BR49: 12758 | BS49: 12692 | BT49: 12237 | BU49: 12304 | BV49: 12420 | BW49: 12292 | BX49: 12178 | BY49: 12141 | BZ49: 11836 | CA49: 11648 | CB49: 11052 | CC49: 10969 | CD49: 10961 | CE49: 11318 | CF49: 11468 | CG49: 11740 | CH49: 12363 | CI49: 12896 | CJ49: 12959 | CK49: 12770 | CL49: 12909 | CM49: 13127 | CN49: 12677 | CO49: 12642 | CP49: 12623 | CQ49: 12902
A50: Males | B50: 48 | C50: 8166 | D50: 7961 | E50: 7809 | F50: 7822 | G50: 7995 | H50: 7568 | I50: 7641 | J50: 7606 | K50: 7631 | L50: 7333 | M50: 7338 | N50: 7324 | O50: 7376 | P50: 7662 | Q50: 7772 | R50: 7691 | S50: 7822 | T50: 7685 | U50: 7846 | V50: 8368 | W50: 9172 | X50: 9251 | Y50: 9138 | Z50: 9263 | AA50: 9906 | AB50: 9688 | AC50: 9690 | AD50: 9747 | AE50: 9798 | AF50: 9766 | AG50: 10290 | AH50: 10484 | AI50: 10323 | AJ50: 10848 | AK50: 11016 | AL50: 11415 | AM50: 11531 | AN50: 11883 | AO50: 12412 | AP50: 12505 | AQ50: 13042 | AR50: 13180 | AS50: 13264 | AT50: 13069 | AU50: 12954 | AV50: 13063 | AW50: 12680 | AX50: 12547 | AY50: 12489 | AZ50: 12393 | BA50: 12172 | BB50: 11645 | BC50: 11387 | BD50: 11114 | BE50: 11081 | BF50: 11122 | BG50: 11510 | BH50: 12201 | BI50: 12308 | BJ50: 11990 | BK50: 12036 | BL50: 12283 | BM50: 12564 | BN50: 12670 | BO50: 12818 | BP50: 12764 | BQ50: 12663 | BR50: 12780 | BS50: 12757 | BT50: 12691 | BU50: 12238 | BV50: 12304 | BW50: 12420 | BX50: 12293 | BY50: 12179 | BZ50: 12142 | CA50: 11838 | CB50: 11650 | CC50: 11056 | CD50: 10973 | CE50: 10966 | CF50: 11322 | CG50: 11472 | CH50: 11745 | CI50: 12367 | CJ50: 12899 | CK50: 12963 | CL50: 12775 | CM50: 12913 | CN50: 13133 | CO50: 12683 | CP50: 12647 | CQ50: 12629
A51: Males | B51: 49 | C51: 8429 | D51: 8116 | E51: 7878 | F51: 7736 | G51: 7739 | H51: 7881 | I51: 7498 | J51: 7550 | K51: 7537 | L51: 7577 | M51: 7324 | N51: 7311 | O51: 7303 | P51: 7354 | Q51: 7641 | R51: 7751 | S51: 7664 | T51: 7795 | U51: 7660 | V51: 7830 | W51: 8360 | X51: 9164 | Y51: 9270 | Z51: 9137 | AA51: 9279 | AB51: 9912 | AC51: 9692 | AD51: 9688 | AE51: 9745 | AF51: 9764 | AG51: 9723 | AH51: 10239 | AI51: 10453 | AJ51: 10313 | AK51: 10842 | AL51: 11046 | AM51: 11480 | AN51: 11540 | AO51: 11883 | AP51: 12401 | AQ51: 12489 | AR51: 13028 | AS51: 13135 | AT51: 13214 | AU51: 13075 | AV51: 12926 | AW51: 13040 | AX51: 12689 | AY51: 12541 | AZ51: 12483 | BA51: 12386 | BB51: 12162 | BC51: 11634 | BD51: 11377 | BE51: 11103 | BF51: 11071 | BG51: 11113 | BH51: 11500 | BI51: 12190 | BJ51: 12297 | BK51: 11981 | BL51: 12027 | BM51: 12274 | BN51: 12555 | BO51: 12660 | BP51: 12808 | BQ51: 12755 | BR51: 12654 | BS51: 12770 | BT51: 12749 | BU51: 12683 | BV51: 12231 | BW51: 12297 | BX51: 12414 | BY51: 12287 | BZ51: 12174 | CA51: 12138 | CB51: 11835 | CC51: 11647 | CD51: 11054 | CE51: 10970 | CF51: 10964 | CG51: 11319 | CH51: 11469 | CI51: 11742 | CJ51: 12364 | CK51: 12897 | CL51: 12960 | CM51: 12773 | CN51: 12912 | CO51: 13132 | CP51: 12682 | CQ51: 12646
A52: Males | B52: 50 | C52: 8587 | D52: 8294 | E52: 7940 | F52: 7717 | G52: 7562 | H52: 7562 | I52: 7757 | J52: 7380 | K52: 7455 | L52: 7443 | M52: 7392 | N52: 7248 | O52: 7246 | P52: 7231 | Q52: 7273 | R52: 7586 | S52: 7683 | T52: 7592 | U52: 7725 | V52: 7580 | W52: 7771 | X52: 8324 | Y52: 9107 | Z52: 9242 | AA52: 9104 | AB52: 9275 | AC52: 9869 | AD52: 9666 | AE52: 9677 | AF52: 9725 | AG52: 9753 | AH52: 9711 | AI52: 10199 | AJ52: 10402 | AK52: 10328 | AL52: 10840 | AM52: 11060 | AN52: 11485 | AO52: 11552 | AP52: 11849 | AQ52: 12386 | AR52: 12450 | AS52: 12984 | AT52: 13093 | AU52: 13206 | AV52: 13059 | AW52: 12902 | AX52: 13037 | AY52: 12676 | AZ52: 12528 | BA52: 12469 | BB52: 12371 | BC52: 12146 | BD52: 11619 | BE52: 11360 | BF52: 11089 | BG52: 11057 | BH52: 11099 | BI52: 11486 | BJ52: 12174 | BK52: 12283 | BL52: 11967 | BM52: 12012 | BN52: 12260 | BO52: 12541 | BP52: 12648 | BQ52: 12794 | BR52: 12741 | BS52: 12641 | BT52: 12758 | BU52: 12738 | BV52: 12672 | BW52: 12221 | BX52: 12288 | BY52: 12405 | BZ52: 12277 | CA52: 12166 | CB52: 12131 | CC52: 11829 | CD52: 11640 | CE52: 11048 | CF52: 10963 | CG52: 10958 | CH52: 11312 | CI52: 11463 | CJ52: 11735 | CK52: 12358 | CL52: 12890 | CM52: 12954 | CN52: 12768 | CO52: 12906 | CP52: 13128 | CQ52: 12679
A53: Males | B53: 51 | C53: 8554 | D53: 8464 | E53: 8142 | F53: 7794 | G53: 7605 | H53: 7445 | I53: 7476 | J53: 7652 | K53: 7307 | L53: 7379 | M53: 7268 | N53: 7335 | O53: 7191 | P53: 7209 | Q53: 7176 | R53: 7209 | S53: 7544 | T53: 7638 | U53: 7546 | V53: 7671 | W53: 7541 | X53: 7742 | Y53: 8302 | Z53: 9075 | AA53: 9217 | AB53: 9102 | AC53: 9254 | AD53: 9843 | AE53: 9632 | AF53: 9672 | AG53: 9689 | AH53: 9726 | AI53: 9683 | AJ53: 10139 | AK53: 10379 | AL53: 10343 | AM53: 10810 | AN53: 11066 | AO53: 11502 | AP53: 11552 | AQ53: 11839 | AR53: 12348 | AS53: 12413 | AT53: 12954 | AU53: 13056 | AV53: 13175 | AW53: 12996 | AX53: 12866 | AY53: 13018 | AZ53: 12658 | BA53: 12509 | BB53: 12449 | BC53: 12350 | BD53: 12126 | BE53: 11597 | BF53: 11340 | BG53: 11070 | BH53: 11038 | BI53: 11080 | BJ53: 11468 | BK53: 12154 | BL53: 12264 | BM53: 11950 | BN53: 11994 | BO53: 12242 | BP53: 12523 | BQ53: 12631 | BR53: 12776 | BS53: 12724 | BT53: 12626 | BU53: 12742 | BV53: 12723 | BW53: 12658 | BX53: 12207 | BY53: 12273 | BZ53: 12390 | CA53: 12264 | CB53: 12153 | CC53: 12120 | CD53: 11818 | CE53: 11629 | CF53: 11038 | CG53: 10952 | CH53: 10948 | CI53: 11302 | CJ53: 11454 | CK53: 11726 | CL53: 12348 | CM53: 12881 | CN53: 12946 | CO53: 12761 | CP53: 12898 | CQ53: 13121
A54: Males | B54: 52 | C54: 7785 | D54: 8420 | E54: 8302 | F54: 8016 | G54: 7661 | H54: 7470 | I54: 7345 | J54: 7348 | K54: 7570 | L54: 7221 | M54: 7199 | N54: 7228 | O54: 7290 | P54: 7152 | Q54: 7180 | R54: 7138 | S54: 7174 | T54: 7522 | U54: 7615 | V54: 7515 | W54: 7639 | X54: 7541 | Y54: 7699 | Z54: 8270 | AA54: 9038 | AB54: 9214 | AC54: 9066 | AD54: 9245 | AE54: 9818 | AF54: 9617 | AG54: 9675 | AH54: 9676 | AI54: 9706 | AJ54: 9663 | AK54: 10096 | AL54: 10371 | AM54: 10346 | AN54: 10769 | AO54: 11045 | AP54: 11478 | AQ54: 11569 | AR54: 11802 | AS54: 12307 | AT54: 12374 | AU54: 12901 | AV54: 13018 | AW54: 13138 | AX54: 12983 | AY54: 12843 | AZ54: 12992 | BA54: 12634 | BB54: 12484 | BC54: 12422 | BD54: 12325 | BE54: 12100 | BF54: 11572 | BG54: 11317 | BH54: 11047 | BI54: 11016 | BJ54: 11058 | BK54: 11446 | BL54: 12130 | BM54: 12242 | BN54: 11929 | BO54: 11972 | BP54: 12220 | BQ54: 12503 | BR54: 12610 | BS54: 12755 | BT54: 12704 | BU54: 12608 | BV54: 12723 | BW54: 12705 | BX54: 12640 | BY54: 12191 | BZ54: 12256 | CA54: 12373 | CB54: 12249 | CC54: 12138 | CD54: 12106 | CE54: 11804 | CF54: 11616 | CG54: 11024 | CH54: 10939 | CI54: 10935 | CJ54: 11289 | CK54: 11442 | CL54: 11713 | CM54: 12335 | CN54: 12869 | CO54: 12935 | CP54: 12750 | CQ54: 12887
A55: Males | B55: 53 | C55: 6954 | D55: 7631 | E55: 8242 | F55: 8163 | G55: 7861 | H55: 7519 | I55: 7358 | J55: 7232 | K55: 7266 | L55: 7480 | M55: 7034 | N55: 7130 | O55: 7188 | P55: 7229 | Q55: 7106 | R55: 7134 | S55: 7082 | T55: 7130 | U55: 7485 | V55: 7582 | W55: 7494 | X55: 7632 | Y55: 7520 | Z55: 7657 | AA55: 8224 | AB55: 9026 | AC55: 9184 | AD55: 9043 | AE55: 9237 | AF55: 9778 | AG55: 9497 | AH55: 9651 | AI55: 9659 | AJ55: 9683 | AK55: 9628 | AL55: 10049 | AM55: 10334 | AN55: 10324 | AO55: 10748 | AP55: 11016 | AQ55: 11451 | AR55: 11520 | AS55: 11735 | AT55: 12255 | AU55: 12339 | AV55: 12854 | AW55: 12997 | AX55: 13094 | AY55: 12953 | AZ55: 12812 | BA55: 12960 | BB55: 12602 | BC55: 12450 | BD55: 12390 | BE55: 12294 | BF55: 12069 | BG55: 11542 | BH55: 11288 | BI55: 11019 | BJ55: 10990 | BK55: 11032 | BL55: 11419 | BM55: 12103 | BN55: 12214 | BO55: 11902 | BP55: 11946 | BQ55: 12193 | BR55: 12476 | BS55: 12583 | BT55: 12729 | BU55: 12679 | BV55: 12583 | BW55: 12698 | BX55: 12681 | BY55: 12617 | BZ55: 12169 | CA55: 12234 | CB55: 12351 | CC55: 12228 | CD55: 12117 | CE55: 12085 | CF55: 11785 | CG55: 11597 | CH55: 11007 | CI55: 10922 | CJ55: 10917 | CK55: 11272 | CL55: 11426 | CM55: 11697 | CN55: 12317 | CO55: 12852 | CP55: 12917 | CQ55: 12733
A56: Males | B56: 54 | C56: 7042 | D56: 6815 | E56: 7468 | F56: 8089 | G56: 8006 | H56: 7710 | I56: 7385 | J56: 7238 | K56: 7143 | L56: 7140 | M56: 7266 | N56: 6932 | O56: 7052 | P56: 7121 | Q56: 7140 | R56: 7036 | S56: 7060 | T56: 7009 | U56: 7044 | V56: 7418 | W56: 7523 | X56: 7492 | Y56: 7606 | Z56: 7487 | AA56: 7602 | AB56: 8205 | AC56: 9007 | AD56: 9143 | AE56: 8998 | AF56: 9203 | AG56: 9833 | AH56: 9491 | AI56: 9622 | AJ56: 9625 | AK56: 9650 | AL56: 9622 | AM56: 10030 | AN56: 10311 | AO56: 10278 | AP56: 10691 | AQ56: 10969 | AR56: 11414 | AS56: 11513 | AT56: 11687 | AU56: 12209 | AV56: 12303 | AW56: 12826 | AX56: 12955 | AY56: 13060 | AZ56: 12918 | BA56: 12778 | BB56: 12925 | BC56: 12567 | BD56: 12416 | BE56: 12356 | BF56: 12261 | BG56: 12038 | BH56: 11513 | BI56: 11259 | BJ56: 10991 | BK56: 10963 | BL56: 11005 | BM56: 11392 | BN56: 12075 | BO56: 12186 | BP56: 11875 | BQ56: 11919 | BR56: 12166 | BS56: 12449 | BT56: 12556 | BU56: 12703 | BV56: 12655 | BW56: 12559 | BX56: 12674 | BY56: 12658 | BZ56: 12595 | CA56: 12146 | CB56: 12212 | CC56: 12329 | CD56: 12206 | CE56: 12096 | CF56: 12065 | CG56: 11767 | CH56: 11579 | CI56: 10991 | CJ56: 10904 | CK56: 10900 | CL56: 11254 | CM56: 11410 | CN56: 11681 | CO56: 12300 | CP56: 12835 | CQ56: 12900
A57: Males | B57: 55 | C57: 7196 | D57: 6881 | E57: 6626 | F57: 7266 | G57: 7898 | H57: 7850 | I57: 7559 | J57: 7240 | K57: 7133 | L57: 7039 | M57: 7143 | N57: 7191 | O57: 6866 | P57: 6993 | Q57: 7050 | R57: 7065 | S57: 6973 | T57: 7004 | U57: 6946 | V57: 6974 | W57: 7355 | X57: 7499 | Y57: 7464 | Z57: 7565 | AA57: 7454 | AB57: 7590 | AC57: 8192 | AD57: 8957 | AE57: 9114 | AF57: 8959 | AG57: 9107 | AH57: 9780 | AI57: 9461 | AJ57: 9603 | AK57: 9582 | AL57: 9616 | AM57: 9561 | AN57: 9979 | AO57: 10258 | AP57: 10249 | AQ57: 10650 | AR57: 10925 | AS57: 11346 | AT57: 11475 | AU57: 11663 | AV57: 12155 | AW57: 12260 | AX57: 12786 | AY57: 12920 | AZ57: 13023 | BA57: 12883 | BB57: 12742 | BC57: 12888 | BD57: 12533 | BE57: 12381 | BF57: 12322 | BG57: 12228 | BH57: 12006 | BI57: 11482 | BJ57: 11230 | BK57: 10963 | BL57: 10936 | BM57: 10978 | BN57: 11366 | BO57: 12047 | BP57: 12158 | BQ57: 11848 | BR57: 11893 | BS57: 12139 | BT57: 12422 | BU57: 12530 | BV57: 12677 | BW57: 12631 | BX57: 12536 | BY57: 12650 | BZ57: 12635 | CA57: 12572 | CB57: 12125 | CC57: 12190 | CD57: 12309 | CE57: 12187 | CF57: 12077 | CG57: 12046 | CH57: 11750 | CI57: 11561 | CJ57: 10975 | CK57: 10888 | CL57: 10885 | CM57: 11238 | CN57: 11395 | CO57: 11666 | CP57: 12283 | CQ57: 12818
A58: Males | B58: 56 | C58: 7446 | D58: 7057 | E58: 6725 | F58: 6493 | G58: 7124 | H58: 7749 | I58: 7716 | J58: 7420 | K58: 7109 | L58: 7022 | M58: 7040 | N58: 7078 | O58: 7136 | P58: 6817 | Q58: 6939 | R58: 7009 | S58: 7005 | T58: 6916 | U58: 6952 | V58: 6892 | W58: 6923 | X58: 7327 | Y58: 7464 | Z58: 7414 | AA58: 7515 | AB58: 7416 | AC58: 7552 | AD58: 8135 | AE58: 8923 | AF58: 9057 | AG58: 8857 | AH58: 9060 | AI58: 9734 | AJ58: 9442 | AK58: 9570 | AL58: 9555 | AM58: 9607 | AN58: 9541 | AO58: 9910 | AP58: 10174 | AQ58: 10198 | AR58: 10593 | AS58: 10863 | AT58: 11299 | AU58: 11440 | AV58: 11610 | AW58: 12118 | AX58: 12222 | AY58: 12749 | AZ58: 12881 | BA58: 12984 | BB58: 12845 | BC58: 12704 | BD58: 12850 | BE58: 12496 | BF58: 12346 | BG58: 12288 | BH58: 12194 | BI58: 11973 | BJ58: 11452 | BK58: 11201 | BL58: 10934 | BM58: 10908 | BN58: 10952 | BO58: 11338 | BP58: 12017 | BQ58: 12130 | BR58: 11821 | BS58: 11865 | BT58: 12111 | BU58: 12395 | BV58: 12503 | BW58: 12650 | BX58: 12605 | BY58: 12511 | BZ58: 12625 | CA58: 12611 | CB58: 12549 | CC58: 12104 | CD58: 12169 | CE58: 12288 | CF58: 12167 | CG58: 12058 | CH58: 12026 | CI58: 11732 | CJ58: 11544 | CK58: 10959 | CL58: 10873 | CM58: 10869 | CN58: 11223 | CO58: 11380 | CP58: 11651 | CQ58: 12267
A59: Males | B59: 57 | C59: 7436 | D59: 7286 | E59: 6882 | F59: 6587 | G59: 6350 | H59: 6977 | I59: 7602 | J59: 7537 | K59: 7293 | L59: 7011 | M59: 7034 | N59: 6974 | O59: 7019 | P59: 7071 | Q59: 6747 | R59: 6862 | S59: 6943 | T59: 6936 | U59: 6859 | V59: 6884 | W59: 6832 | X59: 6885 | Y59: 7278 | Z59: 7410 | AA59: 7360 | AB59: 7494 | AC59: 7372 | AD59: 7488 | AE59: 8083 | AF59: 8890 | AG59: 8971 | AH59: 8825 | AI59: 9031 | AJ59: 9685 | AK59: 9398 | AL59: 9546 | AM59: 9520 | AN59: 9565 | AO59: 9501 | AP59: 9836 | AQ59: 10123 | AR59: 10162 | AS59: 10518 | AT59: 10793 | AU59: 11270 | AV59: 11368 | AW59: 11550 | AX59: 12073 | AY59: 12179 | AZ59: 12702 | BA59: 12834 | BB59: 12936 | BC59: 12798 | BD59: 12658 | BE59: 12803 | BF59: 12452 | BG59: 12302 | BH59: 12246 | BI59: 12154 | BJ59: 11934 | BK59: 11416 | BL59: 11165 | BM59: 10900 | BN59: 10875 | BO59: 10919 | BP59: 11304 | BQ59: 11982 | BR59: 12095 | BS59: 11789 | BT59: 11833 | BU59: 12079 | BV59: 12361 | BW59: 12470 | BX59: 12619 | BY59: 12574 | BZ59: 12480 | CA59: 12594 | CB59: 12581 | CC59: 12520 | CD59: 12077 | CE59: 12141 | CF59: 12260 | CG59: 12140 | CH59: 12032 | CI59: 12002 | CJ59: 11709 | CK59: 11522 | CL59: 10938 | CM59: 10853 | CN59: 10849 | CO59: 11203 | CP59: 11360 | CQ59: 11631
A60: Males | B60: 58 | C60: 7400 | D60: 7271 | E60: 7107 | F60: 6714 | G60: 6433 | H60: 6187 | I60: 6835 | J60: 7447 | K60: 7391 | L60: 7147 | M60: 6979 | N60: 6944 | O60: 6880 | P60: 6949 | Q60: 6973 | R60: 6671 | S60: 6767 | T60: 6835 | U60: 6852 | V60: 6777 | W60: 6817 | X60: 6796 | Y60: 6837 | Z60: 7221 | AA60: 7349 | AB60: 7320 | AC60: 7446 | AD60: 7343 | AE60: 7434 | AF60: 8028 | AG60: 8921 | AH60: 8945 | AI60: 8782 | AJ60: 8980 | AK60: 9633 | AL60: 9371 | AM60: 9517 | AN60: 9496 | AO60: 9508 | AP60: 9451 | AQ60: 9776 | AR60: 10084 | AS60: 10120 | AT60: 10475 | AU60: 10729 | AV60: 11189 | AW60: 11298 | AX60: 11490 | AY60: 12014 | AZ60: 12118 | BA60: 12639 | BB60: 12771 | BC60: 12872 | BD60: 12736 | BE60: 12596 | BF60: 12742 | BG60: 12393 | BH60: 12245 | BI60: 12190 | BJ60: 12099 | BK60: 11881 | BL60: 11366 | BM60: 11117 | BN60: 10853 | BO60: 10828 | BP60: 10873 | BQ60: 11257 | BR60: 11934 | BS60: 12047 | BT60: 11743 | BU60: 11788 | BV60: 12033 | BW60: 12315 | BX60: 12424 | BY60: 12573 | BZ60: 12529 | CA60: 12436 | CB60: 12550 | CC60: 12538 | CD60: 12478 | CE60: 12036 | CF60: 12101 | CG60: 12220 | CH60: 12100 | CI60: 11994 | CJ60: 11965 | CK60: 11674 | CL60: 11487 | CM60: 10906 | CN60: 10820 | CO60: 10817 | CP60: 11170 | CQ60: 11328
A61: Males | B61: 59 | C61: 7251 | D61: 7203 | E61: 7063 | F61: 6922 | G61: 6557 | H61: 6290 | I61: 6052 | J61: 6673 | K61: 7298 | L61: 7269 | M61: 7138 | N61: 6889 | O61: 6876 | P61: 6811 | Q61: 6886 | R61: 6880 | S61: 6589 | T61: 6674 | U61: 6763 | V61: 6762 | W61: 6722 | X61: 6760 | Y61: 6762 | Z61: 6780 | AA61: 7145 | AB61: 7315 | AC61: 7257 | AD61: 7396 | AE61: 7267 | AF61: 7359 | AG61: 7995 | AH61: 8849 | AI61: 8891 | AJ61: 8737 | AK61: 8922 | AL61: 9568 | AM61: 9332 | AN61: 9453 | AO61: 9462 | AP61: 9438 | AQ61: 9361 | AR61: 9701 | AS61: 9985 | AT61: 10079 | AU61: 10391 | AV61: 10658 | AW61: 11126 | AX61: 11245 | AY61: 11427 | AZ61: 11947 | BA61: 12051 | BB61: 12568 | BC61: 12703 | BD61: 12804 | BE61: 12669 | BF61: 12529 | BG61: 12676 | BH61: 12329 | BI61: 12183 | BJ61: 12129 | BK61: 12039 | BL61: 11823 | BM61: 11312 | BN61: 11064 | BO61: 10803 | BP61: 10780 | BQ61: 10825 | BR61: 11208 | BS61: 11882 | BT61: 11994 | BU61: 11693 | BV61: 11739 | BW61: 11983 | BX61: 12265 | BY61: 12374 | BZ61: 12523 | CA61: 12480 | CB61: 12388 | CC61: 12502 | CD61: 12491 | CE61: 12433 | CF61: 11992 | CG61: 12057 | CH61: 12176 | CI61: 12058 | CJ61: 11952 | CK61: 11925 | CL61: 11636 | CM61: 11449 | CN61: 10871 | CO61: 10785 | CP61: 10783 | CQ61: 11135
A62: Males | B62: 60 | C62: 7597 | D62: 7573 | E62: 7507 | F62: 7361 | G62: 7283 | H62: 6825 | I62: 6622 | J62: 6326 | K62: 6928 | L62: 7166 | M62: 7190 | N62: 7030 | O62: 6770 | P62: 6792 | Q62: 6738 | R62: 6809 | S62: 6782 | T62: 6512 | U62: 6592 | V62: 6702 | W62: 6702 | X62: 6676 | Y62: 6695 | Z62: 6694 | AA62: 6722 | AB62: 7074 | AC62: 7262 | AD62: 7202 | AE62: 7337 | AF62: 7221 | AG62: 7267 | AH62: 7907 | AI62: 8772 | AJ62: 8832 | AK62: 8716 | AL62: 8838 | AM62: 9466 | AN62: 9260 | AO62: 9389 | AP62: 9408 | AQ62: 9372 | AR62: 9292 | AS62: 9619 | AT62: 9929 | AU62: 9970 | AV62: 10302 | AW62: 10562 | AX62: 11000 | AY62: 11167 | AZ62: 11346 | BA62: 11864 | BB62: 11968 | BC62: 12482 | BD62: 12619 | BE62: 12719 | BF62: 12586 | BG62: 12447 | BH62: 12595 | BI62: 12251 | BJ62: 12107 | BK62: 12054 | BL62: 11966 | BM62: 11751 | BN62: 11245 | BO62: 10997 | BP62: 10740 | BQ62: 10717 | BR62: 10763 | BS62: 11145 | BT62: 11815 | BU62: 11928 | BV62: 11629 | BW62: 11677 | BX62: 11920 | BY62: 12200 | BZ62: 12311 | CA62: 12461 | CB62: 12419 | CC62: 12327 | CD62: 12442 | CE62: 12431 | CF62: 12375 | CG62: 11936 | CH62: 12000 | CI62: 12119 | CJ62: 12003 | CK62: 11898 | CL62: 11871 | CM62: 11584 | CN62: 11399 | CO62: 10824 | CP62: 10739 | CQ62: 10738
A63: Males | B63: 61 | C63: 7417 | D63: 7512 | E63: 7387 | F63: 7318 | G63: 7239 | H63: 7023 | I63: 6713 | J63: 6411 | K63: 6164 | L63: 6363 | M63: 7058 | N63: 7065 | O63: 6909 | P63: 6658 | Q63: 6707 | R63: 6643 | S63: 6719 | T63: 6686 | U63: 6421 | V63: 6511 | W63: 6635 | X63: 6613 | Y63: 6585 | Z63: 6584 | AA63: 6613 | AB63: 6688 | AC63: 7007 | AD63: 7197 | AE63: 7137 | AF63: 7235 | AG63: 7143 | AH63: 7200 | AI63: 7849 | AJ63: 8710 | AK63: 8801 | AL63: 8647 | AM63: 8795 | AN63: 9364 | AO63: 9228 | AP63: 9337 | AQ63: 9349 | AR63: 9306 | AS63: 9234 | AT63: 9548 | AU63: 9832 | AV63: 9886 | AW63: 10232 | AX63: 10502 | AY63: 10917 | AZ63: 11080 | BA63: 11260 | BB63: 11774 | BC63: 11878 | BD63: 12389 | BE63: 12526 | BF63: 12627 | BG63: 12496 | BH63: 12359 | BI63: 12507 | BJ63: 12167 | BK63: 12025 | BL63: 11974 | BM63: 11888 | BN63: 11674 | BO63: 11173 | BP63: 10927 | BQ63: 10673 | BR63: 10651 | BS63: 10697 | BT63: 11078 | BU63: 11744 | BV63: 11858 | BW63: 11562 | BX63: 11610 | BY63: 11852 | BZ63: 12132 | CA63: 12244 | CB63: 12394 | CC63: 12352 | CD63: 12261 | CE63: 12376 | CF63: 12366 | CG63: 12311 | CH63: 11875 | CI63: 11940 | CJ63: 12059 | CK63: 11944 | CL63: 11840 | CM63: 11814 | CN63: 11529 | CO63: 11346 | CP63: 10774 | CQ63: 10690
A64: Males | B64: 62 | C64: 7211 | D64: 7295 | E64: 7295 | F64: 7149 | G64: 7209 | H64: 6970 | I64: 6881 | J64: 6483 | K64: 6230 | L64: 5613 | M64: 6261 | N64: 6923 | O64: 6937 | P64: 6817 | Q64: 6574 | R64: 6611 | S64: 6577 | T64: 6639 | U64: 6607 | V64: 6320 | W64: 6421 | X64: 6533 | Y64: 6539 | Z64: 6505 | AA64: 6472 | AB64: 6523 | AC64: 6641 | AD64: 6906 | AE64: 7108 | AF64: 7078 | AG64: 7119 | AH64: 7078 | AI64: 7140 | AJ64: 7786 | AK64: 8622 | AL64: 8745 | AM64: 8566 | AN64: 8719 | AO64: 9268 | AP64: 9180 | AQ64: 9252 | AR64: 9275 | AS64: 9251 | AT64: 9165 | AU64: 9437 | AV64: 9736 | AW64: 9822 | AX64: 10122 | AY64: 10420 | AZ64: 10829 | BA64: 10991 | BB64: 11172 | BC64: 11683 | BD64: 11786 | BE64: 12295 | BF64: 12433 | BG64: 12534 | BH64: 12405 | BI64: 12271 | BJ64: 12419 | BK64: 12081 | BL64: 11943 | BM64: 11893 | BN64: 11809 | BO64: 11598 | BP64: 11100 | BQ64: 10857 | BR64: 10605 | BS64: 10584 | BT64: 10630 | BU64: 11011 | BV64: 11673 | BW64: 11788 | BX64: 11495 | BY64: 11543 | BZ64: 11784 | CA64: 12065 | CB64: 12176 | CC64: 12326 | CD64: 12285 | CE64: 12196 | CF64: 12311 | CG64: 12302 | CH64: 12248 | CI64: 11816 | CJ64: 11881 | CK64: 12000 | CL64: 11887 | CM64: 11784 | CN64: 11758 | CO64: 11476 | CP64: 11294 | CQ64: 10725
A65: Males | B65: 63 | C65: 6861 | D65: 7062 | E65: 7055 | F65: 7040 | G65: 7011 | H65: 6920 | I65: 6804 | J65: 6644 | K65: 6264 | L65: 5673 | M65: 5494 | N65: 6103 | O65: 6736 | P65: 6797 | Q65: 6661 | R65: 6434 | S65: 6481 | T65: 6465 | U65: 6543 | V65: 6496 | W65: 6207 | X65: 6324 | Y65: 6426 | Z65: 6418 | AA65: 6416 | AB65: 6383 | AC65: 6443 | AD65: 6587 | AE65: 6822 | AF65: 7021 | AG65: 7027 | AH65: 7047 | AI65: 7001 | AJ65: 7061 | AK65: 7728 | AL65: 8505 | AM65: 8668 | AN65: 8517 | AO65: 8639 | AP65: 9146 | AQ65: 9109 | AR65: 9177 | AS65: 9192 | AT65: 9189 | AU65: 9095 | AV65: 9356 | AW65: 9657 | AX65: 9722 | AY65: 10034 | AZ65: 10329 | BA65: 10735 | BB65: 10898 | BC65: 11078 | BD65: 11585 | BE65: 11689 | BF65: 12195 | BG65: 12333 | BH65: 12434 | BI65: 12308 | BJ65: 12176 | BK65: 12324 | BL65: 11991 | BM65: 11855 | BN65: 11806 | BO65: 11724 | BP65: 11516 | BQ65: 11023 | BR65: 10782 | BS65: 10532 | BT65: 10512 | BU65: 10560 | BV65: 10939 | BW65: 11597 | BX65: 11713 | BY65: 11423 | BZ65: 11471 | CA65: 11712 | CB65: 11992 | CC65: 12104 | CD65: 12254 | CE65: 12214 | CF65: 12127 | CG65: 12241 | CH65: 12233 | CI65: 12180 | CJ65: 11753 | CK65: 11818 | CL65: 11937 | CM65: 11826 | CN65: 11724 | CO65: 11699 | CP65: 11419 | CQ65: 11239
A66: Males | B66: 64 | C66: 6559 | D66: 6730 | E66: 6839 | F66: 6796 | G66: 6891 | H66: 6702 | I66: 6778 | J66: 6528 | K66: 6432 | L66: 5670 | M66: 5520 | N66: 5349 | O66: 5951 | P66: 6587 | Q66: 6656 | R66: 6491 | S66: 6277 | T66: 6348 | U66: 6327 | V66: 6458 | W66: 6380 | X66: 6087 | Y66: 6207 | Z66: 6312 | AA66: 6326 | AB66: 6355 | AC66: 6257 | AD66: 6325 | AE66: 6487 | AF66: 6709 | AG66: 6917 | AH66: 6946 | AI66: 6966 | AJ66: 6924 | AK66: 6972 | AL66: 7644 | AM66: 8393 | AN66: 8579 | AO66: 8456 | AP66: 8565 | AQ66: 9033 | AR66: 9031 | AS66: 9054 | AT66: 9063 | AU66: 9092 | AV66: 9003 | AW66: 9283 | AX66: 9565 | AY66: 9632 | AZ66: 9939 | BA66: 10233 | BB66: 10636 | BC66: 10799 | BD66: 10978 | BE66: 11481 | BF66: 11587 | BG66: 12089 | BH66: 12228 | BI66: 12330 | BJ66: 12207 | BK66: 12077 | BL66: 12224 | BM66: 11896 | BN66: 11762 | BO66: 11716 | BP66: 11635 | BQ66: 11431 | BR66: 10941 | BS66: 10704 | BT66: 10457 | BU66: 10437 | BV66: 10486 | BW66: 10862 | BX66: 11519 | BY66: 11634 | BZ66: 11347 | CA66: 11397 | CB66: 11636 | CC66: 11916 | CD66: 12028 | CE66: 12178 | CF66: 12140 | CG66: 12054 | CH66: 12169 | CI66: 12162 | CJ66: 12110 | CK66: 11686 | CL66: 11751 | CM66: 11870 | CN66: 11761 | CO66: 11662 | CP66: 11637 | CQ66: 11358
A67: Males | B67: 65 | C67: 5735 | D67: 5916 | E67: 6010 | F67: 6104 | G67: 6103 | H67: 6141 | I67: 6028 | J67: 6039 | K67: 5877 | L67: 5859 | M67: 5648 | N67: 5380 | O67: 5215 | P67: 5799 | Q67: 6440 | R67: 6471 | S67: 6350 | T67: 6117 | U67: 6224 | V67: 6193 | W67: 6352 | X67: 6263 | Y67: 5968 | Z67: 6074 | AA67: 6181 | AB67: 6233 | AC67: 6259 | AD67: 6170 | AE67: 6217 | AF67: 6404 | AG67: 6638 | AH67: 6806 | AI67: 6833 | AJ67: 6883 | AK67: 6819 | AL67: 6880 | AM67: 7524 | AN67: 8271 | AO67: 8508 | AP67: 8382 | AQ67: 8463 | AR67: 8894 | AS67: 8917 | AT67: 8915 | AU67: 8950 | AV67: 8961 | AW67: 8901 | AX67: 9164 | AY67: 9459 | AZ67: 9523 | BA67: 9828 | BB67: 10120 | BC67: 10520 | BD67: 10683 | BE67: 10861 | BF67: 11360 | BG67: 11468 | BH67: 11966 | BI67: 12105 | BJ67: 12208 | BK67: 12088 | BL67: 11961 | BM67: 12107 | BN67: 11785 | BO67: 11654 | BP67: 11609 | BQ67: 11530 | BR67: 11328 | BS67: 10843 | BT67: 10610 | BU67: 10366 | BV67: 10348 | BW67: 10398 | BX67: 10772 | BY67: 11424 | BZ67: 11539 | CA67: 11256 | CB67: 11307 | CC67: 11546 | CD67: 11825 | CE67: 11936 | CF67: 12087 | CG67: 12050 | CH67: 11966 | CI67: 12081 | CJ67: 12074 | CK67: 12025 | CL67: 11604 | CM67: 11668 | CN67: 11789 | CO67: 11681 | CP67: 11584 | CQ67: 11559
A68: Males | B68: 66 | C68: 5410 | D68: 5507 | E68: 5693 | F68: 5775 | G68: 5892 | H68: 5862 | I68: 5913 | J68: 5796 | K68: 5798 | L68: 5693 | M68: 5830 | N68: 5466 | O68: 5248 | P68: 5070 | Q68: 5645 | R68: 6254 | S68: 6306 | T68: 6196 | U68: 5982 | V68: 6094 | W68: 6072 | X68: 6227 | Y68: 6128 | Z68: 5821 | AA68: 5926 | AB68: 6046 | AC68: 6098 | AD68: 6125 | AE68: 6036 | AF68: 6127 | AG68: 6272 | AH68: 6494 | AI68: 6685 | AJ68: 6722 | AK68: 6783 | AL68: 6725 | AM68: 6769 | AN68: 7401 | AO68: 8150 | AP68: 8418 | AQ68: 8292 | AR68: 8360 | AS68: 8805 | AT68: 8796 | AU68: 8825 | AV68: 8853 | AW68: 8848 | AX68: 8794 | AY68: 9057 | AZ68: 9347 | BA68: 9411 | BB68: 9713 | BC68: 10002 | BD68: 10400 | BE68: 10563 | BF68: 10740 | BG68: 11236 | BH68: 11344 | BI68: 11839 | BJ68: 11979 | BK68: 12083 | BL68: 11966 | BM68: 11842 | BN68: 11988 | BO68: 11670 | BP68: 11542 | BQ68: 11498 | BR68: 11422 | BS68: 11222 | BT68: 10743 | BU68: 10514 | BV68: 10273 | BW68: 10257 | BX68: 10307 | BY68: 10679 | BZ68: 11326 | CA68: 11441 | CB68: 11162 | CC68: 11214 | CD68: 11453 | CE68: 11730 | CF68: 11842 | CG68: 11994 | CH68: 11959 | CI68: 11876 | CJ68: 11992 | CK68: 11986 | CL68: 11938 | CM68: 11521 | CN68: 11585 | CO68: 11708 | CP68: 11601 | CQ68: 11505
A69: Males | B69: 67 | C69: 5180 | D69: 5216 | E69: 5317 | F69: 5451 | G69: 5550 | H69: 5643 | I69: 5620 | J69: 5680 | K69: 5560 | L69: 5578 | M69: 5623 | N69: 5624 | O69: 5266 | P69: 5068 | Q69: 4931 | R69: 5436 | S69: 6078 | T69: 6108 | U69: 6002 | V69: 5790 | W69: 5952 | X69: 5921 | Y69: 6040 | Z69: 5956 | AA69: 5687 | AB69: 5816 | AC69: 5904 | AD69: 5966 | AE69: 6009 | AF69: 5914 | AG69: 6029 | AH69: 6129 | AI69: 6367 | AJ69: 6563 | AK69: 6613 | AL69: 6686 | AM69: 6609 | AN69: 6643 | AO69: 7292 | AP69: 8020 | AQ69: 8321 | AR69: 8177 | AS69: 8204 | AT69: 8689 | AU69: 8669 | AV69: 8695 | AW69: 8724 | AX69: 8749 | AY69: 8688 | AZ69: 8943 | BA69: 9232 | BB69: 9296 | BC69: 9594 | BD69: 9882 | BE69: 10277 | BF69: 10440 | BG69: 10617 | BH69: 11108 | BI69: 11218 | BJ69: 11709 | BK69: 11849 | BL69: 11954 | BM69: 11840 | BN69: 11720 | BO69: 11866 | BP69: 11553 | BQ69: 11427 | BR69: 11385 | BS69: 11311 | BT69: 11115 | BU69: 10642 | BV69: 10416 | BW69: 10178 | BX69: 10165 | BY69: 10215 | BZ69: 10585 | CA69: 11228 | CB69: 11343 | CC69: 11068 | CD69: 11121 | CE69: 11359 | CF69: 11635 | CG69: 11748 | CH69: 11900 | CI69: 11867 | CJ69: 11786 | CK69: 11903 | CL69: 11898 | CM69: 11851 | CN69: 11437 | CO69: 11502 | CP69: 11626 | CQ69: 11521
A70: Males | B70: 68 | C70: 4906 | D70: 4940 | E70: 4987 | F70: 5072 | G70: 5215 | H70: 5314 | I70: 5367 | J70: 5364 | K70: 5473 | L70: 5339 | M70: 5510 | N70: 5419 | O70: 5436 | P70: 5067 | Q70: 4918 | R70: 4801 | S70: 5283 | T70: 5887 | U70: 5914 | V70: 5819 | W70: 5625 | X70: 5758 | Y70: 5761 | Z70: 5872 | AA70: 5805 | AB70: 5550 | AC70: 5654 | AD70: 5788 | AE70: 5802 | AF70: 5875 | AG70: 5797 | AH70: 5912 | AI70: 5975 | AJ70: 6235 | AK70: 6441 | AL70: 6504 | AM70: 6576 | AN70: 6489 | AO70: 6517 | AP70: 7192 | AQ70: 7899 | AR70: 8187 | AS70: 8067 | AT70: 8076 | AU70: 8546 | AV70: 8534 | AW70: 8579 | AX70: 8586 | AY70: 8627 | AZ70: 8564 | BA70: 8815 | BB70: 9103 | BC70: 9167 | BD70: 9462 | BE70: 9748 | BF70: 10140 | BG70: 10302 | BH70: 10479 | BI70: 10967 | BJ70: 11077 | BK70: 11563 | BL70: 11703 | BM70: 11809 | BN70: 11698 | BO70: 11582 | BP70: 11728 | BQ70: 11420 | BR70: 11297 | BS70: 11257 | BT70: 11186 | BU70: 10994 | BV70: 10527 | BW70: 10305 | BX70: 10071 | BY70: 10059 | BZ70: 10109 | CA70: 10478 | CB70: 11115 | CC70: 11231 | CD70: 10961 | CE70: 11013 | CF70: 11250 | CG70: 11527 | CH70: 11640 | CI70: 11792 | CJ70: 11762 | CK70: 11683 | CL70: 11799 | CM70: 11797 | CN70: 11751 | CO70: 11341 | CP70: 11406 | CQ70: 11532
A71: Males | B71: 69 | C71: 4501 | D71: 4654 | E71: 4701 | F71: 4725 | G71: 4813 | H71: 4988 | I71: 5037 | J71: 5107 | K71: 5119 | L71: 5272 | M71: 5286 | N71: 5270 | O71: 5227 | P71: 5232 | Q71: 4842 | R71: 4744 | S71: 4627 | T71: 5090 | U71: 5698 | V71: 5725 | W71: 5623 | X71: 5459 | Y71: 5570 | Z71: 5568 | AA71: 5692 | AB71: 5618 | AC71: 5376 | AD71: 5494 | AE71: 5603 | AF71: 5644 | AG71: 5770 | AH71: 5664 | AI71: 5767 | AJ71: 5859 | AK71: 6087 | AL71: 6310 | AM71: 6369 | AN71: 6457 | AO71: 6373 | AP71: 6396 | AQ71: 7046 | AR71: 7792 | AS71: 8036 | AT71: 7917 | AU71: 7925 | AV71: 8397 | AW71: 8384 | AX71: 8445 | AY71: 8449 | AZ71: 8486 | BA71: 8426 | BB71: 8674 | BC71: 8960 | BD71: 9024 | BE71: 9316 | BF71: 9600 | BG71: 9988 | BH71: 10150 | BI71: 10325 | BJ71: 10809 | BK71: 10920 | BL71: 11400 | BM71: 11540 | BN71: 11646 | BO71: 11540 | BP71: 11428 | BQ71: 11574 | BR71: 11272 | BS71: 11152 | BT71: 11114 | BU71: 11045 | BV71: 10858 | BW71: 10398 | BX71: 10181 | BY71: 9951 | BZ71: 9941 | CA71: 9992 | CB71: 10358 | CC71: 10989 | CD71: 11105 | CE71: 10840 | CF71: 10893 | CG71: 11128 | CH71: 11405 | CI71: 11518 | CJ71: 11670 | CK71: 11642 | CL71: 11565 | CM71: 11682 | CN71: 11681 | CO71: 11636 | CP71: 11234 | CQ71: 11298
A72: Males | B72: 70 | C72: 4447 | D72: 4251 | E72: 4417 | F72: 4456 | G72: 4456 | H72: 4537 | I72: 4697 | J72: 4761 | K72: 4837 | L72: 4879 | M72: 5130 | N72: 5072 | O72: 5067 | P72: 5035 | Q72: 5032 | R72: 4665 | S72: 4610 | T72: 4464 | U72: 4918 | V72: 5493 | W72: 5552 | X72: 5406 | Y72: 5227 | Z72: 5364 | AA72: 5387 | AB72: 5499 | AC72: 5455 | AD72: 5187 | AE72: 5318 | AF72: 5441 | AG72: 5513 | AH72: 5605 | AI72: 5510 | AJ72: 5619 | AK72: 5730 | AL72: 5964 | AM72: 6165 | AN72: 6225 | AO72: 6338 | AP72: 6216 | AQ72: 6279 | AR72: 6922 | AS72: 7632 | AT72: 7856 | AU72: 7747 | AV72: 7765 | AW72: 8243 | AX72: 8212 | AY72: 8297 | AZ72: 8298 | BA72: 8336 | BB72: 8279 | BC72: 8524 | BD72: 8806 | BE72: 8870 | BF72: 9159 | BG72: 9440 | BH72: 9824 | BI72: 9986 | BJ72: 10160 | BK72: 10638 | BL72: 10749 | BM72: 11224 | BN72: 11366 | BO72: 11473 | BP72: 11370 | BQ72: 11262 | BR72: 11408 | BS72: 11112 | BT72: 10995 | BU72: 10960 | BV72: 10893 | BW72: 10711 | BX72: 10260 | BY72: 10047 | BZ72: 9821 | CA72: 9813 | CB72: 9865 | CC72: 10228 | CD72: 10853 | CE72: 10969 | CF72: 10709 | CG72: 10763 | CH72: 10996 | CI72: 11272 | CJ72: 11386 | CK72: 11538 | CL72: 11512 | CM72: 11438 | CN72: 11555 | CO72: 11556 | CP72: 11513 | CQ72: 11117
A73: Males | B73: 71 | C73: 4237 | D73: 4189 | E73: 4009 | F73: 4160 | G73: 4185 | H73: 4191 | I73: 4247 | J73: 4435 | K73: 4463 | L73: 4564 | M73: 4728 | N73: 4876 | O73: 4843 | P73: 4810 | Q73: 4805 | R73: 4835 | S73: 4467 | T73: 4414 | U73: 4261 | V73: 4717 | W73: 5307 | X73: 5318 | Y73: 5183 | Z73: 5025 | AA73: 5161 | AB73: 5181 | AC73: 5258 | AD73: 5247 | AE73: 5018 | AF73: 5152 | AG73: 5302 | AH73: 5374 | AI73: 5432 | AJ73: 5368 | AK73: 5470 | AL73: 5603 | AM73: 5800 | AN73: 6006 | AO73: 6078 | AP73: 6196 | AQ73: 6033 | AR73: 6135 | AS73: 6766 | AT73: 7467 | AU73: 7681 | AV73: 7599 | AW73: 7618 | AX73: 8085 | AY73: 8055 | AZ73: 8135 | BA73: 8137 | BB73: 8176 | BC73: 8121 | BD73: 8363 | BE73: 8643 | BF73: 8707 | BG73: 8992 | BH73: 9271 | BI73: 9650 | BJ73: 9813 | BK73: 9986 | BL73: 10458 | BM73: 10569 | BN73: 11039 | BO73: 11181 | BP73: 11290 | BQ73: 11191 | BR73: 11086 | BS73: 11233 | BT73: 10943 | BU73: 10829 | BV73: 10797 | BW73: 10733 | BX73: 10556 | BY73: 10114 | BZ73: 9905 | CA73: 9684 | CB73: 9678 | CC73: 9730 | CD73: 10090 | CE73: 10708 | CF73: 10825 | CG73: 10570 | CH73: 10626 | CI73: 10857 | CJ73: 11132 | CK73: 11247 | CL73: 11398 | CM73: 11374 | CN73: 11303 | CO73: 11420 | CP73: 11422 | CQ73: 11383
A74: Males | B74: 72 | C74: 3917 | D74: 3977 | E74: 3945 | F74: 3739 | G74: 3881 | H74: 3903 | I74: 3919 | J74: 3974 | K74: 4158 | L74: 4211 | M74: 4454 | N74: 4468 | O74: 4607 | P74: 4577 | Q74: 4580 | R74: 4567 | S74: 4599 | T74: 4219 | U74: 4239 | V74: 4045 | W74: 4481 | X74: 5080 | Y74: 5092 | Z74: 4934 | AA74: 4778 | AB74: 4975 | AC74: 4957 | AD74: 5038 | AE74: 5055 | AF74: 4827 | AG74: 4989 | AH74: 5114 | AI74: 5180 | AJ74: 5236 | AK74: 5189 | AL74: 5297 | AM74: 5451 | AN74: 5625 | AO74: 5856 | AP74: 5914 | AQ74: 6050 | AR74: 5884 | AS74: 6008 | AT74: 6602 | AU74: 7284 | AV74: 7489 | AW74: 7437 | AX74: 7459 | AY74: 7914 | AZ74: 7883 | BA74: 7962 | BB74: 7967 | BC74: 8007 | BD74: 7955 | BE74: 8193 | BF74: 8471 | BG74: 8535 | BH74: 8816 | BI74: 9092 | BJ74: 9465 | BK74: 9628 | BL74: 9801 | BM74: 10266 | BN74: 10378 | BO74: 10842 | BP74: 10984 | BQ74: 11094 | BR74: 10999 | BS74: 10898 | BT74: 11045 | BU74: 10762 | BV74: 10652 | BW74: 10623 | BX74: 10563 | BY74: 10391 | BZ74: 9957 | CA74: 9754 | CB74: 9537 | CC74: 9534 | CD74: 9587 | CE74: 9943 | CF74: 10554 | CG74: 10672 | CH74: 10422 | CI74: 10479 | CJ74: 10709 | CK74: 10981 | CL74: 11096 | CM74: 11248 | CN74: 11226 | CO74: 11158 | CP74: 11275 | CQ74: 11280
A75: Males | B75: 73 | C75: 3626 | D75: 3637 | E75: 3716 | F75: 3676 | G75: 3507 | H75: 3596 | I75: 3620 | J75: 3645 | K75: 3695 | L75: 3865 | M75: 4078 | N75: 4168 | O75: 4195 | P75: 4356 | Q75: 4317 | R75: 4308 | S75: 4309 | T75: 4341 | U75: 4005 | V75: 4020 | W75: 3851 | X75: 4289 | Y75: 4834 | Z75: 4828 | AA75: 4691 | AB75: 4546 | AC75: 4741 | AD75: 4760 | AE75: 4798 | AF75: 4854 | AG75: 4649 | AH75: 4773 | AI75: 4919 | AJ75: 4977 | AK75: 5051 | AL75: 5038 | AM75: 5136 | AN75: 5297 | AO75: 5443 | AP75: 5680 | AQ75: 5749 | AR75: 5879 | AS75: 5736 | AT75: 5863 | AU75: 6448 | AV75: 7096 | AW75: 7307 | AX75: 7257 | AY75: 7282 | AZ75: 7723 | BA75: 7694 | BB75: 7775 | BC75: 7781 | BD75: 7822 | BE75: 7774 | BF75: 8008 | BG75: 8282 | BH75: 8348 | BI75: 8623 | BJ75: 8895 | BK75: 9262 | BL75: 9425 | BM75: 9597 | BN75: 10056 | BO75: 10167 | BP75: 10625 | BQ75: 10767 | BR75: 10878 | BS75: 10787 | BT75: 10691 | BU75: 10838 | BV75: 10564 | BW75: 10457 | BX75: 10431 | BY75: 10375 | BZ75: 10208 | CA75: 9784 | CB75: 9587 | CC75: 9376 | CD75: 9375 | CE75: 9429 | CF75: 9781 | CG75: 10384 | CH75: 10502 | CI75: 10258 | CJ75: 10316 | CK75: 10544 | CL75: 10814 | CM75: 10930 | CN75: 11082 | CO75: 11063 | CP75: 10998 | CQ75: 11115
A76: Males | B76: 74 | C76: 3229 | D76: 3377 | E76: 3405 | F76: 3452 | G76: 3403 | H76: 3220 | I76: 3278 | J76: 3352 | K76: 3363 | L76: 3414 | M76: 3754 | N76: 3789 | O76: 3912 | P76: 3954 | Q76: 4072 | R76: 4052 | S76: 4057 | T76: 4069 | U76: 4127 | V76: 3770 | W76: 3821 | X76: 3657 | Y76: 4070 | Z76: 4598 | AA76: 4577 | AB76: 4459 | AC76: 4331 | AD76: 4486 | AE76: 4553 | AF76: 4570 | AG76: 4636 | AH76: 4446 | AI76: 4577 | AJ76: 4697 | AK76: 4768 | AL76: 4850 | AM76: 4842 | AN76: 4958 | AO76: 5132 | AP76: 5272 | AQ76: 5526 | AR76: 5563 | AS76: 5711 | AT76: 5572 | AU76: 5667 | AV76: 6281 | AW76: 6875 | AX76: 7082 | AY76: 7061 | AZ76: 7084 | BA76: 7515 | BB76: 7490 | BC76: 7572 | BD76: 7580 | BE76: 7622 | BF76: 7576 | BG76: 7807 | BH76: 8077 | BI76: 8144 | BJ76: 8415 | BK76: 8682 | BL76: 9044 | BM76: 9204 | BN76: 9376 | BO76: 9826 | BP76: 9938 | BQ76: 10389 | BR76: 10531 | BS76: 10643 | BT76: 10557 | BU76: 10465 | BV76: 10611 | BW76: 10347 | BX76: 10245 | BY76: 10222 | BZ76: 10169 | CA76: 10007 | CB76: 9594 | CC76: 9403 | CD76: 9199 | CE76: 9200 | CF76: 9255 | CG76: 9603 | CH76: 10197 | CI76: 10315 | CJ76: 10077 | CK76: 10136 | CL76: 10363 | CM76: 10631 | CN76: 10747 | CO76: 10898 | CP76: 10882 | CQ76: 10820
A77: Males | B77: 75 | C77: 3108 | D77: 2947 | E77: 3113 | F77: 3114 | G77: 3120 | H77: 3156 | I77: 2949 | J77: 2983 | K77: 3066 | L77: 3099 | M77: 3322 | N77: 3481 | O77: 3543 | P77: 3671 | Q77: 3694 | R77: 3786 | S77: 3825 | T77: 3812 | U77: 3844 | V77: 3866 | W77: 3561 | X77: 3584 | Y77: 3435 | Z77: 3819 | AA77: 4331 | AB77: 4327 | AC77: 4188 | AD77: 4095 | AE77: 4225 | AF77: 4302 | AG77: 4350 | AH77: 4424 | AI77: 4234 | AJ77: 4381 | AK77: 4446 | AL77: 4583 | AM77: 4632 | AN77: 4664 | AO77: 4778 | AP77: 4950 | AQ77: 5054 | AR77: 5335 | AS77: 5368 | AT77: 5561 | AU77: 5379 | AV77: 5483 | AW77: 6082 | AX77: 6641 | AY77: 6871 | AZ77: 6848 | BA77: 6873 | BB77: 7294 | BC77: 7274 | BD77: 7356 | BE77: 7366 | BF77: 7410 | BG77: 7367 | BH77: 7594 | BI77: 7861 | BJ77: 7927 | BK77: 8194 | BL77: 8457 | BM77: 8811 | BN77: 8970 | BO77: 9142 | BP77: 9583 | BQ77: 9695 | BR77: 10138 | BS77: 10280 | BT77: 10392 | BU77: 10311 | BV77: 10224 | BW77: 10370 | BX77: 10115 | BY77: 10018 | BZ77: 9998 | CA77: 9949 | CB77: 9795 | CC77: 9392 | CD77: 9208 | CE77: 9010 | CF77: 9013 | CG77: 9069 | CH77: 9412 | CI77: 9998 | CJ77: 10116 | CK77: 9885 | CL77: 9945 | CM77: 10170 | CN77: 10435 | CO77: 10552 | CP77: 10703 | CQ77: 10690
A78: Males | B78: 76 | C78: 2817 | D78: 2824 | E78: 2681 | F78: 2819 | G78: 2835 | H78: 2849 | I78: 2875 | J78: 2667 | K78: 2694 | L78: 2794 | M78: 3002 | N78: 3050 | O78: 3187 | P78: 3265 | Q78: 3383 | R78: 3408 | S78: 3509 | T78: 3533 | U78: 3563 | V78: 3573 | W78: 3614 | X78: 3337 | Y78: 3371 | Z78: 3204 | AA78: 3586 | AB78: 4077 | AC78: 4065 | AD78: 3961 | AE78: 3835 | AF78: 3961 | AG78: 4124 | AH78: 4111 | AI78: 4219 | AJ78: 4033 | AK78: 4168 | AL78: 4249 | AM78: 4379 | AN78: 4430 | AO78: 4451 | AP78: 4588 | AQ78: 4767 | AR78: 4841 | AS78: 5135 | AT78: 5201 | AU78: 5344 | AV78: 5199 | AW78: 5302 | AX78: 5881 | AY78: 6421 | AZ78: 6640 | BA78: 6621 | BB78: 6649 | BC78: 7060 | BD78: 7043 | BE78: 7126 | BF78: 7137 | BG78: 7183 | BH78: 7143 | BI78: 7367 | BJ78: 7629 | BK78: 7696 | BL78: 7958 | BM78: 8216 | BN78: 8562 | BO78: 8720 | BP78: 8890 | BQ78: 9323 | BR78: 9436 | BS78: 9869 | BT78: 10012 | BU78: 10124 | BV78: 10048 | BW78: 9967 | BX78: 10112 | BY78: 9866 | BZ78: 9774 | CA78: 9758 | CB78: 9713 | CC78: 9566 | CD78: 9174 | CE78: 8998 | CF78: 8807 | CG78: 8812 | CH78: 8869 | CI78: 9207 | CJ78: 9783 | CK78: 9902 | CL78: 9678 | CM78: 9739 | CN78: 9963 | CO78: 10225 | CP78: 10342 | CQ78: 10494
A79: Males | B79: 77 | C79: 2397 | D79: 2534 | E79: 2560 | F79: 2426 | G79: 2528 | H79: 2562 | I79: 2565 | J79: 2584 | K79: 2379 | L79: 2427 | M79: 2701 | N79: 2754 | O79: 2804 | P79: 2935 | Q79: 3001 | R79: 3087 | S79: 3138 | T79: 3245 | U79: 3309 | V79: 3337 | W79: 3339 | X79: 3360 | Y79: 3078 | Z79: 3158 | AA79: 3001 | AB79: 3337 | AC79: 3798 | AD79: 3779 | AE79: 3690 | AF79: 3569 | AG79: 3663 | AH79: 3893 | AI79: 3881 | AJ79: 3977 | AK79: 3823 | AL79: 3958 | AM79: 4006 | AN79: 4170 | AO79: 4232 | AP79: 4277 | AQ79: 4402 | AR79: 4566 | AS79: 4644 | AT79: 4936 | AU79: 4973 | AV79: 5142 | AW79: 4996 | AX79: 5072 | AY79: 5665 | AZ79: 6182 | BA79: 6396 | BB79: 6382 | BC79: 6412 | BD79: 6811 | BE79: 6798 | BF79: 6881 | BG79: 6895 | BH79: 6942 | BI79: 6906 | BJ79: 7125 | BK79: 7380 | BL79: 7447 | BM79: 7705 | BN79: 7959 | BO79: 8296 | BP79: 8453 | BQ79: 8621 | BR79: 9044 | BS79: 9159 | BT79: 9583 | BU79: 9725 | BV79: 9837 | BW79: 9767 | BX79: 9692 | BY79: 9836 | BZ79: 9599 | CA79: 9513 | CB79: 9500 | CC79: 9460 | CD79: 9320 | CE79: 8941 | CF79: 8771 | CG79: 8588 | CH79: 8596 | CI79: 8654 | CJ79: 8986 | CK79: 9551 | CL79: 9670 | CM79: 9454 | CN79: 9517 | CO79: 9738 | CP79: 9996 | CQ79: 10116
A80: Males | B80: 78 | C80: 2205 | D80: 2132 | E80: 2288 | F80: 2286 | G80: 2159 | H80: 2264 | I80: 2291 | J80: 2284 | K80: 2317 | L80: 2134 | M80: 2348 | N80: 2432 | O80: 2518 | P80: 2543 | Q80: 2690 | R80: 2742 | S80: 2840 | T80: 2889 | U80: 3001 | V80: 3017 | W80: 3084 | X80: 3088 | Y80: 3089 | Z80: 2816 | AA80: 2920 | AB80: 2794 | AC80: 3106 | AD80: 3549 | AE80: 3507 | AF80: 3400 | AG80: 3429 | AH80: 3432 | AI80: 3651 | AJ80: 3644 | AK80: 3702 | AL80: 3585 | AM80: 3720 | AN80: 3788 | AO80: 3948 | AP80: 4025 | AQ80: 4074 | AR80: 4177 | AS80: 4335 | AT80: 4446 | AU80: 4731 | AV80: 4775 | AW80: 4949 | AX80: 4766 | AY80: 4865 | AZ80: 5429 | BA80: 5929 | BB80: 6139 | BC80: 6129 | BD80: 6161 | BE80: 6548 | BF80: 6537 | BG80: 6620 | BH80: 6637 | BI80: 6685 | BJ80: 6654 | BK80: 6867 | BL80: 7116 | BM80: 7184 | BN80: 7436 | BO80: 7684 | BP80: 8013 | BQ80: 8169 | BR80: 8335 | BS80: 8748 | BT80: 8864 | BU80: 9277 | BV80: 9419 | BW80: 9531 | BX80: 9466 | BY80: 9398 | BZ80: 9541 | CA80: 9314 | CB80: 9234 | CC80: 9224 | CD80: 9189 | CE80: 9056 | CF80: 8690 | CG80: 8527 | CH80: 8352 | CI80: 8363 | CJ80: 8422 | CK80: 8749 | CL80: 9302 | CM80: 9421 | CN80: 9214 | CO80: 9278 | CP80: 9497 | CQ80: 9751
A81: Males | B81: 79 | C81: 1911 | D81: 1941 | E81: 1888 | F81: 2018 | G81: 2022 | H81: 1933 | I81: 1988 | J81: 2045 | K81: 2028 | L81: 2063 | M81: 2038 | N81: 2124 | O81: 2140 | P81: 2291 | Q81: 2306 | R81: 2415 | S81: 2498 | T81: 2581 | U81: 2619 | V81: 2693 | W81: 2776 | X81: 2830 | Y81: 2795 | Z81: 2799 | AA81: 2592 | AB81: 2657 | AC81: 2554 | AD81: 2892 | AE81: 3288 | AF81: 3266 | AG81: 3138 | AH81: 3185 | AI81: 3198 | AJ81: 3389 | AK81: 3396 | AL81: 3473 | AM81: 3352 | AN81: 3491 | AO81: 3543 | AP81: 3741 | AQ81: 3807 | AR81: 3871 | AS81: 3967 | AT81: 4145 | AU81: 4203 | AV81: 4495 | AW81: 4535 | AX81: 4705 | AY81: 4549 | AZ81: 4640 | BA81: 5181 | BB81: 5662 | BC81: 5866 | BD81: 5860 | BE81: 5894 | BF81: 6268 | BG81: 6260 | BH81: 6342 | BI81: 6362 | BJ81: 6411 | BK81: 6385 | BL81: 6592 | BM81: 6834 | BN81: 6903 | BO81: 7148 | BP81: 7391 | BQ81: 7711 | BR81: 7865 | BS81: 8029 | BT81: 8431 | BU81: 8546 | BV81: 8948 | BW81: 9089 | BX81: 9201 | BY81: 9142 | BZ81: 9081 | CA81: 9222 | CB81: 9007 | CC81: 8933 | CD81: 8927 | CE81: 8897 | CF81: 8771 | CG81: 8420 | CH81: 8265 | CI81: 8099 | CJ81: 8112 | CK81: 8172 | CL81: 8493 | CM81: 9034 | CN81: 9152 | CO81: 8954 | CP81: 9020 | CQ81: 9236
A82: Males | B82: 80 | C82: 1760 | D82: 1676 | E82: 1727 | F82: 1716 | G82: 1763 | H82: 1796 | I82: 1710 | J82: 1770 | K82: 1763 | L82: 1766 | M82: 1966 | N82: 1777 | O82: 1893 | P82: 1902 | Q82: 2046 | R82: 2105 | S82: 2194 | T82: 2225 | U82: 2335 | V82: 2326 | W82: 2459 | X82: 2496 | Y82: 2582 | Z82: 2528 | AA82: 2553 | AB82: 2365 | AC82: 2418 | AD82: 2347 | AE82: 2678 | AF82: 3013 | AG82: 2957 | AH82: 2892 | AI82: 2933 | AJ82: 2996 | AK82: 3128 | AL82: 3144 | AM82: 3214 | AN82: 3121 | AO82: 3232 | AP82: 3316 | AQ82: 3528 | AR82: 3592 | AS82: 3649 | AT82: 3748 | AU82: 3886 | AV82: 3976 | AW82: 4245 | AX82: 4276 | AY82: 4466 | AZ82: 4313 | BA82: 4401 | BB82: 4916 | BC82: 5378 | BD82: 5576 | BE82: 5573 | BF82: 5609 | BG82: 5969 | BH82: 5965 | BI82: 6046 | BJ82: 6068 | BK82: 6118 | BL82: 6097 | BM82: 6299 | BN82: 6533 | BO82: 6602 | BP82: 6840 | BQ82: 7076 | BR82: 7387 | BS82: 7538 | BT82: 7699 | BU82: 8089 | BV82: 8204 | BW82: 8594 | BX82: 8733 | BY82: 8845 | BZ82: 8792 | CA82: 8738 | CB82: 8878 | CC82: 8675 | CD82: 8607 | CE82: 8605 | CF82: 8580 | CG82: 8463 | CH82: 8129 | CI82: 7981 | CJ82: 7824 | CK82: 7840 | CL82: 7901 | CM82: 8216 | CN82: 8742 | CO82: 8859 | CP82: 8671 | CQ82: 8738
A83: Males | B83: 81 | C83: 1562 | D83: 1561 | E83: 1493 | F83: 1525 | G83: 1500 | H83: 1537 | I83: 1562 | J83: 1515 | K83: 1525 | L83: 1509 | M83: 1664 | N83: 1758 | O83: 1567 | P83: 1654 | Q83: 1697 | R83: 1799 | S83: 1881 | T83: 1964 | U83: 1972 | V83: 2082 | W83: 2072 | X83: 2210 | Y83: 2246 | Z83: 2310 | AA83: 2286 | AB83: 2296 | AC83: 2132 | AD83: 2196 | AE83: 2115 | AF83: 2434 | AG83: 2853 | AH83: 2672 | AI83: 2632 | AJ83: 2691 | AK83: 2788 | AL83: 2873 | AM83: 2873 | AN83: 2973 | AO83: 2907 | AP83: 3007 | AQ83: 3109 | AR83: 3316 | AS83: 3339 | AT83: 3442 | AU83: 3502 | AV83: 3650 | AW83: 3741 | AX83: 3969 | AY83: 4034 | AZ83: 4209 | BA83: 4067 | BB83: 4153 | BC83: 4642 | BD83: 5082 | BE83: 5272 | BF83: 5273 | BG83: 5311 | BH83: 5656 | BI83: 5656 | BJ83: 5736 | BK83: 5761 | BL83: 5812 | BM83: 5795 | BN83: 5991 | BO83: 6217 | BP83: 6287 | BQ83: 6517 | BR83: 6745 | BS83: 7045 | BT83: 7193 | BU83: 7351 | BV83: 7727 | BW83: 7842 | BX83: 8219 | BY83: 8356 | BZ83: 8468 | CA83: 8422 | CB83: 8375 | CC83: 8513 | CD83: 8323 | CE83: 8262 | CF83: 8265 | CG83: 8245 | CH83: 8136 | CI83: 7818 | CJ83: 7680 | CK83: 7533 | CL83: 7552 | CM83: 7614 | CN83: 7921 | CO83: 8432 | CP83: 8547 | CQ83: 8369
A84: Males | B84: 82 | C84: 1501 | D84: 1363 | E84: 1379 | F84: 1295 | G84: 1315 | H84: 1296 | I84: 1346 | J84: 1367 | K84: 1277 | L84: 1270 | M84: 1393 | N84: 1430 | O84: 1541 | P84: 1375 | Q84: 1473 | R84: 1486 | S84: 1610 | T84: 1641 | U84: 1740 | V84: 1728 | W84: 1842 | X84: 1839 | Y84: 1975 | Z84: 1969 | AA84: 2060 | AB84: 2040 | AC84: 2055 | AD84: 1887 | AE84: 1955 | AF84: 1910 | AG84: 2160 | AH84: 2593 | AI84: 2428 | AJ84: 2393 | AK84: 2428 | AL84: 2539 | AM84: 2631 | AN84: 2602 | AO84: 2717 | AP84: 2709 | AQ84: 2776 | AR84: 2883 | AS84: 3089 | AT84: 3119 | AU84: 3208 | AV84: 3268 | AW84: 3398 | AX84: 3463 | AY84: 3719 | AZ84: 3774 | BA84: 3940 | BB84: 3811 | BC84: 3894 | BD84: 4356 | BE84: 4772 | BF84: 4954 | BG84: 4959 | BH84: 4999 | BI84: 5327 | BJ84: 5331 | BK84: 5411 | BL84: 5438 | BM84: 5490 | BN84: 5477 | BO84: 5666 | BP84: 5883 | BQ84: 5953 | BR84: 6175 | BS84: 6395 | BT84: 6684 | BU84: 6829 | BV84: 6983 | BW84: 7345 | BX84: 7458 | BY84: 7822 | BZ84: 7957 | CA84: 8068 | CB84: 8029 | CC84: 7989 | CD84: 8125 | CE84: 7948 | CF84: 7894 | CG84: 7902 | CH84: 7887 | CI84: 7787 | CJ84: 7486 | CK84: 7359 | CL84: 7222 | CM84: 7244 | CN84: 7307 | CO84: 7604 | CP84: 8099 | CQ84: 8213
A85: Males | B85: 83 | C85: 1068 | D85: 1282 | E85: 1165 | F85: 1182 | G85: 1100 | H85: 1112 | I85: 1098 | J85: 1142 | K85: 1142 | L85: 1069 | M85: 1186 | N85: 1218 | O85: 1220 | P85: 1331 | Q85: 1196 | R85: 1256 | S85: 1328 | T85: 1394 | U85: 1482 | V85: 1482 | W85: 1503 | X85: 1623 | Y85: 1609 | Z85: 1715 | AA85: 1728 | AB85: 1829 | AC85: 1795 | AD85: 1845 | AE85: 1668 | AF85: 1724 | AG85: 1714 | AH85: 1931 | AI85: 2311 | AJ85: 2187 | AK85: 2134 | AL85: 2199 | AM85: 2282 | AN85: 2343 | AO85: 2360 | AP85: 2503 | AQ85: 2453 | AR85: 2570 | AS85: 2636 | AT85: 2826 | AU85: 2875 | AV85: 2979 | AW85: 3018 | AX85: 3126 | AY85: 3216 | AZ85: 3449 | BA85: 3502 | BB85: 3659 | BC85: 3542 | BD85: 3622 | BE85: 4055 | BF85: 4447 | BG85: 4621 | BH85: 4628 | BI85: 4669 | BJ85: 4980 | BK85: 4987 | BL85: 5066 | BM85: 5095 | BN85: 5148 | BO85: 5139 | BP85: 5321 | BQ85: 5529 | BR85: 5599 | BS85: 5812 | BT85: 6024 | BU85: 6301 | BV85: 6440 | BW85: 6590 | BX85: 6937 | BY85: 7050 | BZ85: 7399 | CA85: 7531 | CB85: 7642 | CC85: 7610 | CD85: 7577 | CE85: 7711 | CF85: 7547 | CG85: 7500 | CH85: 7513 | CI85: 7503 | CJ85: 7412 | CK85: 7130 | CL85: 7014 | CM85: 6887 | CN85: 6912 | CO85: 6976 | CP85: 7264 | CQ85: 7741
A86: Males | B86: 84 | C86: 888 | D86: 862 | E86: 1096 | F86: 982 | G86: 995 | H86: 913 | I86: 914 | J86: 922 | K86: 948 | L86: 946 | M86: 983 | N86: 1024 | O86: 1028 | P86: 1015 | Q86: 1143 | R86: 1036 | S86: 1088 | T86: 1114 | U86: 1215 | V86: 1358 | W86: 1282 | X86: 1308 | Y86: 1423 | Z86: 1418 | AA86: 1479 | AB86: 1498 | AC86: 1594 | AD86: 1548 | AE86: 1583 | AF86: 1463 | AG86: 1468 | AH86: 1522 | AI86: 1712 | AJ86: 2052 | AK86: 1960 | AL86: 1890 | AM86: 1978 | AN86: 2054 | AO86: 2117 | AP86: 2136 | AQ86: 2293 | AR86: 2243 | AS86: 2349 | AT86: 2418 | AU86: 2565 | AV86: 2622 | AW86: 2745 | AX86: 2744 | AY86: 2875 | AZ86: 2953 | BA86: 3170 | BB86: 3222 | BC86: 3369 | BD86: 3265 | BE86: 3340 | BF86: 3744 | BG86: 4108 | BH86: 4273 | BI86: 4284 | BJ86: 4326 | BK86: 4618 | BL86: 4629 | BM86: 4706 | BN86: 4737 | BO86: 4790 | BP86: 4785 | BQ86: 4959 | BR86: 5157 | BS86: 5225 | BT86: 5430 | BU86: 5632 | BV86: 5896 | BW86: 6032 | BX86: 6177 | BY86: 6508 | BZ86: 6619 | CA86: 6952 | CB86: 7081 | CC86: 7191 | CD86: 7166 | CE86: 7140 | CF86: 7271 | CG86: 7122 | CH86: 7082 | CI86: 7099 | CJ86: 7095 | CK86: 7014 | CL86: 6751 | CM86: 6646 | CN86: 6530 | CO86: 6558 | CP86: 6622 | CQ86: 6899
A87: Males | B87: 85 | C87: 650 | D87: 709 | E87: 700 | F87: 922 | G87: 798 | H87: 840 | I87: 766 | J87: 748 | K87: 744 | L87: 793 | M87: 886 | N87: 882 | O87: 915 | P87: 925 | Q87: 910 | R87: 924 | S87: 957 | T87: 962 | U87: 1008 | V87: 1043 | W87: 1076 | X87: 1115 | Y87: 1086 | Z87: 1238 | AA87: 1201 | AB87: 1269 | AC87: 1275 | AD87: 1358 | AE87: 1338 | AF87: 1335 | AG87: 1304 | AH87: 1266 | AI87: 1328 | AJ87: 1518 | AK87: 1809 | AL87: 1749 | AM87: 1684 | AN87: 1762 | AO87: 1828 | AP87: 1879 | AQ87: 1909 | AR87: 2031 | AS87: 1999 | AT87: 2119 | AU87: 2186 | AV87: 2350 | AW87: 2381 | AX87: 2475 | AY87: 2497 | AZ87: 2611 | BA87: 2685 | BB87: 2884 | BC87: 2935 | BD87: 3072 | BE87: 2980 | BF87: 3051 | BG87: 3423 | BH87: 3760 | BI87: 3914 | BJ87: 3929 | BK87: 3971 | BL87: 4243 | BM87: 4257 | BN87: 4332 | BO87: 4364 | BP87: 4417 | BQ87: 4417 | BR87: 4581 | BS87: 4769 | BT87: 4837 | BU87: 5031 | BV87: 5222 | BW87: 5472 | BX87: 5604 | BY87: 5745 | BZ87: 6058 | CA87: 6165 | CB87: 6481 | CC87: 6608 | CD87: 6717 | CE87: 6699 | CF87: 6680 | CG87: 6808 | CH87: 6674 | CI87: 6641 | CJ87: 6663 | CK87: 6664 | CL87: 6593 | CM87: 6349 | CN87: 6255 | CO87: 6151 | CP87: 6180 | CQ87: 6246
A88: Males | B88: 86 | C88: 547 | D88: 497 | E88: 571 | F88: 540 | G88: 750 | H88: 658 | I88: 689 | J88: 621 | K88: 588 | L88: 583 | M88: 712 | N88: 722 | O88: 725 | P88: 742 | Q88: 752 | R88: 767 | S88: 789 | T88: 761 | U88: 788 | V88: 844 | W88: 866 | X88: 942 | Y88: 962 | Z88: 915 | AA88: 1051 | AB88: 1050 | AC88: 1071 | AD88: 1063 | AE88: 1158 | AF88: 1115 | AG88: 1127 | AH88: 1131 | AI88: 1079 | AJ88: 1132 | AK88: 1317 | AL88: 1577 | AM88: 1506 | AN88: 1479 | AO88: 1550 | AP88: 1616 | AQ88: 1688 | AR88: 1679 | AS88: 1789 | AT88: 1811 | AU88: 1922 | AV88: 1921 | AW88: 2086 | AX88: 2117 | AY88: 2223 | AZ88: 2238 | BA88: 2344 | BB88: 2413 | BC88: 2594 | BD88: 2642 | BE88: 2769 | BF88: 2689 | BG88: 2755 | BH88: 3095 | BI88: 3404 | BJ88: 3547 | BK88: 3564 | BL88: 3606 | BM88: 3857 | BN88: 3873 | BO88: 3945 | BP88: 3978 | BQ88: 4031 | BR88: 4035 | BS88: 4189 | BT88: 4366 | BU88: 4433 | BV88: 4615 | BW88: 4795 | BX88: 5030 | BY88: 5157 | BZ88: 5291 | CA88: 5585 | CB88: 5689 | CC88: 5986 | CD88: 6110 | CE88: 6216 | CF88: 6205 | CG88: 6193 | CH88: 6318 | CI88: 6199 | CJ88: 6174 | CK88: 6200 | CL88: 6206 | CM88: 6145 | CN88: 5922 | CO88: 5840 | CP88: 5747 | CQ88: 5779
A89: Males | B89: 87 | C89: 359 | D89: 405 | E89: 369 | F89: 431 | G89: 383 | H89: 612 | I89: 533 | J89: 542 | K89: 477 | L89: 467 | M89: 545 | N89: 571 | O89: 589 | P89: 587 | Q89: 597 | R89: 621 | S89: 643 | T89: 617 | U89: 612 | V89: 654 | W89: 707 | X89: 715 | Y89: 798 | Z89: 803 | AA89: 763 | AB89: 878 | AC89: 864 | AD89: 900 | AE89: 880 | AF89: 974 | AG89: 948 | AH89: 957 | AI89: 953 | AJ89: 920 | AK89: 972 | AL89: 1137 | AM89: 1354 | AN89: 1314 | AO89: 1274 | AP89: 1354 | AQ89: 1426 | AR89: 1467 | AS89: 1456 | AT89: 1574 | AU89: 1587 | AV89: 1707 | AW89: 1665 | AX89: 1832 | AY89: 1877 | AZ89: 1966 | BA89: 1982 | BB89: 2078 | BC89: 2142 | BD89: 2304 | BE89: 2349 | BF89: 2465 | BG89: 2396 | BH89: 2458 | BI89: 2764 | BJ89: 3044 | BK89: 3176 | BL89: 3195 | BM89: 3237 | BN89: 3465 | BO89: 3483 | BP89: 3552 | BQ89: 3585 | BR89: 3637 | BS89: 3645 | BT89: 3788 | BU89: 3953 | BV89: 4019 | BW89: 4189 | BX89: 4357 | BY89: 4577 | BZ89: 4698 | CA89: 4825 | CB89: 5098 | CC89: 5198 | CD89: 5475 | CE89: 5596 | CF89: 5699 | CG89: 5695 | CH89: 5690 | CI89: 5810 | CJ89: 5707 | CK89: 5689 | CL89: 5719 | CM89: 5730 | CN89: 5679 | CO89: 5479 | CP89: 5408 | CQ89: 5327
A90: Males | B90: 88 | C90: 334 | D90: 252 | E90: 308 | F90: 257 | G90: 304 | H90: 247 | I90: 500 | J90: 409 | K90: 406 | L90: 370 | M90: 430 | N90: 431 | O90: 460 | P90: 469 | Q90: 465 | R90: 490 | S90: 515 | T90: 503 | U90: 502 | V90: 504 | W90: 533 | X90: 576 | Y90: 598 | Z90: 679 | AA90: 674 | AB90: 648 | AC90: 720 | AD90: 713 | AE90: 707 | AF90: 711 | AG90: 794 | AH90: 806 | AI90: 808 | AJ90: 784 | AK90: 776 | AL90: 826 | AM90: 968 | AN90: 1114 | AO90: 1123 | AP90: 1086 | AQ90: 1163 | AR90: 1227 | AS90: 1259 | AT90: 1240 | AU90: 1379 | AV90: 1383 | AW90: 1480 | AX90: 1411 | AY90: 1599 | AZ90: 1633 | BA90: 1713 | BB90: 1731 | BC90: 1818 | BD90: 1876 | BE90: 2021 | BF90: 2060 | BG90: 2166 | BH90: 2107 | BI90: 2164 | BJ90: 2438 | BK90: 2688 | BL90: 2808 | BM90: 2827 | BN90: 2868 | BO90: 3074 | BP90: 3095 | BQ90: 3160 | BR90: 3193 | BS90: 3244 | BT90: 3255 | BU90: 3387 | BV90: 3539 | BW90: 3602 | BX90: 3760 | BY90: 3916 | BZ90: 4119 | CA90: 4233 | CB90: 4353 | CC90: 4605 | CD90: 4701 | CE90: 4957 | CF90: 5073 | CG90: 5172 | CH90: 5175 | CI90: 5176 | CJ90: 5291 | CK90: 5203 | CL90: 5193 | CM90: 5226 | CN90: 5242 | CO90: 5201 | CP90: 5023 | CQ90: 4963
A91: Males | B91: 89 | C91: 272 | D91: 254 | E91: 180 | F91: 208 | G91: 157 | H91: 203 | I91: 140 | J91: 394 | K91: 309 | L91: 325 | M91: 348 | N91: 342 | O91: 341 | P91: 358 | Q91: 370 | R91: 379 | S91: 401 | T91: 395 | U91: 403 | V91: 407 | W91: 411 | X91: 420 | Y91: 461 | Z91: 470 | AA91: 575 | AB91: 553 | AC91: 538 | AD91: 576 | AE91: 563 | AF91: 547 | AG91: 598 | AH91: 645 | AI91: 649 | AJ91: 658 | AK91: 646 | AL91: 645 | AM91: 675 | AN91: 807 | AO91: 904 | AP91: 944 | AQ91: 930 | AR91: 985 | AS91: 1042 | AT91: 1056 | AU91: 1060 | AV91: 1195 | AW91: 1189 | AX91: 1265 | AY91: 1211 | AZ91: 1367 | BA91: 1399 | BB91: 1470 | BC91: 1488 | BD91: 1565 | BE91: 1617 | BF91: 1745 | BG91: 1780 | BH91: 1874 | BI91: 1825 | BJ91: 1877 | BK91: 2118 | BL91: 2339 | BM91: 2447 | BN91: 2467 | BO91: 2506 | BP91: 2689 | BQ91: 2711 | BR91: 2773 | BS91: 2805 | BT91: 2854 | BU91: 2868 | BV91: 2988 | BW91: 3127 | BX91: 3187 | BY91: 3332 | BZ91: 3476 | CA91: 3661 | CB91: 3768 | CC91: 3879 | CD91: 4110 | CE91: 4202 | CF91: 4436 | CG91: 4546 | CH91: 4642 | CI91: 4650 | CJ91: 4657 | CK91: 4766 | CL91: 4692 | CM91: 4689 | CN91: 4724 | CO91: 4745 | CP91: 4713 | CQ91: 4557
A92: Males | B92: 90 | C92: 685 | D92: 656 | E92: 641 | F92: 528 | G92: 468 | H92: 367 | I92: 284 | J92: 297 | K92: 666 | L92: 743 | M92: 966 | N92: 988 | O92: 1011 | P92: 1001 | Q92: 1037 | R92: 1049 | S92: 999 | T92: 1079 | U92: 1048 | V92: 966 | W92: 1142 | X92: 1195 | Y92: 1224 | Z92: 1227 | AA92: 1238 | AB92: 1346 | AC92: 1434 | AD92: 1535 | AE92: 1551 | AF92: 1588 | AG92: 1604 | AH92: 1695 | AI92: 1764 | AJ92: 1867 | AK92: 1974 | AL92: 2041 | AM92: 2036 | AN92: 2109 | AO92: 2215 | AP92: 2503 | AQ92: 2676 | AR92: 2890 | AS92: 3030 | AT92: 3267 | AU92: 3466 | AV92: 3566 | AW92: 3747 | AX92: 3857 | AY92: 4085 | AZ92: 4187 | BA92: 4399 | BB92: 4598 | BC92: 4821 | BD92: 5018 | BE92: 5243 | BF92: 5472 | BG92: 5770 | BH92: 6045 | BI92: 6347 | BJ92: 6554 | BK92: 6768 | BL92: 7145 | BM92: 7646 | BN92: 8154 | BO92: 8591 | BP92: 8984 | BQ92: 9462 | BR92: 9877 | BS92: 10272 | BT92: 10623 | BU92: 10955 | BV92: 11244 | BW92: 11593 | BX92: 12011 | BY92: 12422 | BZ92: 12899 | CA92: 13436 | CB92: 14058 | CC92: 14685 | CD92: 15317 | CE92: 16060 | CF92: 16775 | CG92: 17589 | CH92: 18381 | CI92: 19141 | CJ92: 19795 | CK92: 20354 | CL92: 20926 | CM92: 21344 | CN92: 21697 | CO92: 22031 | CP92: 22339 | CQ92: 22582
A93: Females | B93: 0 | C93: 15485 | D93: 14646 | E93: 14041 | F93: 13534 | G93: 12854 | H93: 12567 | I93: 12768 | J93: 12769 | K93: 13261 | L93: 13581 | M93: 13388 | N93: 13126 | O93: 12987 | P93: 13057 | Q93: 13210 | R93: 13393 | S93: 13429 | T93: 13380 | U93: 12731 | V93: 12680 | W93: 12647 | X93: 12482 | Y93: 12061 | Z93: 12013 | AA93: 11574 | AB93: 11372 | AC93: 11978 | AD93: 11549 | AE93: 11328 | AF93: 10755 | AG93: 10399 | AH93: 10450 | AI93: 10340 | AJ93: 10631 | AK93: 10986 | AL93: 11101 | AM93: 11544 | AN93: 12283 | AO93: 12276 | AP93: 12242 | AQ93: 12421 | AR93: 12327 | AS93: 12108 | AT93: 11815 | AU93: 11856 | AV93: 11750 | AW93: 11491 | AX93: 11298 | AY93: 11069 | AZ93: 10951 | BA93: 10849 | BB93: 10730 | BC93: 10631 | BD93: 10557 | BE93: 10478 | BF93: 10397 | BG93: 10319 | BH93: 10248 | BI93: 10191 | BJ93: 10151 | BK93: 10125 | BL93: 10114 | BM93: 10120 | BN93: 10146 | BO93: 10190 | BP93: 10252 | BQ93: 10332 | BR93: 10420 | BS93: 10509 | BT93: 10591 | BU93: 10660 | BV93: 10713 | BW93: 10750 | BX93: 10757 | BY93: 10742 | BZ93: 10704 | CA93: 10653 | CB93: 10582 | CC93: 10499 | CD93: 10407 | CE93: 10313 | CF93: 10215 | CG93: 10123 | CH93: 10034 | CI93: 9949 | CJ93: 9874 | CK93: 9805 | CL93: 9751 | CM93: 9702 | CN93: 9666 | CO93: 9640 | CP93: 9623 | CQ93: 9615
A94: Females | B94: 1 | C94: 15432 | D94: 15144 | E94: 14251 | F94: 13793 | G94: 13318 | H94: 12675 | I94: 12404 | J94: 12609 | K94: 12694 | L94: 13165 | M94: 13566 | N94: 13344 | O94: 13065 | P94: 12944 | Q94: 13030 | R94: 13126 | S94: 13293 | T94: 13325 | U94: 13247 | V94: 12734 | W94: 12603 | X94: 12676 | Y94: 12496 | Z94: 12057 | AA94: 12027 | AB94: 11690 | AC94: 11426 | AD94: 11987 | AE94: 11490 | AF94: 11330 | AG94: 10752 | AH94: 10377 | AI94: 10405 | AJ94: 10299 | AK94: 10678 | AL94: 11034 | AM94: 11224 | AN94: 11701 | AO94: 12417 | AP94: 12387 | AQ94: 12339 | AR94: 12518 | AS94: 12482 | AT94: 12184 | AU94: 11937 | AV94: 11952 | AW94: 11897 | AX94: 11630 | AY94: 11393 | AZ94: 11164 | BA94: 11042 | BB94: 10936 | BC94: 10813 | BD94: 10714 | BE94: 10635 | BF94: 10557 | BG94: 10477 | BH94: 10399 | BI94: 10326 | BJ94: 10269 | BK94: 10229 | BL94: 10203 | BM94: 10192 | BN94: 10198 | BO94: 10225 | BP94: 10269 | BQ94: 10332 | BR94: 10412 | BS94: 10500 | BT94: 10590 | BU94: 10672 | BV94: 10741 | BW94: 10794 | BX94: 10831 | BY94: 10838 | BZ94: 10824 | CA94: 10786 | CB94: 10735 | CC94: 10664 | CD94: 10581 | CE94: 10488 | CF94: 10394 | CG94: 10296 | CH94: 10204 | CI94: 10114 | CJ94: 10030 | CK94: 9955 | CL94: 9886 | CM94: 9831 | CN94: 9782 | CO94: 9746 | CP94: 9720 | CQ94: 9703
A95: Females | B95: 2 | C95: 15540 | D95: 15134 | E95: 14786 | F95: 14034 | G95: 13614 | H95: 13169 | I95: 12544 | J95: 12284 | K95: 12565 | L95: 12626 | M95: 13168 | N95: 13470 | O95: 13298 | P95: 13008 | Q95: 12886 | R95: 13006 | S95: 13019 | T95: 13165 | U95: 13197 | V95: 13104 | W95: 12783 | X95: 12564 | Y95: 12717 | Z95: 12499 | AA95: 12048 | AB95: 12122 | AC95: 11678 | AD95: 11451 | AE95: 11925 | AF95: 11462 | AG95: 11352 | AH95: 10794 | AI95: 10420 | AJ95: 10464 | AK95: 10395 | AL95: 10770 | AM95: 11071 | AN95: 11324 | AO95: 11774 | AP95: 12493 | AQ95: 12452 | AR95: 12386 | AS95: 12537 | AT95: 12556 | AU95: 12295 | AV95: 12017 | AW95: 12023 | AX95: 11987 | AY95: 11737 | AZ95: 11499 | BA95: 11265 | BB95: 11138 | BC95: 11028 | BD95: 10904 | BE95: 10799 | BF95: 10721 | BG95: 10641 | BH95: 10561 | BI95: 10483 | BJ95: 10410 | BK95: 10354 | BL95: 10313 | BM95: 10287 | BN95: 10278 | BO95: 10284 | BP95: 10310 | BQ95: 10354 | BR95: 10418 | BS95: 10498 | BT95: 10585 | BU95: 10676 | BV95: 10758 | BW95: 10828 | BX95: 10881 | BY95: 10918 | BZ95: 10925 | CA95: 10911 | CB95: 10873 | CC95: 10822 | CD95: 10751 | CE95: 10667 | CF95: 10574 | CG95: 10480 | CH95: 10382 | CI95: 10289 | CJ95: 10200 | CK95: 10115 | CL95: 10040 | CM95: 9970 | CN95: 9916 | CO95: 9867 | CP95: 9830 | CQ95: 9803
A96: Females | B96: 3 | C96: 15566 | D96: 15253 | E96: 14786 | F96: 14577 | G96: 13855 | H96: 13473 | I96: 13042 | J96: 12427 | K96: 12245 | L96: 12502 | M96: 12609 | N96: 13073 | O96: 13432 | P96: 13289 | Q96: 12966 | R96: 12862 | S96: 12972 | T96: 12909 | U96: 13063 | V96: 13108 | W96: 13045 | X96: 12821 | Y96: 12601 | Z96: 12727 | AA96: 12505 | AB96: 12137 | AC96: 12097 | AD96: 11702 | AE96: 11490 | AF96: 11892 | AG96: 11424 | AH96: 11413 | AI96: 10818 | AJ96: 10455 | AK96: 10518 | AL96: 10495 | AM96: 10840 | AN96: 11122 | AO96: 11351 | AP96: 11802 | AQ96: 12489 | AR96: 12462 | AS96: 12379 | AT96: 12586 | AU96: 12607 | AV96: 12368 | AW96: 12033 | AX96: 12079 | AY96: 12061 | AZ96: 11810 | BA96: 11568 | BB96: 11329 | BC96: 11199 | BD96: 11089 | BE96: 10960 | BF96: 10855 | BG96: 10777 | BH96: 10696 | BI96: 10616 | BJ96: 10537 | BK96: 10464 | BL96: 10407 | BM96: 10367 | BN96: 10341 | BO96: 10332 | BP96: 10338 | BQ96: 10364 | BR96: 10409 | BS96: 10473 | BT96: 10553 | BU96: 10640 | BV96: 10731 | BW96: 10814 | BX96: 10883 | BY96: 10938 | BZ96: 10975 | CA96: 10982 | CB96: 10968 | CC96: 10930 | CD96: 10879 | CE96: 10806 | CF96: 10723 | CG96: 10630 | CH96: 10535 | CI96: 10437 | CJ96: 10344 | CK96: 10254 | CL96: 10169 | CM96: 10095 | CN96: 10024 | CO96: 9970 | CP96: 9921 | CQ96: 9884
A97: Females | B97: 4 | C97: 15418 | D97: 15282 | E97: 14909 | F97: 14585 | G97: 14404 | H97: 13718 | I97: 13350 | J97: 12927 | K97: 12389 | L97: 12180 | M97: 12235 | N97: 12535 | O97: 13032 | P97: 13410 | Q97: 13279 | R97: 12931 | S97: 12814 | T97: 12922 | U97: 12814 | V97: 12984 | W97: 13085 | X97: 13055 | Y97: 12850 | Z97: 12596 | AA97: 12746 | AB97: 12613 | AC97: 12175 | AD97: 12060 | AE97: 11706 | AF97: 11516 | AG97: 11921 | AH97: 11502 | AI97: 11462 | AJ97: 10834 | AK97: 10540 | AL97: 10602 | AM97: 10593 | AN97: 10861 | AO97: 11052 | AP97: 11355 | AQ97: 11850 | AR97: 12484 | AS97: 12468 | AT97: 12427 | AU97: 12642 | AV97: 12659 | AW97: 12396 | AX97: 12124 | AY97: 12139 | AZ97: 12121 | BA97: 11864 | BB97: 11618 | BC97: 11376 | BD97: 11246 | BE97: 11131 | BF97: 11003 | BG97: 10897 | BH97: 10819 | BI97: 10737 | BJ97: 10656 | BK97: 10578 | BL97: 10505 | BM97: 10448 | BN97: 10407 | BO97: 10381 | BP97: 10372 | BQ97: 10378 | BR97: 10404 | BS97: 10449 | BT97: 10513 | BU97: 10593 | BV97: 10681 | BW97: 10772 | BX97: 10855 | BY97: 10924 | BZ97: 10980 | CA97: 11017 | CB97: 11025 | CC97: 11011 | CD97: 10973 | CE97: 10921 | CF97: 10848 | CG97: 10765 | CH97: 10672 | CI97: 10577 | CJ97: 10478 | CK97: 10386 | CL97: 10295 | CM97: 10210 | CN97: 10136 | CO97: 10064 | CP97: 10010 | CQ97: 9961
A98: Females | B98: 5 | C98: 15711 | D98: 15297 | E98: 15105 | F98: 14815 | G98: 14495 | H98: 14335 | I98: 13650 | J98: 13277 | K98: 12890 | L98: 12382 | M98: 12249 | N98: 12170 | O98: 12508 | P98: 13003 | Q98: 13382 | R98: 13275 | S98: 12876 | T98: 12756 | U98: 12891 | V98: 12739 | W98: 12961 | X98: 13127 | Y98: 13066 | Z98: 12841 | AA98: 12622 | AB98: 12803 | AC98: 12595 | AD98: 12185 | AE98: 12037 | AF98: 11704 | AG98: 11277 | AH98: 11897 | AI98: 11520 | AJ98: 11456 | AK98: 10894 | AL98: 10621 | AM98: 10654 | AN98: 10668 | AO98: 10826 | AP98: 11020 | AQ98: 11312 | AR98: 11839 | AS98: 12504 | AT98: 12508 | AU98: 12457 | AV98: 12678 | AW98: 12703 | AX98: 12426 | AY98: 12179 | AZ98: 12194 | BA98: 12172 | BB98: 11912 | BC98: 11661 | BD98: 11419 | BE98: 11285 | BF98: 11170 | BG98: 11042 | BH98: 10935 | BI98: 10856 | BJ98: 10775 | BK98: 10694 | BL98: 10615 | BM98: 10542 | BN98: 10485 | BO98: 10444 | BP98: 10417 | BQ98: 10408 | BR98: 10415 | BS98: 10441 | BT98: 10486 | BU98: 10550 | BV98: 10630 | BW98: 10718 | BX98: 10810 | BY98: 10893 | BZ98: 10961 | CA98: 11019 | CB98: 11056 | CC98: 11063 | CD98: 11050 | CE98: 11012 | CF98: 10960 | CG98: 10887 | CH98: 10803 | CI98: 10709 | CJ98: 10615 | CK98: 10516 | CL98: 10423 | CM98: 10332 | CN98: 10248 | CO98: 10174 | CP98: 10102 | CQ98: 10048
A99: Females | B99: 6 | C99: 16110 | D99: 15593 | E99: 15122 | F99: 15016 | G99: 14728 | H99: 14427 | I99: 14271 | J99: 13579 | K99: 13241 | L99: 12887 | M99: 12456 | N99: 12126 | O99: 12074 | P99: 12416 | Q99: 12898 | R99: 13283 | S99: 13172 | T99: 12724 | U99: 12632 | V99: 12800 | W99: 12648 | X99: 13025 | Y99: 13151 | Z99: 13058 | AA99: 12830 | AB99: 12681 | AC99: 12794 | AD99: 12568 | AE99: 12221 | AF99: 11998 | AG99: 11687 | AH99: 11313 | AI99: 11905 | AJ99: 11502 | AK99: 11507 | AL99: 10962 | AM99: 10669 | AN99: 10696 | AO99: 10661 | AP99: 10824 | AQ99: 10926 | AR99: 11284 | AS99: 11831 | AT99: 12538 | AU99: 12506 | AV99: 12474 | AW99: 12737 | AX99: 12764 | AY99: 12468 | AZ99: 12219 | BA99: 12231 | BB99: 12207 | BC99: 11944 | BD99: 11693 | BE99: 11447 | BF99: 11312 | BG99: 11197 | BH99: 11068 | BI99: 10962 | BJ99: 10883 | BK99: 10802 | BL99: 10721 | BM99: 10642 | BN99: 10569 | BO99: 10512 | BP99: 10470 | BQ99: 10443 | BR99: 10435 | BS99: 10442 | BT99: 10468 | BU99: 10512 | BV99: 10577 | BW99: 10657 | BX99: 10744 | BY99: 10836 | BZ99: 10920 | CA99: 10988 | CB99: 11046 | CC99: 11083 | CD99: 11090 | CE99: 11077 | CF99: 11039 | CG99: 10987 | CH99: 10913 | CI99: 10829 | CJ99: 10736 | CK99: 10642 | CL99: 10541 | CM99: 10448 | CN99: 10358 | CO99: 10274 | CP99: 10200 | CQ99: 10127
A100: Females | B100: 7 | C100: 15888 | D100: 15993 | E100: 15417 | F100: 15033 | G100: 14928 | H100: 14656 | I100: 14363 | J100: 14200 | K100: 13542 | L100: 13235 | M100: 12967 | N100: 12398 | O100: 12108 | P100: 12063 | Q100: 12395 | R100: 12873 | S100: 13246 | T100: 13138 | U100: 12669 | V100: 12602 | W100: 12820 | X100: 12738 | Y100: 13050 | Z100: 13163 | AA100: 13063 | AB100: 12890 | AC100: 12699 | AD100: 12797 | AE100: 12500 | AF100: 12214 | AG100: 12074 | AH100: 11707 | AI100: 11358 | AJ100: 11937 | AK100: 11559 | AL100: 11566 | AM100: 11021 | AN100: 10753 | AO100: 10712 | AP100: 10662 | AQ100: 10819 | AR100: 10943 | AS100: 11325 | AT100: 11882 | AU100: 12575 | AV100: 12556 | AW100: 12543 | AX100: 12765 | AY100: 12809 | AZ100: 12513 | BA100: 12261 | BB100: 12270 | BC100: 12244 | BD100: 11980 | BE100: 11726 | BF100: 11480 | BG100: 11345 | BH100: 11230 | BI100: 11101 | BJ100: 10995 | BK100: 10915 | BL100: 10834 | BM100: 10753 | BN100: 10673 | BO100: 10600 | BP100: 10543 | BQ100: 10501 | BR100: 10474 | BS100: 10466 | BT100: 10473 | BU100: 10499 | BV100: 10543 | BW100: 10608 | BX100: 10688 | BY100: 10775 | BZ100: 10868 | CA100: 10952 | CB100: 11020 | CC100: 11078 | CD100: 11115 | CE100: 11122 | CF100: 11108 | CG100: 11070 | CH100: 11018 | CI100: 10944 | CJ100: 10860 | CK100: 10767 | CL100: 10673 | CM100: 10572 | CN100: 10479 | CO100: 10388 | CP100: 10304 | CQ100: 10231
A101: Females | B101: 8 | C101: 15256 | D101: 15774 | E101: 15819 | F101: 15331 | G101: 14945 | H101: 14858 | I101: 14587 | J101: 14287 | K101: 14160 | L101: 13538 | M101: 13326 | N101: 12873 | O101: 12364 | P101: 12092 | Q101: 12041 | R101: 12376 | S101: 12827 | T101: 13192 | U101: 13108 | V101: 12617 | W101: 12604 | X101: 12865 | Y101: 12823 | Z101: 13071 | AA101: 13158 | AB101: 13122 | AC101: 12889 | AD101: 12721 | AE101: 12754 | AF101: 12474 | AG101: 12098 | AH101: 12084 | AI101: 11724 | AJ101: 11440 | AK101: 11940 | AL101: 11622 | AM101: 11634 | AN101: 11056 | AO101: 10770 | AP101: 10710 | AQ101: 10655 | AR101: 10830 | AS101: 10975 | AT101: 11377 | AU101: 11922 | AV101: 12603 | AW101: 12605 | AX101: 12596 | AY101: 12818 | AZ101: 12862 | BA101: 12563 | BB101: 12308 | BC101: 12314 | BD101: 12288 | BE101: 12021 | BF101: 11767 | BG101: 11521 | BH101: 11385 | BI101: 11270 | BJ101: 11141 | BK101: 11035 | BL101: 10955 | BM101: 10874 | BN101: 10793 | BO101: 10712 | BP101: 10639 | BQ101: 10581 | BR101: 10540 | BS101: 10513 | BT101: 10505 | BU101: 10512 | BV101: 10537 | BW101: 10581 | BX101: 10646 | BY101: 10727 | BZ101: 10814 | CA101: 10907 | CB101: 10991 | CC101: 11059 | CD101: 11117 | CE101: 11154 | CF101: 11161 | CG101: 11147 | CH101: 11110 | CI101: 11057 | CJ101: 10983 | CK101: 10900 | CL101: 10807 | CM101: 10713 | CN101: 10611 | CO101: 10518 | CP101: 10427 | CQ101: 10343
A102: Females | B102: 9 | C102: 14962 | D102: 15138 | E102: 15598 | F102: 15730 | G102: 15243 | H102: 14875 | I102: 14793 | J102: 14518 | K102: 14246 | L102: 14159 | M102: 13635 | N102: 13241 | O102: 12801 | P102: 12336 | Q102: 12072 | R102: 12023 | S102: 12339 | T102: 12768 | U102: 13144 | V102: 13081 | W102: 12603 | X102: 12645 | Y102: 12899 | Z102: 12862 | AA102: 13115 | AB102: 13221 | AC102: 13111 | AD102: 12878 | AE102: 12705 | AF102: 12756 | AG102: 12513 | AH102: 12119 | AI102: 12110 | AJ102: 11759 | AK102: 11518 | AL102: 11974 | AM102: 11701 | AN102: 11673 | AO102: 11065 | AP102: 10765 | AQ102: 10694 | AR102: 10664 | AS102: 10842 | AT102: 10988 | AU102: 11385 | AV102: 11980 | AW102: 12646 | AX102: 12663 | AY102: 12642 | AZ102: 12864 | BA102: 12905 | BB102: 12603 | BC102: 12346 | BD102: 12351 | BE102: 12323 | BF102: 12056 | BG102: 11802 | BH102: 11555 | BI102: 11418 | BJ102: 11303 | BK102: 11174 | BL102: 11069 | BM102: 10988 | BN102: 10907 | BO102: 10827 | BP102: 10747 | BQ102: 10673 | BR102: 10615 | BS102: 10573 | BT102: 10546 | BU102: 10538 | BV102: 10545 | BW102: 10570 | BX102: 10614 | BY102: 10681 | BZ102: 10762 | CA102: 10849 | CB102: 10941 | CC102: 11025 | CD102: 11094 | CE102: 11152 | CF102: 11189 | CG102: 11196 | CH102: 11182 | CI102: 11145 | CJ102: 11091 | CK102: 11017 | CL102: 10935 | CM102: 10840 | CN102: 10746 | CO102: 10644 | CP102: 10552 | CQ102: 10461
A103: Females | B103: 10 | C103: 14457 | D103: 14919 | E103: 15041 | F103: 15562 | G103: 15680 | H103: 15207 | I103: 14834 | J103: 14743 | K103: 14475 | L103: 14226 | M103: 14146 | N103: 13493 | O103: 13212 | P103: 12768 | Q103: 12334 | R103: 12084 | S103: 12022 | T103: 12326 | U103: 12747 | V103: 13138 | W103: 13117 | X103: 12687 | Y103: 12720 | Z103: 12932 | AA103: 12939 | AB103: 13169 | AC103: 13199 | AD103: 13140 | AE103: 12840 | AF103: 12702 | AG103: 12696 | AH103: 12483 | AI103: 12137 | AJ103: 12131 | AK103: 11814 | AL103: 11597 | AM103: 12035 | AN103: 11776 | AO103: 11691 | AP103: 11066 | AQ103: 10776 | AR103: 10727 | AS103: 10686 | AT103: 10883 | AU103: 11023 | AV103: 11429 | AW103: 12005 | AX103: 12704 | AY103: 12705 | AZ103: 12684 | BA103: 12903 | BB103: 12942 | BC103: 12638 | BD103: 12381 | BE103: 12383 | BF103: 12355 | BG103: 12089 | BH103: 11833 | BI103: 11586 | BJ103: 11450 | BK103: 11335 | BL103: 11206 | BM103: 11100 | BN103: 11018 | BO103: 10937 | BP103: 10859 | BQ103: 10779 | BR103: 10704 | BS103: 10646 | BT103: 10604 | BU103: 10577 | BV103: 10569 | BW103: 10576 | BX103: 10601 | BY103: 10645 | BZ103: 10712 | CA103: 10793 | CB103: 10881 | CC103: 10972 | CD103: 11056 | CE103: 11126 | CF103: 11183 | CG103: 11220 | CH103: 11228 | CI103: 11214 | CJ103: 11177 | CK103: 11123 | CL103: 11049 | CM103: 10967 | CN103: 10871 | CO103: 10777 | CP103: 10676 | CQ103: 10584
A104: Females | B104: 11 | C104: 13971 | D104: 14417 | E104: 14827 | F104: 15004 | G104: 15515 | H104: 15643 | I104: 15167 | J104: 14785 | K104: 14704 | L104: 14455 | M104: 14214 | N104: 14051 | O104: 13395 | P104: 13208 | Q104: 12747 | R104: 12352 | S104: 12102 | T104: 12035 | U104: 12337 | V104: 12749 | W104: 13163 | X104: 13131 | Y104: 12776 | Z104: 12804 | AA104: 12957 | AB104: 13016 | AC104: 13194 | AD104: 13200 | AE104: 13148 | AF104: 12831 | AG104: 12797 | AH104: 12697 | AI104: 12451 | AJ104: 12136 | AK104: 12180 | AL104: 11882 | AM104: 11691 | AN104: 12078 | AO104: 11832 | AP104: 11701 | AQ104: 11067 | AR104: 10785 | AS104: 10736 | AT104: 10740 | AU104: 10921 | AV104: 11057 | AW104: 11462 | AX104: 12043 | AY104: 12746 | AZ104: 12747 | BA104: 12724 | BB104: 12943 | BC104: 12978 | BD104: 12674 | BE104: 12415 | BF104: 12417 | BG104: 12389 | BH104: 12123 | BI104: 11867 | BJ104: 11620 | BK104: 11484 | BL104: 11369 | BM104: 11240 | BN104: 11134 | BO104: 11051 | BP104: 10970 | BQ104: 10892 | BR104: 10813 | BS104: 10738 | BT104: 10678 | BU104: 10636 | BV104: 10609 | BW104: 10601 | BX104: 10609 | BY104: 10634 | BZ104: 10678 | CA104: 10745 | CB104: 10827 | CC104: 10915 | CD104: 11005 | CE104: 11089 | CF104: 11159 | CG104: 11217 | CH104: 11254 | CI104: 11262 | CJ104: 11248 | CK104: 11211 | CL104: 11157 | CM104: 11083 | CN104: 11001 | CO104: 10904 | CP104: 10810 | CQ104: 10709
A105: Females | B105: 12 | C105: 13500 | D105: 13933 | E105: 14328 | F105: 14791 | G105: 14957 | H105: 15479 | I105: 15600 | J105: 15115 | K105: 14746 | L105: 14682 | M105: 14444 | N105: 14131 | O105: 13946 | P105: 13269 | Q105: 13167 | R105: 12697 | S105: 12326 | T105: 12081 | U105: 12017 | V105: 12319 | W105: 12753 | X105: 13157 | Y105: 13118 | Z105: 12812 | AA105: 12882 | AB105: 13010 | AC105: 13093 | AD105: 13179 | AE105: 13194 | AF105: 13177 | AG105: 12766 | AH105: 12786 | AI105: 12677 | AJ105: 12432 | AK105: 12198 | AL105: 12221 | AM105: 11938 | AN105: 11783 | AO105: 12118 | AP105: 11858 | AQ105: 11736 | AR105: 11082 | AS105: 10826 | AT105: 10789 | AU105: 10803 | AV105: 10955 | AW105: 11101 | AX105: 11502 | AY105: 12088 | AZ105: 12792 | BA105: 12792 | BB105: 12766 | BC105: 12983 | BD105: 13017 | BE105: 12712 | BF105: 12452 | BG105: 12454 | BH105: 12426 | BI105: 12161 | BJ105: 11904 | BK105: 11657 | BL105: 11521 | BM105: 11406 | BN105: 11278 | BO105: 11171 | BP105: 11087 | BQ105: 11006 | BR105: 10929 | BS105: 10850 | BT105: 10775 | BU105: 10715 | BV105: 10673 | BW105: 10646 | BX105: 10638 | BY105: 10646 | BZ105: 10671 | CA105: 10715 | CB105: 10782 | CC105: 10865 | CD105: 10953 | CE105: 11043 | CF105: 11127 | CG105: 11196 | CH105: 11255 | CI105: 11292 | CJ105: 11300 | CK105: 11286 | CL105: 11249 | CM105: 11195 | CN105: 11121 | CO105: 11039 | CP105: 10941 | CQ105: 10848
A106: Females | B106: 13 | C106: 13556 | D106: 13458 | E106: 13842 | F106: 14293 | G106: 14740 | H106: 14923 | I106: 15439 | J106: 15548 | K106: 15074 | L106: 14726 | M106: 14677 | N106: 14421 | O106: 14085 | P106: 13868 | Q106: 13162 | R106: 13151 | S106: 12655 | T106: 12316 | U106: 12086 | V106: 12028 | W106: 12345 | X106: 12735 | Y106: 13157 | Z106: 13112 | AA106: 12858 | AB106: 12951 | AC106: 13043 | AD106: 13149 | AE106: 13184 | AF106: 13185 | AG106: 13185 | AH106: 12771 | AI106: 12779 | AJ106: 12671 | AK106: 12405 | AL106: 12256 | AM106: 12279 | AN106: 11968 | AO106: 11830 | AP106: 12117 | AQ106: 11879 | AR106: 11741 | AS106: 11108 | AT106: 10887 | AU106: 10811 | AV106: 10847 | AW106: 11004 | AX106: 11186 | AY106: 11551 | AZ106: 12137 | BA106: 12840 | BB106: 12839 | BC106: 12810 | BD106: 13028 | BE106: 13059 | BF106: 12755 | BG106: 12494 | BH106: 12496 | BI106: 12468 | BJ106: 12203 | BK106: 11945 | BL106: 11698 | BM106: 11561 | BN106: 11446 | BO106: 11319 | BP106: 11211 | BQ106: 11128 | BR106: 11047 | BS106: 10970 | BT106: 10890 | BU106: 10814 | BV106: 10755 | BW106: 10713 | BX106: 10687 | BY106: 10679 | BZ106: 10687 | CA106: 10712 | CB106: 10756 | CC106: 10823 | CD106: 10906 | CE106: 10994 | CF106: 11084 | CG106: 11168 | CH106: 11238 | CI106: 11297 | CJ106: 11334 | CK106: 11342 | CL106: 11328 | CM106: 11291 | CN106: 11237 | CO106: 11163 | CP106: 11081 | CQ106: 10983
A107: Females | B107: 14 | C107: 13417 | D107: 13513 | E107: 13366 | F107: 13806 | G107: 14248 | H107: 14708 | I107: 14883 | J107: 15387 | K107: 15504 | L107: 15054 | M107: 14727 | N107: 14620 | O107: 14413 | P107: 14036 | Q107: 13774 | R107: 13046 | S107: 13115 | T107: 12600 | U107: 12305 | V107: 12086 | W107: 12042 | X107: 12371 | Y107: 12735 | Z107: 13136 | AA107: 13111 | AB107: 12969 | AC107: 13006 | AD107: 13081 | AE107: 13191 | AF107: 13199 | AG107: 13219 | AH107: 13179 | AI107: 12772 | AJ107: 12765 | AK107: 12680 | AL107: 12415 | AM107: 12329 | AN107: 12334 | AO107: 12031 | AP107: 11878 | AQ107: 12139 | AR107: 11901 | AS107: 11780 | AT107: 11127 | AU107: 10912 | AV107: 10864 | AW107: 10887 | AX107: 11037 | AY107: 11227 | AZ107: 11594 | BA107: 12179 | BB107: 12882 | BC107: 12878 | BD107: 12849 | BE107: 13066 | BF107: 13097 | BG107: 12793 | BH107: 12530 | BI107: 12532 | BJ107: 12504 | BK107: 12240 | BL107: 11981 | BM107: 11734 | BN107: 11596 | BO107: 11481 | BP107: 11355 | BQ107: 11246 | BR107: 11163 | BS107: 11082 | BT107: 11005 | BU107: 10925 | BV107: 10848 | BW107: 10789 | BX107: 10747 | BY107: 10721 | BZ107: 10713 | CA107: 10721 | CB107: 10746 | CC107: 10790 | CD107: 10858 | CE107: 10942 | CF107: 11030 | CG107: 11120 | CH107: 11204 | CI107: 11274 | CJ107: 11333 | CK107: 11370 | CL107: 11378 | CM107: 11364 | CN107: 11327 | CO107: 11274 | CP107: 11200 | CQ107: 11118
A108: Females | B108: 15 | C108: 12468 | D108: 13075 | E108: 13116 | F108: 13132 | G108: 13610 | H108: 14091 | I108: 14563 | J108: 14753 | K108: 15296 | L108: 15344 | M108: 14226 | N108: 14649 | O108: 14557 | P108: 14387 | Q108: 13963 | R108: 13660 | S108: 12899 | T108: 13055 | U108: 12529 | V108: 12273 | W108: 12078 | X108: 12084 | Y108: 12390 | Z108: 12719 | AA108: 13096 | AB108: 13140 | AC108: 13023 | AD108: 13074 | AE108: 13085 | AF108: 13247 | AG108: 13262 | AH108: 13211 | AI108: 13161 | AJ108: 12764 | AK108: 12750 | AL108: 12683 | AM108: 12441 | AN108: 12343 | AO108: 12385 | AP108: 12063 | AQ108: 11921 | AR108: 12159 | AS108: 11918 | AT108: 11822 | AU108: 11137 | AV108: 10921 | AW108: 10877 | AX108: 10941 | AY108: 11067 | AZ108: 11258 | BA108: 11623 | BB108: 12206 | BC108: 12907 | BD108: 12903 | BE108: 12873 | BF108: 13090 | BG108: 13121 | BH108: 12817 | BI108: 12554 | BJ108: 12556 | BK108: 12528 | BL108: 12263 | BM108: 12004 | BN108: 11757 | BO108: 11619 | BP108: 11504 | BQ108: 11378 | BR108: 11269 | BS108: 11186 | BT108: 11105 | BU108: 11028 | BV108: 10948 | BW108: 10870 | BX108: 10811 | BY108: 10769 | BZ108: 10744 | CA108: 10736 | CB108: 10744 | CC108: 10769 | CD108: 10813 | CE108: 10881 | CF108: 10965 | CG108: 11053 | CH108: 11143 | CI108: 11227 | CJ108: 11298 | CK108: 11357 | CL108: 11394 | CM108: 11401 | CN108: 11388 | CO108: 11351 | CP108: 11298 | CQ108: 11223
A109: Females | B109: 16 | C109: 11951 | D109: 12131 | E109: 12684 | F109: 12878 | G109: 12940 | H109: 13450 | I109: 13948 | J109: 14430 | K109: 14664 | L109: 15134 | M109: 14520 | N109: 14253 | O109: 14618 | P109: 14530 | Q109: 14393 | R109: 13927 | S109: 13575 | T109: 12785 | U109: 13032 | V109: 12496 | W109: 12294 | X109: 12073 | Y109: 12133 | Z109: 12399 | AA109: 12702 | AB109: 13085 | AC109: 13112 | AD109: 13082 | AE109: 13110 | AF109: 13052 | AG109: 13284 | AH109: 13255 | AI109: 13208 | AJ109: 13159 | AK109: 12774 | AL109: 12764 | AM109: 12692 | AN109: 12445 | AO109: 12371 | AP109: 12392 | AQ109: 12089 | AR109: 11937 | AS109: 12184 | AT109: 11943 | AU109: 11849 | AV109: 11163 | AW109: 10941 | AX109: 10927 | AY109: 10970 | AZ109: 11095 | BA109: 11284 | BB109: 11647 | BC109: 12228 | BD109: 12930 | BE109: 12924 | BF109: 12894 | BG109: 13111 | BH109: 13141 | BI109: 12838 | BJ109: 12575 | BK109: 12577 | BL109: 12548 | BM109: 12284 | BN109: 12025 | BO109: 11778 | BP109: 11639 | BQ109: 11525 | BR109: 11398 | BS109: 11289 | BT109: 11207 | BU109: 11126 | BV109: 11049 | BW109: 10969 | BX109: 10891 | BY109: 10832 | BZ109: 10790 | CA109: 10765 | CB109: 10757 | CC109: 10765 | CD109: 10790 | CE109: 10834 | CF109: 10902 | CG109: 10986 | CH109: 11074 | CI109: 11164 | CJ109: 11248 | CK109: 11319 | CL109: 11378 | CM109: 11415 | CN109: 11422 | CO109: 11409 | CP109: 11372 | CQ109: 11319
A110: Females | B110: 17 | C110: 11982 | D110: 11618 | E110: 11749 | F110: 12460 | G110: 12698 | H110: 12796 | I110: 13329 | J110: 13834 | K110: 14359 | L110: 14517 | M110: 14318 | N110: 14519 | O110: 14263 | P110: 14553 | Q110: 14474 | R110: 14366 | S110: 13850 | T110: 13456 | U110: 12646 | V110: 12983 | W110: 12458 | X110: 12277 | Y110: 12072 | Z110: 12126 | AA110: 12357 | AB110: 12658 | AC110: 13014 | AD110: 13044 | AE110: 13083 | AF110: 13130 | AG110: 13019 | AH110: 13288 | AI110: 13257 | AJ110: 13197 | AK110: 13134 | AL110: 12778 | AM110: 12789 | AN110: 12686 | AO110: 12440 | AP110: 12397 | AQ110: 12434 | AR110: 12091 | AS110: 11939 | AT110: 12213 | AU110: 11974 | AV110: 11870 | AW110: 11165 | AX110: 10985 | AY110: 10955 | AZ110: 10998 | BA110: 11122 | BB110: 11309 | BC110: 11669 | BD110: 12250 | BE110: 12950 | BF110: 12944 | BG110: 12914 | BH110: 13132 | BI110: 13162 | BJ110: 12859 | BK110: 12596 | BL110: 12598 | BM110: 12569 | BN110: 12306 | BO110: 12046 | BP110: 11799 | BQ110: 11660 | BR110: 11546 | BS110: 11419 | BT110: 11311 | BU110: 11229 | BV110: 11148 | BW110: 11071 | BX110: 10991 | BY110: 10913 | BZ110: 10853 | CA110: 10811 | CB110: 10786 | CC110: 10778 | CD110: 10786 | CE110: 10811 | CF110: 10856 | CG110: 10924 | CH110: 11008 | CI110: 11096 | CJ110: 11186 | CK110: 11269 | CL110: 11340 | CM110: 11399 | CN110: 11436 | CO110: 11443 | CP110: 11430 | CQ110: 11393
A111: Females | B111: 18 | C111: 12195 | D111: 11629 | E111: 11213 | F111: 11499 | G111: 12252 | H111: 12522 | I111: 12642 | J111: 13179 | K111: 13731 | L111: 14176 | M111: 13688 | N111: 14318 | O111: 14528 | P111: 14271 | Q111: 14490 | R111: 14420 | S111: 14333 | T111: 13761 | U111: 13339 | V111: 12512 | W111: 12961 | X111: 12498 | Y111: 12363 | Z111: 11958 | AA111: 11338 | AB111: 11686 | AC111: 11826 | AD111: 11977 | AE111: 11971 | AF111: 12245 | AG111: 12760 | AH111: 12879 | AI111: 13112 | AJ111: 13257 | AK111: 13215 | AL111: 13182 | AM111: 12846 | AN111: 12826 | AO111: 12768 | AP111: 12486 | AQ111: 12506 | AR111: 12454 | AS111: 12071 | AT111: 11974 | AU111: 12284 | AV111: 11916 | AW111: 11892 | AX111: 11197 | AY111: 11013 | AZ111: 10984 | BA111: 11023 | BB111: 11144 | BC111: 11328 | BD111: 11687 | BE111: 12265 | BF111: 12964 | BG111: 12957 | BH111: 12927 | BI111: 13146 | BJ111: 13175 | BK111: 12872 | BL111: 12610 | BM111: 12612 | BN111: 12583 | BO111: 12320 | BP111: 12061 | BQ111: 11815 | BR111: 11676 | BS111: 11562 | BT111: 11434 | BU111: 11328 | BV111: 11246 | BW111: 11166 | BX111: 11089 | BY111: 11009 | BZ111: 10930 | CA111: 10870 | CB111: 10828 | CC111: 10803 | CD111: 10795 | CE111: 10803 | CF111: 10828 | CG111: 10873 | CH111: 10942 | CI111: 11026 | CJ111: 11114 | CK111: 11204 | CL111: 11285 | CM111: 11357 | CN111: 11416 | CO111: 11453 | CP111: 11460 | CQ111: 11447
A112: Females | B112: 19 | C112: 12181 | D112: 11851 | E112: 11236 | F112: 10976 | G112: 11301 | H112: 12095 | I112: 12380 | J112: 12517 | K112: 13089 | L112: 13568 | M112: 13376 | N112: 13588 | O112: 14193 | P112: 14412 | Q112: 14146 | R112: 14298 | S112: 14215 | T112: 14133 | U112: 13535 | V112: 13100 | W112: 12324 | X112: 12531 | Y112: 11980 | Z112: 11591 | AA112: 11444 | AB112: 11081 | AC112: 11228 | AD112: 11266 | AE112: 11330 | AF112: 11456 | AG112: 11358 | AH112: 12395 | AI112: 12361 | AJ112: 12768 | AK112: 12872 | AL112: 12782 | AM112: 12840 | AN112: 12549 | AO112: 12517 | AP112: 12438 | AQ112: 12234 | AR112: 12103 | AS112: 11755 | AT112: 11308 | AU112: 11225 | AV112: 11551 | AW112: 11056 | AX112: 11199 | AY112: 10872 | AZ112: 10701 | BA112: 10673 | BB112: 10708 | BC112: 10821 | BD112: 11002 | BE112: 11348 | BF112: 11913 | BG112: 12593 | BH112: 12561 | BI112: 12531 | BJ112: 12754 | BK112: 12773 | BL112: 12472 | BM112: 12221 | BN112: 12232 | BO112: 12202 | BP112: 11942 | BQ112: 11693 | BR112: 11455 | BS112: 11326 | BT112: 11216 | BU112: 11092 | BV112: 10990 | BW112: 10913 | BX112: 10835 | BY112: 10761 | BZ112: 10683 | CA112: 10608 | CB112: 10550 | CC112: 10511 | CD112: 10488 | CE112: 10481 | CF112: 10489 | CG112: 10515 | CH112: 10558 | CI112: 10626 | CJ112: 10708 | CK112: 10793 | CL112: 10880 | CM112: 10959 | CN112: 11028 | CO112: 11085 | CP112: 11120 | CQ112: 11126
A113: Females | B113: 20 | C113: 12047 | D113: 11465 | E113: 11079 | F113: 10762 | G113: 10620 | H113: 11010 | I113: 11856 | J113: 12177 | K113: 12442 | L113: 13032 | M113: 13184 | N113: 12891 | O113: 13127 | P113: 13699 | Q113: 13906 | R113: 13650 | S113: 13694 | T113: 13536 | U113: 13532 | V113: 12937 | W113: 12626 | X113: 12078 | Y113: 12294 | Z113: 11730 | AA113: 11392 | AB113: 11355 | AC113: 10794 | AD113: 11062 | AE113: 11011 | AF113: 11116 | AG113: 11247 | AH113: 11180 | AI113: 12039 | AJ113: 11983 | AK113: 12280 | AL113: 12420 | AM113: 12388 | AN113: 12458 | AO113: 12136 | AP113: 12063 | AQ113: 12097 | AR113: 11736 | AS113: 11510 | AT113: 11569 | AU113: 11121 | AV113: 11092 | AW113: 11039 | AX113: 10830 | AY113: 10762 | AZ113: 10448 | BA113: 10281 | BB113: 10247 | BC113: 10273 | BD113: 10383 | BE113: 10547 | BF113: 10878 | BG113: 11422 | BH113: 12068 | BI113: 12028 | BJ113: 12000 | BK113: 12217 | BL113: 12234 | BM113: 11942 | BN113: 11705 | BO113: 11719 | BP113: 11691 | BQ113: 11442 | BR113: 11205 | BS113: 10979 | BT113: 10856 | BU113: 10752 | BV113: 10633 | BW113: 10536 | BX113: 10463 | BY113: 10388 | BZ113: 10318 | CA113: 10244 | CB113: 10174 | CC113: 10119 | CD113: 10082 | CE113: 10061 | CF113: 10055 | CG113: 10064 | CH113: 10089 | CI113: 10130 | CJ113: 10196 | CK113: 10275 | CL113: 10356 | CM113: 10439 | CN113: 10514 | CO113: 10580 | CP113: 10634 | CQ113: 10668
A114: Females | B114: 21 | C114: 12025 | D114: 11328 | E114: 10685 | F114: 10588 | G114: 10381 | H114: 10310 | I114: 10742 | J114: 11630 | K114: 12073 | L114: 12351 | M114: 12608 | N114: 12553 | O114: 12375 | P114: 12615 | Q114: 13125 | R114: 13337 | S114: 13048 | T114: 12925 | U114: 12820 | V114: 12905 | W114: 12476 | X114: 12586 | Y114: 12125 | Z114: 12240 | AA114: 11652 | AB114: 11335 | AC114: 11239 | AD114: 10839 | AE114: 10932 | AF114: 10935 | AG114: 11032 | AH114: 11257 | AI114: 11175 | AJ114: 11918 | AK114: 11962 | AL114: 12304 | AM114: 12488 | AN114: 12510 | AO114: 12453 | AP114: 12206 | AQ114: 12091 | AR114: 11998 | AS114: 12029 | AT114: 11564 | AU114: 11539 | AV114: 11061 | AW114: 10959 | AX114: 11083 | AY114: 10717 | AZ114: 10651 | BA114: 10332 | BB114: 10160 | BC114: 10116 | BD114: 10142 | BE114: 10242 | BF114: 10402 | BG114: 10729 | BH114: 11264 | BI114: 11900 | BJ114: 11857 | BK114: 11831 | BL114: 12045 | BM114: 12063 | BN114: 11774 | BO114: 11542 | BP114: 11556 | BQ114: 11529 | BR114: 11285 | BS114: 11052 | BT114: 10829 | BU114: 10708 | BV114: 10606 | BW114: 10488 | BX114: 10394 | BY114: 10321 | BZ114: 10247 | CA114: 10179 | CB114: 10107 | CC114: 10036 | CD114: 9983 | CE114: 9947 | CF114: 9927 | CG114: 9921 | CH114: 9931 | CI114: 9956 | CJ114: 9995 | CK114: 10060 | CL114: 10139 | CM114: 10220 | CN114: 10300 | CO114: 10375 | CP114: 10440 | CQ114: 10493
A115: Females | B115: 22 | C115: 11843 | D115: 11300 | E115: 10543 | F115: 10196 | G115: 10206 | H115: 10065 | I115: 10047 | J115: 10522 | K115: 11528 | L115: 11983 | M115: 11919 | N115: 12285 | O115: 12327 | P115: 12236 | Q115: 12442 | R115: 12917 | S115: 13078 | T115: 12732 | U115: 12569 | V115: 12517 | W115: 12790 | X115: 12508 | Y115: 12674 | Z115: 12186 | AA115: 12159 | AB115: 11763 | AC115: 11318 | AD115: 11170 | AE115: 10830 | AF115: 10899 | AG115: 10929 | AH115: 11054 | AI115: 11288 | AJ115: 11231 | AK115: 11989 | AL115: 12089 | AM115: 12543 | AN115: 12715 | AO115: 12695 | AP115: 12568 | AQ115: 12238 | AR115: 12152 | AS115: 12191 | AT115: 12131 | AU115: 11747 | AV115: 11584 | AW115: 11118 | AX115: 11058 | AY115: 11113 | AZ115: 10749 | BA115: 10672 | BB115: 10344 | BC115: 10161 | BD115: 10117 | BE115: 10131 | BF115: 10231 | BG115: 10392 | BH115: 10718 | BI115: 11250 | BJ115: 11886 | BK115: 11844 | BL115: 11818 | BM115: 12031 | BN115: 12049 | BO115: 11762 | BP115: 11530 | BQ115: 11544 | BR115: 11518 | BS115: 11275 | BT115: 11041 | BU115: 10820 | BV115: 10698 | BW115: 10597 | BX115: 10479 | BY115: 10385 | BZ115: 10312 | CA115: 10239 | CB115: 10170 | CC115: 10099 | CD115: 10028 | CE115: 9975 | CF115: 9941 | CG115: 9920 | CH115: 9913 | CI115: 9925 | CJ115: 9949 | CK115: 9987 | CL115: 10052 | CM115: 10132 | CN115: 10213 | CO115: 10292 | CP115: 10367 | CQ115: 10432
A116: Females | B116: 23 | C116: 11519 | D116: 11122 | E116: 10520 | F116: 10053 | G116: 9822 | H116: 9901 | I116: 9798 | J116: 9830 | K116: 10422 | L116: 11435 | M116: 11540 | N116: 11682 | O116: 12159 | P116: 12263 | Q116: 12210 | R116: 12413 | S116: 12779 | T116: 12873 | U116: 12573 | V116: 12391 | W116: 12521 | X116: 12715 | Y116: 12442 | Z116: 12574 | AA116: 12009 | AB116: 12105 | AC116: 11630 | AD116: 11211 | AE116: 10917 | AF116: 10702 | AG116: 10748 | AH116: 11028 | AI116: 11128 | AJ116: 11409 | AK116: 11448 | AL116: 12213 | AM116: 12413 | AN116: 12747 | AO116: 12810 | AP116: 12798 | AQ116: 12560 | AR116: 12351 | AS116: 12289 | AT116: 12295 | AU116: 12246 | AV116: 11794 | AW116: 11655 | AX116: 11240 | AY116: 11148 | AZ116: 11203 | BA116: 10827 | BB116: 10738 | BC116: 10398 | BD116: 10214 | BE116: 10158 | BF116: 10173 | BG116: 10273 | BH116: 10434 | BI116: 10759 | BJ116: 11294 | BK116: 11931 | BL116: 11888 | BM116: 11862 | BN116: 12076 | BO116: 12094 | BP116: 11807 | BQ116: 11574 | BR116: 11589 | BS116: 11563 | BT116: 11320 | BU116: 11087 | BV116: 10865 | BW116: 10742 | BX116: 10641 | BY116: 10523 | BZ116: 10428 | CA116: 10355 | CB116: 10282 | CC116: 10214 | CD116: 10142 | CE116: 10071 | CF116: 10018 | CG116: 9985 | CH116: 9963 | CI116: 9956 | CJ116: 9968 | CK116: 9992 | CL116: 10031 | CM116: 10096 | CN116: 10176 | CO116: 10258 | CP116: 10337 | CQ116: 10412
A117: Females | B117: 24 | C117: 11177 | D117: 10802 | E117: 10345 | F117: 10030 | G117: 9672 | H117: 9517 | I117: 9639 | J117: 9576 | K117: 9732 | L117: 10331 | M117: 10988 | N117: 11362 | O117: 11623 | P117: 12133 | Q117: 12246 | R117: 12273 | S117: 12384 | T117: 12643 | U117: 12780 | V117: 12529 | W117: 12467 | X117: 12643 | Y117: 12839 | Z117: 12502 | AA117: 12613 | AB117: 12156 | AC117: 12139 | AD117: 11592 | AE117: 11161 | AF117: 10922 | AG117: 10506 | AH117: 10874 | AI117: 11087 | AJ117: 11372 | AK117: 11677 | AL117: 11773 | AM117: 12519 | AN117: 12589 | AO117: 12883 | AP117: 12880 | AQ117: 12729 | AR117: 12635 | AS117: 12290 | AT117: 12323 | AU117: 12404 | AV117: 12242 | AW117: 11746 | AX117: 11639 | AY117: 11293 | AZ117: 11202 | BA117: 11245 | BB117: 10858 | BC117: 10758 | BD117: 10419 | BE117: 10222 | BF117: 10168 | BG117: 10182 | BH117: 10282 | BI117: 10443 | BJ117: 10769 | BK117: 11305 | BL117: 11939 | BM117: 11897 | BN117: 11871 | BO117: 12085 | BP117: 12103 | BQ117: 11816 | BR117: 11583 | BS117: 11599 | BT117: 11573 | BU117: 11330 | BV117: 11098 | BW117: 10875 | BX117: 10753 | BY117: 10652 | BZ117: 10534 | CA117: 10439 | CB117: 10365 | CC117: 10293 | CD117: 10225 | CE117: 10152 | CF117: 10083 | CG117: 10029 | CH117: 9996 | CI117: 9975 | CJ117: 9968 | CK117: 9980 | CL117: 10004 | CM117: 10043 | CN117: 10108 | CO117: 10188 | CP117: 10269 | CQ117: 10349
A118: Females | B118: 25 | C118: 10530 | D118: 10870 | E118: 10446 | F118: 10120 | G118: 9848 | H118: 9521 | I118: 9372 | J118: 9505 | K118: 9514 | L118: 9724 | M118: 10526 | N118: 10763 | O118: 11237 | P118: 11518 | Q118: 12005 | R118: 12161 | S118: 12181 | T118: 12210 | U118: 12460 | V118: 12633 | W118: 12534 | X118: 12352 | Y118: 12545 | Z118: 12734 | AA118: 12402 | AB118: 12573 | AC118: 12042 | AD118: 12055 | AE118: 11415 | AF118: 11015 | AG118: 10908 | AH118: 10641 | AI118: 10978 | AJ118: 11230 | AK118: 11639 | AL118: 11953 | AM118: 12185 | AN118: 12735 | AO118: 12751 | AP118: 12866 | AQ118: 12813 | AR118: 12659 | AS118: 12491 | AT118: 12282 | AU118: 12278 | AV118: 12380 | AW118: 12218 | AX118: 11752 | AY118: 11652 | AZ118: 11306 | BA118: 11207 | BB118: 11238 | BC118: 10841 | BD118: 10742 | BE118: 10392 | BF118: 10196 | BG118: 10142 | BH118: 10156 | BI118: 10257 | BJ118: 10417 | BK118: 10743 | BL118: 11278 | BM118: 11912 | BN118: 11868 | BO118: 11841 | BP118: 12056 | BQ118: 12074 | BR118: 11788 | BS118: 11555 | BT118: 11572 | BU118: 11546 | BV118: 11304 | BW118: 11073 | BX118: 10849 | BY118: 10728 | BZ118: 10628 | CA118: 10511 | CB118: 10414 | CC118: 10341 | CD118: 10270 | CE118: 10202 | CF118: 10128 | CG118: 10060 | CH118: 10006 | CI118: 9973 | CJ118: 9951 | CK118: 9944 | CL118: 9956 | CM118: 9980 | CN118: 10019 | CO118: 10084 | CP118: 10164 | CQ118: 10245
A119: Females | B119: 26 | C119: 10454 | D119: 10235 | E119: 10529 | F119: 10241 | G119: 9955 | H119: 9708 | I119: 9402 | J119: 9263 | K119: 9470 | L119: 9536 | M119: 9945 | N119: 10429 | O119: 10793 | P119: 11291 | Q119: 11543 | R119: 12046 | S119: 12168 | T119: 12201 | U119: 12241 | V119: 12483 | W119: 12801 | X119: 12718 | Y119: 12564 | Z119: 12636 | AA119: 12763 | AB119: 12544 | AC119: 12669 | AD119: 12169 | AE119: 12069 | AF119: 11485 | AG119: 10933 | AH119: 11012 | AI119: 10767 | AJ119: 11038 | AK119: 11468 | AL119: 11986 | AM119: 12393 | AN119: 12498 | AO119: 12810 | AP119: 12767 | AQ119: 12777 | AR119: 12763 | AS119: 12595 | AT119: 12544 | AU119: 12305 | AV119: 12293 | AW119: 12412 | AX119: 12265 | AY119: 11785 | AZ119: 11684 | BA119: 11330 | BB119: 11221 | BC119: 11243 | BD119: 10847 | BE119: 10737 | BF119: 10389 | BG119: 10191 | BH119: 10137 | BI119: 10152 | BJ119: 10253 | BK119: 10413 | BL119: 10738 | BM119: 11274 | BN119: 11907 | BO119: 11863 | BP119: 11836 | BQ119: 12051 | BR119: 12070 | BS119: 11784 | BT119: 11551 | BU119: 11567 | BV119: 11542 | BW119: 11300 | BX119: 11070 | BY119: 10847 | BZ119: 10725 | CA119: 10626 | CB119: 10509 | CC119: 10412 | CD119: 10339 | CE119: 10268 | CF119: 10201 | CG119: 10126 | CH119: 10058 | CI119: 10004 | CJ119: 9971 | CK119: 9950 | CL119: 9942 | CM119: 9954 | CN119: 9978 | CO119: 10016 | CP119: 10082 | CQ119: 10162
A120: Females | B120: 27 | C120: 10495 | D120: 10157 | E120: 9894 | F120: 10326 | G120: 10075 | H120: 9814 | I120: 9585 | J120: 9299 | K120: 9228 | L120: 9490 | M120: 9752 | N120: 9822 | O120: 10404 | P120: 10805 | Q120: 11282 | R120: 11537 | S120: 11986 | T120: 12101 | U120: 12214 | V120: 12258 | W120: 12574 | X120: 12953 | Y120: 12832 | Z120: 12659 | AA120: 12724 | AB120: 12882 | AC120: 12649 | AD120: 12729 | AE120: 12235 | AF120: 12118 | AG120: 11457 | AH120: 11091 | AI120: 11061 | AJ120: 10896 | AK120: 11232 | AL120: 11799 | AM120: 12415 | AN120: 12700 | AO120: 12570 | AP120: 12739 | AQ120: 12711 | AR120: 12771 | AS120: 12697 | AT120: 12601 | AU120: 12593 | AV120: 12325 | AW120: 12341 | AX120: 12476 | AY120: 12322 | AZ120: 11842 | BA120: 11733 | BB120: 11370 | BC120: 11253 | BD120: 11275 | BE120: 10871 | BF120: 10759 | BG120: 10413 | BH120: 10213 | BI120: 10160 | BJ120: 10175 | BK120: 10276 | BL120: 10435 | BM120: 10760 | BN120: 11298 | BO120: 11931 | BP120: 11887 | BQ120: 11861 | BR120: 12075 | BS120: 12094 | BT120: 11809 | BU120: 11574 | BV120: 11591 | BW120: 11565 | BX120: 11324 | BY120: 11094 | BZ120: 10871 | CA120: 10750 | CB120: 10651 | CC120: 10533 | CD120: 10437 | CE120: 10364 | CF120: 10293 | CG120: 10226 | CH120: 10150 | CI120: 10083 | CJ120: 10029 | CK120: 9995 | CL120: 9974 | CM120: 9966 | CN120: 9978 | CO120: 10001 | CP120: 10041 | CQ120: 10106
A121: Females | B121: 28 | C121: 10326 | D121: 10195 | E121: 9814 | F121: 9690 | G121: 10156 | H121: 9935 | I121: 9693 | J121: 9475 | K121: 9261 | L121: 9247 | M121: 9705 | N121: 9637 | O121: 9779 | P121: 10397 | Q121: 10798 | R121: 11283 | S121: 11474 | T121: 11897 | U121: 12055 | V121: 12254 | W121: 12383 | X121: 12719 | Y121: 13098 | Z121: 12894 | AA121: 12714 | AB121: 12831 | AC121: 12953 | AD121: 12671 | AE121: 12774 | AF121: 12339 | AG121: 12185 | AH121: 11556 | AI121: 11186 | AJ121: 11126 | AK121: 11108 | AL121: 11483 | AM121: 12139 | AN121: 12695 | AO121: 12861 | AP121: 12653 | AQ121: 12646 | AR121: 12679 | AS121: 12693 | AT121: 12756 | AU121: 12609 | AV121: 12607 | AW121: 12341 | AX121: 12427 | AY121: 12537 | AZ121: 12383 | BA121: 11893 | BB121: 11774 | BC121: 11404 | BD121: 11287 | BE121: 11300 | BF121: 10896 | BG121: 10785 | BH121: 10439 | BI121: 10238 | BJ121: 10185 | BK121: 10198 | BL121: 10301 | BM121: 10460 | BN121: 10787 | BO121: 11325 | BP121: 11958 | BQ121: 11915 | BR121: 11889 | BS121: 12104 | BT121: 12123 | BU121: 11837 | BV121: 11602 | BW121: 11619 | BX121: 11593 | BY121: 11350 | BZ121: 11121 | CA121: 10897 | CB121: 10776 | CC121: 10676 | CD121: 10559 | CE121: 10464 | CF121: 10391 | CG121: 10319 | CH121: 10252 | CI121: 10176 | CJ121: 10108 | CK121: 10053 | CL121: 10020 | CM121: 9999 | CN121: 9991 | CO121: 10003 | CP121: 10026 | CQ121: 10066
A122: Females | B122: 29 | C122: 9220 | D122: 10026 | E122: 9852 | F122: 9606 | G122: 9525 | H122: 10015 | I122: 9814 | J122: 9585 | K122: 9441 | L122: 9280 | M122: 9452 | N122: 9621 | O122: 9622 | P122: 9774 | Q122: 10398 | R122: 10832 | S122: 11264 | T122: 11417 | U122: 11856 | V122: 12065 | W122: 12415 | X122: 12550 | Y122: 12838 | Z122: 13209 | AA122: 12964 | AB122: 12885 | AC122: 12954 | AD122: 13001 | AE122: 12671 | AF122: 12763 | AG122: 12296 | AH122: 12281 | AI122: 11669 | AJ122: 11237 | AK122: 11273 | AL122: 11287 | AM122: 11746 | AN122: 12363 | AO122: 12834 | AP122: 12932 | AQ122: 12615 | AR122: 12583 | AS122: 12611 | AT122: 12666 | AU122: 12828 | AV122: 12641 | AW122: 12655 | AX122: 12384 | AY122: 12483 | AZ122: 12593 | BA122: 12432 | BB122: 11934 | BC122: 11806 | BD122: 11436 | BE122: 11311 | BF122: 11324 | BG122: 10919 | BH122: 10808 | BI122: 10460 | BJ122: 10261 | BK122: 10206 | BL122: 10219 | BM122: 10322 | BN122: 10482 | BO122: 10809 | BP122: 11347 | BQ122: 11982 | BR122: 11941 | BS122: 11915 | BT122: 12129 | BU122: 12149 | BV122: 11864 | BW122: 11629 | BX122: 11645 | BY122: 11618 | BZ122: 11375 | CA122: 11144 | CB122: 10920 | CC122: 10799 | CD122: 10699 | CE122: 10581 | CF122: 10486 | CG122: 10413 | CH122: 10341 | CI122: 10274 | CJ122: 10199 | CK122: 10131 | CL122: 10076 | CM122: 10043 | CN122: 10022 | CO122: 10014 | CP122: 10025 | CQ122: 10049
A123: Females | B123: 30 | C123: 8784 | D123: 9071 | E123: 9839 | F123: 9743 | G123: 9507 | H123: 9444 | I123: 9939 | J123: 9744 | K123: 9539 | L123: 9455 | M123: 9463 | N123: 9405 | O123: 9667 | P123: 9694 | Q123: 9830 | R123: 10482 | S123: 10894 | T123: 11291 | U123: 11449 | V123: 11907 | W123: 12239 | X123: 12520 | Y123: 12671 | Z123: 12937 | AA123: 13271 | AB123: 13073 | AC123: 12985 | AD123: 13016 | AE123: 12972 | AF123: 12715 | AG123: 12806 | AH123: 12389 | AI123: 12363 | AJ123: 11772 | AK123: 11377 | AL123: 11418 | AM123: 11511 | AN123: 11891 | AO123: 12446 | AP123: 12903 | AQ123: 12955 | AR123: 12589 | AS123: 12491 | AT123: 12599 | AU123: 12672 | AV123: 12825 | AW123: 12707 | AX123: 12721 | AY123: 12432 | AZ123: 12531 | BA123: 12635 | BB123: 12466 | BC123: 11959 | BD123: 11831 | BE123: 11454 | BF123: 11328 | BG123: 11341 | BH123: 10936 | BI123: 10825 | BJ123: 10477 | BK123: 10277 | BL123: 10222 | BM123: 10234 | BN123: 10337 | BO123: 10497 | BP123: 10826 | BQ123: 11364 | BR123: 12000 | BS123: 11960 | BT123: 11934 | BU123: 12148 | BV123: 12169 | BW123: 11883 | BX123: 11648 | BY123: 11664 | BZ123: 11637 | CA123: 11394 | CB123: 11163 | CC123: 10938 | CD123: 10818 | CE123: 10717 | CF123: 10599 | CG123: 10502 | CH123: 10429 | CI123: 10357 | CJ123: 10291 | CK123: 10215 | CL123: 10147 | CM123: 10093 | CN123: 10059 | CO123: 10037 | CP123: 10031 | CQ123: 10043
A124: Females | B124: 31 | C124: 8835 | D124: 8633 | E124: 8885 | F124: 9731 | G124: 9650 | H124: 9431 | I124: 9374 | J124: 9865 | K124: 9705 | L124: 9556 | M124: 9641 | N124: 9464 | O124: 9450 | P124: 9760 | Q124: 9777 | R124: 9922 | S124: 10548 | T124: 10955 | U124: 11362 | V124: 11527 | W124: 12065 | X124: 12329 | Y124: 12614 | Z124: 12744 | AA124: 13015 | AB124: 13384 | AC124: 13088 | AD124: 13091 | AE124: 13045 | AF124: 13039 | AG124: 12706 | AH124: 12870 | AI124: 12404 | AJ124: 12402 | AK124: 11933 | AL124: 11507 | AM124: 11616 | AN124: 11610 | AO124: 11966 | AP124: 12497 | AQ124: 12957 | AR124: 12875 | AS124: 12563 | AT124: 12505 | AU124: 12599 | AV124: 12631 | AW124: 12888 | AX124: 12797 | AY124: 12764 | AZ124: 12475 | BA124: 12568 | BB124: 12664 | BC124: 12488 | BD124: 11981 | BE124: 11845 | BF124: 11469 | BG124: 11341 | BH124: 11354 | BI124: 10950 | BJ124: 10838 | BK124: 10490 | BL124: 10290 | BM124: 10233 | BN124: 10246 | BO124: 10349 | BP124: 10510 | BQ124: 10839 | BR124: 11377 | BS124: 12014 | BT124: 11976 | BU124: 11949 | BV124: 12163 | BW124: 12185 | BX124: 11899 | BY124: 11663 | BZ124: 11679 | CA124: 11653 | CB124: 11409 | CC124: 11178 | CD124: 10954 | CE124: 10831 | CF124: 10731 | CG124: 10612 | CH124: 10514 | CI124: 10442 | CJ124: 10369 | CK124: 10304 | CL124: 10226 | CM124: 10160 | CN124: 10104 | CO124: 10070 | CP124: 10049 | CQ124: 10042
A125: Females | B125: 32 | C125: 8853 | D125: 8688 | E125: 8451 | F125: 8778 | G125: 9631 | H125: 9570 | I125: 9361 | J125: 9305 | K125: 9833 | L125: 9723 | M125: 9745 | N125: 9633 | O125: 9523 | P125: 9502 | Q125: 9831 | R125: 9855 | S125: 9971 | T125: 10598 | U125: 11031 | V125: 11443 | W125: 11634 | X125: 12095 | Y125: 12370 | Z125: 12670 | AA125: 12782 | AB125: 13158 | AC125: 13493 | AD125: 13159 | AE125: 13101 | AF125: 13089 | AG125: 13078 | AH125: 12798 | AI125: 12915 | AJ125: 12478 | AK125: 12538 | AL125: 12060 | AM125: 11745 | AN125: 11730 | AO125: 11729 | AP125: 11948 | AQ125: 12515 | AR125: 12901 | AS125: 12777 | AT125: 12517 | AU125: 12526 | AV125: 12570 | AW125: 12626 | AX125: 12926 | AY125: 12826 | AZ125: 12793 | BA125: 12498 | BB125: 12585 | BC125: 12675 | BD125: 12499 | BE125: 11987 | BF125: 11850 | BG125: 11474 | BH125: 11344 | BI125: 11357 | BJ125: 10953 | BK125: 10840 | BL125: 10492 | BM125: 10291 | BN125: 10235 | BO125: 10247 | BP125: 10351 | BQ125: 10512 | BR125: 10841 | BS125: 11380 | BT125: 12018 | BU125: 11983 | BV125: 11956 | BW125: 12169 | BX125: 12192 | BY125: 11904 | BZ125: 11667 | CA125: 11683 | CB125: 11658 | CC125: 11413 | CD125: 11182 | CE125: 10957 | CF125: 10834 | CG125: 10735 | CH125: 10615 | CI125: 10516 | CJ125: 10445 | CK125: 10372 | CL125: 10306 | CM125: 10228 | CN125: 10162 | CO125: 10106 | CP125: 10072 | CQ125: 10051
A126: Females | B126: 33 | C126: 8474 | D126: 8700 | E126: 8501 | F126: 8350 | G126: 8680 | H126: 9552 | I126: 9492 | J126: 9290 | K126: 9270 | L126: 9850 | M126: 9914 | N126: 9674 | O126: 9614 | P126: 9536 | Q126: 9482 | R126: 9848 | S126: 9850 | T126: 9947 | U126: 10597 | V126: 11058 | W126: 11518 | X126: 11666 | Y126: 12152 | Z126: 12408 | AA126: 12698 | AB126: 12887 | AC126: 13216 | AD126: 13557 | AE126: 13147 | AF126: 13150 | AG126: 13132 | AH126: 13100 | AI126: 12869 | AJ126: 13010 | AK126: 12609 | AL126: 12616 | AM126: 12240 | AN126: 11912 | AO126: 11773 | AP126: 11715 | AQ126: 11888 | AR126: 12477 | AS126: 12855 | AT126: 12767 | AU126: 12540 | AV126: 12510 | AW126: 12575 | AX126: 12704 | AY126: 12953 | AZ126: 12852 | BA126: 12814 | BB126: 12513 | BC126: 12594 | BD126: 12684 | BE126: 12504 | BF126: 11991 | BG126: 11854 | BH126: 11478 | BI126: 11347 | BJ126: 11360 | BK126: 10955 | BL126: 10840 | BM126: 10492 | BN126: 10292 | BO126: 10235 | BP126: 10248 | BQ126: 10351 | BR126: 10514 | BS126: 10842 | BT126: 11382 | BU126: 12022 | BV126: 11987 | BW126: 11960 | BX126: 12173 | BY126: 12196 | BZ126: 11909 | CA126: 11672 | CB126: 11687 | CC126: 11662 | CD126: 11417 | CE126: 11185 | CF126: 10960 | CG126: 10836 | CH126: 10737 | CI126: 10617 | CJ126: 10519 | CK126: 10448 | CL126: 10374 | CM126: 10308 | CN126: 10229 | CO126: 10163 | CP126: 10108 | CQ126: 10073
A127: Females | B127: 34 | C127: 8530 | D127: 8328 | E127: 8520 | F127: 8392 | G127: 8257 | H127: 8602 | I127: 9482 | J127: 9421 | K127: 9256 | L127: 9286 | M127: 10043 | N127: 9887 | O127: 9679 | P127: 9646 | Q127: 9583 | R127: 9518 | S127: 9878 | T127: 9871 | U127: 9975 | V127: 10649 | W127: 11167 | X127: 11570 | Y127: 11716 | Z127: 12201 | AA127: 12443 | AB127: 12809 | AC127: 12931 | AD127: 13307 | AE127: 13599 | AF127: 13224 | AG127: 13286 | AH127: 13212 | AI127: 13167 | AJ127: 12912 | AK127: 13083 | AL127: 12708 | AM127: 12772 | AN127: 12381 | AO127: 11984 | AP127: 11782 | AQ127: 11687 | AR127: 11833 | AS127: 12440 | AT127: 12855 | AU127: 12798 | AV127: 12565 | AW127: 12542 | AX127: 12646 | AY127: 12744 | AZ127: 12993 | BA127: 12888 | BB127: 12843 | BC127: 12538 | BD127: 12619 | BE127: 12703 | BF127: 12524 | BG127: 12009 | BH127: 11872 | BI127: 11496 | BJ127: 11364 | BK127: 11376 | BL127: 10970 | BM127: 10856 | BN127: 10507 | BO127: 10306 | BP127: 10250 | BQ127: 10263 | BR127: 10366 | BS127: 10531 | BT127: 10858 | BU127: 11399 | BV127: 12040 | BW127: 12005 | BX127: 11978 | BY127: 12191 | BZ127: 12214 | CA127: 11928 | CB127: 11691 | CC127: 11706 | CD127: 11681 | CE127: 11436 | CF127: 11203 | CG127: 10978 | CH127: 10852 | CI127: 10753 | CJ127: 10633 | CK127: 10534 | CL127: 10463 | CM127: 10390 | CN127: 10324 | CO127: 10245 | CP127: 10178 | CQ127: 10122
A128: Females | B128: 35 | C128: 8560 | D128: 8461 | E128: 8227 | F128: 8468 | G128: 8334 | H128: 8208 | I128: 8555 | J128: 9431 | K128: 9358 | L128: 9276 | M128: 9491 | N128: 10007 | O128: 9871 | P128: 9656 | Q128: 9634 | R128: 9601 | S128: 9492 | T128: 9866 | U128: 9864 | V128: 9981 | W128: 10698 | X128: 11204 | Y128: 11613 | Z128: 11752 | AA128: 12239 | AB128: 12517 | AC128: 12904 | AD128: 12993 | AE128: 13335 | AF128: 13613 | AG128: 13278 | AH128: 13340 | AI128: 13259 | AJ128: 13180 | AK128: 13060 | AL128: 13180 | AM128: 12804 | AN128: 12801 | AO128: 12406 | AP128: 11960 | AQ128: 11757 | AR128: 11666 | AS128: 11802 | AT128: 12446 | AU128: 12804 | AV128: 12805 | AW128: 12566 | AX128: 12609 | AY128: 12675 | AZ128: 12774 | BA128: 13018 | BB128: 12909 | BC128: 12858 | BD128: 12554 | BE128: 12629 | BF128: 12714 | BG128: 12534 | BH128: 12019 | BI128: 11881 | BJ128: 11506 | BK128: 11373 | BL128: 11385 | BM128: 10980 | BN128: 10864 | BO128: 10514 | BP128: 10313 | BQ128: 10257 | BR128: 10270 | BS128: 10373 | BT128: 10538 | BU128: 10865 | BV128: 11407 | BW128: 12051 | BX128: 12016 | BY128: 11988 | BZ128: 12202 | CA128: 12225 | CB128: 11940 | CC128: 11702 | CD128: 11717 | CE128: 11691 | CF128: 11447 | CG128: 11214 | CH128: 10987 | CI128: 10859 | CJ128: 10761 | CK128: 10640 | CL128: 10541 | CM128: 10471 | CN128: 10397 | CO128: 10332 | CP128: 10252 | CQ128: 10185
A129: Females | B129: 36 | C129: 8264 | D129: 8490 | E129: 8359 | F129: 8171 | G129: 8412 | H129: 8291 | I129: 8162 | J129: 8508 | K129: 9382 | L129: 9378 | M129: 9481 | N129: 9460 | O129: 10044 | P129: 9902 | Q129: 9675 | R129: 9680 | S129: 9651 | T129: 9504 | U129: 9910 | V129: 9920 | W129: 10058 | X129: 10763 | Y129: 11249 | Z129: 11627 | AA129: 11784 | AB129: 12269 | AC129: 12662 | AD129: 12843 | AE129: 13027 | AF129: 13394 | AG129: 13527 | AH129: 13304 | AI129: 13323 | AJ129: 13261 | AK129: 13211 | AL129: 13106 | AM129: 13238 | AN129: 12872 | AO129: 12799 | AP129: 12356 | AQ129: 11934 | AR129: 11736 | AS129: 11624 | AT129: 11802 | AU129: 12468 | AV129: 12801 | AW129: 12822 | AX129: 12592 | AY129: 12628 | AZ129: 12694 | BA129: 12789 | BB129: 13029 | BC129: 12917 | BD129: 12865 | BE129: 12557 | BF129: 12632 | BG129: 12716 | BH129: 12536 | BI129: 12020 | BJ129: 11884 | BK129: 11509 | BL129: 11374 | BM129: 11386 | BN129: 10981 | BO129: 10864 | BP129: 10514 | BQ129: 10312 | BR129: 10257 | BS129: 10269 | BT129: 10372 | BU129: 10538 | BV129: 10865 | BW129: 11409 | BX129: 12053 | BY129: 12020 | BZ129: 11991 | CA129: 12205 | CB129: 12229 | CC129: 11943 | CD129: 11704 | CE129: 11719 | CF129: 11693 | CG129: 11449 | CH129: 11215 | CI129: 10989 | CJ129: 10861 | CK129: 10763 | CL129: 10642 | CM129: 10542 | CN129: 10472 | CO129: 10397 | CP129: 10333 | CQ129: 10252
A130: Females | B130: 37 | C130: 8133 | D130: 8194 | E130: 8390 | F130: 8304 | G130: 8120 | H130: 8369 | I130: 8247 | J130: 8115 | K130: 8456 | L130: 9399 | M130: 9584 | N130: 9460 | O130: 9444 | P130: 10074 | Q130: 9923 | R130: 9691 | S130: 9699 | T130: 9680 | U130: 9519 | V130: 9962 | W130: 10001 | X130: 10085 | Y130: 10797 | Z130: 11272 | AA130: 11642 | AB130: 11826 | AC130: 12334 | AD130: 12610 | AE130: 12859 | AF130: 13053 | AG130: 13537 | AH130: 13568 | AI130: 13346 | AJ130: 13354 | AK130: 13325 | AL130: 13271 | AM130: 13189 | AN130: 13275 | AO130: 12897 | AP130: 12771 | AQ130: 12352 | AR130: 11930 | AS130: 11705 | AT130: 11638 | AU130: 11787 | AV130: 12528 | AW130: 12809 | AX130: 12845 | AY130: 12619 | AZ130: 12655 | BA130: 12718 | BB130: 12809 | BC130: 13046 | BD130: 12934 | BE130: 12877 | BF130: 12569 | BG130: 12644 | BH130: 12728 | BI130: 12550 | BJ130: 12033 | BK130: 11895 | BL130: 11519 | BM130: 11386 | BN130: 11398 | BO130: 10992 | BP130: 10873 | BQ130: 10522 | BR130: 10320 | BS130: 10265 | BT130: 10278 | BU130: 10381 | BV130: 10548 | BW130: 10874 | BX130: 11419 | BY130: 12065 | BZ130: 12033 | CA130: 12003 | CB130: 12217 | CC130: 12242 | CD130: 11956 | CE130: 11717 | CF130: 11732 | CG130: 11705 | CH130: 11461 | CI130: 11227 | CJ130: 11001 | CK130: 10871 | CL130: 10774 | CM130: 10653 | CN130: 10554 | CO130: 10483 | CP130: 10408 | CQ130: 10344
A131: Females | B131: 38 | C131: 8326 | D131: 8059 | E131: 8091 | F131: 8329 | G131: 8251 | H131: 8077 | I131: 8321 | J131: 8200 | K131: 8061 | L131: 8478 | M131: 9610 | N131: 9529 | O131: 9448 | P131: 9420 | Q131: 10086 | R131: 9929 | S131: 9667 | T131: 9684 | U131: 9695 | V131: 9525 | W131: 10019 | X131: 10012 | Y131: 10128 | Z131: 10824 | AA131: 11273 | AB131: 11726 | AC131: 11908 | AD131: 12329 | AE131: 12625 | AF131: 12874 | AG131: 12953 | AH131: 13521 | AI131: 13614 | AJ131: 13405 | AK131: 13410 | AL131: 13396 | AM131: 13374 | AN131: 13228 | AO131: 13299 | AP131: 12884 | AQ131: 12767 | AR131: 12340 | AS131: 11905 | AT131: 11704 | AU131: 11666 | AV131: 11799 | AW131: 12554 | AX131: 12854 | AY131: 12874 | AZ131: 12648 | BA131: 12680 | BB131: 12739 | BC131: 12827 | BD131: 13065 | BE131: 12949 | BF131: 12891 | BG131: 12584 | BH131: 12659 | BI131: 12744 | BJ131: 12566 | BK131: 12048 | BL131: 11910 | BM131: 11534 | BN131: 11401 | BO131: 11412 | BP131: 11004 | BQ131: 10887 | BR131: 10536 | BS131: 10333 | BT131: 10278 | BU131: 10291 | BV131: 10394 | BW131: 10561 | BX131: 10887 | BY131: 11434 | BZ131: 12082 | CA131: 12050 | CB131: 12020 | CC131: 12234 | CD131: 12259 | CE131: 11973 | CF131: 11734 | CG131: 11749 | CH131: 11721 | CI131: 11478 | CJ131: 11243 | CK131: 11017 | CL131: 10887 | CM131: 10790 | CN131: 10669 | CO131: 10569 | CP131: 10498 | CQ131: 10422
A132: Females | B132: 39 | C132: 8180 | D132: 8252 | E132: 7955 | F132: 8028 | G132: 8269 | H132: 8204 | I132: 8030 | J132: 8274 | K132: 8151 | L132: 8077 | M132: 8665 | N132: 9566 | O132: 9522 | P132: 9460 | Q132: 9409 | R132: 10126 | S132: 9948 | T132: 9669 | U132: 9710 | V132: 9749 | W132: 9574 | X132: 10051 | Y132: 10019 | Z132: 10125 | AA132: 10812 | AB132: 11304 | AC132: 11800 | AD132: 11892 | AE132: 12344 | AF132: 12656 | AG132: 12903 | AH132: 12947 | AI132: 13487 | AJ132: 13642 | AK132: 13425 | AL132: 13480 | AM132: 13476 | AN132: 13397 | AO132: 13263 | AP132: 13311 | AQ132: 12871 | AR132: 12736 | AS132: 12338 | AT132: 11912 | AU132: 11698 | AV132: 11693 | AW132: 11836 | AX132: 12593 | AY132: 12880 | AZ132: 12899 | BA132: 12672 | BB132: 12699 | BC132: 12756 | BD132: 12845 | BE132: 13079 | BF132: 12963 | BG132: 12904 | BH132: 12597 | BI132: 12673 | BJ132: 12757 | BK132: 12579 | BL132: 12062 | BM132: 11923 | BN132: 11548 | BO132: 11414 | BP132: 11425 | BQ132: 11017 | BR132: 10900 | BS132: 10549 | BT132: 10346 | BU132: 10292 | BV132: 10304 | BW132: 10406 | BX132: 10574 | BY132: 10901 | BZ132: 11448 | CA132: 12095 | CB132: 12065 | CC132: 12035 | CD132: 12249 | CE132: 12274 | CF132: 11990 | CG132: 11750 | CH132: 11765 | CI132: 11736 | CJ132: 11493 | CK132: 11258 | CL132: 11030 | CM132: 10901 | CN132: 10804 | CO132: 10682 | CP132: 10584 | CQ132: 10511
A133: Females | B133: 40 | C133: 8408 | D133: 8145 | E133: 8188 | F133: 7914 | G133: 7990 | H133: 8237 | I133: 8166 | J133: 7990 | K133: 8245 | L133: 8154 | M133: 8194 | N133: 8652 | O133: 9564 | P133: 9526 | Q133: 9485 | R133: 9418 | S133: 10165 | T133: 9976 | U133: 9686 | V133: 9755 | W133: 9820 | X133: 9610 | Y133: 10078 | Z133: 10006 | AA133: 10146 | AB133: 10836 | AC133: 11330 | AD133: 11807 | AE133: 11894 | AF133: 12344 | AG133: 12727 | AH133: 12879 | AI133: 12967 | AJ133: 13473 | AK133: 13681 | AL133: 13446 | AM133: 13513 | AN133: 13551 | AO133: 13388 | AP133: 13266 | AQ133: 13322 | AR133: 12855 | AS133: 12695 | AT133: 12356 | AU133: 11899 | AV133: 11719 | AW133: 11711 | AX133: 11863 | AY133: 12617 | AZ133: 12906 | BA133: 12923 | BB133: 12694 | BC133: 12716 | BD133: 12773 | BE133: 12859 | BF133: 13093 | BG133: 12977 | BH133: 12918 | BI133: 12612 | BJ133: 12687 | BK133: 12771 | BL133: 12594 | BM133: 12076 | BN133: 11937 | BO133: 11562 | BP133: 11427 | BQ133: 11438 | BR133: 11031 | BS133: 10915 | BT133: 10562 | BU133: 10359 | BV133: 10305 | BW133: 10316 | BX133: 10418 | BY133: 10587 | BZ133: 10915 | CA133: 11462 | CB133: 12110 | CC133: 12081 | CD133: 12050 | CE133: 12264 | CF133: 12290 | CG133: 12005 | CH133: 11765 | CI133: 11780 | CJ133: 11752 | CK133: 11509 | CL133: 11273 | CM133: 11045 | CN133: 10916 | CO133: 10818 | CP133: 10696 | CQ133: 10599
A134: Females | B134: 41 | C134: 8444 | D134: 8368 | E134: 8076 | F134: 8157 | G134: 7870 | H134: 7962 | I134: 8203 | J134: 8128 | K134: 7957 | L134: 8246 | M134: 8270 | N134: 8177 | O134: 8673 | P134: 9575 | Q134: 9542 | R134: 9525 | S134: 9426 | T134: 10211 | U134: 10018 | V134: 9727 | W134: 9826 | X134: 9819 | Y134: 9622 | Z134: 10106 | AA134: 10013 | AB134: 10191 | AC134: 10874 | AD134: 11358 | AE134: 11815 | AF134: 11882 | AG134: 12308 | AH134: 12711 | AI134: 12867 | AJ134: 12949 | AK134: 13525 | AL134: 13702 | AM134: 13484 | AN134: 13561 | AO134: 13549 | AP134: 13413 | AQ134: 13280 | AR134: 13280 | AS134: 12813 | AT134: 12686 | AU134: 12314 | AV134: 11906 | AW134: 11729 | AX134: 11731 | AY134: 11879 | AZ134: 12632 | BA134: 12922 | BB134: 12936 | BC134: 12702 | BD134: 12725 | BE134: 12779 | BF134: 12865 | BG134: 13099 | BH134: 12984 | BI134: 12927 | BJ134: 12620 | BK134: 12695 | BL134: 12779 | BM134: 12602 | BN134: 12085 | BO134: 11945 | BP134: 11569 | BQ134: 11434 | BR134: 11445 | BS134: 11037 | BT134: 10921 | BU134: 10568 | BV134: 10366 | BW134: 10311 | BX134: 10322 | BY134: 10425 | BZ134: 10594 | CA134: 10922 | CB134: 11469 | CC134: 12118 | CD134: 12089 | CE134: 12059 | CF134: 12272 | CG134: 12299 | CH134: 12014 | CI134: 11774 | CJ134: 11789 | CK134: 11761 | CL134: 11518 | CM134: 11283 | CN134: 11053 | CO134: 10925 | CP134: 10826 | CQ134: 10703
A135: Females | B135: 42 | C135: 8297 | D135: 8403 | E135: 8298 | F135: 8046 | G135: 8111 | H135: 7841 | I135: 7931 | J135: 8160 | K135: 8096 | L135: 7955 | M135: 8361 | N135: 8213 | O135: 8159 | P135: 8665 | Q135: 9551 | R135: 9537 | S135: 9524 | T135: 9404 | U135: 10236 | V135: 10041 | W135: 9757 | X135: 9870 | Y135: 9794 | Z135: 9632 | AA135: 10115 | AB135: 10025 | AC135: 10199 | AD135: 10894 | AE135: 11361 | AF135: 11817 | AG135: 12029 | AH135: 12306 | AI135: 12697 | AJ135: 12849 | AK135: 12971 | AL135: 13548 | AM135: 13780 | AN135: 13509 | AO135: 13585 | AP135: 13553 | AQ135: 13415 | AR135: 13258 | AS135: 13262 | AT135: 12823 | AU135: 12701 | AV135: 12315 | AW135: 11920 | AX135: 11770 | AY135: 11744 | AZ135: 11893 | BA135: 12642 | BB135: 12932 | BC135: 12942 | BD135: 12708 | BE135: 12729 | BF135: 12784 | BG135: 12870 | BH135: 13104 | BI135: 12990 | BJ135: 12933 | BK135: 12626 | BL135: 12700 | BM135: 12785 | BN135: 12608 | BO135: 12090 | BP135: 11951 | BQ135: 11576 | BR135: 11439 | BS135: 11451 | BT135: 11043 | BU135: 10926 | BV135: 10574 | BW135: 10371 | BX135: 10317 | BY135: 10327 | BZ135: 10431 | CA135: 10600 | CB135: 10928 | CC135: 11475 | CD135: 12124 | CE135: 12097 | CF135: 12066 | CG135: 12280 | CH135: 12307 | CI135: 12021 | CJ135: 11782 | CK135: 11798 | CL135: 11769 | CM135: 11525 | CN135: 11290 | CO135: 11060 | CP135: 10933 | CQ135: 10834
A136: Females | B136: 43 | C136: 8333 | D136: 8257 | E136: 8335 | F136: 8266 | G136: 8001 | H136: 8074 | I136: 7804 | J136: 7888 | K136: 8128 | L136: 8095 | M136: 8066 | N136: 8325 | O136: 8181 | P136: 8141 | Q136: 8654 | R136: 9535 | S136: 9520 | T136: 9526 | U136: 9379 | V136: 10250 | W136: 10077 | X136: 9813 | Y136: 9890 | Z136: 9795 | AA136: 9624 | AB136: 10142 | AC136: 10045 | AD136: 10206 | AE136: 10884 | AF136: 11388 | AG136: 11885 | AH136: 11982 | AI136: 12290 | AJ136: 12670 | AK136: 12871 | AL136: 12977 | AM136: 13557 | AN136: 13808 | AO136: 13511 | AP136: 13596 | AQ136: 13545 | AR136: 13393 | AS136: 13221 | AT136: 13266 | AU136: 12843 | AV136: 12709 | AW136: 12308 | AX136: 11924 | AY136: 11786 | AZ136: 11758 | BA136: 11904 | BB136: 12651 | BC136: 12938 | BD136: 12948 | BE136: 12713 | BF136: 12734 | BG136: 12789 | BH136: 12875 | BI136: 13109 | BJ136: 12995 | BK136: 12938 | BL136: 12633 | BM136: 12706 | BN136: 12791 | BO136: 12614 | BP136: 12097 | BQ136: 11957 | BR136: 11582 | BS136: 11446 | BT136: 11458 | BU136: 11050 | BV136: 10933 | BW136: 10581 | BX136: 10377 | BY136: 10323 | BZ136: 10333 | CA136: 10437 | CB136: 10607 | CC136: 10936 | CD136: 11482 | CE136: 12132 | CF136: 12104 | CG136: 12073 | CH136: 12288 | CI136: 12315 | CJ136: 12029 | CK136: 11790 | CL136: 11806 | CM136: 11777 | CN136: 11533 | CO136: 11299 | CP136: 11069 | CQ136: 10940
A137: Females | B137: 44 | C137: 8612 | D137: 8296 | E137: 8192 | F137: 8291 | G137: 8225 | H137: 7959 | I137: 8031 | J137: 7762 | K137: 7848 | L137: 8119 | M137: 8201 | N137: 8016 | O137: 8288 | P137: 8133 | Q137: 8108 | R137: 8630 | S137: 9495 | T137: 9481 | U137: 9508 | V137: 9344 | W137: 10257 | X137: 10082 | Y137: 9808 | Z137: 9909 | AA137: 9786 | AB137: 9644 | AC137: 10133 | AD137: 10056 | AE137: 10201 | AF137: 10877 | AG137: 11369 | AH137: 11846 | AI137: 11950 | AJ137: 12286 | AK137: 12662 | AL137: 12898 | AM137: 13012 | AN137: 13572 | AO137: 13824 | AP137: 13531 | AQ137: 13589 | AR137: 13534 | AS137: 13395 | AT137: 13220 | AU137: 13279 | AV137: 12848 | AW137: 12713 | AX137: 12325 | AY137: 11934 | AZ137: 11796 | BA137: 11764 | BB137: 11908 | BC137: 12653 | BD137: 12940 | BE137: 12948 | BF137: 12714 | BG137: 12734 | BH137: 12789 | BI137: 12875 | BJ137: 13109 | BK137: 12996 | BL137: 12939 | BM137: 12634 | BN137: 12708 | BO137: 12793 | BP137: 12616 | BQ137: 12100 | BR137: 11958 | BS137: 11585 | BT137: 11450 | BU137: 11461 | BV137: 11052 | BW137: 10936 | BX137: 10584 | BY137: 10380 | BZ137: 10325 | CA137: 10335 | CB137: 10439 | CC137: 10609 | CD137: 10938 | CE137: 11485 | CF137: 12136 | CG137: 12109 | CH137: 12076 | CI137: 12292 | CJ137: 12320 | CK137: 12032 | CL137: 11793 | CM137: 11810 | CN137: 11781 | CO137: 11537 | CP137: 11303 | CQ137: 11073
A138: Females | B138: 45 | C138: 8649 | D138: 8514 | E138: 8169 | F138: 8108 | G138: 8222 | H138: 8169 | I138: 7905 | J138: 7972 | K138: 7721 | L138: 7812 | M138: 8083 | N138: 8151 | O138: 7996 | P138: 8256 | Q138: 8095 | R138: 8090 | S138: 8596 | T138: 9463 | U138: 9460 | V138: 9511 | W138: 9347 | X138: 10275 | Y138: 10092 | Z138: 9811 | AA138: 9931 | AB138: 9785 | AC138: 9661 | AD138: 10118 | AE138: 10062 | AF138: 10221 | AG138: 10912 | AH138: 11357 | AI138: 11808 | AJ138: 11910 | AK138: 12293 | AL138: 12662 | AM138: 12908 | AN138: 13034 | AO138: 13568 | AP138: 13833 | AQ138: 13524 | AR138: 13574 | AS138: 13531 | AT138: 13384 | AU138: 13226 | AV138: 13261 | AW138: 12863 | AX138: 12754 | AY138: 12337 | AZ138: 11945 | BA138: 11806 | BB138: 11771 | BC138: 11914 | BD138: 12658 | BE138: 12944 | BF138: 12952 | BG138: 12718 | BH138: 12739 | BI138: 12794 | BJ138: 12880 | BK138: 13115 | BL138: 13002 | BM138: 12945 | BN138: 12641 | BO138: 12715 | BP138: 12798 | BQ138: 12621 | BR138: 12106 | BS138: 11964 | BT138: 11592 | BU138: 11457 | BV138: 11468 | BW138: 11058 | BX138: 10943 | BY138: 10590 | BZ138: 10387 | CA138: 10332 | CB138: 10342 | CC138: 10446 | CD138: 10616 | CE138: 10945 | CF138: 11492 | CG138: 12144 | CH138: 12117 | CI138: 12084 | CJ138: 12300 | CK138: 12328 | CL138: 12039 | CM138: 11802 | CN138: 11819 | CO138: 11789 | CP138: 11545 | CQ138: 11312
A139: Females | B139: 46 | C139: 8405 | D139: 8542 | E139: 8379 | F139: 8092 | G139: 8031 | H139: 8156 | I139: 8114 | J139: 7850 | K139: 7928 | L139: 7692 | M139: 7779 | N139: 8043 | O139: 8121 | P139: 7979 | Q139: 8232 | R139: 8063 | S139: 8075 | T139: 8582 | U139: 9445 | V139: 9452 | W139: 9517 | X139: 9349 | Y139: 10285 | Z139: 10081 | AA139: 9836 | AB139: 9938 | AC139: 9786 | AD139: 9683 | AE139: 10125 | AF139: 10075 | AG139: 10176 | AH139: 10866 | AI139: 11336 | AJ139: 11772 | AK139: 11894 | AL139: 12296 | AM139: 12692 | AN139: 12935 | AO139: 13052 | AP139: 13565 | AQ139: 13837 | AR139: 13535 | AS139: 13573 | AT139: 13518 | AU139: 13369 | AV139: 13209 | AW139: 13253 | AX139: 12840 | AY139: 12759 | AZ139: 12341 | BA139: 11947 | BB139: 11807 | BC139: 11770 | BD139: 11912 | BE139: 12654 | BF139: 12941 | BG139: 12950 | BH139: 12716 | BI139: 12737 | BJ139: 12793 | BK139: 12879 | BL139: 13113 | BM139: 13000 | BN139: 12944 | BO139: 12640 | BP139: 12713 | BQ139: 12796 | BR139: 12621 | BS139: 12107 | BT139: 11964 | BU139: 11592 | BV139: 11457 | BW139: 11468 | BX139: 11058 | BY139: 10943 | BZ139: 10591 | CA139: 10387 | CB139: 10333 | CC139: 10343 | CD139: 10447 | CE139: 10618 | CF139: 10947 | CG139: 11493 | CH139: 12146 | CI139: 12120 | CJ139: 12087 | CK139: 12302 | CL139: 12331 | CM139: 12041 | CN139: 11804 | CO139: 11821 | CP139: 11791 | CQ139: 11547
A140: Females | B140: 47 | C140: 8700 | D140: 8310 | E140: 8418 | F140: 8298 | G140: 8020 | H140: 7970 | I140: 8089 | J140: 8051 | K140: 7810 | L140: 7892 | M140: 7651 | N140: 7731 | O140: 8018 | P140: 8112 | Q140: 7965 | R140: 8207 | S140: 8033 | T140: 8054 | U140: 8566 | V140: 9430 | W140: 9464 | X140: 9501 | Y140: 9335 | Z140: 10300 | AA140: 10075 | AB140: 9887 | AC140: 9956 | AD140: 9772 | AE140: 9714 | AF140: 10118 | AG140: 10096 | AH140: 10150 | AI140: 10864 | AJ140: 11318 | AK140: 11777 | AL140: 11901 | AM140: 12290 | AN140: 12680 | AO140: 12938 | AP140: 13048 | AQ140: 13529 | AR140: 13806 | AS140: 13487 | AT140: 13546 | AU140: 13514 | AV140: 13357 | AW140: 13214 | AX140: 13237 | AY140: 12837 | AZ140: 12755 | BA140: 12336 | BB140: 11941 | BC140: 11799 | BD140: 11762 | BE140: 11902 | BF140: 12644 | BG140: 12931 | BH140: 12940 | BI140: 12706 | BJ140: 12727 | BK140: 12784 | BL140: 12870 | BM140: 13105 | BN140: 12992 | BO140: 12935 | BP140: 12632 | BQ140: 12705 | BR140: 12790 | BS140: 12615 | BT140: 12100 | BU140: 11958 | BV140: 11586 | BW140: 11452 | BX140: 11462 | BY140: 11051 | BZ140: 10937 | CA140: 10585 | CB140: 10381 | CC140: 10328 | CD140: 10338 | CE140: 10442 | CF140: 10613 | CG140: 10942 | CH140: 11488 | CI140: 12141 | CJ140: 12116 | CK140: 12083 | CL140: 12299 | CM140: 12327 | CN140: 12037 | CO140: 11800 | CP140: 11817 | CQ140: 11787
A141: Females | B141: 48 | C141: 8757 | D141: 8605 | E141: 8186 | F141: 8335 | G141: 8219 | H141: 7945 | I141: 7907 | J141: 8017 | K141: 8005 | L141: 7779 | M141: 7863 | N141: 7619 | O141: 7685 | P141: 7986 | Q141: 8086 | R141: 7938 | S141: 8181 | T141: 7994 | U141: 8013 | V141: 8542 | W141: 9402 | X141: 9434 | Y141: 9501 | Z141: 9328 | AA141: 10298 | AB141: 10089 | AC141: 9901 | AD141: 9943 | AE141: 9743 | AF141: 9724 | AG141: 10194 | AH141: 10074 | AI141: 10138 | AJ141: 10839 | AK141: 11308 | AL141: 11781 | AM141: 11908 | AN141: 12294 | AO141: 12697 | AP141: 12943 | AQ141: 13049 | AR141: 13502 | AS141: 13808 | AT141: 13494 | AU141: 13543 | AV141: 13488 | AW141: 13359 | AX141: 13226 | AY141: 13238 | AZ141: 12838 | BA141: 12755 | BB141: 12334 | BC141: 11938 | BD141: 11797 | BE141: 11757 | BF141: 11897 | BG141: 12640 | BH141: 12927 | BI141: 12936 | BJ141: 12702 | BK141: 12724 | BL141: 12781 | BM141: 12865 | BN141: 13102 | BO141: 12990 | BP141: 12934 | BQ141: 12631 | BR141: 12705 | BS141: 12790 | BT141: 12615 | BU141: 12099 | BV141: 11957 | BW141: 11585 | BX141: 11451 | BY141: 11463 | BZ141: 11052 | CA141: 10937 | CB141: 10586 | CC141: 10381 | CD141: 10329 | CE141: 10339 | CF141: 10443 | CG141: 10613 | CH141: 10944 | CI141: 11489 | CJ141: 12142 | CK141: 12118 | CL141: 12085 | CM141: 12301 | CN141: 12329 | CO141: 12039 | CP141: 11802 | CQ141: 11819
A142: Females | B142: 49 | C142: 9003 | D142: 8657 | E142: 8475 | F142: 8108 | G142: 8251 | H142: 8143 | I142: 7866 | J142: 7845 | K142: 7963 | L142: 7965 | M142: 7739 | N142: 7824 | O142: 7588 | P142: 7649 | Q142: 7959 | R142: 8063 | S142: 7906 | T142: 8144 | U142: 7941 | V142: 7993 | W142: 8535 | X142: 9422 | Y142: 9423 | Z142: 9472 | AA142: 9329 | AB142: 10311 | AC142: 10102 | AD142: 9912 | AE142: 9949 | AF142: 9717 | AG142: 9697 | AH142: 10163 | AI142: 10069 | AJ142: 10144 | AK142: 10813 | AL142: 11291 | AM142: 11752 | AN142: 11917 | AO142: 12265 | AP142: 12688 | AQ142: 12924 | AR142: 13014 | AS142: 13481 | AT142: 13795 | AU142: 13459 | AV142: 13532 | AW142: 13497 | AX142: 13385 | AY142: 13229 | AZ142: 13241 | BA142: 12840 | BB142: 12755 | BC142: 12333 | BD142: 11937 | BE142: 11794 | BF142: 11755 | BG142: 11895 | BH142: 12638 | BI142: 12924 | BJ142: 12934 | BK142: 12700 | BL142: 12722 | BM142: 12779 | BN142: 12863 | BO142: 13102 | BP142: 12990 | BQ142: 12934 | BR142: 12632 | BS142: 12705 | BT142: 12791 | BU142: 12617 | BV142: 12100 | BW142: 11958 | BX142: 11587 | BY142: 11453 | BZ142: 11465 | CA142: 11055 | CB142: 10940 | CC142: 10589 | CD142: 10384 | CE142: 10332 | CF142: 10342 | CG142: 10446 | CH142: 10616 | CI142: 10947 | CJ142: 11491 | CK142: 12145 | CL142: 12122 | CM142: 12089 | CN142: 12305 | CO142: 12333 | CP142: 12043 | CQ142: 11807
A143: Females | B143: 50 | C143: 9204 | D143: 8845 | E143: 8470 | F143: 8360 | G143: 8007 | H143: 8157 | I143: 8049 | J143: 7784 | K143: 7808 | L143: 7937 | M143: 8035 | N143: 7706 | O143: 7788 | P143: 7552 | Q143: 7601 | R143: 7920 | S143: 8033 | T143: 7865 | U143: 8107 | V143: 7900 | W143: 7962 | X143: 8559 | Y143: 9422 | Z143: 9421 | AA143: 9443 | AB143: 9351 | AC143: 10314 | AD143: 10113 | AE143: 9922 | AF143: 9947 | AG143: 9783 | AH143: 9675 | AI143: 10115 | AJ143: 10048 | AK143: 10132 | AL143: 10785 | AM143: 11286 | AN143: 11754 | AO143: 11881 | AP143: 12246 | AQ143: 12636 | AR143: 12912 | AS143: 12985 | AT143: 13468 | AU143: 13761 | AV143: 13424 | AW143: 13513 | AX143: 13489 | AY143: 13379 | AZ143: 13222 | BA143: 13233 | BB143: 12831 | BC143: 12745 | BD143: 12323 | BE143: 11925 | BF143: 11783 | BG143: 11745 | BH143: 11885 | BI143: 12627 | BJ143: 12913 | BK143: 12924 | BL143: 12691 | BM143: 12713 | BN143: 12770 | BO143: 12854 | BP143: 13094 | BQ143: 12981 | BR143: 12926 | BS143: 12625 | BT143: 12698 | BU143: 12784 | BV143: 12610 | BW143: 12093 | BX143: 11951 | BY143: 11581 | BZ143: 11447 | CA143: 11459 | CB143: 11051 | CC143: 10935 | CD143: 10585 | CE143: 10379 | CF143: 10328 | CG143: 10338 | CH143: 10442 | CI143: 10612 | CJ143: 10944 | CK143: 11488 | CL143: 12141 | CM143: 12118 | CN143: 12086 | CO143: 12302 | CP143: 12330 | CQ143: 12040
A144: Females | B144: 51 | C144: 9140 | D144: 9052 | E144: 8663 | F144: 8342 | G144: 8254 | H144: 7916 | I144: 8070 | J144: 7964 | K144: 7737 | L144: 7778 | M144: 8001 | N144: 8010 | O144: 7696 | P144: 7768 | Q144: 7531 | R144: 7578 | S144: 7903 | T144: 8008 | U144: 7838 | V144: 8095 | W144: 7877 | X144: 7941 | Y144: 8553 | Z144: 9406 | AA144: 9412 | AB144: 9439 | AC144: 9340 | AD144: 10310 | AE144: 10102 | AF144: 9922 | AG144: 10003 | AH144: 9766 | AI144: 9665 | AJ144: 10060 | AK144: 10031 | AL144: 10141 | AM144: 10805 | AN144: 11271 | AO144: 11721 | AP144: 11840 | AQ144: 12216 | AR144: 12610 | AS144: 12898 | AT144: 12983 | AU144: 13445 | AV144: 13766 | AW144: 13396 | AX144: 13493 | AY144: 13477 | AZ144: 13366 | BA144: 13208 | BB144: 13218 | BC144: 12816 | BD144: 12730 | BE144: 12307 | BF144: 11909 | BG144: 11769 | BH144: 11731 | BI144: 11870 | BJ144: 12612 | BK144: 12900 | BL144: 12910 | BM144: 12677 | BN144: 12699 | BO144: 12756 | BP144: 12842 | BQ144: 13081 | BR144: 12970 | BS144: 12914 | BT144: 12613 | BU144: 12686 | BV144: 12772 | BW144: 12599 | BX144: 12083 | BY144: 11941 | BZ144: 11571 | CA144: 11438 | CB144: 11450 | CC144: 11043 | CD144: 10926 | CE144: 10577 | CF144: 10371 | CG144: 10321 | CH144: 10331 | CI144: 10435 | CJ144: 10605 | CK144: 10937 | CL144: 11480 | CM144: 12134 | CN144: 12111 | CO144: 12080 | CP144: 12296 | CQ144: 12324
A145: Females | B145: 52 | C145: 8354 | D145: 8975 | E145: 8858 | F145: 8547 | G145: 8236 | H145: 8152 | I145: 7825 | J145: 7974 | K145: 7922 | L145: 7707 | M145: 7841 | N145: 7990 | O145: 7979 | P145: 7681 | Q145: 7742 | R145: 7501 | S145: 7529 | T145: 7869 | U145: 7971 | V145: 7808 | W145: 8078 | X145: 7865 | Y145: 7923 | Z145: 8528 | AA145: 9375 | AB145: 9389 | AC145: 9427 | AD145: 9349 | AE145: 10279 | AF145: 10084 | AG145: 9796 | AH145: 9982 | AI145: 9734 | AJ145: 9636 | AK145: 10038 | AL145: 10006 | AM145: 10130 | AN145: 10776 | AO145: 11244 | AP145: 11697 | AQ145: 11809 | AR145: 12211 | AS145: 12619 | AT145: 12878 | AU145: 12978 | AV145: 13444 | AW145: 13740 | AX145: 13393 | AY145: 13482 | AZ145: 13465 | BA145: 13353 | BB145: 13194 | BC145: 13204 | BD145: 12802 | BE145: 12716 | BF145: 12293 | BG145: 11895 | BH145: 11756 | BI145: 11718 | BJ145: 11857 | BK145: 12599 | BL145: 12887 | BM145: 12897 | BN145: 12666 | BO145: 12687 | BP145: 12745 | BQ145: 12832 | BR145: 13071 | BS145: 12960 | BT145: 12904 | BU145: 12603 | BV145: 12676 | BW145: 12763 | BX145: 12589 | BY145: 12074 | BZ145: 11934 | CA145: 11564 | CB145: 11431 | CC145: 11443 | CD145: 11037 | CE145: 10921 | CF145: 10573 | CG145: 10366 | CH145: 10316 | CI145: 10327 | CJ145: 10431 | CK145: 10601 | CL145: 10932 | CM145: 11475 | CN145: 12130 | CO145: 12107 | CP145: 12076 | CQ145: 12291
A146: Females | B146: 53 | C146: 7613 | D146: 8195 | E146: 8788 | F146: 8734 | G146: 8421 | H146: 8122 | I146: 8050 | J146: 7726 | K146: 7916 | L146: 7885 | M146: 7763 | N146: 7818 | O146: 7993 | P146: 7967 | Q146: 7677 | R146: 7717 | S146: 7475 | T146: 7484 | U146: 7840 | V146: 7942 | W146: 7801 | X146: 8075 | Y146: 7844 | Z146: 7888 | AA146: 8519 | AB146: 9381 | AC146: 9378 | AD146: 9390 | AE146: 9329 | AF146: 10265 | AG146: 10021 | AH146: 9777 | AI146: 9950 | AJ146: 9690 | AK146: 9634 | AL146: 10001 | AM146: 9983 | AN146: 10117 | AO146: 10736 | AP146: 11215 | AQ146: 11638 | AR146: 11777 | AS146: 12182 | AT146: 12615 | AU146: 12879 | AV146: 12951 | AW146: 13404 | AX146: 13721 | AY146: 13383 | AZ146: 13470 | BA146: 13453 | BB146: 13340 | BC146: 13180 | BD146: 13191 | BE146: 12789 | BF146: 12702 | BG146: 12281 | BH146: 11884 | BI146: 11745 | BJ146: 11707 | BK146: 11847 | BL146: 12587 | BM146: 12876 | BN146: 12886 | BO146: 12656 | BP146: 12677 | BQ146: 12735 | BR146: 12823 | BS146: 13061 | BT146: 12952 | BU146: 12895 | BV146: 12595 | BW146: 12669 | BX146: 12756 | BY146: 12582 | BZ146: 12069 | CA146: 11928 | CB146: 11559 | CC146: 11426 | CD146: 11439 | CE146: 11034 | CF146: 10917 | CG146: 10570 | CH146: 10363 | CI146: 10313 | CJ146: 10324 | CK146: 10428 | CL146: 10599 | CM146: 10931 | CN146: 11473 | CO146: 12128 | CP146: 12105 | CQ146: 12075
A147: Females | B147: 54 | C147: 7603 | D147: 7461 | E147: 8016 | F147: 8651 | G147: 8617 | H147: 8312 | I147: 8016 | J147: 7942 | K147: 7688 | L147: 7868 | M147: 7936 | N147: 7714 | O147: 7775 | P147: 7976 | Q147: 7927 | R147: 7643 | S147: 7670 | T147: 7402 | U147: 7419 | V147: 7790 | W147: 7896 | X147: 7793 | Y147: 8043 | Z147: 7815 | AA147: 7870 | AB147: 8494 | AC147: 9372 | AD147: 9367 | AE147: 9348 | AF147: 9308 | AG147: 10295 | AH147: 9980 | AI147: 9759 | AJ147: 9904 | AK147: 9680 | AL147: 9632 | AM147: 9960 | AN147: 9957 | AO147: 10102 | AP147: 10715 | AQ147: 11200 | AR147: 11615 | AS147: 11750 | AT147: 12178 | AU147: 12613 | AV147: 12848 | AW147: 12910 | AX147: 13386 | AY147: 13705 | AZ147: 13367 | BA147: 13452 | BB147: 13434 | BC147: 13322 | BD147: 13162 | BE147: 13172 | BF147: 12771 | BG147: 12685 | BH147: 12265 | BI147: 11869 | BJ147: 11731 | BK147: 11693 | BL147: 11833 | BM147: 12572 | BN147: 12861 | BO147: 12873 | BP147: 12644 | BQ147: 12665 | BR147: 12723 | BS147: 12811 | BT147: 13049 | BU147: 12940 | BV147: 12883 | BW147: 12584 | BX147: 12658 | BY147: 12746 | BZ147: 12571 | CA147: 12060 | CB147: 11920 | CC147: 11552 | CD147: 11419 | CE147: 11432 | CF147: 11028 | CG147: 10912 | CH147: 10566 | CI147: 10359 | CJ147: 10310 | CK147: 10321 | CL147: 10425 | CM147: 10596 | CN147: 10927 | CO147: 11469 | CP147: 12124 | CQ147: 12101
A148: Females | B148: 55 | C148: 7904 | D148: 7468 | E148: 7302 | F148: 7891 | G148: 8537 | H148: 8528 | I148: 8213 | J148: 7928 | K148: 7879 | L148: 7664 | M148: 7957 | N148: 7912 | O148: 7712 | P148: 7778 | Q148: 7983 | R148: 7919 | S148: 7634 | T148: 7642 | U148: 7371 | V148: 7381 | W148: 7790 | X148: 7875 | Y148: 7787 | Z148: 8037 | AA148: 7794 | AB148: 7866 | AC148: 8486 | AD148: 9369 | AE148: 9351 | AF148: 9290 | AG148: 9364 | AH148: 10257 | AI148: 9943 | AJ148: 9756 | AK148: 9879 | AL148: 9646 | AM148: 9601 | AN148: 9938 | AO148: 9933 | AP148: 10095 | AQ148: 10659 | AR148: 11172 | AS148: 11578 | AT148: 11719 | AU148: 12137 | AV148: 12581 | AW148: 12834 | AX148: 12870 | AY148: 13364 | AZ148: 13681 | BA148: 13342 | BB148: 13427 | BC148: 13409 | BD148: 13297 | BE148: 13137 | BF148: 13147 | BG148: 12748 | BH148: 12662 | BI148: 12243 | BJ148: 11849 | BK148: 11711 | BL148: 11674 | BM148: 11814 | BN148: 12552 | BO148: 12841 | BP148: 12854 | BQ148: 12626 | BR148: 12646 | BS148: 12705 | BT148: 12794 | BU148: 13031 | BV148: 12922 | BW148: 12867 | BX148: 12569 | BY148: 12642 | BZ148: 12730 | CA148: 12556 | CB148: 12047 | CC148: 11907 | CD148: 11540 | CE148: 11407 | CF148: 11420 | CG148: 11017 | CH148: 10901 | CI148: 10556 | CJ148: 10350 | CK148: 10301 | CL148: 10312 | CM148: 10417 | CN148: 10588 | CO148: 10919 | CP148: 11459 | CQ148: 12114
A149: Females | B149: 56 | C149: 8432 | D149: 7770 | E149: 7310 | F149: 7192 | G149: 7776 | H149: 8416 | I149: 8408 | J149: 8109 | K149: 7859 | L149: 7826 | M149: 7722 | N149: 7930 | O149: 7872 | P149: 7703 | Q149: 7756 | R149: 7974 | S149: 7886 | T149: 7605 | U149: 7599 | V149: 7331 | W149: 7343 | X149: 7773 | Y149: 7854 | Z149: 7755 | AA149: 8007 | AB149: 7795 | AC149: 7836 | AD149: 8458 | AE149: 9327 | AF149: 9333 | AG149: 9122 | AH149: 9348 | AI149: 10221 | AJ149: 9929 | AK149: 9750 | AL149: 9844 | AM149: 9609 | AN149: 9571 | AO149: 9910 | AP149: 9906 | AQ149: 10079 | AR149: 10614 | AS149: 11134 | AT149: 11524 | AU149: 11668 | AV149: 12081 | AW149: 12548 | AX149: 12814 | AY149: 12839 | AZ149: 13330 | BA149: 13646 | BB149: 13308 | BC149: 13392 | BD149: 13375 | BE149: 13262 | BF149: 13103 | BG149: 13113 | BH149: 12716 | BI149: 12630 | BJ149: 12214 | BK149: 11820 | BL149: 11683 | BM149: 11647 | BN149: 11786 | BO149: 12524 | BP149: 12813 | BQ149: 12826 | BR149: 12599 | BS149: 12619 | BT149: 12678 | BU149: 12767 | BV149: 13004 | BW149: 12897 | BX149: 12842 | BY149: 12545 | BZ149: 12619 | CA149: 12707 | CB149: 12533 | CC149: 12025 | CD149: 11885 | CE149: 11520 | CF149: 11388 | CG149: 11401 | CH149: 10999 | CI149: 10883 | CJ149: 10538 | CK149: 10333 | CL149: 10284 | CM149: 10295 | CN149: 10400 | CO149: 10571 | CP149: 10902 | CQ149: 11442
A150: Females | B150: 57 | C150: 8282 | D150: 8289 | E150: 7602 | F150: 7181 | G150: 7082 | H150: 7666 | I150: 8286 | J150: 8282 | K150: 8041 | L150: 7790 | M150: 7872 | N150: 7669 | O150: 7896 | P150: 7827 | Q150: 7665 | R150: 7728 | S150: 7949 | T150: 7817 | U150: 7573 | V150: 7546 | W150: 7299 | X150: 7342 | Y150: 7755 | Z150: 7837 | AA150: 7731 | AB150: 7994 | AC150: 7773 | AD150: 7804 | AE150: 8416 | AF150: 9294 | AG150: 9372 | AH150: 9131 | AI150: 9327 | AJ150: 10178 | AK150: 9912 | AL150: 9740 | AM150: 9801 | AN150: 9567 | AO150: 9536 | AP150: 9846 | AQ150: 9850 | AR150: 10029 | AS150: 10579 | AT150: 11107 | AU150: 11487 | AV150: 11619 | AW150: 12041 | AX150: 12516 | AY150: 12779 | AZ150: 12800 | BA150: 13290 | BB150: 13605 | BC150: 13268 | BD150: 13353 | BE150: 13336 | BF150: 13224 | BG150: 13065 | BH150: 13075 | BI150: 12680 | BJ150: 12596 | BK150: 12181 | BL150: 11791 | BM150: 11652 | BN150: 11617 | BO150: 11757 | BP150: 12493 | BQ150: 12782 | BR150: 12795 | BS150: 12569 | BT150: 12589 | BU150: 12649 | BV150: 12738 | BW150: 12975 | BX150: 12869 | BY150: 12814 | BZ150: 12519 | CA150: 12593 | CB150: 12681 | CC150: 12507 | CD150: 12001 | CE150: 11863 | CF150: 11498 | CG150: 11366 | CH150: 11380 | CI150: 10979 | CJ150: 10864 | CK150: 10519 | CL150: 10315 | CM150: 10266 | CN150: 10277 | CO150: 10382 | CP150: 10552 | CQ150: 10884
A151: Females | B151: 58 | C151: 8314 | D151: 8110 | E151: 8095 | F151: 7478 | G151: 7071 | H151: 6969 | I151: 7549 | J151: 8163 | K151: 8203 | L151: 7983 | M151: 7845 | N151: 7810 | O151: 7616 | P151: 7867 | Q151: 7794 | R151: 7626 | S151: 7686 | T151: 7903 | U151: 7759 | V151: 7531 | W151: 7501 | X151: 7293 | Y151: 7306 | Z151: 7716 | AA151: 7818 | AB151: 7725 | AC151: 7970 | AD151: 7749 | AE151: 7765 | AF151: 8380 | AG151: 9304 | AH151: 9350 | AI151: 9129 | AJ151: 9314 | AK151: 10124 | AL151: 9878 | AM151: 9692 | AN151: 9738 | AO151: 9529 | AP151: 9500 | AQ151: 9783 | AR151: 9809 | AS151: 9991 | AT151: 10555 | AU151: 11063 | AV151: 11466 | AW151: 11597 | AX151: 12026 | AY151: 12484 | AZ151: 12745 | BA151: 12765 | BB151: 13254 | BC151: 13567 | BD151: 13233 | BE151: 13317 | BF151: 13300 | BG151: 13189 | BH151: 13032 | BI151: 13042 | BJ151: 12649 | BK151: 12564 | BL151: 12152 | BM151: 11764 | BN151: 11626 | BO151: 11592 | BP151: 11732 | BQ151: 12466 | BR151: 12755 | BS151: 12769 | BT151: 12544 | BU151: 12564 | BV151: 12625 | BW151: 12715 | BX151: 12952 | BY151: 12847 | BZ151: 12792 | CA151: 12498 | CB151: 12571 | CC151: 12659 | CD151: 12485 | CE151: 11982 | CF151: 11845 | CG151: 11480 | CH151: 11349 | CI151: 11364 | CJ151: 10964 | CK151: 10849 | CL151: 10506 | CM151: 10303 | CN151: 10254 | CO151: 10264 | CP151: 10368 | CQ151: 10540
A152: Females | B152: 59 | C152: 8046 | D152: 8151 | E152: 7925 | F152: 7948 | G152: 7350 | H152: 6962 | I152: 6859 | J152: 7431 | K152: 8066 | L152: 8137 | M152: 8034 | N152: 7788 | O152: 7764 | P152: 7567 | Q152: 7819 | R152: 7750 | S152: 7558 | T152: 7637 | U152: 7876 | V152: 7712 | W152: 7494 | X152: 7486 | Y152: 7253 | Z152: 7276 | AA152: 7682 | AB152: 7805 | AC152: 7687 | AD152: 7943 | AE152: 7727 | AF152: 7725 | AG152: 8288 | AH152: 9251 | AI152: 9314 | AJ152: 9125 | AK152: 9293 | AL152: 10065 | AM152: 9840 | AN152: 9660 | AO152: 9698 | AP152: 9474 | AQ152: 9451 | AR152: 9759 | AS152: 9788 | AT152: 9965 | AU152: 10497 | AV152: 11033 | AW152: 11441 | AX152: 11554 | AY152: 11992 | AZ152: 12446 | BA152: 12705 | BB152: 12726 | BC152: 13212 | BD152: 13525 | BE152: 13192 | BF152: 13276 | BG152: 13260 | BH152: 13150 | BI152: 12994 | BJ152: 13005 | BK152: 12614 | BL152: 12530 | BM152: 12119 | BN152: 11733 | BO152: 11597 | BP152: 11563 | BQ152: 11703 | BR152: 12435 | BS152: 12723 | BT152: 12739 | BU152: 12515 | BV152: 12536 | BW152: 12596 | BX152: 12686 | BY152: 12924 | BZ152: 12820 | CA152: 12766 | CB152: 12473 | CC152: 12546 | CD152: 12635 | CE152: 12462 | CF152: 11961 | CG152: 11824 | CH152: 11460 | CI152: 11329 | CJ152: 11344 | CK152: 10947 | CL152: 10831 | CM152: 10489 | CN152: 10287 | CO152: 10239 | CP152: 10250 | CQ152: 10355
A153: Females | B153: 60 | C153: 8254 | D153: 7992 | E153: 8078 | F153: 7866 | G153: 7876 | H153: 7293 | I153: 6917 | J153: 6793 | K153: 7357 | L153: 7983 | M153: 8174 | N153: 7963 | O153: 7752 | P153: 7720 | Q153: 7509 | R153: 7781 | S153: 7703 | T153: 7523 | U153: 7608 | V153: 7845 | W153: 7688 | X153: 7465 | Y153: 7444 | Z153: 7223 | AA153: 7250 | AB153: 7674 | AC153: 7789 | AD153: 7639 | AE153: 7914 | AF153: 7682 | AG153: 7695 | AH153: 8228 | AI153: 9216 | AJ153: 9268 | AK153: 9114 | AL153: 9257 | AM153: 10005 | AN153: 9777 | AO153: 9626 | AP153: 9644 | AQ153: 9430 | AR153: 9399 | AS153: 9703 | AT153: 9746 | AU153: 9910 | AV153: 10442 | AW153: 10980 | AX153: 11390 | AY153: 11509 | AZ153: 11943 | BA153: 12395 | BB153: 12653 | BC153: 12675 | BD153: 13159 | BE153: 13472 | BF153: 13140 | BG153: 13225 | BH153: 13210 | BI153: 13100 | BJ153: 12946 | BK153: 12957 | BL153: 12569 | BM153: 12486 | BN153: 12076 | BO153: 11692 | BP153: 11558 | BQ153: 11524 | BR153: 11664 | BS153: 12395 | BT153: 12682 | BU153: 12698 | BV153: 12477 | BW153: 12498 | BX153: 12558 | BY153: 12649 | BZ153: 12886 | CA153: 12784 | CB153: 12731 | CC153: 12439 | CD153: 12512 | CE153: 12601 | CF153: 12429 | CG153: 11931 | CH153: 11793 | CI153: 11430 | CJ153: 11301 | CK153: 11317 | CL153: 10920 | CM153: 10805 | CN153: 10465 | CO153: 10264 | CP153: 10216 | CQ153: 10228
A154: Females | B154: 61 | C154: 7907 | D154: 8184 | E154: 7900 | F154: 7971 | G154: 7776 | H154: 7789 | I154: 7200 | J154: 6826 | K154: 6706 | L154: 7264 | M154: 8079 | N154: 8081 | O154: 7896 | P154: 7710 | Q154: 7679 | R154: 7453 | S154: 7736 | T154: 7650 | U154: 7467 | V154: 7559 | W154: 7793 | X154: 7646 | Y154: 7412 | Z154: 7405 | AA154: 7198 | AB154: 7220 | AC154: 7620 | AD154: 7758 | AE154: 7615 | AF154: 7852 | AG154: 7641 | AH154: 7658 | AI154: 8201 | AJ154: 9156 | AK154: 9244 | AL154: 9115 | AM154: 9229 | AN154: 9941 | AO154: 9721 | AP154: 9595 | AQ154: 9589 | AR154: 9380 | AS154: 9354 | AT154: 9669 | AU154: 9678 | AV154: 9853 | AW154: 10404 | AX154: 10922 | AY154: 11337 | AZ154: 11453 | BA154: 11886 | BB154: 12335 | BC154: 12592 | BD154: 12615 | BE154: 13097 | BF154: 13410 | BG154: 13080 | BH154: 13165 | BI154: 13151 | BJ154: 13043 | BK154: 12890 | BL154: 12902 | BM154: 12516 | BN154: 12434 | BO154: 12027 | BP154: 11645 | BQ154: 11512 | BR154: 11479 | BS154: 11619 | BT154: 12347 | BU154: 12633 | BV154: 12651 | BW154: 12432 | BX154: 12453 | BY154: 12513 | BZ154: 12605 | CA154: 12841 | CB154: 12740 | CC154: 12688 | CD154: 12398 | CE154: 12471 | CF154: 12561 | CG154: 12390 | CH154: 11894 | CI154: 11757 | CJ154: 11395 | CK154: 11267 | CL154: 11284 | CM154: 10888 | CN154: 10773 | CO154: 10436 | CP154: 10235 | CQ154: 10188
A155: Females | B155: 62 | C155: 7738 | D155: 7826 | E155: 8082 | F155: 7826 | G155: 7878 | H155: 7661 | I155: 7679 | J155: 7087 | K155: 6727 | L155: 6609 | M155: 7297 | N155: 7983 | O155: 8019 | P155: 7839 | Q155: 7683 | R155: 7649 | S155: 7408 | T155: 7698 | U155: 7602 | V155: 7419 | W155: 7521 | X155: 7752 | Y155: 7592 | Z155: 7355 | AA155: 7342 | AB155: 7151 | AC155: 7187 | AD155: 7562 | AE155: 7727 | AF155: 7552 | AG155: 7775 | AH155: 7607 | AI155: 7610 | AJ155: 8168 | AK155: 9103 | AL155: 9196 | AM155: 9079 | AN155: 9167 | AO155: 9875 | AP155: 9678 | AQ155: 9526 | AR155: 9536 | AS155: 9350 | AT155: 9281 | AU155: 9600 | AV155: 9611 | AW155: 9807 | AX155: 10361 | AY155: 10868 | AZ155: 11278 | BA155: 11394 | BB155: 11824 | BC155: 12271 | BD155: 12528 | BE155: 12551 | BF155: 13032 | BG155: 13345 | BH155: 13017 | BI155: 13103 | BJ155: 13090 | BK155: 12983 | BL155: 12832 | BM155: 12844 | BN155: 12459 | BO155: 12380 | BP155: 11975 | BQ155: 11595 | BR155: 11464 | BS155: 11431 | BT155: 11570 | BU155: 12297 | BV155: 12583 | BW155: 12601 | BX155: 12384 | BY155: 12406 | BZ155: 12466 | CA155: 12558 | CB155: 12795 | CC155: 12695 | CD155: 12643 | CE155: 12356 | CF155: 12428 | CG155: 12519 | CH155: 12349 | CI155: 11855 | CJ155: 11720 | CK155: 11360 | CL155: 11231 | CM155: 11248 | CN155: 10854 | CO155: 10740 | CP155: 10406 | CQ155: 10205
A156: Females | B156: 63 | C156: 7511 | D156: 7647 | E156: 7717 | F156: 7968 | G156: 7702 | H156: 7756 | I156: 7541 | J156: 7552 | K156: 6981 | L156: 6629 | M156: 6629 | N156: 7182 | O156: 7895 | P156: 7937 | Q156: 7780 | R156: 7601 | S156: 7587 | T156: 7341 | U156: 7648 | V156: 7524 | W156: 7365 | X156: 7451 | Y156: 7665 | Z156: 7511 | AA156: 7297 | AB156: 7319 | AC156: 7112 | AD156: 7162 | AE156: 7481 | AF156: 7685 | AG156: 7567 | AH156: 7717 | AI156: 7550 | AJ156: 7547 | AK156: 8126 | AL156: 9042 | AM156: 9123 | AN156: 9045 | AO156: 9130 | AP156: 9809 | AQ156: 9623 | AR156: 9466 | AS156: 9493 | AT156: 9307 | AU156: 9223 | AV156: 9565 | AW156: 9537 | AX156: 9726 | AY156: 10306 | AZ156: 10808 | BA156: 11215 | BB156: 11331 | BC156: 11757 | BD156: 12202 | BE156: 12460 | BF156: 12484 | BG156: 12963 | BH156: 13275 | BI156: 12950 | BJ156: 13036 | BK156: 13024 | BL156: 12919 | BM156: 12769 | BN156: 12782 | BO156: 12400 | BP156: 12323 | BQ156: 11921 | BR156: 11543 | BS156: 11413 | BT156: 11380 | BU156: 11520 | BV156: 12244 | BW156: 12531 | BX156: 12550 | BY156: 12334 | BZ156: 12356 | CA156: 12417 | CB156: 12509 | CC156: 12747 | CD156: 12648 | CE156: 12597 | CF156: 12311 | CG156: 12383 | CH156: 12474 | CI156: 12306 | CJ156: 11815 | CK156: 11680 | CL156: 11322 | CM156: 11194 | CN156: 11212 | CO156: 10820 | CP156: 10705 | CQ156: 10373
A157: Females | B157: 64 | C157: 7443 | D157: 7400 | E157: 7521 | F157: 7599 | G157: 7848 | H157: 7563 | I157: 7632 | J157: 7404 | K157: 7445 | L157: 6862 | M157: 6629 | N157: 6524 | O157: 7084 | P157: 7813 | Q157: 7874 | R157: 7719 | S157: 7540 | T157: 7525 | U157: 7300 | V157: 7589 | W157: 7470 | X157: 7299 | Y157: 7386 | Z157: 7550 | AA157: 7449 | AB157: 7235 | AC157: 7267 | AD157: 7089 | AE157: 7108 | AF157: 7430 | AG157: 7592 | AH157: 7507 | AI157: 7664 | AJ157: 7500 | AK157: 7486 | AL157: 8072 | AM157: 8966 | AN157: 9075 | AO157: 8999 | AP157: 9032 | AQ157: 9746 | AR157: 9566 | AS157: 9394 | AT157: 9427 | AU157: 9241 | AV157: 9166 | AW157: 9494 | AX157: 9467 | AY157: 9667 | AZ157: 10241 | BA157: 10741 | BB157: 11146 | BC157: 11262 | BD157: 11685 | BE157: 12129 | BF157: 12385 | BG157: 12410 | BH157: 12888 | BI157: 13200 | BJ157: 12878 | BK157: 12964 | BL157: 12953 | BM157: 12850 | BN157: 12702 | BO157: 12716 | BP157: 12336 | BQ157: 12260 | BR157: 11862 | BS157: 11487 | BT157: 11358 | BU157: 11325 | BV157: 11465 | BW157: 12187 | BX157: 12473 | BY157: 12493 | BZ157: 12280 | CA157: 12303 | CB157: 12364 | CC157: 12456 | CD157: 12695 | CE157: 12596 | CF157: 12545 | CG157: 12262 | CH157: 12334 | CI157: 12425 | CJ157: 12260 | CK157: 11771 | CL157: 11637 | CM157: 11281 | CN157: 11154 | CO157: 11172 | CP157: 10782 | CQ157: 10668
A158: Females | B158: 65 | C158: 7277 | D158: 7288 | E158: 7230 | F158: 7368 | G158: 7431 | H158: 7675 | I158: 7392 | J158: 7455 | K158: 7252 | L158: 7298 | M158: 6796 | N158: 6516 | O158: 6427 | P158: 6958 | Q158: 7711 | R158: 7786 | S158: 7638 | T158: 7452 | U158: 7445 | V158: 7205 | W158: 7532 | X158: 7386 | Y158: 7233 | Z158: 7296 | AA158: 7444 | AB158: 7363 | AC158: 7135 | AD158: 7208 | AE158: 7042 | AF158: 7029 | AG158: 7415 | AH158: 7523 | AI158: 7439 | AJ158: 7591 | AK158: 7437 | AL158: 7424 | AM158: 8012 | AN158: 8886 | AO158: 9000 | AP158: 8955 | AQ158: 8968 | AR158: 9673 | AS158: 9480 | AT158: 9313 | AU158: 9347 | AV158: 9161 | AW158: 9117 | AX158: 9423 | AY158: 9404 | AZ158: 9599 | BA158: 10169 | BB158: 10668 | BC158: 11068 | BD158: 11184 | BE158: 11605 | BF158: 12048 | BG158: 12303 | BH158: 12329 | BI158: 12804 | BJ158: 13115 | BK158: 12798 | BL158: 12883 | BM158: 12873 | BN158: 12772 | BO158: 12626 | BP158: 12641 | BQ158: 12265 | BR158: 12191 | BS158: 11795 | BT158: 11423 | BU158: 11295 | BV158: 11265 | BW158: 11405 | BX158: 12123 | BY158: 12409 | BZ158: 12430 | CA158: 12219 | CB158: 12243 | CC158: 12304 | CD158: 12397 | CE158: 12634 | CF158: 12538 | CG158: 12488 | CH158: 12206 | CI158: 12279 | CJ158: 12371 | CK158: 12206 | CL158: 11721 | CM158: 11588 | CN158: 11234 | CO158: 11108 | CP158: 11126 | CQ158: 10739
A159: Females | B159: 66 | C159: 7042 | D159: 7104 | E159: 7106 | F159: 7070 | G159: 7218 | H159: 7274 | I159: 7510 | J159: 7223 | K159: 7301 | L159: 7140 | M159: 7257 | N159: 6662 | O159: 6396 | P159: 6317 | Q159: 6834 | R159: 7591 | S159: 7679 | T159: 7534 | U159: 7369 | V159: 7367 | W159: 7121 | X159: 7442 | Y159: 7303 | Z159: 7135 | AA159: 7195 | AB159: 7364 | AC159: 7308 | AD159: 7072 | AE159: 7128 | AF159: 6982 | AG159: 6996 | AH159: 7344 | AI159: 7439 | AJ159: 7365 | AK159: 7507 | AL159: 7362 | AM159: 7365 | AN159: 7939 | AO159: 8793 | AP159: 8920 | AQ159: 8900 | AR159: 8898 | AS159: 9579 | AT159: 9403 | AU159: 9223 | AV159: 9266 | AW159: 9103 | AX159: 9035 | AY159: 9353 | AZ159: 9331 | BA159: 9523 | BB159: 10090 | BC159: 10585 | BD159: 10983 | BE159: 11099 | BF159: 11518 | BG159: 11958 | BH159: 12214 | BI159: 12240 | BJ159: 12713 | BK159: 13023 | BL159: 12710 | BM159: 12794 | BN159: 12786 | BO159: 12687 | BP159: 12544 | BQ159: 12560 | BR159: 12186 | BS159: 12114 | BT159: 11722 | BU159: 11353 | BV159: 11227 | BW159: 11197 | BX159: 11337 | BY159: 12051 | BZ159: 12337 | CA159: 12359 | CB159: 12151 | CC159: 12175 | CD159: 12237 | CE159: 12330 | CF159: 12568 | CG159: 12473 | CH159: 12424 | CI159: 12145 | CJ159: 12218 | CK159: 12310 | CL159: 12147 | CM159: 11665 | CN159: 11533 | CO159: 11182 | CP159: 11057 | CQ159: 11075
A160: Females | B160: 67 | C160: 6685 | D160: 6875 | E160: 6928 | F160: 6951 | G160: 6895 | H160: 7050 | I160: 7121 | J160: 7336 | K160: 7077 | L160: 7164 | M160: 7074 | N160: 7102 | O160: 6545 | P160: 6290 | Q160: 6200 | R160: 6691 | S160: 7480 | T160: 7569 | U160: 7426 | V160: 7274 | W160: 7283 | X160: 7033 | Y160: 7333 | Z160: 7219 | AA160: 7033 | AB160: 7102 | AC160: 7253 | AD160: 7234 | AE160: 6982 | AF160: 7042 | AG160: 6837 | AH160: 6906 | AI160: 7231 | AJ160: 7375 | AK160: 7284 | AL160: 7431 | AM160: 7276 | AN160: 7289 | AO160: 7868 | AP160: 8711 | AQ160: 8843 | AR160: 8821 | AS160: 8812 | AT160: 9477 | AU160: 9315 | AV160: 9149 | AW160: 9160 | AX160: 9003 | AY160: 8962 | AZ160: 9273 | BA160: 9251 | BB160: 9442 | BC160: 10005 | BD160: 10497 | BE160: 10894 | BF160: 11010 | BG160: 11425 | BH160: 11865 | BI160: 12119 | BJ160: 12146 | BK160: 12617 | BL160: 12927 | BM160: 12616 | BN160: 12702 | BO160: 12694 | BP160: 12597 | BQ160: 12458 | BR160: 12474 | BS160: 12104 | BT160: 12033 | BU160: 11645 | BV160: 11279 | BW160: 11155 | BX160: 11125 | BY160: 11266 | BZ160: 11976 | CA160: 12263 | CB160: 12286 | CC160: 12080 | CD160: 12105 | CE160: 12168 | CF160: 12261 | CG160: 12498 | CH160: 12405 | CI160: 12357 | CJ160: 12080 | CK160: 12154 | CL160: 12247 | CM160: 12084 | CN160: 11606 | CO160: 11476 | CP160: 11128 | CQ160: 11004
A161: Females | B161: 68 | C161: 6396 | D161: 6479 | E161: 6664 | F161: 6752 | G161: 6775 | H161: 6726 | I161: 6853 | J161: 6957 | K161: 7167 | L161: 6905 | M161: 7066 | N161: 6932 | O161: 6956 | P161: 6426 | Q161: 6160 | R161: 6076 | S161: 6557 | T161: 7324 | U161: 7458 | V161: 7330 | W161: 7171 | X161: 7158 | Y161: 6949 | Z161: 7233 | AA161: 7121 | AB161: 6919 | AC161: 6984 | AD161: 7146 | AE161: 7135 | AF161: 6886 | AG161: 6979 | AH161: 6751 | AI161: 6815 | AJ161: 7122 | AK161: 7275 | AL161: 7203 | AM161: 7351 | AN161: 7199 | AO161: 7208 | AP161: 7792 | AQ161: 8614 | AR161: 8763 | AS161: 8754 | AT161: 8727 | AU161: 9386 | AV161: 9204 | AW161: 9062 | AX161: 9075 | AY161: 8922 | AZ161: 8878 | BA161: 9186 | BB161: 9164 | BC161: 9353 | BD161: 9913 | BE161: 10401 | BF161: 10796 | BG161: 10912 | BH161: 11324 | BI161: 11761 | BJ161: 12014 | BK161: 12043 | BL161: 12511 | BM161: 12821 | BN161: 12512 | BO161: 12600 | BP161: 12593 | BQ161: 12498 | BR161: 12362 | BS161: 12378 | BT161: 12013 | BU161: 11944 | BV161: 11560 | BW161: 11197 | BX161: 11077 | BY161: 11047 | BZ161: 11189 | CA161: 11894 | CB161: 12181 | CC161: 12204 | CD161: 12000 | CE161: 12027 | CF161: 12090 | CG161: 12185 | CH161: 12420 | CI161: 12330 | CJ161: 12283 | CK161: 12008 | CL161: 12083 | CM161: 12176 | CN161: 12014 | CO161: 11541 | CP161: 11412 | CQ161: 11067
A162: Females | B162: 69 | C162: 6147 | D162: 6221 | E162: 6298 | F162: 6483 | G162: 6593 | H162: 6593 | I162: 6526 | J162: 6666 | K162: 6784 | L162: 7014 | M162: 6820 | N162: 6920 | O162: 6786 | P162: 6818 | Q162: 6298 | R162: 6040 | S162: 5965 | T162: 6405 | U162: 7200 | V162: 7336 | W162: 7214 | X162: 7053 | Y162: 7020 | Z162: 6823 | AA162: 7100 | AB162: 7030 | AC162: 6820 | AD162: 6860 | AE162: 7023 | AF162: 7041 | AG162: 6811 | AH162: 6841 | AI162: 6647 | AJ162: 6730 | AK162: 7019 | AL162: 7202 | AM162: 7110 | AN162: 7258 | AO162: 7121 | AP162: 7105 | AQ162: 7705 | AR162: 8487 | AS162: 8661 | AT162: 8658 | AU162: 8627 | AV162: 9273 | AW162: 9106 | AX162: 8972 | AY162: 8981 | AZ162: 8826 | BA162: 8781 | BB162: 9087 | BC162: 9066 | BD162: 9254 | BE162: 9808 | BF162: 10291 | BG162: 10684 | BH162: 10800 | BI162: 11209 | BJ162: 11644 | BK162: 11896 | BL162: 11926 | BM162: 12391 | BN162: 12699 | BO162: 12396 | BP162: 12483 | BQ162: 12478 | BR162: 12385 | BS162: 12252 | BT162: 12269 | BU162: 11909 | BV162: 11842 | BW162: 11462 | BX162: 11104 | BY162: 10985 | BZ162: 10957 | CA162: 11099 | CB162: 11799 | CC162: 12085 | CD162: 12110 | CE162: 11910 | CF162: 11937 | CG162: 12000 | CH162: 12096 | CI162: 12330 | CJ162: 12242 | CK162: 12196 | CL162: 11924 | CM162: 12001 | CN162: 12093 | CO162: 11933 | CP162: 11466 | CQ162: 11338
A163: Females | B163: 70 | C163: 6087 | D163: 5974 | E163: 6044 | F163: 6094 | G163: 6298 | H163: 6392 | I163: 6400 | J163: 6335 | K163: 6479 | L163: 6614 | M163: 6910 | N163: 6677 | O163: 6790 | P163: 6645 | Q163: 6673 | R163: 6156 | S163: 5912 | T163: 5836 | U163: 6251 | V163: 7039 | W163: 7226 | X163: 7077 | Y163: 6904 | Z163: 6894 | AA163: 6690 | AB163: 6970 | AC163: 6906 | AD163: 6707 | AE163: 6727 | AF163: 6880 | AG163: 6964 | AH163: 6706 | AI163: 6723 | AJ163: 6547 | AK163: 6626 | AL163: 6901 | AM163: 7080 | AN163: 7019 | AO163: 7178 | AP163: 7028 | AQ163: 7012 | AR163: 7620 | AS163: 8378 | AT163: 8561 | AU163: 8538 | AV163: 8507 | AW163: 9125 | AX163: 8992 | AY163: 8865 | AZ163: 8870 | BA163: 8718 | BB163: 8675 | BC163: 8978 | BD163: 8958 | BE163: 9144 | BF163: 9694 | BG163: 10173 | BH163: 10563 | BI163: 10679 | BJ163: 11084 | BK163: 11517 | BL163: 11768 | BM163: 11799 | BN163: 12261 | BO163: 12567 | BP163: 12269 | BQ163: 12356 | BR163: 12353 | BS163: 12263 | BT163: 12132 | BU163: 12151 | BV163: 11796 | BW163: 11731 | BX163: 11355 | BY163: 11002 | BZ163: 10885 | CA163: 10859 | CB163: 11001 | CC163: 11696 | CD163: 11980 | CE163: 12007 | CF163: 11810 | CG163: 11837 | CH163: 11901 | CI163: 11998 | CJ163: 12232 | CK163: 12146 | CL163: 12101 | CM163: 11833 | CN163: 11910 | CO163: 12003 | CP163: 11845 | CQ163: 11383
A164: Females | B164: 71 | C164: 5920 | D164: 5852 | E164: 5742 | F164: 5826 | G164: 5877 | H164: 6087 | I164: 6189 | J164: 6184 | K164: 6128 | L164: 6291 | M164: 6493 | N164: 6709 | O164: 6502 | P164: 6651 | Q164: 6473 | R164: 6507 | S164: 6007 | T164: 5752 | U164: 5703 | V164: 6100 | W164: 6888 | X164: 7058 | Y164: 6893 | Z164: 6758 | AA164: 6717 | AB164: 6544 | AC164: 6811 | AD164: 6758 | AE164: 6582 | AF164: 6608 | AG164: 6751 | AH164: 6832 | AI164: 6561 | AJ164: 6617 | AK164: 6418 | AL164: 6527 | AM164: 6806 | AN164: 6965 | AO164: 6878 | AP164: 7075 | AQ164: 6924 | AR164: 6920 | AS164: 7520 | AT164: 8285 | AU164: 8435 | AV164: 8414 | AW164: 8410 | AX164: 8991 | AY164: 8876 | AZ164: 8746 | BA164: 8753 | BB164: 8604 | BC164: 8562 | BD164: 8861 | BE164: 8842 | BF164: 9027 | BG164: 9573 | BH164: 10047 | BI164: 10433 | BJ164: 10549 | BK164: 10952 | BL164: 11381 | BM164: 11631 | BN164: 11663 | BO164: 12122 | BP164: 12426 | BQ164: 12134 | BR164: 12222 | BS164: 12221 | BT164: 12133 | BU164: 12006 | BV164: 12025 | BW164: 11675 | BX164: 11613 | BY164: 11242 | BZ164: 10895 | CA164: 10779 | CB164: 10755 | CC164: 10897 | CD164: 11587 | CE164: 11870 | CF164: 11898 | CG164: 11704 | CH164: 11732 | CI164: 11797 | CJ164: 11894 | CK164: 12128 | CL164: 12044 | CM164: 12001 | CN164: 11735 | CO164: 11813 | CP164: 11906 | CQ164: 11752
A165: Females | B165: 72 | C165: 5449 | D165: 5694 | E165: 5628 | F165: 5555 | G165: 5619 | H165: 5670 | I165: 5882 | J165: 5969 | K165: 5986 | L165: 5946 | M165: 6172 | N165: 6287 | O165: 6497 | P165: 6316 | Q165: 6467 | R165: 6291 | S165: 6313 | T165: 5854 | U165: 5599 | V165: 5550 | W165: 5914 | X165: 6724 | Y165: 6881 | Z165: 6731 | AA165: 6596 | AB165: 6560 | AC165: 6405 | AD165: 6672 | AE165: 6608 | AF165: 6450 | AG165: 6428 | AH165: 6587 | AI165: 6669 | AJ165: 6428 | AK165: 6499 | AL165: 6295 | AM165: 6406 | AN165: 6678 | AO165: 6816 | AP165: 6745 | AQ165: 6975 | AR165: 6800 | AS165: 6825 | AT165: 7396 | AU165: 8165 | AV165: 8287 | AW165: 8265 | AX165: 8297 | AY165: 8862 | AZ165: 8744 | BA165: 8617 | BB165: 8624 | BC165: 8479 | BD165: 8439 | BE165: 8734 | BF165: 8717 | BG165: 8901 | BH165: 9441 | BI165: 9910 | BJ165: 10293 | BK165: 10409 | BL165: 10808 | BM165: 11233 | BN165: 11483 | BO165: 11516 | BP165: 11971 | BQ165: 12273 | BR165: 11986 | BS165: 12075 | BT165: 12076 | BU165: 11991 | BV165: 11867 | BW165: 11888 | BX165: 11544 | BY165: 11484 | BZ165: 11118 | CA165: 10777 | CB165: 10663 | CC165: 10641 | CD165: 10783 | CE165: 11468 | CF165: 11749 | CG165: 11779 | CH165: 11588 | CI165: 11617 | CJ165: 11683 | CK165: 11781 | CL165: 12014 | CM165: 11932 | CN165: 11891 | CO165: 11629 | CP165: 11707 | CQ165: 11801
A166: Females | B166: 73 | C166: 5036 | D166: 5174 | E166: 5428 | F166: 5404 | G166: 5361 | H166: 5366 | I166: 5451 | J166: 5645 | K166: 5726 | L166: 5778 | M166: 5799 | N166: 5954 | O166: 6063 | P166: 6275 | Q166: 6112 | R166: 6265 | S166: 6077 | T166: 6095 | U166: 5693 | V166: 5425 | W166: 5383 | X166: 5755 | Y166: 6518 | Z166: 6669 | AA166: 6566 | AB166: 6427 | AC166: 6408 | AD166: 6241 | AE166: 6523 | AF166: 6447 | AG166: 6330 | AH166: 6271 | AI166: 6443 | AJ166: 6510 | AK166: 6299 | AL166: 6375 | AM166: 6191 | AN166: 6284 | AO166: 6551 | AP166: 6704 | AQ166: 6599 | AR166: 6848 | AS166: 6672 | AT166: 6735 | AU166: 7258 | AV166: 8009 | AW166: 8153 | AX166: 8119 | AY166: 8164 | AZ166: 8715 | BA166: 8600 | BB166: 8477 | BC166: 8485 | BD166: 8344 | BE166: 8305 | BF166: 8597 | BG166: 8582 | BH166: 8765 | BI166: 9298 | BJ166: 9761 | BK166: 10140 | BL166: 10256 | BM166: 10651 | BN166: 11072 | BO166: 11322 | BP166: 11356 | BQ166: 11805 | BR166: 12106 | BS166: 11824 | BT166: 11914 | BU166: 11917 | BV166: 11835 | BW166: 11714 | BX166: 11738 | BY166: 11401 | BZ166: 11343 | CA166: 10982 | CB166: 10648 | CC166: 10536 | CD166: 10516 | CE166: 10658 | CF166: 11337 | CG166: 11615 | CH166: 11648 | CI166: 11460 | CJ166: 11490 | CK166: 11557 | CL166: 11656 | CM166: 11889 | CN166: 11808 | CO166: 11769 | CP166: 11513 | CQ166: 11589
A167: Females | B167: 74 | C167: 5024 | D167: 4808 | E167: 4951 | F167: 5146 | G167: 5163 | H167: 5115 | I167: 5122 | J167: 5209 | K167: 5424 | L167: 5498 | M167: 5610 | N167: 5561 | O167: 5713 | P167: 5850 | Q167: 6029 | R167: 5907 | S167: 6040 | T167: 5874 | U167: 5894 | V167: 5492 | W167: 5257 | X167: 5223 | Y167: 5591 | Z167: 6296 | AA167: 6451 | AB167: 6359 | AC167: 6197 | AD167: 6187 | AE167: 6070 | AF167: 6353 | AG167: 6310 | AH167: 6152 | AI167: 6124 | AJ167: 6277 | AK167: 6347 | AL167: 6163 | AM167: 6213 | AN167: 6053 | AO167: 6160 | AP167: 6422 | AQ167: 6553 | AR167: 6483 | AS167: 6737 | AT167: 6566 | AU167: 6583 | AV167: 7119 | AW167: 7845 | AX167: 7985 | AY167: 7977 | AZ167: 8015 | BA167: 8557 | BB167: 8448 | BC167: 8327 | BD167: 8338 | BE167: 8200 | BF167: 8163 | BG167: 8452 | BH167: 8439 | BI167: 8620 | BJ167: 9145 | BK167: 9603 | BL167: 9978 | BM167: 10094 | BN167: 10484 | BO167: 10901 | BP167: 11150 | BQ167: 11185 | BR167: 11629 | BS167: 11928 | BT167: 11652 | BU167: 11743 | BV167: 11748 | BW167: 11670 | BX167: 11552 | BY167: 11578 | BZ167: 11248 | CA167: 11192 | CB167: 10838 | CC167: 10511 | CD167: 10401 | CE167: 10382 | CF167: 10525 | CG167: 11196 | CH167: 11474 | CI167: 11508 | CJ167: 11324 | CK167: 11355 | CL167: 11423 | CM167: 11523 | CN167: 11755 | CO167: 11676 | CP167: 11639 | CQ167: 11388
A168: Females | B168: 75 | C168: 4814 | D168: 4704 | E168: 4497 | F168: 4642 | G168: 4818 | H168: 4918 | I168: 4838 | J168: 4858 | K168: 4987 | L168: 5118 | M168: 5156 | N168: 5374 | O168: 5340 | P168: 5501 | Q168: 5602 | R168: 5761 | S168: 5680 | T168: 5801 | U168: 5683 | V168: 5653 | W168: 5301 | X168: 5062 | Y168: 5037 | Z168: 5400 | AA168: 6088 | AB168: 6212 | AC168: 6157 | AD168: 5998 | AE168: 5979 | AF168: 5924 | AG168: 6131 | AH168: 6116 | AI168: 5955 | AJ168: 5954 | AK168: 6080 | AL168: 6152 | AM168: 6009 | AN168: 6060 | AO168: 5916 | AP168: 6030 | AQ168: 6269 | AR168: 6386 | AS168: 6351 | AT168: 6594 | AU168: 6390 | AV168: 6437 | AW168: 6954 | AX168: 7669 | AY168: 7826 | AZ168: 7813 | BA168: 7852 | BB168: 8385 | BC168: 8280 | BD168: 8164 | BE168: 8175 | BF168: 8041 | BG168: 8007 | BH168: 8292 | BI168: 8281 | BJ168: 8460 | BK168: 8977 | BL168: 9429 | BM168: 9799 | BN168: 9915 | BO168: 10301 | BP168: 10712 | BQ168: 10960 | BR168: 10997 | BS168: 11436 | BT168: 11731 | BU168: 11463 | BV168: 11555 | BW168: 11562 | BX168: 11488 | BY168: 11374 | BZ168: 11401 | CA168: 11078 | CB168: 11025 | CC168: 10679 | CD168: 10358 | CE168: 10252 | CF168: 10235 | CG168: 10378 | CH168: 11041 | CI168: 11317 | CJ168: 11353 | CK168: 11173 | CL168: 11206 | CM168: 11275 | CN168: 11375 | CO168: 11606 | CP168: 11530 | CQ168: 11495
A169: Females | B169: 76 | C169: 4347 | D169: 4476 | E169: 4378 | F169: 4189 | G169: 4338 | H169: 4485 | I169: 4640 | J169: 4549 | K169: 4592 | L169: 4709 | M169: 4834 | N169: 4932 | O169: 5133 | P169: 5113 | Q169: 5245 | R169: 5346 | S169: 5480 | T169: 5451 | U169: 5590 | V169: 5469 | W169: 5437 | X169: 5096 | Y169: 4882 | Z169: 4823 | AA169: 5195 | AB169: 5885 | AC169: 5983 | AD169: 5932 | AE169: 5782 | AF169: 5730 | AG169: 5815 | AH169: 5922 | AI169: 5931 | AJ169: 5732 | AK169: 5782 | AL169: 5880 | AM169: 5977 | AN169: 5856 | AO169: 5878 | AP169: 5754 | AQ169: 5910 | AR169: 6102 | AS169: 6199 | AT169: 6191 | AU169: 6416 | AV169: 6233 | AW169: 6276 | AX169: 6786 | AY169: 7497 | AZ169: 7644 | BA169: 7633 | BB169: 7673 | BC169: 8196 | BD169: 8095 | BE169: 7984 | BF169: 7996 | BG169: 7867 | BH169: 7836 | BI169: 8116 | BJ169: 8107 | BK169: 8284 | BL169: 8793 | BM169: 9237 | BN169: 9602 | BO169: 9718 | BP169: 10099 | BQ169: 10505 | BR169: 10750 | BS169: 10789 | BT169: 11223 | BU169: 11515 | BV169: 11254 | BW169: 11347 | BX169: 11357 | BY169: 11286 | BZ169: 11177 | CA169: 11206 | CB169: 10891 | CC169: 10841 | CD169: 10502 | CE169: 10188 | CF169: 10086 | CG169: 10071 | CH169: 10214 | CI169: 10869 | CJ169: 11142 | CK169: 11180 | CL169: 11005 | CM169: 11040 | CN169: 11109 | CO169: 11210 | CP169: 11440 | CQ169: 11367
A170: Females | B170: 77 | C170: 4002 | D170: 4039 | E170: 4178 | F170: 4049 | G170: 3884 | H170: 4030 | I170: 4209 | J170: 4374 | K170: 4275 | L170: 4298 | M170: 4435 | N170: 4561 | O170: 4709 | P170: 4861 | Q170: 4868 | R170: 4976 | S170: 5099 | T170: 5225 | U170: 5203 | V170: 5313 | W170: 5245 | X170: 5202 | Y170: 4876 | Z170: 4668 | AA170: 4629 | AB170: 4963 | AC170: 5621 | AD170: 5701 | AE170: 5718 | AF170: 5576 | AG170: 5420 | AH170: 5608 | AI170: 5714 | AJ170: 5710 | AK170: 5553 | AL170: 5559 | AM170: 5677 | AN170: 5744 | AO170: 5670 | AP170: 5731 | AQ170: 5574 | AR170: 5747 | AS170: 5918 | AT170: 6022 | AU170: 6001 | AV170: 6231 | AW170: 6053 | AX170: 6120 | AY170: 6616 | AZ170: 7302 | BA170: 7446 | BB170: 7438 | BC170: 7479 | BD170: 7989 | BE170: 7894 | BF170: 7788 | BG170: 7802 | BH170: 7678 | BI170: 7649 | BJ170: 7924 | BK170: 7917 | BL170: 8092 | BM170: 8593 | BN170: 9029 | BO170: 9388 | BP170: 9506 | BQ170: 9882 | BR170: 10281 | BS170: 10524 | BT170: 10565 | BU170: 10991 | BV170: 11281 | BW170: 11028 | BX170: 11121 | BY170: 11134 | BZ170: 11068 | CA170: 10964 | CB170: 10995 | CC170: 10687 | CD170: 10641 | CE170: 10310 | CF170: 10003 | CG170: 9906 | CH170: 9893 | CI170: 10036 | CJ170: 10681 | CK170: 10953 | CL170: 10992 | CM170: 10823 | CN170: 10859 | CO170: 10929 | CP170: 11031 | CQ170: 11260
A171: Females | B171: 78 | C171: 3593 | D171: 3691 | E171: 3738 | F171: 3856 | G171: 3732 | H171: 3612 | I171: 3739 | J171: 3938 | K171: 4117 | L171: 4013 | M171: 4077 | N171: 4177 | O171: 4321 | P171: 4464 | Q171: 4601 | R171: 4624 | S171: 4747 | T171: 4866 | U171: 4959 | V171: 4947 | W171: 5032 | X171: 4994 | Y171: 4969 | Z171: 4644 | AA171: 4449 | AB171: 4394 | AC171: 4732 | AD171: 5372 | AE171: 5434 | AF171: 5447 | AG171: 5479 | AH171: 5200 | AI171: 5375 | AJ171: 5487 | AK171: 5463 | AL171: 5367 | AM171: 5356 | AN171: 5484 | AO171: 5545 | AP171: 5490 | AQ171: 5548 | AR171: 5396 | AS171: 5582 | AT171: 5718 | AU171: 5851 | AV171: 5824 | AW171: 6056 | AX171: 5854 | AY171: 5948 | AZ171: 6424 | BA171: 7092 | BB171: 7233 | BC171: 7227 | BD171: 7269 | BE171: 7767 | BF171: 7676 | BG171: 7575 | BH171: 7591 | BI171: 7472 | BJ171: 7446 | BK171: 7716 | BL171: 7711 | BM171: 7884 | BN171: 8375 | BO171: 8804 | BP171: 9156 | BQ171: 9274 | BR171: 9645 | BS171: 10036 | BT171: 10277 | BU171: 10320 | BV171: 10739 | BW171: 11026 | BX171: 10782 | BY171: 10875 | BZ171: 10891 | CA171: 10830 | CB171: 10731 | CC171: 10764 | CD171: 10465 | CE171: 10423 | CF171: 10100 | CG171: 9801 | CH171: 9709 | CI171: 9698 | CJ171: 9841 | CK171: 10477 | CL171: 10747 | CM171: 10788 | CN171: 10623 | CO171: 10661 | CP171: 10732 | CQ171: 10836
A172: Females | B172: 79 | C172: 3136 | D172: 3294 | E172: 3402 | F172: 3413 | G172: 3530 | H172: 3451 | I172: 3307 | J172: 3458 | K172: 3665 | L172: 3838 | M172: 3796 | N172: 3802 | O172: 3926 | P172: 4049 | Q172: 4291 | R172: 4321 | S172: 4375 | T172: 4478 | U172: 4588 | V172: 4660 | W172: 4685 | X172: 4765 | Y172: 4742 | Z172: 4712 | AA172: 4397 | AB172: 4269 | AC172: 4162 | AD172: 4504 | AE172: 5113 | AF172: 5128 | AG172: 5202 | AH172: 5226 | AI172: 4969 | AJ172: 5110 | AK172: 5240 | AL172: 5239 | AM172: 5123 | AN172: 5149 | AO172: 5273 | AP172: 5326 | AQ172: 5301 | AR172: 5359 | AS172: 5177 | AT172: 5380 | AU172: 5523 | AV172: 5673 | AW172: 5595 | AX172: 5850 | AY172: 5668 | AZ172: 5752 | BA172: 6214 | BB172: 6862 | BC172: 7001 | BD172: 6997 | BE172: 7040 | BF172: 7525 | BG172: 7439 | BH172: 7344 | BI172: 7362 | BJ172: 7249 | BK172: 7226 | BL172: 7490 | BM172: 7488 | BN172: 7658 | BO172: 8138 | BP172: 8557 | BQ172: 8903 | BR172: 9020 | BS172: 9384 | BT172: 9769 | BU172: 10006 | BV172: 10051 | BW172: 10463 | BX172: 10746 | BY172: 10511 | BZ172: 10605 | CA172: 10624 | CB172: 10568 | CC172: 10474 | CD172: 10510 | CE172: 10221 | CF172: 10183 | CG172: 9870 | CH172: 9581 | CI172: 9493 | CJ172: 9485 | CK172: 9627 | CL172: 10252 | CM172: 10519 | CN172: 10562 | CO172: 10403 | CP172: 10443 | CQ172: 10515
A173: Females | B173: 80 | C173: 2768 | D173: 2887 | E173: 3059 | F173: 3125 | G173: 3114 | H173: 3229 | I173: 3172 | J173: 3044 | K173: 3168 | L173: 3382 | M173: 3774 | N173: 3510 | O173: 3542 | P173: 3650 | Q173: 3807 | R173: 4036 | S173: 4088 | T173: 4101 | U173: 4237 | V173: 4300 | W173: 4404 | X173: 4433 | Y173: 4442 | Z173: 4454 | AA173: 4434 | AB173: 4135 | AC173: 4040 | AD173: 3941 | AE173: 4284 | AF173: 4826 | AG173: 4740 | AH173: 4909 | AI173: 4956 | AJ173: 4722 | AK173: 4853 | AL173: 4964 | AM173: 4956 | AN173: 4905 | AO173: 4938 | AP173: 5050 | AQ173: 5126 | AR173: 5084 | AS173: 5148 | AT173: 4969 | AU173: 5162 | AV173: 5294 | AW173: 5451 | AX173: 5380 | AY173: 5639 | AZ173: 5456 | BA173: 5538 | BB173: 5985 | BC173: 6613 | BD173: 6749 | BE173: 6748 | BF173: 6792 | BG173: 7263 | BH173: 7184 | BI173: 7095 | BJ173: 7115 | BK173: 7007 | BL173: 6987 | BM173: 7246 | BN173: 7247 | BO173: 7414 | BP173: 7881 | BQ173: 8289 | BR173: 8628 | BS173: 8745 | BT173: 9101 | BU173: 9478 | BV173: 9711 | BW173: 9759 | BX173: 10164 | BY173: 10442 | BZ173: 10218 | CA173: 10312 | CB173: 10332 | CC173: 10282 | CD173: 10194 | CE173: 10234 | CF173: 9955 | CG173: 9922 | CH173: 9619 | CI173: 9340 | CJ173: 9256 | CK173: 9251 | CL173: 9393 | CM173: 10006 | CN173: 10271 | CO173: 10315 | CP173: 10163 | CQ173: 10205
A174: Females | B174: 81 | C174: 2521 | D174: 2499 | E174: 2635 | F174: 2804 | G174: 2804 | H174: 2831 | I174: 2926 | J174: 2868 | K174: 2755 | L174: 2905 | M174: 3338 | N174: 3490 | O174: 3225 | P174: 3279 | Q174: 3379 | R174: 3523 | S174: 3849 | T174: 3787 | U174: 3813 | V174: 3930 | W174: 4013 | X174: 4122 | Y174: 4170 | Z174: 4168 | AA174: 4191 | AB174: 4150 | AC174: 3869 | AD174: 3794 | AE174: 3711 | AF174: 4029 | AG174: 4715 | AH174: 4458 | AI174: 4634 | AJ174: 4658 | AK174: 4423 | AL174: 4587 | AM174: 4684 | AN174: 4691 | AO174: 4678 | AP174: 4705 | AQ174: 4799 | AR174: 4867 | AS174: 4843 | AT174: 4935 | AU174: 4723 | AV174: 4950 | AW174: 5047 | AX174: 5207 | AY174: 5163 | AZ174: 5403 | BA174: 5230 | BB174: 5311 | BC174: 5741 | BD174: 6346 | BE174: 6479 | BF174: 6481 | BG174: 6526 | BH174: 6981 | BI174: 6908 | BJ174: 6825 | BK174: 6847 | BL174: 6746 | BM174: 6729 | BN174: 6982 | BO174: 6985 | BP174: 7149 | BQ174: 7603 | BR174: 8000 | BS174: 8330 | BT174: 8446 | BU174: 8794 | BV174: 9163 | BW174: 9392 | BX174: 9442 | BY174: 9839 | BZ174: 10112 | CA174: 9899 | CB174: 9993 | CC174: 10017 | CD174: 9972 | CE174: 9890 | CF174: 9932 | CG174: 9664 | CH174: 9636 | CI174: 9344 | CJ174: 9076 | CK174: 8997 | CL174: 8996 | CM174: 9137 | CN174: 9736 | CO174: 9997 | CP174: 10044 | CQ174: 9901
A175: Females | B175: 82 | C175: 2650 | D175: 2276 | E175: 2268 | F175: 2373 | G175: 2530 | H175: 2517 | I175: 2545 | J175: 2646 | K175: 2572 | L175: 2466 | M175: 2826 | N175: 3040 | O175: 3231 | P175: 2963 | Q175: 2994 | R175: 3124 | S175: 3261 | T175: 3637 | U175: 3499 | V175: 3533 | W175: 3647 | X175: 3734 | Y175: 3817 | Z175: 3847 | AA175: 3844 | AB175: 3922 | AC175: 3862 | AD175: 3636 | AE175: 3498 | AF175: 3455 | AG175: 3744 | AH175: 4370 | AI175: 4189 | AJ175: 4339 | AK175: 4364 | AL175: 4181 | AM175: 4328 | AN175: 4394 | AO175: 4390 | AP175: 4431 | AQ175: 4487 | AR175: 4553 | AS175: 4596 | AT175: 4591 | AU175: 4660 | AV175: 4522 | AW175: 4715 | AX175: 4815 | AY175: 4969 | AZ175: 4918 | BA175: 5149 | BB175: 4986 | BC175: 5066 | BD175: 5478 | BE175: 6059 | BF175: 6188 | BG175: 6192 | BH175: 6238 | BI175: 6676 | BJ175: 6610 | BK175: 6534 | BL175: 6558 | BM175: 6464 | BN175: 6451 | BO175: 6696 | BP175: 6701 | BQ175: 6862 | BR175: 7301 | BS175: 7686 | BT175: 8008 | BU175: 8122 | BV175: 8461 | BW175: 8820 | BX175: 9046 | BY175: 9098 | BZ175: 9485 | CA175: 9751 | CB175: 9550 | CC175: 9645 | CD175: 9672 | CE175: 9633 | CF175: 9557 | CG175: 9602 | CH175: 9347 | CI175: 9323 | CJ175: 9044 | CK175: 8788 | CL175: 8716 | CM175: 8718 | CN175: 8857 | CO175: 9443 | CP175: 9698 | CQ175: 9748
A176: Females | B176: 83 | C176: 2023 | D176: 2362 | E176: 2009 | F176: 2004 | G176: 2114 | H176: 2264 | I176: 2212 | J176: 2270 | K176: 2354 | L176: 2310 | M176: 2398 | N176: 2572 | O176: 2752 | P176: 2979 | Q176: 2713 | R176: 2729 | S176: 2861 | T176: 3004 | U176: 3447 | V176: 3196 | W176: 3268 | X176: 3352 | Y176: 3445 | Z176: 3522 | AA176: 3546 | AB176: 3544 | AC176: 3581 | AD176: 3566 | AE176: 3332 | AF176: 3212 | AG176: 3157 | AH176: 3497 | AI176: 4063 | AJ176: 3905 | AK176: 4039 | AL176: 4102 | AM176: 3951 | AN176: 4024 | AO176: 4094 | AP176: 4121 | AQ176: 4136 | AR176: 4226 | AS176: 4284 | AT176: 4338 | AU176: 4320 | AV176: 4439 | AW176: 4262 | AX176: 4445 | AY176: 4567 | AZ176: 4704 | BA176: 4658 | BB176: 4879 | BC176: 4727 | BD176: 4805 | BE176: 5197 | BF176: 5751 | BG176: 5877 | BH176: 5884 | BI176: 5930 | BJ176: 6350 | BK176: 6290 | BL176: 6221 | BM176: 6247 | BN176: 6161 | BO176: 6152 | BP176: 6389 | BQ176: 6397 | BR176: 6553 | BS176: 6976 | BT176: 7349 | BU176: 7661 | BV176: 7774 | BW176: 8103 | BX176: 8451 | BY176: 8672 | BZ176: 8726 | CA176: 9102 | CB176: 9363 | CC176: 9174 | CD176: 9269 | CE176: 9300 | CF176: 9267 | CG176: 9197 | CH176: 9245 | CI176: 9003 | CJ176: 8984 | CK176: 8719 | CL176: 8476 | CM176: 8411 | CN176: 8416 | CO176: 8554 | CP176: 9124 | CQ176: 9374
A177: Females | B177: 84 | C177: 1739 | D177: 1763 | E177: 2121 | F177: 1746 | G177: 1747 | H177: 1872 | I177: 1966 | J177: 1949 | K177: 1981 | L177: 2085 | M177: 2242 | N177: 2172 | O177: 2349 | P177: 2486 | Q177: 2753 | R177: 2498 | S177: 2500 | T177: 2635 | U177: 2747 | V177: 3283 | W177: 2903 | X177: 3022 | Y177: 3076 | Z177: 3090 | AA177: 3183 | AB177: 3245 | AC177: 3230 | AD177: 3281 | AE177: 3276 | AF177: 3037 | AG177: 2955 | AH177: 2911 | AI177: 3222 | AJ177: 3713 | AK177: 3618 | AL177: 3746 | AM177: 3803 | AN177: 3685 | AO177: 3708 | AP177: 3772 | AQ177: 3833 | AR177: 3886 | AS177: 3941 | AT177: 4018 | AU177: 4033 | AV177: 4043 | AW177: 4139 | AX177: 3983 | AY177: 4184 | AZ177: 4290 | BA177: 4420 | BB177: 4380 | BC177: 4589 | BD177: 4448 | BE177: 4524 | BF177: 4895 | BG177: 5421 | BH177: 5543 | BI177: 5553 | BJ177: 5599 | BK177: 6000 | BL177: 5946 | BM177: 5885 | BN177: 5913 | BO177: 5834 | BP177: 5829 | BQ177: 6058 | BR177: 6069 | BS177: 6221 | BT177: 6624 | BU177: 6985 | BV177: 7286 | BW177: 7398 | BX177: 7716 | BY177: 8052 | BZ177: 8268 | CA177: 8324 | CB177: 8688 | CC177: 8943 | CD177: 8766 | CE177: 8862 | CF177: 8896 | CG177: 8869 | CH177: 8807 | CI177: 8858 | CJ177: 8630 | CK177: 8616 | CL177: 8367 | CM177: 8137 | CN177: 8078 | CO177: 8087 | CP177: 8224 | CQ177: 8776
A178: Females | B178: 85 | C178: 1335 | D178: 1500 | E178: 1545 | F178: 1871 | G178: 1499 | H178: 1484 | I178: 1634 | J178: 1698 | K178: 1689 | L178: 1747 | M178: 2065 | N178: 2100 | O178: 2072 | P178: 2145 | Q178: 2264 | R178: 2354 | S178: 2434 | T178: 2464 | U178: 2589 | V178: 2659 | W178: 2689 | X178: 2654 | Y178: 2728 | Z178: 2782 | AA178: 2773 | AB178: 2877 | AC178: 2919 | AD178: 2941 | AE178: 2926 | AF178: 2937 | AG178: 2815 | AH178: 2673 | AI178: 2667 | AJ178: 2943 | AK178: 3409 | AL178: 3345 | AM178: 3423 | AN178: 3500 | AO178: 3407 | AP178: 3395 | AQ178: 3456 | AR178: 3539 | AS178: 3541 | AT178: 3679 | AU178: 3735 | AV178: 3731 | AW178: 3755 | AX178: 3835 | AY178: 3717 | AZ178: 3893 | BA178: 3996 | BB178: 4119 | BC178: 4085 | BD178: 4282 | BE178: 4151 | BF178: 4224 | BG178: 4574 | BH178: 5069 | BI178: 5186 | BJ178: 5198 | BK178: 5245 | BL178: 5624 | BM178: 5577 | BN178: 5523 | BO178: 5553 | BP178: 5482 | BQ178: 5481 | BR178: 5701 | BS178: 5715 | BT178: 5862 | BU178: 6247 | BV178: 6592 | BW178: 6881 | BX178: 6992 | BY178: 7299 | BZ178: 7621 | CA178: 7829 | CB178: 7887 | CC178: 8239 | CD178: 8486 | CE178: 8324 | CF178: 8420 | CG178: 8458 | CH178: 8437 | CI178: 8383 | CJ178: 8437 | CK178: 8225 | CL178: 8215 | CM178: 7981 | CN178: 7766 | CO178: 7714 | CP178: 7727 | CQ178: 7862
A179: Females | B179: 86 | C179: 1164 | D179: 1113 | E179: 1297 | F179: 1333 | G179: 1624 | H179: 1274 | I179: 1256 | J179: 1411 | K179: 1451 | L179: 1469 | M179: 1736 | N179: 1771 | O179: 1805 | P179: 1818 | Q179: 1890 | R179: 2032 | S179: 2102 | T179: 2104 | U179: 2186 | V179: 2267 | W179: 2394 | X179: 2437 | Y179: 2376 | Z179: 2457 | AA179: 2490 | AB179: 2491 | AC179: 2555 | AD179: 2619 | AE179: 2609 | AF179: 2601 | AG179: 2663 | AH179: 2559 | AI179: 2380 | AJ179: 2432 | AK179: 2646 | AL179: 3066 | AM179: 3046 | AN179: 3121 | AO179: 3144 | AP179: 3133 | AQ179: 3105 | AR179: 3156 | AS179: 3240 | AT179: 3220 | AU179: 3359 | AV179: 3438 | AW179: 3410 | AX179: 3417 | AY179: 3543 | AZ179: 3423 | BA179: 3589 | BB179: 3687 | BC179: 3802 | BD179: 3773 | BE179: 3958 | BF179: 3839 | BG179: 3909 | BH179: 4235 | BI179: 4697 | BJ179: 4809 | BK179: 4824 | BL179: 4870 | BM179: 5226 | BN179: 5185 | BO179: 5139 | BP179: 5170 | BQ179: 5108 | BR179: 5111 | BS179: 5321 | BT179: 5338 | BU179: 5480 | BV179: 5845 | BW179: 6173 | BX179: 6449 | BY179: 6558 | BZ179: 6850 | CA179: 7159 | CB179: 7360 | CC179: 7420 | CD179: 7756 | CE179: 7994 | CF179: 7848 | CG179: 7943 | CH179: 7984 | CI179: 7971 | CJ179: 7924 | CK179: 7981 | CL179: 7786 | CM179: 7782 | CN179: 7564 | CO179: 7366 | CP179: 7322 | CQ179: 7339
A180: Females | B180: 87 | C180: 869 | D180: 974 | E180: 940 | F180: 1077 | G180: 1104 | H180: 1423 | I180: 1041 | J180: 1044 | K180: 1170 | L180: 1209 | M180: 1446 | N180: 1467 | O180: 1497 | P180: 1557 | Q180: 1579 | R180: 1672 | S180: 1779 | T180: 1789 | U180: 1847 | V180: 1894 | W180: 1946 | X180: 2114 | Y180: 2186 | Z180: 2079 | AA180: 2170 | AB180: 2217 | AC180: 2166 | AD180: 2211 | AE180: 2284 | AF180: 2298 | AG180: 2277 | AH180: 2364 | AI180: 2277 | AJ180: 2122 | AK180: 2189 | AL180: 2379 | AM180: 2749 | AN180: 2737 | AO180: 2831 | AP180: 2841 | AQ180: 2874 | AR180: 2818 | AS180: 2828 | AT180: 2941 | AU180: 2897 | AV180: 3075 | AW180: 3088 | AX180: 3070 | AY180: 3118 | AZ180: 3222 | BA180: 3115 | BB180: 3270 | BC180: 3362 | BD180: 3470 | BE180: 3446 | BF180: 3618 | BG180: 3511 | BH180: 3578 | BI180: 3879 | BJ180: 4305 | BK180: 4411 | BL180: 4428 | BM180: 4474 | BN180: 4805 | BO180: 4771 | BP180: 4732 | BQ180: 4765 | BR180: 4712 | BS180: 4719 | BT180: 4917 | BU180: 4938 | BV180: 5074 | BW180: 5417 | BX180: 5725 | BY180: 5988 | BZ180: 6093 | CA180: 6370 | CB180: 6664 | CC180: 6858 | CD180: 6919 | CE180: 7239 | CF180: 7467 | CG180: 7337 | CH180: 7432 | CI180: 7476 | CJ180: 7470 | CK180: 7431 | CL180: 7490 | CM180: 7313 | CN180: 7315 | CO180: 7115 | CP180: 6934 | CQ180: 6896
A181: Females | B181: 88 | C181: 684 | D181: 683 | E181: 805 | F181: 749 | G181: 871 | H181: 910 | I181: 1238 | J181: 851 | K181: 856 | L181: 983 | M181: 1158 | N181: 1206 | O181: 1222 | P181: 1272 | Q181: 1331 | R181: 1376 | S181: 1449 | T181: 1500 | U181: 1550 | V181: 1585 | W181: 1673 | X181: 1715 | Y181: 1829 | Z181: 1932 | AA181: 1800 | AB181: 1911 | AC181: 1946 | AD181: 1865 | AE181: 1917 | AF181: 1975 | AG181: 1995 | AH181: 2013 | AI181: 2050 | AJ181: 1996 | AK181: 1882 | AL181: 1954 | AM181: 2104 | AN181: 2394 | AO181: 2451 | AP181: 2529 | AQ181: 2549 | AR181: 2562 | AS181: 2491 | AT181: 2577 | AU181: 2640 | AV181: 2603 | AW181: 2760 | AX181: 2748 | AY181: 2764 | AZ181: 2796 | BA181: 2893 | BB181: 2799 | BC181: 2942 | BD181: 3028 | BE181: 3129 | BF181: 3109 | BG181: 3267 | BH181: 3173 | BI181: 3236 | BJ181: 3510 | BK181: 3899 | BL181: 3998 | BM181: 4018 | BN181: 4063 | BO181: 4367 | BP181: 4340 | BQ181: 4308 | BR181: 4342 | BS181: 4299 | BT181: 4310 | BU181: 4495 | BV181: 4519 | BW181: 4648 | BX181: 4968 | BY181: 5256 | BZ181: 5503 | CA181: 5605 | CB181: 5866 | CC181: 6143 | CD181: 6329 | CE181: 6391 | CF181: 6693 | CG181: 6910 | CH181: 6796 | CI181: 6891 | CJ181: 6938 | CK181: 6938 | CL181: 6908 | CM181: 6969 | CN181: 6810 | CO181: 6818 | CP181: 6636 | CQ181: 6473
A182: Females | B182: 89 | C182: 539 | D182: 534 | E182: 548 | F182: 615 | G182: 599 | H182: 713 | I182: 709 | J182: 1064 | K182: 656 | L182: 686 | M182: 915 | N182: 953 | O182: 996 | P182: 1024 | Q182: 1073 | R182: 1144 | S182: 1171 | T182: 1214 | U182: 1285 | V182: 1305 | W182: 1385 | X182: 1475 | Y182: 1456 | Z182: 1580 | AA182: 1693 | AB182: 1556 | AC182: 1644 | AD182: 1662 | AE182: 1561 | AF182: 1592 | AG182: 1695 | AH182: 1746 | AI182: 1734 | AJ182: 1795 | AK182: 1746 | AL182: 1665 | AM182: 1699 | AN182: 1800 | AO182: 2050 | AP182: 2200 | AQ182: 2235 | AR182: 2209 | AS182: 2302 | AT182: 2189 | AU182: 2254 | AV182: 2327 | AW182: 2297 | AX182: 2412 | AY182: 2443 | AZ182: 2445 | BA182: 2475 | BB182: 2564 | BC182: 2483 | BD182: 2613 | BE182: 2691 | BF182: 2784 | BG182: 2768 | BH182: 2911 | BI182: 2830 | BJ182: 2888 | BK182: 3136 | BL182: 3486 | BM182: 3578 | BN182: 3599 | BO182: 3643 | BP182: 3919 | BQ182: 3899 | BR182: 3874 | BS182: 3909 | BT182: 3875 | BU182: 3889 | BV182: 4061 | BW182: 4088 | BX182: 4209 | BY182: 4505 | BZ182: 4771 | CA182: 5001 | CB182: 5100 | CC182: 5343 | CD182: 5603 | CE182: 5779 | CF182: 5842 | CG182: 6124 | CH182: 6329 | CI182: 6232 | CJ182: 6326 | CK182: 6375 | CL182: 6382 | CM182: 6361 | CN182: 6423 | CO182: 6283 | CP182: 6296 | CQ182: 6134
A183: Females | B183: 90 | C183: 1579 | D183: 1568 | E183: 1605 | F183: 1530 | G183: 1562 | H183: 1586 | I183: 1726 | J183: 1842 | K183: 2443 | L183: 2490 | M183: 2934 | N183: 3001 | O183: 3155 | P183: 3274 | Q183: 3409 | R183: 3477 | S183: 3610 | T183: 3678 | U183: 3724 | V183: 3756 | W183: 4360 | X183: 4612 | Y183: 4879 | Z183: 4986 | AA183: 5259 | AB183: 5511 | AC183: 5615 | AD183: 5795 | AE183: 5744 | AF183: 5643 | AG183: 5640 | AH183: 5872 | AI183: 6127 | AJ183: 6209 | AK183: 6489 | AL183: 6656 | AM183: 6702 | AN183: 6793 | AO183: 6955 | AP183: 7350 | AQ183: 7754 | AR183: 8150 | AS183: 8307 | AT183: 8771 | AU183: 8975 | AV183: 9165 | AW183: 9296 | AX183: 9281 | AY183: 9578 | AZ183: 9744 | BA183: 9884 | BB183: 10022 | BC183: 10220 | BD183: 10314 | BE183: 10512 | BF183: 10753 | BG183: 11041 | BH183: 11276 | BI183: 11602 | BJ183: 11810 | BK183: 12034 | BL183: 12440 | BM183: 13097 | BN183: 13743 | BO183: 14312 | BP183: 14826 | BQ183: 15503 | BR183: 16060 | BS183: 16503 | BT183: 16904 | BU183: 17212 | BV183: 17482 | BW183: 17869 | BX183: 18230 | BY183: 18655 | BZ183: 19298 | CA183: 20105 | CB183: 21024 | CC183: 21919 | CD183: 22917 | CE183: 24019 | CF183: 25133 | CG183: 26150 | CH183: 27284 | CI183: 28444 | CJ183: 29353 | CK183: 30215 | CL183: 30993 | CM183: 31663 | CN183: 32221 | CO183: 32755 | CP183: 33090 | CQ183: 33390
A184: All | B184: 0 | C184: 31371 | D184: 30508 | E184: 29256 | F184: 28103 | G184: 26703 | H184: 25979 | I184: 25960 | J184: 25893 | K184: 26812 | L184: 27707 | M184: 27249 | N184: 26753 | O184: 26790 | P184: 26832 | Q184: 27373 | R184: 27601 | S184: 27764 | T184: 27368 | U184: 26348 | V184: 25930 | W184: 25898 | X184: 25673 | Y184: 24626 | Z184: 24308 | AA184: 23831 | AB184: 23668 | AC184: 24428 | AD184: 23574 | AE184: 23231 | AF184: 22248 | AG184: 21541 | AH184: 21297 | AI184: 21290 | AJ184: 21946 | AK184: 22525 | AL184: 22693 | AM184: 23823 | AN184: 25237 | AO184: 25249 | AP184: 24964 | AQ184: 25364 | AR184: 25307 | AS184: 24631 | AT184: 24255 | AU184: 24249 | AV184: 24486 | AW184: 23686 | AX184: 23156 | AY184: 22695 | AZ184: 22454 | BA184: 22244 | BB184: 22001 | BC184: 21798 | BD184: 21645 | BE184: 21485 | BF184: 21317 | BG184: 21158 | BH184: 21013 | BI184: 20896 | BJ184: 20812 | BK184: 20759 | BL184: 20737 | BM184: 20749 | BN184: 20802 | BO184: 20893 | BP184: 21021 | BQ184: 21185 | BR184: 21366 | BS184: 21548 | BT184: 21716 | BU184: 21858 | BV184: 21968 | BW184: 22042 | BX184: 22055 | BY184: 22024 | BZ184: 21947 | CA184: 21842 | CB184: 21698 | CC184: 21528 | CD184: 21339 | CE184: 21145 | CF184: 20945 | CG184: 20756 | CH184: 20573 | CI184: 20399 | CJ184: 20246 | CK184: 20105 | CL184: 19992 | CM184: 19894 | CN184: 19818 | CO184: 19765 | CP184: 19731 | CQ184: 19715
A185: All | B185: 1 | C185: 31389 | D185: 30765 | E185: 29794 | F185: 28816 | G185: 27696 | H185: 26383 | I185: 25678 | J185: 25661 | K185: 25706 | L185: 26646 | M185: 27870 | N185: 27146 | O185: 26608 | P185: 26662 | Q185: 26753 | R185: 27172 | S185: 27368 | T185: 27503 | U185: 27120 | V185: 26226 | W185: 25992 | X185: 25989 | Y185: 25681 | Z185: 24593 | AA185: 24380 | AB185: 24031 | AC185: 23731 | AD185: 24432 | AE185: 23622 | AF185: 23202 | AG185: 22227 | AH185: 21444 | AI185: 21206 | AJ185: 21153 | AK185: 22062 | AL185: 22671 | AM185: 22983 | AN185: 24108 | AO185: 25443 | AP185: 25486 | AQ185: 25166 | AR185: 25505 | AS185: 25573 | AT185: 24835 | AU185: 24485 | AV185: 24498 | AW185: 24733 | AX185: 23970 | AY185: 23357 | AZ185: 22895 | BA185: 22646 | BB185: 22427 | BC185: 22175 | BD185: 21973 | BE185: 21811 | BF185: 21652 | BG185: 21485 | BH185: 21325 | BI185: 21178 | BJ185: 21061 | BK185: 20977 | BL185: 20924 | BM185: 20902 | BN185: 20914 | BO185: 20968 | BP185: 21059 | BQ185: 21189 | BR185: 21353 | BS185: 21535 | BT185: 21718 | BU185: 21887 | BV185: 22029 | BW185: 22139 | BX185: 22213 | BY185: 22226 | BZ185: 22196 | CA185: 22119 | CB185: 22014 | CC185: 21869 | CD185: 21699 | CE185: 21510 | CF185: 21315 | CG185: 21115 | CH185: 20926 | CI185: 20741 | CJ185: 20568 | CK185: 20416 | CL185: 20275 | CM185: 20160 | CN185: 20061 | CO185: 19985 | CP185: 19933 | CQ185: 19899
A186: All | B186: 2 | C186: 31578 | D186: 30876 | E186: 30132 | F186: 29410 | G186: 28492 | H186: 27435 | I186: 26139 | J186: 25457 | K186: 25528 | L186: 25598 | M186: 26827 | N186: 27702 | O186: 27104 | P186: 26531 | Q186: 26568 | R186: 26740 | S186: 26988 | T186: 27130 | U186: 27262 | V186: 26918 | W186: 26257 | X186: 25990 | Y186: 26096 | Z186: 25729 | AA186: 24614 | AB186: 24559 | AC186: 24101 | AD186: 23807 | AE186: 24349 | AF186: 23620 | AG186: 23378 | AH186: 22334 | AI186: 21556 | AJ186: 21352 | AK186: 21354 | AL186: 22243 | AM186: 22789 | AN186: 23176 | AO186: 24240 | AP186: 25579 | AQ186: 25600 | AR186: 25230 | AS186: 25545 | AT186: 25730 | AU186: 25018 | AV186: 24656 | AW186: 24651 | AX186: 24917 | AY186: 24185 | AZ186: 23570 | BA186: 23097 | BB186: 22838 | BC186: 22609 | BD186: 22357 | BE186: 22145 | BF186: 21982 | BG186: 21821 | BH186: 21654 | BI186: 21494 | BJ186: 21346 | BK186: 21232 | BL186: 21146 | BM186: 21094 | BN186: 21074 | BO186: 21086 | BP186: 21138 | BQ186: 21228 | BR186: 21361 | BS186: 21525 | BT186: 21706 | BU186: 21890 | BV186: 22059 | BW186: 22203 | BX186: 22313 | BY186: 22388 | BZ186: 22399 | CA186: 22369 | CB186: 22293 | CC186: 22188 | CD186: 22042 | CE186: 21870 | CF186: 21682 | CG186: 21486 | CH186: 21286 | CI186: 21096 | CJ186: 20911 | CK186: 20737 | CL186: 20585 | CM186: 20443 | CN186: 20328 | CO186: 20229 | CP186: 20152 | CQ186: 20099
A187: All | B187: 3 | C187: 31835 | D187: 31077 | E187: 30254 | F187: 29763 | G187: 29091 | H187: 28240 | I187: 27202 | J187: 25923 | K187: 25330 | L187: 25430 | M187: 25746 | N187: 26605 | O187: 27604 | P187: 27070 | Q187: 26421 | R187: 26477 | S187: 26647 | T187: 26737 | U187: 26883 | V187: 27031 | W187: 26807 | X187: 26345 | Y187: 26027 | Z187: 26119 | AA187: 25707 | AB187: 24745 | AC187: 24550 | AD187: 24121 | AE187: 23862 | AF187: 24331 | AG187: 23441 | AH187: 23456 | AI187: 22405 | AJ187: 21622 | AK187: 21471 | AL187: 21555 | AM187: 22362 | AN187: 22892 | AO187: 23228 | AP187: 24288 | AQ187: 25600 | AR187: 25645 | AS187: 25244 | AT187: 25612 | AU187: 25855 | AV187: 25155 | AW187: 24718 | AX187: 24780 | AY187: 25066 | AZ187: 24334 | BA187: 23710 | BB187: 23229 | BC187: 22960 | BD187: 22733 | BE187: 22471 | BF187: 22259 | BG187: 22096 | BH187: 21934 | BI187: 21766 | BJ187: 21604 | BK187: 21456 | BL187: 21341 | BM187: 21255 | BN187: 21203 | BO187: 21183 | BP187: 21195 | BQ187: 21247 | BR187: 21338 | BS187: 21472 | BT187: 21636 | BU187: 21817 | BV187: 22001 | BW187: 22172 | BX187: 22315 | BY187: 22427 | BZ187: 22502 | CA187: 22513 | CB187: 22483 | CC187: 22407 | CD187: 22303 | CE187: 22154 | CF187: 21982 | CG187: 21794 | CH187: 21597 | CI187: 21397 | CJ187: 21206 | CK187: 21020 | CL187: 20846 | CM187: 20694 | CN187: 20551 | CO187: 20436 | CP187: 20337 | CQ187: 20260
A188: All | B188: 4 | C188: 31605 | D188: 31339 | E188: 30461 | F188: 29901 | G188: 29454 | H188: 28847 | I188: 28018 | J188: 26990 | K188: 25799 | L188: 25230 | M188: 25099 | N188: 25555 | O188: 26480 | P188: 27526 | Q188: 27019 | R188: 26312 | S188: 26328 | T188: 26504 | U188: 26511 | V188: 26671 | W188: 26923 | X188: 26848 | Y188: 26412 | Z188: 26002 | AA188: 26116 | AB188: 25869 | AC188: 24803 | AD188: 24508 | AE188: 24128 | AF188: 23929 | AG188: 24311 | AH188: 23557 | AI188: 23514 | AJ188: 22476 | AK188: 21756 | AL188: 21642 | AM188: 21757 | AN188: 22442 | AO188: 22794 | AP188: 23273 | AQ188: 24364 | AR188: 25637 | AS188: 25680 | AT188: 25349 | AU188: 25709 | AV188: 25974 | AW188: 25213 | AX188: 24913 | AY188: 24905 | AZ188: 25192 | BA188: 24449 | BB188: 23817 | BC188: 23329 | BD188: 23058 | BE188: 22822 | BF188: 22561 | BG188: 22348 | BH188: 22185 | BI188: 22022 | BJ188: 21853 | BK188: 21692 | BL188: 21543 | BM188: 21427 | BN188: 21341 | BO188: 21288 | BP188: 21268 | BQ188: 21280 | BR188: 21332 | BS188: 21423 | BT188: 21557 | BU188: 21721 | BV188: 21903 | BW188: 22087 | BX188: 22258 | BY188: 22401 | BZ188: 22515 | CA188: 22591 | CB188: 22603 | CC188: 22573 | CD188: 22497 | CE188: 22392 | CF188: 22243 | CG188: 22071 | CH188: 21882 | CI188: 21685 | CJ188: 21484 | CK188: 21294 | CL188: 21106 | CM188: 20932 | CN188: 20780 | CO188: 20636 | CP188: 20521 | CQ188: 20422
A189: All | B189: 5 | C189: 32476 | D189: 31369 | E189: 30988 | F189: 30276 | G189: 29721 | H189: 29316 | I189: 28707 | J189: 27871 | K189: 26900 | L189: 25739 | M189: 25103 | N189: 24973 | O189: 25498 | P189: 26421 | Q189: 27474 | R189: 27025 | S189: 26207 | T189: 26199 | U189: 26433 | V189: 26360 | W189: 26617 | X189: 26968 | Y189: 26864 | Z189: 26395 | AA189: 26008 | AB189: 26200 | AC189: 25838 | AD189: 24815 | AE189: 24459 | AF189: 24099 | AG189: 23655 | AH189: 24294 | AI189: 23602 | AJ189: 23528 | AK189: 22629 | AL189: 21873 | AM189: 21784 | AN189: 21878 | AO189: 22390 | AP189: 22710 | AQ189: 23211 | AR189: 24328 | AS189: 25601 | AT189: 25692 | AU189: 25414 | AV189: 25781 | AW189: 26062 | AX189: 25299 | AY189: 25018 | AZ189: 25011 | BA189: 25290 | BB189: 24541 | BC189: 23900 | BD189: 23411 | BE189: 23132 | BF189: 22896 | BG189: 22634 | BH189: 22420 | BI189: 22256 | BJ189: 22093 | BK189: 21925 | BL189: 21763 | BM189: 21614 | BN189: 21497 | BO189: 21412 | BP189: 21358 | BQ189: 21338 | BR189: 21351 | BS189: 21403 | BT189: 21493 | BU189: 21627 | BV189: 21792 | BW189: 21974 | BX189: 22159 | BY189: 22330 | BZ189: 22472 | CA189: 22588 | CB189: 22664 | CC189: 22676 | CD189: 22647 | CE189: 22572 | CF189: 22466 | CG189: 22316 | CH189: 22143 | CI189: 21953 | CJ189: 21757 | CK189: 21556 | CL189: 21364 | CM189: 21177 | CN189: 21003 | CO189: 20850 | CP189: 20706 | CQ189: 20591
A190: All | B190: 6 | C190: 33161 | D190: 32248 | E190: 31024 | F190: 30812 | G190: 30104 | H190: 29532 | I190: 29181 | J190: 28564 | K190: 27737 | L190: 26848 | M190: 25624 | N190: 24914 | O190: 24831 | P190: 25351 | Q190: 26247 | R190: 27326 | S190: 26871 | T190: 25953 | U190: 25978 | V190: 26284 | W190: 26204 | X190: 26746 | Y190: 27050 | Z190: 26837 | AA190: 26380 | AB190: 26100 | AC190: 26215 | AD190: 25832 | AE190: 24862 | AF190: 24408 | AG190: 24116 | AH190: 23695 | AI190: 24312 | AJ190: 23603 | AK190: 23617 | AL190: 22756 | AM190: 21991 | AN190: 21852 | AO190: 21839 | AP190: 22372 | AQ190: 22581 | AR190: 23200 | AS190: 24360 | AT190: 25658 | AU190: 25729 | AV190: 25462 | AW190: 25885 | AX190: 26150 | AY190: 25382 | AZ190: 25099 | BA190: 25085 | BB190: 25358 | BC190: 24603 | BD190: 23962 | BE190: 23465 | BF190: 23185 | BG190: 22948 | BH190: 22684 | BI190: 22472 | BJ190: 22307 | BK190: 22144 | BL190: 21976 | BM190: 21814 | BN190: 21665 | BO190: 21548 | BP190: 21462 | BQ190: 21408 | BR190: 21389 | BS190: 21402 | BT190: 21454 | BU190: 21543 | BV190: 21679 | BW190: 21843 | BX190: 22023 | BY190: 22210 | BZ190: 22382 | CA190: 22524 | CB190: 22640 | CC190: 22716 | CD190: 22728 | CE190: 22699 | CF190: 22624 | CG190: 22518 | CH190: 22366 | CI190: 22193 | CJ190: 22004 | CK190: 21808 | CL190: 21605 | CM190: 21413 | CN190: 21226 | CO190: 21054 | CP190: 20900 | CQ190: 20755
A191: All | B191: 7 | C191: 32509 | D191: 32930 | E191: 31896 | F191: 30841 | G191: 30632 | H191: 29966 | I191: 29395 | J191: 29034 | K191: 28471 | L191: 27679 | M191: 26745 | N191: 25497 | O191: 24879 | P191: 24795 | Q191: 25287 | R191: 26171 | S191: 27236 | T191: 26789 | U191: 25824 | V191: 25879 | W191: 26305 | X191: 26329 | Y191: 26774 | Z191: 27063 | AA191: 26848 | AB191: 26482 | AC191: 26109 | AD191: 26202 | AE191: 25731 | AF191: 24846 | AG191: 24388 | AH191: 24150 | AI191: 23742 | AJ191: 24357 | AK191: 23754 | AL191: 23729 | AM191: 22893 | AN191: 22106 | AO191: 21895 | AP191: 21856 | AQ191: 22326 | AR191: 22608 | AS191: 23239 | AT191: 24450 | AU191: 25752 | AV191: 25809 | AW191: 25559 | AX191: 25961 | AY191: 26240 | AZ191: 25472 | BA191: 25181 | BB191: 25161 | BC191: 25429 | BD191: 24674 | BE191: 24026 | BF191: 23528 | BG191: 23249 | BH191: 23011 | BI191: 22747 | BJ191: 22535 | BK191: 22369 | BL191: 22206 | BM191: 22037 | BN191: 21874 | BO191: 21725 | BP191: 21608 | BQ191: 21522 | BR191: 21469 | BS191: 21450 | BT191: 21463 | BU191: 21514 | BV191: 21603 | BW191: 21738 | BX191: 21902 | BY191: 22083 | BZ191: 22272 | CA191: 22444 | CB191: 22586 | CC191: 22702 | CD191: 22777 | CE191: 22789 | CF191: 22758 | CG191: 22684 | CH191: 22578 | CI191: 22427 | CJ191: 22253 | CK191: 22066 | CL191: 21870 | CM191: 21665 | CN191: 21473 | CO191: 21285 | CP191: 21113 | CQ191: 20960
A192: All | B192: 8 | C192: 31330 | D192: 32283 | E192: 32582 | F192: 31722 | G192: 30666 | H192: 30491 | I192: 29825 | J192: 29249 | K192: 28938 | L192: 28420 | M192: 27603 | N192: 26561 | O192: 25424 | P192: 24853 | Q192: 24743 | R192: 25227 | S192: 26053 | T192: 27112 | U192: 26716 | V192: 25709 | W192: 25842 | X192: 26346 | Y192: 26466 | Z192: 26804 | AA192: 27079 | AB192: 26911 | AC192: 26475 | AD192: 26129 | AE192: 26171 | AF192: 25666 | AG192: 24706 | AH192: 24450 | AI192: 24196 | AJ192: 23810 | AK192: 24383 | AL192: 23872 | AM192: 23873 | AN192: 22980 | AO192: 22139 | AP192: 21908 | AQ192: 21814 | AR192: 22347 | AS192: 22656 | AT192: 23344 | AU192: 24536 | AV192: 25830 | AW192: 25892 | AX192: 25695 | AY192: 26063 | AZ192: 26343 | BA192: 25568 | BB192: 25270 | BC192: 25245 | BD192: 25514 | BE192: 24753 | BF192: 24104 | BG192: 23606 | BH192: 23326 | BI192: 23088 | BJ192: 22824 | BK192: 22611 | BL192: 22445 | BM192: 22281 | BN192: 22112 | BO192: 21948 | BP192: 21799 | BQ192: 21681 | BR192: 21596 | BS192: 21543 | BT192: 21524 | BU192: 21537 | BV192: 21587 | BW192: 21676 | BX192: 21811 | BY192: 21976 | BZ192: 22158 | CA192: 22346 | CB192: 22518 | CC192: 22660 | CD192: 22776 | CE192: 22851 | CF192: 22864 | CG192: 22833 | CH192: 22760 | CI192: 22653 | CJ192: 22502 | CK192: 22329 | CL192: 22142 | CM192: 21946 | CN192: 21740 | CO192: 21547 | CP192: 21359 | CQ192: 21188
A193: All | B193: 9 | C193: 30222 | D193: 31097 | E193: 31932 | F193: 32408 | G193: 31545 | H193: 30524 | I193: 30355 | J193: 29686 | K193: 29157 | L193: 28886 | M193: 28355 | N193: 27438 | O193: 26452 | P193: 25390 | Q193: 24845 | R193: 24728 | S193: 25160 | T193: 25937 | U193: 27033 | V193: 26687 | W193: 25694 | X193: 25948 | Y193: 26348 | Z193: 26510 | AA193: 26879 | AB193: 27160 | AC193: 26897 | AD193: 26477 | AE193: 26055 | AF193: 26166 | AG193: 25779 | AH193: 24714 | AI193: 24509 | AJ193: 24252 | AK193: 23935 | AL193: 24453 | AM193: 24010 | AN193: 23922 | AO193: 23017 | AP193: 22123 | AQ193: 21889 | AR193: 21828 | AS193: 22389 | AT193: 22706 | AU193: 23393 | AV193: 24643 | AW193: 25899 | AX193: 26010 | AY193: 25791 | AZ193: 26160 | BA193: 26433 | BB193: 25653 | BC193: 25349 | BD193: 25323 | BE193: 25588 | BF193: 24827 | BG193: 24176 | BH193: 23678 | BI193: 23398 | BJ193: 23158 | BK193: 22894 | BL193: 22682 | BM193: 22514 | BN193: 22351 | BO193: 22183 | BP193: 22020 | BQ193: 21870 | BR193: 21750 | BS193: 21665 | BT193: 21613 | BU193: 21594 | BV193: 21607 | BW193: 21657 | BX193: 21746 | BY193: 21882 | BZ193: 22048 | CA193: 22231 | CB193: 22418 | CC193: 22590 | CD193: 22733 | CE193: 22849 | CF193: 22924 | CG193: 22937 | CH193: 22905 | CI193: 22832 | CJ193: 22724 | CK193: 22573 | CL193: 22401 | CM193: 22213 | CN193: 22016 | CO193: 21811 | CP193: 21619 | CQ193: 21430
A194: All | B194: 10 | C194: 29219 | D194: 30145 | E194: 30911 | F194: 31865 | G194: 32308 | H194: 31473 | I194: 30444 | J194: 30253 | K194: 29591 | L194: 29131 | M194: 28954 | N194: 28013 | O194: 27366 | P194: 26393 | Q194: 25384 | R194: 24876 | S194: 24711 | T194: 25114 | U194: 25875 | V194: 27008 | W194: 26757 | X194: 25772 | Y194: 26071 | Z194: 26374 | AA194: 26618 | AB194: 26985 | AC194: 27150 | AD194: 26930 | AE194: 26400 | AF194: 26035 | AG194: 26083 | AH194: 25700 | AI194: 24719 | AJ194: 24571 | AK194: 24333 | AL194: 24071 | AM194: 24569 | AN194: 24173 | AO194: 23975 | AP194: 23022 | AQ194: 22139 | AR194: 21939 | AS194: 21841 | AT194: 22481 | AU194: 22775 | AV194: 23470 | AW194: 24708 | AX194: 26010 | AY194: 26099 | AZ194: 25880 | BA194: 26244 | BB194: 26513 | BC194: 25728 | BD194: 25423 | BE194: 25391 | BF194: 25656 | BG194: 24896 | BH194: 24241 | BI194: 23744 | BJ194: 23465 | BK194: 23225 | BL194: 22961 | BM194: 22748 | BN194: 22578 | BO194: 22415 | BP194: 22249 | BQ194: 22085 | BR194: 21934 | BS194: 21816 | BT194: 21731 | BU194: 21679 | BV194: 21660 | BW194: 21673 | BX194: 21723 | BY194: 21812 | BZ194: 21948 | CA194: 22113 | CB194: 22297 | CC194: 22484 | CD194: 22656 | CE194: 22800 | CF194: 22915 | CG194: 22990 | CH194: 23004 | CI194: 22972 | CJ194: 22899 | CK194: 22791 | CL194: 22640 | CM194: 22469 | CN194: 22280 | CO194: 22083 | CP194: 21879 | CQ194: 21685
A195: All | B195: 11 | C195: 28210 | D195: 29142 | E195: 29963 | F195: 30841 | G195: 31766 | H195: 32233 | I195: 31391 | J195: 30342 | K195: 30162 | L195: 29567 | M195: 29205 | N195: 28689 | O195: 27720 | P195: 27297 | Q195: 26313 | R195: 25372 | S195: 24874 | T195: 24675 | U195: 25071 | V195: 25812 | W195: 27007 | X195: 26737 | Y195: 25916 | Z195: 26183 | AA195: 26389 | AB195: 26790 | AC195: 27038 | AD195: 27178 | AE195: 26914 | AF195: 26380 | AG195: 26140 | AH195: 26045 | AI195: 25605 | AJ195: 24714 | AK195: 24661 | AL195: 24470 | AM195: 24223 | AN195: 24648 | AO195: 24258 | AP195: 23990 | AQ195: 23027 | AR195: 22166 | AS195: 21974 | AT195: 21951 | AU195: 22543 | AV195: 22860 | AW195: 23547 | AX195: 24809 | AY195: 26101 | AZ195: 26190 | BA195: 25966 | BB195: 26329 | BC195: 26591 | BD195: 25806 | BE195: 25496 | BF195: 25464 | BG195: 25729 | BH195: 24968 | BI195: 24314 | BJ195: 23815 | BK195: 23536 | BL195: 23297 | BM195: 23032 | BN195: 22818 | BO195: 22647 | BP195: 22484 | BQ195: 22319 | BR195: 22155 | BS195: 22004 | BT195: 21885 | BU195: 21800 | BV195: 21748 | BW195: 21729 | BX195: 21744 | BY195: 21794 | BZ195: 21883 | CA195: 22019 | CB195: 22185 | CC195: 22369 | CD195: 22555 | CE195: 22727 | CF195: 22871 | CG195: 22988 | CH195: 23063 | CI195: 23077 | CJ195: 23045 | CK195: 22972 | CL195: 22864 | CM195: 22712 | CN195: 22540 | CO195: 22350 | CP195: 22153 | CQ195: 21949
A196: All | B196: 12 | C196: 27213 | D196: 28140 | E196: 28970 | F196: 29896 | G196: 30744 | H196: 31692 | I196: 32150 | J196: 31283 | K196: 30252 | L196: 30135 | M196: 29644 | N196: 28956 | O196: 28444 | P196: 27412 | Q196: 27197 | R196: 26217 | S196: 25313 | T196: 24831 | U196: 24627 | V196: 25011 | W196: 25797 | X196: 26946 | Y196: 26690 | Z196: 25939 | AA196: 26312 | AB196: 26471 | AC196: 26901 | AD196: 27061 | AE196: 27149 | AF196: 26968 | AG196: 26349 | AH196: 26112 | AI196: 26015 | AJ196: 25541 | AK196: 24788 | AL196: 24767 | AM196: 24593 | AN196: 24370 | AO196: 24729 | AP196: 24325 | AQ196: 24029 | AR196: 23057 | AS196: 22192 | AT196: 22058 | AU196: 22056 | AV196: 22619 | AW196: 22939 | AX196: 23642 | AY196: 24899 | AZ196: 26193 | BA196: 26280 | BB196: 26050 | BC196: 26408 | BD196: 26670 | BE196: 25882 | BF196: 25570 | BG196: 25538 | BH196: 25803 | BI196: 25043 | BJ196: 24387 | BK196: 23888 | BL196: 23609 | BM196: 23370 | BN196: 23106 | BO196: 22891 | BP196: 22719 | BQ196: 22556 | BR196: 22391 | BS196: 22228 | BT196: 22077 | BU196: 21958 | BV196: 21873 | BW196: 21821 | BX196: 21802 | BY196: 21818 | BZ196: 21868 | CA196: 21957 | CB196: 22093 | CC196: 22260 | CD196: 22445 | CE196: 22629 | CF196: 22802 | CG196: 22945 | CH196: 23064 | CI196: 23139 | CJ196: 23153 | CK196: 23121 | CL196: 23048 | CM196: 22940 | CN196: 22787 | CO196: 22615 | CP196: 22424 | CQ196: 22228
A197: All | B197: 13 | C197: 27323 | D197: 27136 | E197: 27965 | F197: 28905 | G197: 29798 | H197: 30673 | I197: 31611 | J197: 32045 | K197: 31187 | L197: 30226 | M197: 30223 | N197: 29482 | O197: 28771 | P197: 28237 | Q197: 27119 | R197: 27127 | S197: 26116 | T197: 25268 | U197: 24825 | V197: 24618 | W197: 25029 | X197: 25723 | Y197: 26907 | Z197: 26658 | AA197: 25976 | AB197: 26473 | AC197: 26493 | AD197: 26977 | AE197: 27076 | AF197: 27115 | AG197: 26918 | AH197: 26320 | AI197: 26094 | AJ197: 25999 | AK197: 25492 | AL197: 24888 | AM197: 24915 | AN197: 24671 | AO197: 24429 | AP197: 24751 | AQ197: 24369 | AR197: 24066 | AS197: 23096 | AT197: 22297 | AU197: 22130 | AV197: 22146 | AW197: 22690 | AX197: 23070 | AY197: 23735 | AZ197: 24993 | BA197: 26285 | BB197: 26368 | BC197: 26133 | BD197: 26492 | BE197: 26749 | BF197: 25962 | BG197: 25650 | BH197: 25618 | BI197: 25883 | BJ197: 25122 | BK197: 24464 | BL197: 23964 | BM197: 23686 | BN197: 23446 | BO197: 23182 | BP197: 22966 | BQ197: 22795 | BR197: 22633 | BS197: 22468 | BT197: 22303 | BU197: 22151 | BV197: 22033 | BW197: 21948 | BX197: 21897 | BY197: 21878 | BZ197: 21894 | CA197: 21944 | CB197: 22033 | CC197: 22169 | CD197: 22336 | CE197: 22521 | CF197: 22705 | CG197: 22878 | CH197: 23022 | CI197: 23141 | CJ197: 23216 | CK197: 23231 | CL197: 23199 | CM197: 23125 | CN197: 23017 | CO197: 22865 | CP197: 22693 | CQ197: 22502
A198: All | B198: 14 | C198: 27172 | D198: 27241 | E198: 26956 | F198: 27893 | G198: 28813 | H198: 29728 | I198: 30594 | J198: 31504 | K198: 31942 | L198: 31155 | M198: 30313 | N198: 29984 | O198: 29340 | P198: 28577 | Q198: 27999 | R198: 26811 | S198: 27012 | T198: 25985 | U198: 25216 | V198: 24805 | W198: 24620 | X198: 25004 | Y198: 25648 | Z198: 26824 | AA198: 26617 | AB198: 26080 | AC198: 26578 | AD198: 26530 | AE198: 27005 | AF198: 27090 | AG198: 27241 | AH198: 26890 | AI198: 26300 | AJ198: 26058 | AK198: 25983 | AL198: 25471 | AM198: 24994 | AN198: 25025 | AO198: 24760 | AP198: 24499 | AQ198: 24784 | AR198: 24441 | AS198: 24134 | AT198: 23162 | AU198: 22357 | AV198: 22216 | AW198: 22238 | AX198: 22791 | AY198: 23158 | AZ198: 23826 | BA198: 25081 | BB198: 26369 | BC198: 26447 | BD198: 26214 | BE198: 26568 | BF198: 26827 | BG198: 26039 | BH198: 25725 | BI198: 25693 | BJ198: 25958 | BK198: 25197 | BL198: 24539 | BM198: 24038 | BN198: 23759 | BO198: 23519 | BP198: 23256 | BQ198: 23039 | BR198: 22868 | BS198: 22706 | BT198: 22541 | BU198: 22375 | BV198: 22223 | BW198: 22105 | BX198: 22020 | BY198: 21969 | BZ198: 21950 | CA198: 21966 | CB198: 22015 | CC198: 22104 | CD198: 22241 | CE198: 22410 | CF198: 22594 | CG198: 22778 | CH198: 22952 | CI198: 23096 | CJ198: 23215 | CK198: 23290 | CL198: 23305 | CM198: 23273 | CN198: 23198 | CO198: 23091 | CP198: 22940 | CQ198: 22768
A199: All | B199: 15 | C199: 26131 | D199: 26389 | E199: 26345 | F199: 26418 | G199: 27451 | H199: 28455 | I199: 29406 | J199: 30301 | K199: 31318 | L199: 31615 | M199: 29498 | N199: 30027 | O199: 29742 | P199: 29183 | Q199: 28356 | R199: 27739 | S199: 26467 | T199: 26868 | U199: 25847 | V199: 25146 | W199: 24790 | X199: 24605 | Y199: 24952 | Z199: 25561 | AA199: 26703 | AB199: 26603 | AC199: 26141 | AD199: 26679 | AE199: 26496 | AF199: 27086 | AG199: 27260 | AH199: 27198 | AI199: 26842 | AJ199: 26265 | AK199: 26027 | AL199: 25995 | AM199: 25514 | AN199: 25005 | AO199: 25135 | AP199: 24813 | AQ199: 24543 | AR199: 24837 | AS199: 24452 | AT199: 24203 | AU199: 23199 | AV199: 22396 | AW199: 22264 | AX199: 22337 | AY199: 22863 | AZ199: 23233 | BA199: 23897 | BB199: 25147 | BC199: 26431 | BD199: 26510 | BE199: 26272 | BF199: 26627 | BG199: 26886 | BH199: 26099 | BI199: 25785 | BJ199: 25753 | BK199: 26018 | BL199: 25256 | BM199: 24598 | BN199: 24098 | BO199: 23818 | BP199: 23578 | BQ199: 23315 | BR199: 23098 | BS199: 22926 | BT199: 22764 | BU199: 22599 | BV199: 22433 | BW199: 22280 | BX199: 22162 | BY199: 22077 | BZ199: 22027 | CA199: 22008 | CB199: 22024 | CC199: 22073 | CD199: 22162 | CE199: 22299 | CF199: 22468 | CG199: 22652 | CH199: 22836 | CI199: 23010 | CJ199: 23155 | CK199: 23274 | CL199: 23349 | CM199: 23363 | CN199: 23332 | CO199: 23257 | CP199: 23150 | CQ199: 22998
A200: All | B200: 16 | C200: 25297 | D200: 25358 | E200: 25505 | F200: 25802 | G200: 25983 | H200: 27094 | I200: 28137 | J200: 29115 | K200: 30114 | L200: 30989 | M200: 29967 | N200: 29393 | O200: 29806 | P200: 29561 | Q200: 29071 | R200: 28189 | S200: 27519 | T200: 26166 | U200: 26782 | V200: 25763 | W200: 25166 | X200: 24669 | Y200: 24607 | Z200: 24889 | AA200: 25462 | AB200: 26616 | AC200: 26512 | AD200: 26163 | AE200: 26717 | AF200: 26433 | AG200: 27269 | AH200: 27207 | AI200: 27164 | AJ200: 26798 | AK200: 26254 | AL200: 26040 | AM200: 25991 | AN200: 25497 | AO200: 25066 | AP200: 25177 | AQ200: 24863 | AR200: 24565 | AS200: 24836 | AT200: 24509 | AU200: 24271 | AV200: 23263 | AW200: 22443 | AX200: 22355 | AY200: 22406 | AZ200: 22931 | BA200: 23297 | BB200: 23957 | BC200: 25203 | BD200: 26489 | BE200: 26564 | BF200: 26326 | BG200: 26681 | BH200: 26939 | BI200: 26153 | BJ200: 25839 | BK200: 25807 | BL200: 26071 | BM200: 25309 | BN200: 24652 | BO200: 24151 | BP200: 23870 | BQ200: 23631 | BR200: 23368 | BS200: 23150 | BT200: 22980 | BU200: 22819 | BV200: 22654 | BW200: 22488 | BX200: 22335 | BY200: 22217 | BZ200: 22132 | CA200: 22082 | CB200: 22063 | CC200: 22079 | CD200: 22128 | CE200: 22217 | CF200: 22354 | CG200: 22523 | CH200: 22707 | CI200: 22891 | CJ200: 23065 | CK200: 23210 | CL200: 23329 | CM200: 23404 | CN200: 23418 | CO200: 23387 | CP200: 23312 | CQ200: 23205
... 356 more rows

Sheet Landing
B2: Population Statistics Analysis Package
B4: This package is a macro enabled Excel workbook which provides the functionality to explore population estimates and projections from 1971 through to 2063. It allows users to select relevant years of interest or population sub-groups in order to return or chart the relevant statistics.
B8: The following functionality is provided:
B10: Population Comparison:
B11: Provides the functionality to select years of interest in order to return information relating to population by sex and age.
B12: Population Proportion
B13: Allows users to select years of interest and population sub-groups (by age) in order to update the chart which shows the proportion of the overall popualtion in each year which is made up by the selected sub-groups.
B15: Population Pyramid
B16: Allows users to select years of interest to return information relating to the age/sex breakdown of the poppulation in the form of a population pyramid. The pyramid can be played to visualise how the structure of the population changes over a time series.
B18: Dependency Ratios
B19: Users can select years of interest and population sub-groups (by age) in order to update the charts to show the dependency ratios. Dependency ratios relate to the ratio between one population age group and another.
B21: Popuilation Share
B22: This chart provides the population share that Northern Ireland has of a number of regions in the UK. Users can select the years of interest and the region that they are interested in.
B24: Households
B25: Allows users to select years of interest and household sub-categories in order to update the chart. The source of the information is the most recently available Household Projections.
B27: LGDs
B28: Provides the functionality to chart information relating to the growth and ageing of Northern Ireland's Local Government Districts (LGDs). The information can be played across the time series to visualise the changes.

Sheet Population Comparison
B2: Population by age and gender
B3: This section allows you to enter years of reference (current, past and future) in order to obtain population figures.
B4: Main age groups of interest are provided but custom age groups are also available to select below.
B7: Select current year: | F7: =Data!$B$312 -> All | G7: =Data!B309 -> 2063 | I7: =Data!B310 -> 2062 | K7: =Data!B311 -> 2063 | N7: =G7&" to "&I7 -> 2063 to 2062 | P7: =I7&" to "&K7 -> 2062 to 2063 | R7: =G7&" to "&K7 -> 2063 to 2063
G8: Population | H8: Proportion | I8: Population | J8: Proportion | K8: Population | L8: Proportion | N8: Change | O8: % change | P8: Change | Q8: % change | R8: Change | S8: % change
B9: Select previous year: | F9: Aged 0-15 | G9: =OFFSET(Data!$B$276,MATCH(Data!$B$312,Data!$A$277:$A$300,0),Data!$B$305) -> 339449 | H9: =G9/G$13 -> 0.1720811514 | I9: =OFFSET(Data!$B$276,MATCH(Data!$B$312,Data!$A$277:$A$300,0),Data!$B$306) -> 341610 | J9: =I9/I$13 -> 0.1729520265 | K9: =OFFSET(Data!$B$276,MATCH(Data!$B$312,Data!$A$277:$A$300,0),Data!$B$307) -> 339449 | L9: =K9/K$13 -> 0.1720811514 | N9: =IF(G$7<=I$7,I9-G9,"invalid") -> invalid | O9: =IF(N9<>"invalid",(I9/G9-1),"invalid") -> invalid | P9: =IF(I$7<=K$7,K9-I9,"invalid") -> -2161 | Q9: =IF(P9<>"invalid",(K9/I9-1),"invalid") -> -0.006325927227 | R9: =IF(G$7<=K$7,K9-G9,"invalid") -> 0 | S9: =IF(R9<>"invalid",(K9/G9-1),"invalid") -> 0
F10: Aged 16-64 | G10: =OFFSET(Data!$B$276,MATCH(Data!$B$312,Data!$A$277:$A$300,0)+1,Data!$B$305) -> 1095623 | H10: =G10/G$13 -> 0.5554179488 | I10: =OFFSET(Data!$B$276,MATCH(Data!$B$312,Data!$A$277:$A$300,0)+1,Data!$B$306) -> 1096617 | J10: 0.5552007623 | K10: =OFFSET(Data!$B$276,MATCH(Data!$B$312,Data!$A$277:$A$300,0)+1,Data!$B$307) -> 1095623 | L10: =K10/K$13 -> 0.5554179488 | N10: =IF(G$7<=I$7,I10-G10,"invalid") -> invalid | O10: =IF(N10<>"invalid",(I10/G10-1),"invalid") -> invalid | P10: =IF(I$7<=K$7,K10-I10,"invalid") -> -994 | Q10: =IF(P10<>"invalid",(K10/I10-1),"invalid") -> -0.0009064240295 | R10: =IF(G$7<=K$7,K10-G10,"invalid") -> 0 | S10: =IF(R10<>"invalid",(K10/G10-1),"invalid") -> 0
B11: Select future year: | F11: Aged 65+ | G11: =OFFSET(Data!$B$276,MATCH(Data!$B$312,Data!$A$277:$A$300,0)+2,Data!$B$305) -> 537538 | H11: 0.2725008998 | I11: =OFFSET(Data!$B$276,MATCH(Data!$B$312,Data!$A$277:$A$300,0)+2,Data!$B$306) -> 536945 | J11: 0.2718472113 | K11: =OFFSET(Data!$B$276,MATCH(Data!$B$312,Data!$A$277:$A$300,0)+2,Data!$B$307) -> 537538 | L11: =K11/K$13 -> 0.2725008998 | N11: invalid | O11: invalid | P11: 593 | Q11: 0.001104396167 | R11: 0 | S11: 0
F12: Aged 85+ | G12: =OFFSET(Data!$B$276,MATCH(Data!$B$312,Data!$A$277:$A$300,0)+3,Data!$B$305) -> 117548 | H12: 0.05959008623 | I12: =OFFSET(Data!$B$276,MATCH(Data!$B$312,Data!$A$277:$A$300,0)+3,Data!$B$306) -> 117415 | J12: 0.05944545589 | K12: =OFFSET(Data!$B$276,MATCH(Data!$B$312,Data!$A$277:$A$300,0)+3,Data!$B$307) -> 117548 | L12: =K12/K$13 -> 0.05959008623 | N12: invalid | O12: invalid | P12: 133 | Q12: 0.001132734318 | R12: 0 | S12: 0
B13: Select gender: | F13: All persons | G13: =OFFSET(Data!$B$276,MATCH(Data!$B$312,Data!$A$277:$A$300,0)+4,Data!$B$305) -> 1972610 | H13: 1 | I13: =OFFSET(Data!$B$276,MATCH(Data!$B$312,Data!$A$277:$A$300,0)+4,Data!$B$306) -> 1975172 | J13: 1 | K13: =OFFSET(Data!$B$276,MATCH(Data!$B$312,Data!$A$277:$A$300,0)+4,Data!$B$307) -> 1972610 | L13: =K13/K$13 -> 1 | N13: invalid | O13: invalid | P13: -2562 | Q13: -0.001297102227 | R13: 0 | S13: 0
F14: Median age | G14: =OFFSET(Data!$B$276,MATCH(Data!$B$312,Data!$A$277:$A$300,0)+5,Data!$B$305) -> 45.78037823 | I14: =OFFSET(Data!$B$276,MATCH(Data!$B$312,Data!$A$277:$A$300,0)+5,Data!$B$306) -> 45.67051999 | K14: =OFFSET(Data!$B$276,MATCH(Data!$B$312,Data!$A$277:$A$300,0)+5,Data!$B$307) -> 45.78037823 | N14: =IF(G7<=I7,I14-G14,"invalid") -> invalid | P14: =IF(I7<=K7,K14-I14,"invalid") -> 0.10985824 | R14: =IF(G7<=K7,K14-G14,"invalid") -> 0
B16: Custom age selection
B17: This section allows you to choose your own custom ages for which the population information is provided.
B18: Simply select the lower and upper bound of your age band (note that 90 refers to 90+)
B20: Select lower bound: | F20: =Data!$B$312 -> All | G20: =G7 -> 2063 | I20: =I7 -> 2062 | K20: =K7 -> 2063 | N20: =G20&" to "&I20 -> 2063 to 2062 | P20: =I20&" to "&K20 -> 2062 to 2063 | R20: =G20&" to "&K20 -> 2063 to 2063
G21: Population | H21: Proportion | I21: Population | J21: Proportion | K21: Population | L21: Proportion | N21: Change | O21: % change | P21: Change | Q21: % change | R21: Change | S21: % change
B22: Select upper bound: | F22: =IF(Data!B316<=Data!B317,IF(Data!B317=90,"Aged "&Data!B316&"+","Aged "&Data!B316&"-"&Data!B317),"invalid") -> Aged 12+ | G22: =IF(Data!$B$315>=Data!$B$314,SUM(OFFSET(Data!$B$1,MATCH(Data!$B$312,Data!$A$2:$A$274,0)+Data!$B$314-1,Data!$B$305,Data!$B$315-Data!$B$314+1,1)),"invalid") -> 1723657 | H22: =IF(G22<>"invalid",G22/G$13,"invalid") -> 0.8737951242 | I22: =IF(Data!$B$315>=Data!$B$314,SUM(OFFSET(Data!$B$1,MATCH(Data!$B$312,Data!$A$2:$A$274,0)+Data!$B$314-1,Data!$B$306,Data!$B$315-Data!$B$314+1,1)),"invalid") -> 1724769 | J22: =IF(I22<>"invalid",I22/I$13,"invalid") -> 0.8732247116 | K22: =IF(Data!$B$315>=Data!$B$314,SUM(OFFSET(Data!$B$1,MATCH(Data!$B$312,Data!$A$2:$A$274,0)+Data!$B$314-1,Data!$B$307,Data!$B$315-Data!$B$314+1,1)),"invalid") -> 1723657 | L22: =IF(K22<>"invalid",K22/K$13,"invalid") -> 0.8737951242 | N22: =IF(AND(G22<>"invalid",G20<=I20),I22-G22,"invalid") -> invalid | O22: =IF(N22<>"invalid",(I22/G22-1),"invalid") -> invalid | P22: =IF(AND(I22<>"invalid",I20<=K20),K22-I22,"invalid") -> -1112 | Q22: =IF(P22<>"invalid",(K22/I22-1),"invalid") -> -0.0006447240181 | R22: =IF(AND(G22<>"invalid",G20<=K20),K22-G22,"invalid") -> 0 | S22: =IF(R22<>"invalid",(K22/G22-1),"invalid") -> 0

Sheet Population Proportion
B2: Population Proportion
B3: The following chart displays the time series for selected age groups as a proportion of the population. Simply select the years of interest, the gender (Males, Females or All persons) and the age groups of interest.
B4: Alternatively you can define a custom age band by checking the "custom" box and entering lower and upper bounds of your age group of interest (use the same value in the lower and upper bound for single years of age).
B6: Select start year:
B8: Select end year:
B10: Select gender:
B12: Select age group:
B13: (select any: check on or off)
C14: Children (aged 0-15)
C15: Aged 16-39
C16: Aged 40-64
C17: Aged 16-64
C18: Aged 60+
C19: Aged 65+
C20: Custom
C21: Enter lower bound: | D21: 0
C22: Enter upper bound: | D22: 4
D23: =IF(AND(D21<>"",D22<>"",D22<D21),"Invalid age band","") -> 
D24: =IF(AND(D21<>"",D22<>"",D22<D21),"Please try again","") -> 

Sheet Population Pyramid
B2: Population pyramids
B3: This section shows how the age-sex distribution of the population changes over time in the form of population pyramids.
B4: It also provides population data for some pre-defined and custom age groups in the table.
B5: For custom ages simply enter the upper and lower bounds of the age band (0-90; 90 = 90 and above)
B6: Use the "Play", "Stop" and "Reset" buttons to control the pyramid.
B8: Select reference year:
B10: Select start year:
B12: Select end year:
C14: Lower bound | D14: Upper bound | E14: =Data!$B$323 -> 2036 | H14: =Data!$B$322 -> 2018 | K14: =Data!$B$324 -> 2043
E15: All persons | F15: % Male | G15: % Female | H15: All persons | I15: % Male | J15: % Female | K15: All persons | L15: % Male | M15: % Female
B16: =IF(AND(C16<>"",D16<>""),IF(D16>C16,IF(D16=90,"Aged "&C16&"+","Aged "&C16&"-"&D16),IF(C16=D16,"Aged "&C16,"invalid")),"") -> Aged 0-15 | C16: 0 | D16: 15 | E16: =IF(AND($C16<>"",$D16<>"",$D16>=$C16),SUM(OFFSET(Data!$B$183,MATCH($C16,Data!$G$306:$G$396,0),Data!$B$320,$D16-$C16+1,1)),"") -> 351180 | F16: =IF(AND($C16<>"",$D16<>"",$D16>=$C16),SUM(OFFSET(Data!$B$1,MATCH($C16,Data!$G$306:$G$396,0),Data!$B$320,$D16-$C16+1,1))/$E16,"") -> 0.5120935133 | G16: =IF(AND($C16<>"",$D16<>"",$D16>=$C16),SUM(OFFSET(Data!$B$92,MATCH($C16,Data!$G$306:$G$396,0),Data!$B$320,$D16-$C16+1,1))/$E16,"") -> 0.4879064867 | H16: =IF(AND($C16<>"",$D16<>"",$D16>=$C16),SUM(OFFSET(Data!$B$183,MATCH($C16,Data!$G$306:$G$396,0),Data!$B$319,$D16-$C16+1,1)),"") -> 393510 | I16: =IF(AND($C16<>"",$D16<>"",$D16>=$C16),SUM(OFFSET(Data!$B$1,MATCH($C16,Data!$G$306:$G$396,0),Data!$B$319,$D16-$C16+1,1))/$H16,"") -> 0.5127315697 | J16: =IF(AND($C16<>"",$D16<>"",$D16>=$C16),SUM(OFFSET(Data!$B$92,MATCH($C16,Data!$G$306:$G$396,0),Data!$B$319,$D16-$C16+1,1))/$H16,"") -> 0.4872684303 | K16: =IF(AND($C16<>"",$D16<>"",$D16>=$C16),SUM(OFFSET(Data!$B$183,MATCH($C16,Data!$G$306:$G$396,0),Data!$B$321,$D16-$C16+1,1)),"") -> 351087 | L16: =IF(AND($C16<>"",$D16<>"",$D16>=$C16),SUM(OFFSET(Data!$B$1,MATCH($C16,Data!$G$306:$G$396,0),Data!$B$321,$D16-$C16+1,1))/$K16,"") -> 0.5121237756 | M16: =IF(AND($C16<>"",$D16<>"",$D16>=$C16),SUM(OFFSET(Data!$B$92,MATCH($C16,Data!$G$306:$G$396,0),Data!$B$321,$D16-$C16+1,1))/$K16,"") -> 0.4878762244
B17: =IF(AND(C17<>"",D17<>""),IF(D17>C17,IF(D17=90,"Aged "&C17&"+","Aged "&C17&"-"&D17),IF(C17=D17,"Aged "&C17,"invalid")),"") -> Aged 16-39 | C17: 16 | D17: 39 | E17: =IF(AND($C17<>"",$D17<>"",$D17>=$C17),SUM(OFFSET(Data!$B$183,MATCH($C17,Data!$G$306:$G$396,0),Data!$B$320,$D17-$C17+1,1)),"") -> 561371 | F17: =IF(AND($C17<>"",$D17<>"",$D17>=$C17),SUM(OFFSET(Data!$B$1,MATCH($C17,Data!$G$306:$G$396,0),Data!$B$320,$D17-$C17+1,1))/$E17,"") -> 0.5163163042 | G17: =IF(AND($C17<>"",$D17<>"",$D17>=$C17),SUM(OFFSET(Data!$B$92,MATCH($C17,Data!$G$306:$G$396,0),Data!$B$320,$D17-$C17+1,1))/$E17,"") -> 0.4836836958 | H17: =IF(AND($C17<>"",$D17<>"",$D17>=$C17),SUM(OFFSET(Data!$B$183,MATCH($C17,Data!$G$306:$G$396,0),Data!$B$319,$D17-$C17+1,1)),"") -> 579513 | I17: =IF(AND($C17<>"",$D17<>"",$D17>=$C17),SUM(OFFSET(Data!$B$1,MATCH($C17,Data!$G$306:$G$396,0),Data!$B$319,$D17-$C17+1,1))/$H17,"") -> 0.5017385287 | J17: =IF(AND($C17<>"",$D17<>"",$D17>=$C17),SUM(OFFSET(Data!$B$92,MATCH($C17,Data!$G$306:$G$396,0),Data!$B$319,$D17-$C17+1,1))/$H17,"") -> 0.4982614713 | K17: =IF(AND($C17<>"",$D17<>"",$D17>=$C17),SUM(OFFSET(Data!$B$183,MATCH($C17,Data!$G$306:$G$396,0),Data!$B$321,$D17-$C17+1,1)),"") -> 557553 | L17: =IF(AND($C17<>"",$D17<>"",$D17>=$C17),SUM(OFFSET(Data!$B$1,MATCH($C17,Data!$G$306:$G$396,0),Data!$B$321,$D17-$C17+1,1))/$K17,"") -> 0.5156586011 | M17: =IF(AND($C17<>"",$D17<>"",$D17>=$C17),SUM(OFFSET(Data!$B$92,MATCH($C17,Data!$G$306:$G$396,0),Data!$B$321,$D17-$C17+1,1))/$K17,"") -> 0.4843413989
B18: Aged 40-64 | C18: 40 | D18: 64 | E18: =IF(AND($C18<>"",$D18<>"",$D18>=$C18),SUM(OFFSET(Data!$B$183,MATCH($C18,Data!$G$306:$G$396,0),Data!$B$320,$D18-$C18+1,1)),"") -> 609048 | F18: =IF(AND($C18<>"",$D18<>"",$D18>=$C18),SUM(OFFSET(Data!$B$1,MATCH($C18,Data!$G$306:$G$396,0),Data!$B$320,$D18-$C18+1,1))/$E18,"") -> 0.4926163455 | G18: =IF(AND($C18<>"",$D18<>"",$D18>=$C18),SUM(OFFSET(Data!$B$92,MATCH($C18,Data!$G$306:$G$396,0),Data!$B$320,$D18-$C18+1,1))/$E18,"") -> 0.5073836545 | H18: =IF(AND($C18<>"",$D18<>"",$D18>=$C18),SUM(OFFSET(Data!$B$183,MATCH($C18,Data!$G$306:$G$396,0),Data!$B$319,$D18-$C18+1,1)),"") -> 600421 | I18: =IF(AND($C18<>"",$D18<>"",$D18>=$C18),SUM(OFFSET(Data!$B$1,MATCH($C18,Data!$G$306:$G$396,0),Data!$B$319,$D18-$C18+1,1))/$H18,"") -> 0.4900528129 | J18: =IF(AND($C18<>"",$D18<>"",$D18>=$C18),SUM(OFFSET(Data!$B$92,MATCH($C18,Data!$G$306:$G$396,0),Data!$B$319,$D18-$C18+1,1))/$H18,"") -> 0.5099471871 | K18: =IF(AND($C18<>"",$D18<>"",$D18>=$C18),SUM(OFFSET(Data!$B$183,MATCH($C18,Data!$G$306:$G$396,0),Data!$B$321,$D18-$C18+1,1)),"") -> 599175 | L18: =IF(AND($C18<>"",$D18<>"",$D18>=$C18),SUM(OFFSET(Data!$B$1,MATCH($C18,Data!$G$306:$G$396,0),Data!$B$321,$D18-$C18+1,1))/$K18,"") -> 0.5009087495 | M18: =IF(AND($C18<>"",$D18<>"",$D18>=$C18),SUM(OFFSET(Data!$B$92,MATCH($C18,Data!$G$306:$G$396,0),Data!$B$321,$D18-$C18+1,1))/$K18,"") -> 0.4990912505
B19: Aged 65+ | C19: 65 | D19: 90 | E19: =IF(AND($C19<>"",$D19<>"",$D19>=$C19),SUM(OFFSET(Data!$B$183,MATCH($C19,Data!$G$306:$G$396,0),Data!$B$320,$D19-$C19+1,1)),"") -> 452706 | F19: =IF(AND($C19<>"",$D19<>"",$D19>=$C19),SUM(OFFSET(Data!$B$1,MATCH($C19,Data!$G$306:$G$396,0),Data!$B$320,$D19-$C19+1,1))/$E19,"") -> 0.4643808564 | G19: =IF(AND($C19<>"",$D19<>"",$D19>=$C19),SUM(OFFSET(Data!$B$92,MATCH($C19,Data!$G$306:$G$396,0),Data!$B$320,$D19-$C19+1,1))/$E19,"") -> 0.5356191436 | H19: =IF(AND($C19<>"",$D19<>"",$D19>=$C19),SUM(OFFSET(Data!$B$183,MATCH($C19,Data!$G$306:$G$396,0),Data!$B$319,$D19-$C19+1,1)),"") -> 308197 | I19: =IF(AND($C19<>"",$D19<>"",$D19>=$C19),SUM(OFFSET(Data!$B$1,MATCH($C19,Data!$G$306:$G$396,0),Data!$B$319,$D19-$C19+1,1))/$H19,"") -> 0.452415176 | J19: =IF(AND($C19<>"",$D19<>"",$D19>=$C19),SUM(OFFSET(Data!$B$92,MATCH($C19,Data!$G$306:$G$396,0),Data!$B$319,$D19-$C19+1,1))/$H19,"") -> 0.547584824 | K19: =IF(AND($C19<>"",$D19<>"",$D19>=$C19),SUM(OFFSET(Data!$B$183,MATCH($C19,Data!$G$306:$G$396,0),Data!$B$321,$D19-$C19+1,1)),"") -> 481380 | L19: =IF(AND($C19<>"",$D19<>"",$D19>=$C19),SUM(OFFSET(Data!$B$1,MATCH($C19,Data!$G$306:$G$396,0),Data!$B$321,$D19-$C19+1,1))/$K19,"") -> 0.461822261 | M19: =IF(AND($C19<>"",$D19<>"",$D19>=$C19),SUM(OFFSET(Data!$B$92,MATCH($C19,Data!$G$306:$G$396,0),Data!$B$321,$D19-$C19+1,1))/$K19,"") -> 0.538177739
B20: Aged 85+ | C20: 85 | D20: 90 | E20: =IF(AND($C20<>"",$D20<>"",$D20>=$C20),SUM(OFFSET(Data!$B$183,MATCH($C20,Data!$G$306:$G$396,0),Data!$B$320,$D20-$C20+1,1)),"") -> 65184 | F20: =IF(AND($C20<>"",$D20<>"",$D20>=$C20),SUM(OFFSET(Data!$B$1,MATCH($C20,Data!$G$306:$G$396,0),Data!$B$320,$D20-$C20+1,1))/$E20,"") -> 0.409839838 | G20: =IF(AND($C20<>"",$D20<>"",$D20>=$C20),SUM(OFFSET(Data!$B$92,MATCH($C20,Data!$G$306:$G$396,0),Data!$B$320,$D20-$C20+1,1))/$E20,"") -> 0.590160162 | H20: =IF(AND($C20<>"",$D20<>"",$D20>=$C20),SUM(OFFSET(Data!$B$183,MATCH($C20,Data!$G$306:$G$396,0),Data!$B$319,$D20-$C20+1,1)),"") -> 37720 | I20: =IF(AND($C20<>"",$D20<>"",$D20>=$C20),SUM(OFFSET(Data!$B$1,MATCH($C20,Data!$G$306:$G$396,0),Data!$B$319,$D20-$C20+1,1))/$H20,"") -> 0.343504772 | J20: =IF(AND($C20<>"",$D20<>"",$D20>=$C20),SUM(OFFSET(Data!$B$92,MATCH($C20,Data!$G$306:$G$396,0),Data!$B$319,$D20-$C20+1,1))/$H20,"") -> 0.656495228 | K20: =IF(AND($C20<>"",$D20<>"",$D20>=$C20),SUM(OFFSET(Data!$B$183,MATCH($C20,Data!$G$306:$G$396,0),Data!$B$321,$D20-$C20+1,1)),"") -> 77854 | L20: =IF(AND($C20<>"",$D20<>"",$D20>=$C20),SUM(OFFSET(Data!$B$1,MATCH($C20,Data!$G$306:$G$396,0),Data!$B$321,$D20-$C20+1,1))/$K20,"") -> 0.4210188301 | M20: =IF(AND($C20<>"",$D20<>"",$D20>=$C20),SUM(OFFSET(Data!$B$92,MATCH($C20,Data!$G$306:$G$396,0),Data!$B$321,$D20-$C20+1,1))/$K20,"") -> 0.5789811699
B21: Aged 0+ | C21: 0 | D21: 90 | E21: =IF(AND($C21<>"",$D21<>"",$D21>=$C21),SUM(OFFSET(Data!$B$183,MATCH($C21,Data!$G$306:$G$396,0),Data!$B$320,$D21-$C21+1,1)),"") -> 1974305 | F21: =IF(AND($C21<>"",$D21<>"",$D21>=$C21),SUM(OFFSET(Data!$B$1,MATCH($C21,Data!$G$306:$G$396,0),Data!$B$320,$D21-$C21+1,1))/$E21,"") -> 0.4963452962 | G21: =IF(AND($C21<>"",$D21<>"",$D21>=$C21),SUM(OFFSET(Data!$B$92,MATCH($C21,Data!$G$306:$G$396,0),Data!$B$320,$D21-$C21+1,1))/$E21,"") -> 0.5036547038 | H21: =IF(AND($C21<>"",$D21<>"",$D21>=$C21),SUM(OFFSET(Data!$B$183,MATCH($C21,Data!$G$306:$G$396,0),Data!$B$319,$D21-$C21+1,1)),"") -> 1881641 | I21: =IF(AND($C21<>"",$D21<>"",$D21>=$C21),SUM(OFFSET(Data!$B$1,MATCH($C21,Data!$G$306:$G$396,0),Data!$B$319,$D21-$C21+1,1))/$H21,"") -> 0.4922299206 | J21: =IF(AND($C21<>"",$D21<>"",$D21>=$C21),SUM(OFFSET(Data!$B$92,MATCH($C21,Data!$G$306:$G$396,0),Data!$B$319,$D21-$C21+1,1))/$H21,"") -> 0.5077700794 | K21: =IF(AND($C21<>"",$D21<>"",$D21>=$C21),SUM(OFFSET(Data!$B$183,MATCH($C21,Data!$G$306:$G$396,0),Data!$B$321,$D21-$C21+1,1)),"") -> 1989195 | L21: =IF(AND($C21<>"",$D21<>"",$D21>=$C21),SUM(OFFSET(Data!$B$1,MATCH($C21,Data!$G$306:$G$396,0),Data!$B$321,$D21-$C21+1,1))/$K21,"") -> 0.4975635873 | M21: =IF(AND($C21<>"",$D21<>"",$D21>=$C21),SUM(OFFSET(Data!$B$92,MATCH($C21,Data!$G$306:$G$396,0),Data!$B$321,$D21-$C21+1,1))/$K21,"") -> 0.5024364127
E22: =IF(AND($C22<>"",$D22<>"",$D22>=$C22),SUM(OFFSET(Data!$B$183,MATCH($C22,Data!$G$306:$G$396,0),Data!$B$320,$D22-$C22+1,1)),"") ->  | F22: =IF(AND($C22<>"",$D22<>"",$D22>=$C22),SUM(OFFSET(Data!$B$1,MATCH($C22,Data!$G$306:$G$396,0),Data!$B$320,$D22-$C22+1,1))/$E22,"") ->  | G22: =IF(AND($C22<>"",$D22<>"",$D22>=$C22),SUM(OFFSET(Data!$B$92,MATCH($C22,Data!$G$306:$G$396,0),Data!$B$320,$D22-$C22+1,1))/$E22,"") ->  | H22: =IF(AND($C22<>"",$D22<>"",$D22>=$C22),SUM(OFFSET(Data!$B$183,MATCH($C22,Data!$G$306:$G$396,0),Data!$B$319,$D22-$C22+1,1)),"") ->  | I22: =IF(AND($C22<>"",$D22<>"",$D22>=$C22),SUM(OFFSET(Data!$B$1,MATCH($C22,Data!$G$306:$G$396,0),Data!$B$319,$D22-$C22+1,1))/$H22,"") ->  | J22: =IF(AND($C22<>"",$D22<>"",$D22>=$C22),SUM(OFFSET(Data!$B$92,MATCH($C22,Data!$G$306:$G$396,0),Data!$B$319,$D22-$C22+1,1))/$H22,"") ->  | K22: =IF(AND($C22<>"",$D22<>"",$D22>=$C22),SUM(OFFSET(Data!$B$183,MATCH($C22,Data!$G$306:$G$396,0),Data!$B$321,$D22-$C22+1,1)),"") ->  | L22: =IF(AND($C22<>"",$D22<>"",$D22>=$C22),SUM(OFFSET(Data!$B$1,MATCH($C22,Data!$G$306:$G$396,0),Data!$B$321,$D22-$C22+1,1))/$K22,"") ->  | M22: =IF(AND($C22<>"",$D22<>"",$D22>=$C22),SUM(OFFSET(Data!$B$92,MATCH($C22,Data!$G$306:$G$396,0),Data!$B$321,$D22-$C22+1,1))/$K22,"") -> 
E23: =IF(AND($C23<>"",$D23<>"",$D23>=$C23),SUM(OFFSET(Data!$B$183,MATCH($C23,Data!$G$306:$G$396,0),Data!$B$320,$D23-$C23+1,1)),"") ->  | F23: =IF(AND($C23<>"",$D23<>"",$D23>=$C23),SUM(OFFSET(Data!$B$1,MATCH($C23,Data!$G$306:$G$396,0),Data!$B$320,$D23-$C23+1,1))/$E23,"") ->  | G23: =IF(AND($C23<>"",$D23<>"",$D23>=$C23),SUM(OFFSET(Data!$B$92,MATCH($C23,Data!$G$306:$G$396,0),Data!$B$320,$D23-$C23+1,1))/$E23,"") ->  | H23: =IF(AND($C23<>"",$D23<>"",$D23>=$C23),SUM(OFFSET(Data!$B$183,MATCH($C23,Data!$G$306:$G$396,0),Data!$B$319,$D23-$C23+1,1)),"") ->  | I23: =IF(AND($C23<>"",$D23<>"",$D23>=$C23),SUM(OFFSET(Data!$B$1,MATCH($C23,Data!$G$306:$G$396,0),Data!$B$319,$D23-$C23+1,1))/$H23,"") ->  | J23: =IF(AND($C23<>"",$D23<>"",$D23>=$C23),SUM(OFFSET(Data!$B$92,MATCH($C23,Data!$G$306:$G$396,0),Data!$B$319,$D23-$C23+1,1))/$H23,"") ->  | K23: =IF(AND($C23<>"",$D23<>"",$D23>=$C23),SUM(OFFSET(Data!$B$183,MATCH($C23,Data!$G$306:$G$396,0),Data!$B$321,$D23-$C23+1,1)),"") ->  | L23: =IF(AND($C23<>"",$D23<>"",$D23>=$C23),SUM(OFFSET(Data!$B$1,MATCH($C23,Data!$G$306:$G$396,0),Data!$B$321,$D23-$C23+1,1))/$K23,"") ->  | M23: =IF(AND($C23<>"",$D23<>"",$D23>=$C23),SUM(OFFSET(Data!$B$92,MATCH($C23,Data!$G$306:$G$396,0),Data!$B$321,$D23-$C23+1,1))/$K23,"") -> 

Sheet Dependency Ratios
B2: Dependency Ratios
B3: The following charts display the dependency ratios for those aged 0-15, 65+ and 16-64.
B4: Simply select the years and gender of interest and then, for each chart, select a numerator and denominator of interest.
B6: Select start year: | F6: Select end year: | J6: Select gender:

Sheet Population Share
B2: Population Share
B3: This section provides a time series chart showing Northern Ireland's population share of selected regions in the UK.
B6: Select start year:
B8: Select end year:
B10: Select region:
B11: (select any: check on or off)
C12: United Kindom
C13: Great Britain
C14: England
C15: England & Wales

Sheet Households
B2: Households
B3: The following chart shows data related to the 2016-based household projections.
B5: Select chart elements:
B7: =Data!$B$423&":" -> Household Size:
B8: (select any: check on or off)
C9: =IF(Data!$B$422=1,Data!B401,IF(Data!$B$422=2,Data!B411,Data!$B$417)) -> 1 person
C10: =IF(Data!$B$422=1,Data!B402,IF(Data!$B$422=2,Data!B412,"")) -> 2 persons
C11: =IF(Data!$B$422=1,Data!B403,IF(Data!$B$422=2,Data!B413,"")) -> 3 persons
C12: =IF(Data!$B$422=1,Data!B404,IF(Data!$B$422=2,Data!B414,"")) -> 4 persons
C13: =IF(Data!$B$422=1,Data!B405,IF(Data!$B$422=2,Data!B415,"")) -> 5+ persons
C14: =IF(Data!$B$422=1,Data!B406,IF(Data!$B$422=2,Data!B416,"")) -> Total households

Sheet LGDs
B2: Local Government Districts
B3: The following chart displays the growth of LGDs from 2001 to 2039. The y axis is the proportion of people aged 65 and over, while the x axis represents the growth in the LGD from 2001. The size of the bubble reflects the relative size of the LGD in terms of NI population share.
B4: Simply click the play button to see the change.
